Workbook

Sheet Introduction
C4: Joint Monitoring Programme for Water Supply, Sanitation and Hygiene
C6: Estimates on household water, sanitation and hygiene by wealth quintile and sub-national region in
C7: =+Water!B5 -> Côte d'Ivoire
C9: Updated May 2021
C11: Follow the links below to find the following information:
C13: JMP Estimates
C14: WASH status and trends by wealth quintile (customized quintiles made without water and sanitation assets)
C15: Water
C16: Sanitation
C17: Hygiene
C19: Data inputs
C20: customized wealth quintiles and subnational data:
C21: =IF(INDIRECT(CONCATENATE("Water","!B105"))=0,"",INDIRECT(CONCATENATE("Water","!B105"))) -> WHS03
C22: =IF(INDIRECT(CONCATENATE("Water","!B106"))=0,"",INDIRECT(CONCATENATE("Water","!B106"))) -> AIS05
C23: =IF(INDIRECT(CONCATENATE("Water","!B107"))=0,"",INDIRECT(CONCATENATE("Water","!B107"))) -> MICS06
C24: =IF(INDIRECT(CONCATENATE("Water","!B108"))=0,"",INDIRECT(CONCATENATE("Water","!B108"))) -> DHS12
C25: =IF(INDIRECT(CONCATENATE("Water","!B109"))=0,"",INDIRECT(CONCATENATE("Water","!B109"))) -> MICS16
C26: =IF(INDIRECT(CONCATENATE("Water","!B110"))=0,"",INDIRECT(CONCATENATE("Water","!B110"))) -> 
C27: =IF(INDIRECT(CONCATENATE("Water","!B111"))=0,"",INDIRECT(CONCATENATE("Water","!B111"))) -> 
C28: =IF(INDIRECT(CONCATENATE("Water","!B112"))=0,"",INDIRECT(CONCATENATE("Water","!B112"))) -> 
C29: =IF(INDIRECT(CONCATENATE("Water","!B113"))=0,"",INDIRECT(CONCATENATE("Water","!B113"))) -> 
C30: =IF(INDIRECT(CONCATENATE("Water","!B114"))=0,"",INDIRECT(CONCATENATE("Water","!B114"))) -> 
C31: =IF(INDIRECT(CONCATENATE("Water","!B115"))=0,"",INDIRECT(CONCATENATE("Water","!B115"))) -> 
C32: =IF(INDIRECT(CONCATENATE("Water","!B116"))=0,"",INDIRECT(CONCATENATE("Water","!B116"))) -> 
L55: =+IF(ISNUMBER(M48), "", "Insufficient data to estimate safely managed sanitation services at national level") -> Insufficient data to estimate safely managed sanitation services at national level

Sheet Water
A1: BGD
B4: Summary of trends in use of drinking water by wealth quintile (%)
B5: =IF(ISERROR(INDIRECT(CONCATENATE($B105,"!A2"))),"",INDIRECT(CONCATENATE($B105,"!A2"))) -> Côte d'Ivoire
B7: =B118 -> National use of drinking water sources, 2000–2020 | J7: =B218 -> Urban use of drinking water sources, 2000–2020 | R7: =B318 -> Rural use of drinking water sources, 2000–2020
B31: =IF(ISERROR(INDIRECT(CONCATENATE($B105,"!A2"))),"",INDIRECT(CONCATENATE($B105,"!A2"))) -> Côte d'Ivoire | F31: Poorest | J31: Poor | N31: Middle | R31: Rich | V31: Richest
F32: Basic | G32: Limited | H32: Unimproved | I32: Surface water | J32: Basic | K32: Limited | L32: Unimproved | M32: Surface water | N32: Basic | O32: Limited | P32: Unimproved | Q32: Surface water | R32: Basic | S32: Limited | T32: Unimproved | U32: Surface water | V32: Basic | W32: Limited | X32: Unimproved | Y32: Surface water
B33: NATIONAL | D33: Estimate | E33: =C99 -> 2000 | F33: =E99 -> 45.7279194 | G33: =F99 -> 8.041035939 | H33: 26.7221412 | I33: 19.50890347 | J33: =J99 -> 57.09867207 | K33: =K99 -> 8.443978203 | L33: 23.42543352 | M33: 11.03191621 | N33: =O99 -> 68.0861889 | O33: =P99 -> 5.602569937 | P33: 16.01099517 | Q33: 10.30024599 | R33: =T99 -> 85.79793628 | S33: =U99 -> 2.377709561 | T33: 9.144901838 | U33: 2.679452318 | V33: =Y99 -> 97.50643331 | W33: =Z99 -> 1.080764409 | X33: 1.337135051 | Y33: 0.07566722784
E34: =C100 -> 2020 | F34: =E100 -> 53.60145531 | G34: 9.425559576 | H34: 26.32595293 | I34: 10.64703218 | J34: =J100 -> 60.2869731 | K34: 8.91547681 | L34: 20.35818883 | M34: 10.43936126 | N34: =O100 -> 74.10584136 | O34: 6.097905693 | P34: 16.81300161 | Q34: 2.983251338 | R34: =T100 -> 92.52725295 | S34: 2.564198435 | T34: 4.908548614 | U34: 0 | V34: =Y100 -> 98.24861004 | W34: 1.088990719 | X34: 0.6623992404 | Y34: 0
B36: URBAN | D36: Estimate | E36: =C199 -> 2000 | F36: =E199 -> 72.80126255 | G36: =F199 -> 3.93025535 | H36: 15.2084605 | I36: 8.0600216 | J36: =J199 -> 89.0530712 | K36: =K199 -> 2.549884275 | L36: 7.424958391 | M36: 0.9720861346 | N36: =O199 -> 89.62442738 | O36: =P199 -> 1.289419368 | P36: 8.026184549 | Q36: 1.059968702 | R36: =T199 -> 97.07433717 | S36: =U199 -> 1.707313735 | T36: 1.042470033 | U36: 0.1758790646 | V36: =Y199 -> 99.45 | W36: =Z199 -> 0.55 | X36: 0 | Y36: 0
E37: =C200 -> 2020 | F37: =E200 -> 79.05495939 | G37: 4.267867976 | H37: 16.67717263 | I37: 0 | J37: =J200 -> 90.42647222 | K37: 2.589209294 | L37: 6.984318491 | M37: 0 | N37: =O200 -> 96.55623766 | O37: 1.389146761 | P37: 2.054615583 | Q37: 0 | R37: =T200 -> 97.1802728 | S37: 1.709176898 | T37: 1.110550301 | U37: 0 | V37: =Y200 -> 99.17842326 | W37: 0.5484980673 | X37: 0.2730786699 | Y37: 0
B39: RURAL | D39: Estimate | E39: =C299 -> 2000 | F39: =E299 -> 47.18774328 | G39: =F299 -> 8.833036095 | H39: 23.08817159 | I39: 20.89104903 | J39: =J299 -> 45.51937272 | K39: =K299 -> 7.923816673 | L39: 31.58744798 | M39: 14.96936263 | N39: =O299 -> 55.54145874 | O39: =P299 -> 7.956995645 | P39: 24.01633439 | Q39: 12.48521122 | R39: =T299 -> 64.15132643 | S39: =U299 -> 9.374509662 | T39: 14.90966077 | U39: 11.56450314 | V39: =Y299 -> 70.39327519 | W39: =Z299 -> 6.45537897 | X39: 15.46568322 | Y39: 7.68566261
E40: =C300 -> 2020 | F40: =E300 -> 49.73349939 | G40: 9.309574154 | H40: 28.83727614 | I40: 12.11965032 | J40: =J300 -> 56.71321153 | K40: 9.872392001 | L40: 23.93751734 | M40: 9.476879125 | N40: =O300 -> 59.20238087 | O40: 8.481467671 | P40: 19.5945552 | Q40: 12.72159626 | R40: =T300 -> 64.09218708 | S40: 9.365867558 | T40: 19.56344641 | U40: 6.978498952 | V40: =Y300 -> 72.50171615 | W40: 6.64873246 | X40: 14.69477226 | Y40: 6.15477913
A97: NATIONAL | D97: Poorest | I97: Poor | N97: Middle | S97: Rich | X97: Richest
D98: Improved | E98: Basic | F98: Limited | G98: Unimproved | H98: Surface water | I98: Improved | J98: Basic | K98: Limited | L98: Unimproved | M98: Surface water | N98: Improved | O98: Basic | P98: Limited | Q98: Unimproved | R98: Surface water | S98: Improved | T98: Basic | U98: Limited | V98: Unimproved | W98: Surface water | X98: Improved | Y98: Basic | Z98: Limited | AA98: Unimproved | AB98: Surface water
A99: Forecast period: | C99: =MinBase(C105:C116) -> 2000 | D99: =IF((D101+H101)>100,D101*100/(D101+H101),D101) -> 53.76895533 | E99: =D99*AVERAGEIF(E105:E116,">0")/100 -> 45.7279194 | F99: =D99*(100-AVERAGEIF(E105:E116,">0"))/100 -> 8.041035939 | G99: =100-(E99+F99+H99) -> 26.7221412 | H99: =IF((D101+H101)>100,H101*100/(D101+H101),H101) -> 19.50890347 | I99: =IF((I101+M101)>100,I101*100/(I101+M101),I101) -> 65.54265027 | J99: =I99*AVERAGEIF(J105:J116,">0")/100 -> 57.09867207 | K99: =I99*(100-AVERAGEIF(J105:J116,">0"))/100 -> 8.443978203 | L99: =100-(J99+K99+M99) -> 23.42543352 | M99: =IF((I101+M101)>100,M101*100/(I101+M101),M101) -> 11.03191621 | N99: =IF((N101+R101)>100,N101*100/(N101+R101),N101) -> 73.68875884 | O99: =N99*AVERAGEIF(O105:O116,">0")/100 -> 68.0861889 | P99: =N99*(100-AVERAGEIF(O105:O116,">0"))/100 -> 5.602569937 | Q99: =100-(O99+P99+R99) -> 16.01099517 | R99: =IF((N101+R101)>100,R101*100/(N101+R101),R101) -> 10.30024599 | S99: =IF((S101+W101)>100,S101*100/(S101+W101),S101) -> 88.17564584 | T99: =S99*AVERAGEIF(T105:T116,">0")/100 -> 85.79793628 | U99: =S99*(100-AVERAGEIF(T105:T116,">0"))/100 -> 2.377709561 | V99: =100-(T99+U99+W99) -> 9.144901838 | W99: =IF((S101+W101)>100,W101*100/(S101+W101),W101) -> 2.679452318 | X99: =IF((X101+AB101)>100,X101*100/(X101+AB101),X101) -> 98.58719772 | Y99: =X99*AVERAGEIF(Y105:Y116,">0")/100 -> 97.50643331 | Z99: =X99*(100-AVERAGEIF(Y105:Y116,">0"))/100 -> 1.080764409 | AA99: =100-(Y99+Z99+AB99) -> 1.337135051 | AB99: =IF((X101+AB101)>100,AB101*100/(X101+AB101),AB101) -> 0.07566722784
C100: =MaxTarget(C105:C116) -> 2020 | D100: =IF((D102+H102)>100,D102*100/(D102+H102),D102) -> 63.02701489 | E100: =D100*AVERAGEIF(E105:E116,">0")/100 -> 53.60145531 | F100: =D100*(100-AVERAGEIF(E105:E116,">0"))/100 -> 9.425559576 | G100: =100-(E100+F100+H100) -> 26.32595293 | H100: =IF((D102+H102)>100,H102*100/(D102+H102),H102) -> 10.64703218 | I100: =IF((I102+M102)>100,I102*100/(I102+M102),I102) -> 69.20244991 | J100: =I100*AVERAGEIF(J105:J116,">0")/100 -> 60.2869731 | K100: =I100*(100-AVERAGEIF(J105:J116,">0"))/100 -> 8.91547681 | L100: =100-(J100+K100+M100) -> 20.35818883 | M100: =IF((I102+M102)>100,M102*100/(I102+M102),M102) -> 10.43936126 | N100: =IF((N102+R102)>100,N102*100/(N102+R102),N102) -> 80.20374705 | O100: =N100*AVERAGEIF(O105:O116,">0")/100 -> 74.10584136 | P100: =N100*(100-AVERAGEIF(O105:O116,">0"))/100 -> 6.097905693 | Q100: =100-(O100+P100+R100) -> 16.81300161 | R100: =IF((N102+R102)>100,R102*100/(N102+R102),R102) -> 2.983251338 | S100: =IF((S102+W102)>100,S102*100/(S102+W102),S102) -> 95.09145139 | T100: =S100*AVERAGEIF(T105:T116,">0")/100 -> 92.52725295 | U100: =S100*(100-AVERAGEIF(T105:T116,">0"))/100 -> 2.564198435 | V100: =100-(T100+U100+W100) -> 4.908548614 | W100: =IF((S102+W102)>100,W102*100/(S102+W102),W102) -> 0 | X100: =IF((X102+AB102)>100,X102*100/(X102+AB102),X102) -> 99.33760076 | Y100: =X100*AVERAGEIF(Y105:Y116,">0")/100 -> 98.24861004 | Z100: =X100*(100-AVERAGEIF(Y105:Y116,">0"))/100 -> 1.088990719 | AA100: =100-(Y100+Z100+AB100) -> 0.6623992404 | AB100: =IF((X102+AB102)>100,AB102*100/(X102+AB102),AB102) -> 0
A101: Regression period: | C101: =MinRegYear(C99,C105:C116) -> 2004 | D101: =IF(MAX(C105:C116)-MIN(C105:C116)<5,AVERAGEIF(C105:C116,">0",D105:D116), IF(FORECAST($C101,D$105:D$116,$C$105:$C$116)<0,0, IF(FORECAST($C101,D$105:D$116,$C$105:$C$116)>100,100, FORECAST($C101,D$105:D$116,$C$105:$C$116)))) -> 53.76895533 | H101: =IF(MAX(C105:C116)-MIN(C105:C116)<5,AVERAGEIF(C105:C116,">0",H105:H116), IF(FORECAST($C101,H$105:H$116,$C$105:$C$116)<0,0, IF(FORECAST($C101,H$105:H$116,$C$105:$C$116)>100,100, FORECAST($C101,H$105:H$116,$C$105:$C$116)))) -> 19.50890347 | I101: =IF(MAX(C105:C116)-MIN(C105:C116)<5,AVERAGEIF(C105:C116,">0",I105:I116), IF(FORECAST($C101,I$105:I$116,$C$105:$C$116)<0,0, IF(FORECAST($C101,I$105:I$116,$C$105:$C$116)>100,100, FORECAST($C101,I$105:I$116,$C$105:$C$116)))) -> 65.54265027 | M101: =IF(MAX(C105:C116)-MIN(C105:C116)<5,AVERAGEIF(C105:C116,">0",M105:M116), IF(FORECAST($C101,M$105:M$116,$C$105:$C$116)<0,0, IF(FORECAST($C101,M$105:M$116,$C$105:$C$116)>100,100, FORECAST($C101,M$105:M$116,$C$105:$C$116)))) -> 11.03191621 | N101: =IF(MAX(C105:C116)-MIN(C105:C116)<5,AVERAGEIF(C105:C116,">0",N105:N116), IF(FORECAST($C101,N$105:N$116,$C$105:$C$116)<0,0, IF(FORECAST($C101,N$105:N$116,$C$105:$C$116)>100,100, FORECAST($C101,N$105:N$116,$C$105:$C$116)))) -> 73.68875884 | R101: =IF(MAX(C105:C116)-MIN(C105:C116)<5,AVERAGEIF(C105:C116,">0",R105:R116), IF(FORECAST($C101,R$105:R$116,$C$105:$C$116)<0,0, IF(FORECAST($C101,R$105:R$116,$C$105:$C$116)>100,100, FORECAST($C101,R$105:R$116,$C$105:$C$116)))) -> 10.30024599 | S101: =IF(MAX(C105:C116)-MIN(C105:C116)<5,AVERAGEIF(C105:C116,">0",S105:S116), IF(FORECAST($C101,S$105:S$116,$C$105:$C$116)<0,0, IF(FORECAST($C101,S$105:S$116,$C$105:$C$116)>100,100, FORECAST($C101,S$105:S$116,$C$105:$C$116)))) -> 88.17564584 | W101: =IF(MAX(C105:C116)-MIN(C105:C116)<5,AVERAGEIF(C105:C116,">0",W105:W116), IF(FORECAST($C101,W$105:W$116,$C$105:$C$116)<0,0, IF(FORECAST($C101,W$105:W$116,$C$105:$C$116)>100,100, FORECAST($C101,W$105:W$116,$C$105:$C$116)))) -> 2.679452318 | X101: =IF(MAX(C105:C116)-MIN(C105:C116)<5,AVERAGEIF(C105:C116,">0",X105:X116), IF(FORECAST($C101,X$105:X$116,$C$105:$C$116)<0,0, IF(FORECAST($C101,X$105:X$116,$C$105:$C$116)>100,100, FORECAST($C101,X$105:X$116,$C$105:$C$116)))) -> 98.58719772 | AB101: =IF(MAX(C105:C116)-MIN(C105:C116)<5,AVERAGEIF(C105:C116,">0",AB105:AB116), IF(FORECAST($C101,AB$105:AB$116,$C$105:$C$116)<0,0, IF(FORECAST($C101,AB$105:AB$116,$C$105:$C$116)>100,100, FORECAST($C101,AB$105:AB$116,$C$105:$C$116)))) -> 0.07566722784
C102: =MaxRegYear(C100,C105:C116) -> 2018 | D102: =IF(MAX(C105:C116)-MIN(C105:C116)<5,AVERAGEIF(C105:C116,">0",D105:D116), IF(FORECAST($C102,D$105:D$116,$C$105:$C$116)<0,0, IF(FORECAST($C102,D$105:D$116,$C$105:$C$116)>100,100, FORECAST($C102,D$105:D$116,$C$105:$C$116)))) -> 63.02701489 | H102: =IF(MAX(C105:C116)-MIN(C105:C116)<5,AVERAGEIF(C105:C116,">0",H105:H116), IF(FORECAST($C102,H$105:H$116,$C$105:$C$116)<0,0, IF(FORECAST($C102,H$105:H$116,$C$105:$C$116)>100,100, FORECAST($C102,H$105:H$116,$C$105:$C$116)))) -> 10.64703218 | I102: =IF(MAX(C105:C116)-MIN(C105:C116)<5,AVERAGEIF(C105:C116,">0",I105:I116), IF(FORECAST($C102,I$105:I$116,$C$105:$C$116)<0,0, IF(FORECAST($C102,I$105:I$116,$C$105:$C$116)>100,100, FORECAST($C102,I$105:I$116,$C$105:$C$116)))) -> 69.20244991 | M102: =IF(MAX(C105:C116)-MIN(C105:C116)<5,AVERAGEIF(C105:C116,">0",M105:M116), IF(FORECAST($C102,M$105:M$116,$C$105:$C$116)<0,0, IF(FORECAST($C102,M$105:M$116,$C$105:$C$116)>100,100, FORECAST($C102,M$105:M$116,$C$105:$C$116)))) -> 10.43936126 | N102: =IF(MAX(C105:C116)-MIN(C105:C116)<5,AVERAGEIF(C105:C116,">0",N105:N116), IF(FORECAST($C102,N$105:N$116,$C$105:$C$116)<0,0, IF(FORECAST($C102,N$105:N$116,$C$105:$C$116)>100,100, FORECAST($C102,N$105:N$116,$C$105:$C$116)))) -> 80.20374705 | R102: =IF(MAX(C105:C116)-MIN(C105:C116)<5,AVERAGEIF(C105:C116,">0",R105:R116), IF(FORECAST($C102,R$105:R$116,$C$105:$C$116)<0,0, IF(FORECAST($C102,R$105:R$116,$C$105:$C$116)>100,100, FORECAST($C102,R$105:R$116,$C$105:$C$116)))) -> 2.983251338 | S102: =IF(MAX(C105:C116)-MIN(C105:C116)<5,AVERAGEIF(C105:C116,">0",S105:S116), IF(FORECAST($C102,S$105:S$116,$C$105:$C$116)<0,0, IF(FORECAST($C102,S$105:S$116,$C$105:$C$116)>100,100, FORECAST($C102,S$105:S$116,$C$105:$C$116)))) -> 95.09145139 | W102: =IF(MAX(C105:C116)-MIN(C105:C116)<5,AVERAGEIF(C105:C116,">0",W105:W116), IF(FORECAST($C102,W$105:W$116,$C$105:$C$116)<0,0, IF(FORECAST($C102,W$105:W$116,$C$105:$C$116)>100,100, FORECAST($C102,W$105:W$116,$C$105:$C$116)))) -> 0 | X102: =IF(MAX(C105:C116)-MIN(C105:C116)<5,AVERAGEIF(C105:C116,">0",X105:X116), IF(FORECAST($C102,X$105:X$116,$C$105:$C$116)<0,0, IF(FORECAST($C102,X$105:X$116,$C$105:$C$116)>100,100, FORECAST($C102,X$105:X$116,$C$105:$C$116)))) -> 99.33760076 | AB102: =IF(MAX(C105:C116)-MIN(C105:C116)<5,AVERAGEIF(C105:C116,">0",AB105:AB116), IF(FORECAST($C102,AB$105:AB$116,$C$105:$C$116)<0,0, IF(FORECAST($C102,AB$105:AB$116,$C$105:$C$116)>100,100, FORECAST($C102,AB$105:AB$116,$C$105:$C$116)))) -> 0
B104: Survey | C104: Year | D104: Improved | E104: % Improved < = 30min | H104: Surface water | I104: Improved | J104: % Improved < = 30min | M104: Surface water | N104: Improved | O104: % Improved < = 30min | R104: Surface water | S104: Improved | T104: % Improved < = 30min | W104: Surface water | X104: Improved | Y104: % Improved < = 30min | AB104: Surface water
B105: WHS03 | D105: =IF(ISERROR(INDIRECT(CONCATENATE($B105,"!C16"))),"",INDIRECT(CONCATENATE($B105,"!C16"))) -> 88.59646629 | E105: =IF(ISERROR(INDIRECT(CONCATENATE($B105,"!C23"))),"",INDIRECT(CONCATENATE($B105,"!C23"))) -> 90.6793294 | H105: =IF(ISERROR(INDIRECT(CONCATENATE($B105,"!C21"))),"",INDIRECT(CONCATENATE($B105,"!C21"))) -> 0 | I105: =IF(ISERROR(INDIRECT(CONCATENATE($B105,"!D16"))),"",INDIRECT(CONCATENATE($B105,"!D16"))) -> 89.22346138 | J105: =IF(ISERROR(INDIRECT(CONCATENATE($B105,"!D23"))),"",INDIRECT(CONCATENATE($B105,"!D23"))) -> 95.28550997 | M105: =IF(ISERROR(INDIRECT(CONCATENATE($B105,"!D21"))),"",INDIRECT(CONCATENATE($B105,"!D21"))) -> 0.1897701949 | N105: =IF(ISERROR(INDIRECT(CONCATENATE($B105,"!E16"))),"",INDIRECT(CONCATENATE($B105,"!E16"))) -> 93.3597246 | O105: =IF(ISERROR(INDIRECT(CONCATENATE($B105,"!E23"))),"",INDIRECT(CONCATENATE($B105,"!E23"))) -> 98.37816036 | R105: =IF(ISERROR(INDIRECT(CONCATENATE($B105,"!E21"))),"",INDIRECT(CONCATENATE($B105,"!E21"))) -> 0.1961156019 | S105: =IF(ISERROR(INDIRECT(CONCATENATE($B105,"!F16"))),"",INDIRECT(CONCATENATE($B105,"!F16"))) -> 96.56099349 | T105: =IF(ISERROR(INDIRECT(CONCATENATE($B105,"!F23"))),"",INDIRECT(CONCATENATE($B105,"!F23"))) -> 98.02019845 | W105: =IF(ISERROR(INDIRECT(CONCATENATE($B105,"!F21"))),"",INDIRECT(CONCATENATE($B105,"!F21"))) -> 0.1702583599 | X105: =IF(ISERROR(INDIRECT(CONCATENATE($B105,"!G16"))),"",INDIRECT(CONCATENATE($B105,"!G16"))) -> 99.79605842 | Y105: =IF(ISERROR(INDIRECT(CONCATENATE($B105,"!G23"))),"",INDIRECT(CONCATENATE($B105,"!G23"))) -> 100 | AB105: =IF(ISERROR(INDIRECT(CONCATENATE($B105,"!G221"))),"",INDIRECT(CONCATENATE($B105,"!G21"))) -> 0
B106: AIS05 | D106: 48.6 | E106: N/A | H106: 9.055346645 | I106: 54.8 | J106: N/A | M106: 4.431581408 | N106: 69.5 | O106: N/A | R106: 0.6246446563 | S106: 82.9 | T106: N/A | W106: 0 | X106: 95.8 | Y106: N/A | AB106: 0
B107: MICS06 | C107: 2006 | D107: 55.5552453 | E107: 81.10149882 | H107: 19.30091266 | I107: 66.47906453 | J107: 84.48176642 | M107: 11.46459086 | N107: 74.10411514 | O107: 89.4097658 | R107: 10.10260351 | S107: 89.89463195 | T107: 97.59355989 | W107: 2.348075907 | X107: 98.74079794 | Y107: 99.51499086 | AB107: 0.06846082519
B108: DHS12 | C108: 2012 | D108: 57.9 | E108: 86.2 | H108: 11.8 | I108: 66.6 | J108: 86.2 | M108: 9.4 | N108: 78.7 | O108: 91.2 | R108: 4 | S108: 90.3 | T108: 95.7 | W108: 0.5 | X108: 98.9 | Y108: 97.2 | AB108: 0
B109: MICS16 | C109: 2016 | D109: 62.4 | E109: 82.2 | H109: 13.5 | I109: 69.3 | J109: 82.5 | M109: 11.3 | N109: 78.5 | O109: 90.6 | R109: 5.3 | S109: 95.2 | T109: 97.9 | W109: 0.1 | X109: 99.3 | Y109: 98.9 | AB109: 0
D111: =IF(ISERROR(INDIRECT(CONCATENATE($B111,"!C16"))),"",INDIRECT(CONCATENATE($B111,"!C16"))) ->  | E111: =IF(ISERROR(INDIRECT(CONCATENATE($B111,"!C23"))),"",INDIRECT(CONCATENATE($B111,"!C23"))) ->  | H111: =IF(ISERROR(INDIRECT(CONCATENATE($B111,"!C21"))),"",INDIRECT(CONCATENATE($B111,"!C21"))) ->  | I111: =IF(ISERROR(INDIRECT(CONCATENATE($B111,"!D16"))),"",INDIRECT(CONCATENATE($B111,"!D16"))) ->  | J111: =IF(ISERROR(INDIRECT(CONCATENATE($B111,"!D23"))),"",INDIRECT(CONCATENATE($B111,"!D23"))) ->  | M111: =IF(ISERROR(INDIRECT(CONCATENATE($B111,"!D21"))),"",INDIRECT(CONCATENATE($B111,"!D21"))) ->  | N111: =IF(ISERROR(INDIRECT(CONCATENATE($B111,"!E16"))),"",INDIRECT(CONCATENATE($B111,"!E16"))) ->  | O111: =IF(ISERROR(INDIRECT(CONCATENATE($B111,"!E23"))),"",INDIRECT(CONCATENATE($B111,"!E23"))) ->  | R111: =IF(ISERROR(INDIRECT(CONCATENATE($B111,"!E21"))),"",INDIRECT(CONCATENATE($B111,"!E21"))) ->  | S111: =IF(ISERROR(INDIRECT(CONCATENATE($B111,"!F16"))),"",INDIRECT(CONCATENATE($B111,"!F16"))) ->  | T111: =IF(ISERROR(INDIRECT(CONCATENATE($B111,"!F23"))),"",INDIRECT(CONCATENATE($B111,"!F23"))) ->  | W111: =IF(ISERROR(INDIRECT(CONCATENATE($B111,"!F21"))),"",INDIRECT(CONCATENATE($B111,"!F21"))) ->  | X111: =IF(ISERROR(INDIRECT(CONCATENATE($B111,"!G16"))),"",INDIRECT(CONCATENATE($B111,"!G16"))) ->  | Y111: =IF(ISERROR(INDIRECT(CONCATENATE($B111,"!G23"))),"",INDIRECT(CONCATENATE($B111,"!G23"))) ->  | AB111: =IF(ISERROR(INDIRECT(CONCATENATE($B111,"!G221"))),"",INDIRECT(CONCATENATE($B111,"!G21"))) -> 
D112: =IF(ISERROR(INDIRECT(CONCATENATE($B112,"!C16"))),"",INDIRECT(CONCATENATE($B112,"!C16"))) ->  | E112: =IF(ISERROR(INDIRECT(CONCATENATE($B112,"!C23"))),"",INDIRECT(CONCATENATE($B112,"!C23"))) ->  | H112: =IF(ISERROR(INDIRECT(CONCATENATE($B112,"!C21"))),"",INDIRECT(CONCATENATE($B112,"!C21"))) ->  | I112: =IF(ISERROR(INDIRECT(CONCATENATE($B112,"!D16"))),"",INDIRECT(CONCATENATE($B112,"!D16"))) ->  | J112: =IF(ISERROR(INDIRECT(CONCATENATE($B112,"!D23"))),"",INDIRECT(CONCATENATE($B112,"!D23"))) ->  | M112: =IF(ISERROR(INDIRECT(CONCATENATE($B112,"!D21"))),"",INDIRECT(CONCATENATE($B112,"!D21"))) ->  | N112: =IF(ISERROR(INDIRECT(CONCATENATE($B112,"!E16"))),"",INDIRECT(CONCATENATE($B112,"!E16"))) ->  | O112: =IF(ISERROR(INDIRECT(CONCATENATE($B112,"!E23"))),"",INDIRECT(CONCATENATE($B112,"!E23"))) ->  | R112: =IF(ISERROR(INDIRECT(CONCATENATE($B112,"!E21"))),"",INDIRECT(CONCATENATE($B112,"!E21"))) ->  | S112: =IF(ISERROR(INDIRECT(CONCATENATE($B112,"!F16"))),"",INDIRECT(CONCATENATE($B112,"!F16"))) ->  | T112: =IF(ISERROR(INDIRECT(CONCATENATE($B112,"!F23"))),"",INDIRECT(CONCATENATE($B112,"!F23"))) ->  | W112: =IF(ISERROR(INDIRECT(CONCATENATE($B112,"!F21"))),"",INDIRECT(CONCATENATE($B112,"!F21"))) ->  | X112: =IF(ISERROR(INDIRECT(CONCATENATE($B112,"!G16"))),"",INDIRECT(CONCATENATE($B112,"!G16"))) ->  | Y112: =IF(ISERROR(INDIRECT(CONCATENATE($B112,"!G23"))),"",INDIRECT(CONCATENATE($B112,"!G23"))) ->  | AB112: =IF(ISERROR(INDIRECT(CONCATENATE($B112,"!G221"))),"",INDIRECT(CONCATENATE($B112,"!G21"))) -> 
B118: =CONCATENATE("National use of drinking water sources, ",C99,"–",C100) -> National use of drinking water sources, 2000–2020 | S118: Data points used for regression
E153: =IF(ISERROR(INDIRECT(CONCATENATE($B153,"!M18"))),"",INDIRECT(CONCATENATE($B153,"!M18"))) ->  | F153: =IF(ISERROR(INDIRECT(CONCATENATE($B153,"!M19"))),"",INDIRECT(CONCATENATE($B153,"!M19"))) ->  | G153: =IF(ISERROR(INDIRECT(CONCATENATE($B153,"!M20"))),"",INDIRECT(CONCATENATE($B153,"!M20"))) ->  | H153: =IF(ISERROR(INDIRECT(CONCATENATE($B153,"!M21"))),"",INDIRECT(CONCATENATE($B153,"!M21"))) ->  | J153: =IF(ISERROR(INDIRECT(CONCATENATE($B153,"!N18"))),"",INDIRECT(CONCATENATE($B153,"!N18"))) ->  | K153: =IF(ISERROR(INDIRECT(CONCATENATE($B153,"!N19"))),"",INDIRECT(CONCATENATE($B153,"!N19"))) ->  | L153: =IF(ISERROR(INDIRECT(CONCATENATE($B153,"!N20"))),"",INDIRECT(CONCATENATE($B153,"!N20"))) ->  | M153: =IF(ISERROR(INDIRECT(CONCATENATE($B153,"!N21"))),"",INDIRECT(CONCATENATE($B153,"!N21"))) ->  | O153: =IF(ISERROR(INDIRECT(CONCATENATE($B153,"!O18"))),"",INDIRECT(CONCATENATE($B153,"!O18"))) ->  | P153: =IF(ISERROR(INDIRECT(CONCATENATE($B153,"!O19"))),"",INDIRECT(CONCATENATE($B153,"!O19"))) ->  | Q153: =IF(ISERROR(INDIRECT(CONCATENATE($B153,"!O20"))),"",INDIRECT(CONCATENATE($B153,"!O20"))) ->  | R153: =IF(ISERROR(INDIRECT(CONCATENATE($B153,"!O21"))),"",INDIRECT(CONCATENATE($B153,"!O21"))) ->  | T153: =IF(ISERROR(INDIRECT(CONCATENATE($B153,"!P18"))),"",INDIRECT(CONCATENATE($B153,"!P18"))) ->  | U153: =IF(ISERROR(INDIRECT(CONCATENATE($B153,"!P19"))),"",INDIRECT(CONCATENATE($B153,"!P19"))) ->  | V153: =IF(ISERROR(INDIRECT(CONCATENATE($B153,"!P20"))),"",INDIRECT(CONCATENATE($B153,"!P20"))) ->  | W153: =IF(ISERROR(INDIRECT(CONCATENATE($B153,"!P21"))),"",INDIRECT(CONCATENATE($B153,"!P21"))) ->  | Y153: =IF(ISERROR(INDIRECT(CONCATENATE($B153,"!Q18"))),"",INDIRECT(CONCATENATE($B153,"!Q18"))) ->  | Z153: =IF(ISERROR(INDIRECT(CONCATENATE($B153,"!Q19"))),"",INDIRECT(CONCATENATE($B153,"!Q19"))) ->  | AA153: =IF(ISERROR(INDIRECT(CONCATENATE($B153,"!Q20"))),"",INDIRECT(CONCATENATE($B153,"!Q20"))) ->  | AB153: =IF(ISERROR(INDIRECT(CONCATENATE($B153,"!Q21"))),"",INDIRECT(CONCATENATE($B153,"!Q1"))) -> 
A197: URBAN | D197: Poorest | I197: Poor | N197: Middle | S197: Rich | X197: Richest
D198: Improved | E198: Basic | F198: Limited | G198: Unimproved | H198: Surface water | I198: Improved | J198: Basic | K198: Limited | L198: Unimproved | M198: Surface water | N198: Improved | O198: Basic | P198: Limited | Q198: Unimproved | R198: Surface water | S198: Improved | T198: Basic | U198: Limited | V198: Unimproved | W198: Surface water | X198: Improved | Y198: Basic | Z198: Limited | AA198: Unimproved | AB198: Surface water
A199: Forecast period: | C199: =MinBase(C205:C216) -> 2000 | D199: =IF((D201+H201)>100,D201*100/(D201+H201),D201) -> 76.7315179 | E199: =D199*AVERAGEIF(E205:E216,">0")/100 -> 72.80126255 | F199: =D199*(100-AVERAGEIF(E205:E216,">0"))/100 -> 3.93025535 | G199: =100-(E199+F199+H199) -> 15.2084605 | H199: =IF((D201+H201)>100,H201*100/(D201+H201),H201) -> 8.0600216 | I199: =IF((I201+M201)>100,I201*100/(I201+M201),I201) -> 91.60295547 | J199: =I199*AVERAGEIF(J205:J216,">0")/100 -> 89.0530712 | K199: =I199*(100-AVERAGEIF(J205:J216,">0"))/100 -> 2.549884275 | L199: =100-(J199+K199+M199) -> 7.424958391 | M199: =IF((I201+M201)>100,M201*100/(I201+M201),M201) -> 0.9720861346 | N199: =IF((N201+R201)>100,N201*100/(N201+R201),N201) -> 90.91384675 | O199: =N199*AVERAGEIF(O205:O216,">0")/100 -> 89.62442738 | P199: =N199*(100-AVERAGEIF(O205:O216,">0"))/100 -> 1.289419368 | Q199: =100-(O199+P199+R199) -> 8.026184549 | R199: =IF((N201+R201)>100,R201*100/(N201+R201),R201) -> 1.059968702 | S199: =IF((S201+W201)>100,S201*100/(S201+W201),S201) -> 98.7816509 | T199: =S199*AVERAGEIF(T205:T216,">0")/100 -> 97.07433717 | U199: =S199*(100-AVERAGEIF(T205:T216,">0"))/100 -> 1.707313735 | V199: =100-(T199+U199+W199) -> 1.042470033 | W199: =IF((S201+W201)>100,W201*100/(S201+W201),W201) -> 0.1758790646 | X199: =IF((X201+AB201)>100,X201*100/(X201+AB201),X201) -> 100 | Y199: =X199*AVERAGEIF(Y205:Y216,">0")/100 -> 99.45 | Z199: =X199*(100-AVERAGEIF(Y205:Y216,">0"))/100 -> 0.55 | AA199: =100-(Y199+Z199+AB199) -> 0 | AB199: =IF((X201+AB201)>100,AB201*100/(X201+AB201),AB201) -> 0
C200: =MaxTarget(C205:C216) -> 2020 | D200: =IF((D202+H202)>100,D202*100/(D202+H202),D202) -> 83.32282737 | E200: =D200*AVERAGEIF(E205:E216,">0")/100 -> 79.05495939 | F200: =D200*(100-AVERAGEIF(E205:E216,">0"))/100 -> 4.267867976 | G200: =100-(E200+F200+H200) -> 16.67717263 | H200: =IF((D202+H202)>100,H202*100/(D202+H202),H202) -> 0 | I200: =IF((I202+M202)>100,I202*100/(I202+M202),I202) -> 93.01568151 | J200: =I200*AVERAGEIF(J205:J216,">0")/100 -> 90.42647222 | K200: =I200*(100-AVERAGEIF(J205:J216,">0"))/100 -> 2.589209294 | L200: =100-(J200+K200+M200) -> 6.984318491 | M200: =IF((I202+M202)>100,M202*100/(I202+M202),M202) -> 0 | N200: =IF((N202+R202)>100,N202*100/(N202+R202),N202) -> 97.94538442 | O200: =N200*AVERAGEIF(O205:O216,">0")/100 -> 96.55623766 | P200: =N200*(100-AVERAGEIF(O205:O216,">0"))/100 -> 1.389146761 | Q200: =100-(O200+P200+R200) -> 2.054615583 | R200: =IF((N202+R202)>100,R202*100/(N202+R202),R202) -> 0 | S200: =IF((S202+W202)>100,S202*100/(S202+W202),S202) -> 98.8894497 | T200: =S200*AVERAGEIF(T205:T216,">0")/100 -> 97.1802728 | U200: =S200*(100-AVERAGEIF(T205:T216,">0"))/100 -> 1.709176898 | V200: =100-(T200+U200+W200) -> 1.110550301 | W200: =IF((S202+W202)>100,W202*100/(S202+W202),W202) -> 0 | X200: =IF((X202+AB202)>100,X202*100/(X202+AB202),X202) -> 99.72692133 | Y200: =X200*AVERAGEIF(Y205:Y216,">0")/100 -> 99.17842326 | Z200: =X200*(100-AVERAGEIF(Y205:Y216,">0"))/100 -> 0.5484980673 | AA200: =100-(Y200+Z200+AB200) -> 0.2730786699 | AB200: =IF((X202+AB202)>100,AB202*100/(X202+AB202),AB202) -> 0
A201: Regression period: | C201: =MinRegYear(C199,C205:C216) -> 2004 | D201: =IF(MAX(C205:C216)-MIN(C205:C216)<5,AVERAGEIF(C205:C216,">0",D205:D216), IF(FORECAST($C201,D$205:D$216,$C$205:$C$216)<0,0, IF(FORECAST($C201,D$205:D$216,$C$205:$C$216)>100,100, FORECAST($C201,D$205:D$216,$C$205:$C$216)))) -> 76.7315179 | H201: =IF(MAX(C205:C216)-MIN(C205:C216)<5,AVERAGEIF(C205:C216,">0",H205:H216), IF(FORECAST($C201,H$205:H$216,$C$205:$C$216)<0,0, IF(FORECAST($C201,H$205:H$216,$C$205:$C$216)>100,100, FORECAST($C201,H$205:H$216,$C$205:$C$216)))) -> 8.0600216 | I201: =IF(MAX(C205:C216)-MIN(C205:C216)<5,AVERAGEIF(C205:C216,">0",I205:I216), IF(FORECAST($C201,I$205:I$216,$C$205:$C$216)<0,0, IF(FORECAST($C201,I$205:I$216,$C$205:$C$216)>100,100, FORECAST($C201,I$205:I$216,$C$205:$C$216)))) -> 91.60295547 | M201: =IF(MAX(C205:C216)-MIN(C205:C216)<5,AVERAGEIF(C205:C216,">0",M205:M216), IF(FORECAST($C201,M$205:M$216,$C$205:$C$216)<0,0, IF(FORECAST($C201,M$205:M$216,$C$205:$C$216)>100,100, FORECAST($C201,M$205:M$216,$C$205:$C$216)))) -> 0.9720861346 | N201: =IF(MAX(C205:C216)-MIN(C205:C216)<5,AVERAGEIF(C205:C216,">0",N205:N216), IF(FORECAST($C201,N$205:N$216,$C$205:$C$216)<0,0, IF(FORECAST($C201,N$205:N$216,$C$205:$C$216)>100,100, FORECAST($C201,N$205:N$216,$C$205:$C$216)))) -> 90.91384675 | R201: =IF(MAX(C205:C216)-MIN(C205:C216)<5,AVERAGEIF(C205:C216,">0",R205:R216), IF(FORECAST($C201,R$205:R$216,$C$205:$C$216)<0,0, IF(FORECAST($C201,R$205:R$216,$C$205:$C$216)>100,100, FORECAST($C201,R$205:R$216,$C$205:$C$216)))) -> 1.059968702 | S201: =IF(MAX(C205:C216)-MIN(C205:C216)<5,AVERAGEIF(C205:C216,">0",S205:S216), IF(FORECAST($C201,S$205:S$216,$C$205:$C$216)<0,0, IF(FORECAST($C201,S$205:S$216,$C$205:$C$216)>100,100, FORECAST($C201,S$205:S$216,$C$205:$C$216)))) -> 98.7816509 | W201: =IF(MAX(C205:C216)-MIN(C205:C216)<5,AVERAGEIF(C205:C216,">0",W205:W216), IF(FORECAST($C201,W$205:W$216,$C$205:$C$216)<0,0, IF(FORECAST($C201,W$205:W$216,$C$205:$C$216)>100,100, FORECAST($C201,W$205:W$216,$C$205:$C$216)))) -> 0.1758790646 | X201: =IF(MAX(C205:C216)-MIN(C205:C216)<5,AVERAGEIF(C205:C216,">0",X205:X216), IF(FORECAST($C201,X$205:X$216,$C$205:$C$216)<0,0, IF(FORECAST($C201,X$205:X$216,$C$205:$C$216)>100,100, FORECAST($C201,X$205:X$216,$C$205:$C$216)))) -> 100 | AB201: =IF(MAX(C205:C216)-MIN(C205:C216)<5,AVERAGEIF(C205:C216,">0",AB205:AB216), IF(FORECAST($C201,AB$205:AB$216,$C$205:$C$216)<0,0, IF(FORECAST($C201,AB$205:AB$216,$C$205:$C$216)>100,100, FORECAST($C201,AB$205:AB$216,$C$205:$C$216)))) -> 0
C202: =MaxRegYear(C200,C205:C216) -> 2018 | D202: =IF(MAX(C205:C216)-MIN(C205:C216)<5,AVERAGEIF(C205:C216,">0",D205:D216), IF(FORECAST($C202,D$205:D$216,$C$205:$C$216)<0,0, IF(FORECAST($C202,D$205:D$216,$C$205:$C$216)>100,100, FORECAST($C202,D$205:D$216,$C$205:$C$216)))) -> 83.32282737 | H202: =IF(MAX(C205:C216)-MIN(C205:C216)<5,AVERAGEIF(C205:C216,">0",H205:H216), IF(FORECAST($C202,H$205:H$216,$C$205:$C$216)<0,0, IF(FORECAST($C202,H$205:H$216,$C$205:$C$216)>100,100, FORECAST($C202,H$205:H$216,$C$205:$C$216)))) -> 0 | I202: =IF(MAX(C205:C216)-MIN(C205:C216)<5,AVERAGEIF(C205:C216,">0",I205:I216), IF(FORECAST($C202,I$205:I$216,$C$205:$C$216)<0,0, IF(FORECAST($C202,I$205:I$216,$C$205:$C$216)>100,100, FORECAST($C202,I$205:I$216,$C$205:$C$216)))) -> 93.01568151 | M202: =IF(MAX(C205:C216)-MIN(C205:C216)<5,AVERAGEIF(C205:C216,">0",M205:M216), IF(FORECAST($C202,M$205:M$216,$C$205:$C$216)<0,0, IF(FORECAST($C202,M$205:M$216,$C$205:$C$216)>100,100, FORECAST($C202,M$205:M$216,$C$205:$C$216)))) -> 0 | N202: =IF(MAX(C205:C216)-MIN(C205:C216)<5,AVERAGEIF(C205:C216,">0",N205:N216), IF(FORECAST($C202,N$205:N$216,$C$205:$C$216)<0,0, IF(FORECAST($C202,N$205:N$216,$C$205:$C$216)>100,100, FORECAST($C202,N$205:N$216,$C$205:$C$216)))) -> 97.94538442 | R202: =IF(MAX(C205:C216)-MIN(C205:C216)<5,AVERAGEIF(C205:C216,">0",R205:R216), IF(FORECAST($C202,R$205:R$216,$C$205:$C$216)<0,0, IF(FORECAST($C202,R$205:R$216,$C$205:$C$216)>100,100, FORECAST($C202,R$205:R$216,$C$205:$C$216)))) -> 0 | S202: =IF(MAX(C205:C216)-MIN(C205:C216)<5,AVERAGEIF(C205:C216,">0",S205:S216), IF(FORECAST($C202,S$205:S$216,$C$205:$C$216)<0,0, IF(FORECAST($C202,S$205:S$216,$C$205:$C$216)>100,100, FORECAST($C202,S$205:S$216,$C$205:$C$216)))) -> 98.8894497 | W202: =IF(MAX(C205:C216)-MIN(C205:C216)<5,AVERAGEIF(C205:C216,">0",W205:W216), IF(FORECAST($C202,W$205:W$216,$C$205:$C$216)<0,0, IF(FORECAST($C202,W$205:W$216,$C$205:$C$216)>100,100, FORECAST($C202,W$205:W$216,$C$205:$C$216)))) -> 0 | X202: =IF(MAX(C205:C216)-MIN(C205:C216)<5,AVERAGEIF(C205:C216,">0",X205:X216), IF(FORECAST($C202,X$205:X$216,$C$205:$C$216)<0,0, IF(FORECAST($C202,X$205:X$216,$C$205:$C$216)>100,100, FORECAST($C202,X$205:X$216,$C$205:$C$216)))) -> 99.72692133 | AB202: =IF(MAX(C205:C216)-MIN(C205:C216)<5,AVERAGEIF(C205:C216,">0",AB205:AB216), IF(FORECAST($C202,AB$205:AB$216,$C$205:$C$216)<0,0, IF(FORECAST($C202,AB$205:AB$216,$C$205:$C$216)>100,100, FORECAST($C202,AB$205:AB$216,$C$205:$C$216)))) -> 0
B204: Survey | C204: Year | D204: Improved | E204: % Improved < = 30min | H204: Surface water | I204: Improved | J204: % Improved < = 30min | M204: Surface water | N204: Improved | O204: % Improved < = 30min | R204: Surface water | S204: Improved | T204: % Improved < = 30min | W204: Surface water | X204: Improved | Y204: % Improved < = 30min | AB204: Surface water
B205: WHS03 | D205: =IF(ISERROR(INDIRECT(CONCATENATE($B205,"!H16"))),"",INDIRECT(CONCATENATE($B205,"!H16"))) -> 90.52390723 | E205: =IF(ISERROR(INDIRECT(CONCATENATE($B205,"!H23"))),"",INDIRECT(CONCATENATE($B205,"!H23"))) -> 93.98560123 | H205: =IF(ISERROR(INDIRECT(CONCATENATE($B205,"!H21"))),"",INDIRECT(CONCATENATE($B205,"!H21"))) -> 0 | I205: =IF(ISERROR(INDIRECT(CONCATENATE($B205,"!I16"))),"",INDIRECT(CONCATENATE($B205,"!I16"))) -> 91.92777245 | J205: =IF(ISERROR(INDIRECT(CONCATENATE($B205,"!I23"))),"",INDIRECT(CONCATENATE($B205,"!I23"))) -> 97.96339642 | M205: =IF(ISERROR(INDIRECT(CONCATENATE($B205,"!I21"))),"",INDIRECT(CONCATENATE($B205,"!I21"))) -> 0.5750469434 | N205: =IF(ISERROR(INDIRECT(CONCATENATE($B205,"!J16"))),"",INDIRECT(CONCATENATE($B205,"!J16"))) -> 96.30256094 | O205: =IF(ISERROR(INDIRECT(CONCATENATE($B205,"!J23"))),"",INDIRECT(CONCATENATE($B205,"!J23"))) -> 97.92056449 | R205: =IF(ISERROR(INDIRECT(CONCATENATE($B205,"!J21"))),"",INDIRECT(CONCATENATE($B205,"!J21"))) -> 0.2421313112 | S205: =IF(ISERROR(INDIRECT(CONCATENATE($B205,"!K16"))),"",INDIRECT(CONCATENATE($B205,"!K16"))) -> 98.80339532 | T205: =IF(ISERROR(INDIRECT(CONCATENATE($B205,"!K23"))),"",INDIRECT(CONCATENATE($B205,"!K23"))) -> 100 | W205: =IF(ISERROR(INDIRECT(CONCATENATE($B205,"!K21"))),"",INDIRECT(CONCATENATE($B205,"!K21"))) -> 0 | X205: =IF(ISERROR(INDIRECT(CONCATENATE($B205,"!L16"))),"",INDIRECT(CONCATENATE($B205,"!L16"))) -> 99.70061498 | Y205: =IF(ISERROR(INDIRECT(CONCATENATE($B205,"!L23"))),"",INDIRECT(CONCATENATE($B205,"!L23"))) -> 100 | AB205: =IF(ISERROR(INDIRECT(CONCATENATE($B205,"!L221"))),"",INDIRECT(CONCATENATE($B205,"!L21"))) -> 0
B206: AIS05 | D206: 62.9 | E206: N/A | H206: 3.170319061 | I206: 85.3 | J206: N/A | M206: 0.313839676 | N206: 87.9 | O206: N/A | R206: 0 | S206: 92.5 | T206: N/A | W206: 0 | X206: 99 | Y206: N/A | AB206: 0
B207: MICS06 | C207: 2006 | D207: 77.95232572 | E207: 96.22604948 | H207: 7.075733829 | I207: 92.92886448 | J207: 98.502097 | M207: 0.8580779313 | N207: 92.29109944 | O207: 99.80628708 | R207: 0.9899716827 | S207: 98.81435082 | T207: 99.18651467 | W207: 0.1591286775 | X207: 99.96978496 | Y207: 100 | AB207: 0
B208: DHS12 | C208: 2012 | D208: 79.8 | E208: 93.2 | H208: 1.3 | I208: 89.6 | J208: 95.4 | M208: 0.1 | N208: 94 | O208: 97.3 | R208: 0 | S208: 98.8 | T208: 95.5 | W208: 0 | X208: 100 | Y208: 98.4 | AB208: 0
B209: MICS16 | C209: 2016 | D209: 82.8 | E209: 96.1 | H209: 0.2 | I209: 94.5 | J209: 97 | M209: 0 | N209: 97.5 | O209: 99.3 | R209: 0.1 | S209: 98.9 | T209: 98.4 | W209: 0 | X209: 99.7 | Y209: 99.4 | AB209: 0
B218: =CONCATENATE("Urban use of drinking water sources, ",C199,"–",C200) -> Urban use of drinking water sources, 2000–2020 | S218: Data points used for regression
E253: =IF(ISERROR(INDIRECT(CONCATENATE($B253,"!M18"))),"",INDIRECT(CONCATENATE($B253,"!M18"))) ->  | F253: =IF(ISERROR(INDIRECT(CONCATENATE($B253,"!M19"))),"",INDIRECT(CONCATENATE($B253,"!M19"))) ->  | G253: =IF(ISERROR(INDIRECT(CONCATENATE($B253,"!M20"))),"",INDIRECT(CONCATENATE($B253,"!M20"))) ->  | H253: =IF(ISERROR(INDIRECT(CONCATENATE($B253,"!M21"))),"",INDIRECT(CONCATENATE($B253,"!M21"))) ->  | J253: =IF(ISERROR(INDIRECT(CONCATENATE($B253,"!N18"))),"",INDIRECT(CONCATENATE($B253,"!N18"))) ->  | K253: =IF(ISERROR(INDIRECT(CONCATENATE($B253,"!N19"))),"",INDIRECT(CONCATENATE($B253,"!N19"))) ->  | L253: =IF(ISERROR(INDIRECT(CONCATENATE($B253,"!N20"))),"",INDIRECT(CONCATENATE($B253,"!N20"))) ->  | M253: =IF(ISERROR(INDIRECT(CONCATENATE($B253,"!N21"))),"",INDIRECT(CONCATENATE($B253,"!N21"))) ->  | O253: =IF(ISERROR(INDIRECT(CONCATENATE($B253,"!O18"))),"",INDIRECT(CONCATENATE($B253,"!O18"))) ->  | P253: =IF(ISERROR(INDIRECT(CONCATENATE($B253,"!O19"))),"",INDIRECT(CONCATENATE($B253,"!O19"))) ->  | Q253: =IF(ISERROR(INDIRECT(CONCATENATE($B253,"!O20"))),"",INDIRECT(CONCATENATE($B253,"!O20"))) ->  | R253: =IF(ISERROR(INDIRECT(CONCATENATE($B253,"!O21"))),"",INDIRECT(CONCATENATE($B253,"!O21"))) ->  | T253: =IF(ISERROR(INDIRECT(CONCATENATE($B253,"!P18"))),"",INDIRECT(CONCATENATE($B253,"!P18"))) ->  | U253: =IF(ISERROR(INDIRECT(CONCATENATE($B253,"!P19"))),"",INDIRECT(CONCATENATE($B253,"!P19"))) ->  | V253: =IF(ISERROR(INDIRECT(CONCATENATE($B253,"!P20"))),"",INDIRECT(CONCATENATE($B253,"!P20"))) ->  | W253: =IF(ISERROR(INDIRECT(CONCATENATE($B253,"!P21"))),"",INDIRECT(CONCATENATE($B253,"!P21"))) ->  | Y253: =IF(ISERROR(INDIRECT(CONCATENATE($B253,"!Q18"))),"",INDIRECT(CONCATENATE($B253,"!Q18"))) ->  | Z253: =IF(ISERROR(INDIRECT(CONCATENATE($B253,"!Q19"))),"",INDIRECT(CONCATENATE($B253,"!Q19"))) ->  | AA253: =IF(ISERROR(INDIRECT(CONCATENATE($B253,"!Q20"))),"",INDIRECT(CONCATENATE($B253,"!Q20"))) ->  | AB253: =IF(ISERROR(INDIRECT(CONCATENATE($B253,"!Q21"))),"",INDIRECT(CONCATENATE($B253,"!Q1"))) -> 
E254: =IF(ISERROR(INDIRECT(CONCATENATE($B254,"!M18"))),"",INDIRECT(CONCATENATE($B254,"!M18"))) ->  | F254: =IF(ISERROR(INDIRECT(CONCATENATE($B254,"!M19"))),"",INDIRECT(CONCATENATE($B254,"!M19"))) ->  | G254: =IF(ISERROR(INDIRECT(CONCATENATE($B254,"!M20"))),"",INDIRECT(CONCATENATE($B254,"!M20"))) ->  | H254: =IF(ISERROR(INDIRECT(CONCATENATE($B254,"!M21"))),"",INDIRECT(CONCATENATE($B254,"!M21"))) ->  | J254: =IF(ISERROR(INDIRECT(CONCATENATE($B254,"!N18"))),"",INDIRECT(CONCATENATE($B254,"!N18"))) ->  | K254: =IF(ISERROR(INDIRECT(CONCATENATE($B254,"!N19"))),"",INDIRECT(CONCATENATE($B254,"!N19"))) ->  | L254: =IF(ISERROR(INDIRECT(CONCATENATE($B254,"!N20"))),"",INDIRECT(CONCATENATE($B254,"!N20"))) ->  | M254: =IF(ISERROR(INDIRECT(CONCATENATE($B254,"!N21"))),"",INDIRECT(CONCATENATE($B254,"!N21"))) ->  | O254: =IF(ISERROR(INDIRECT(CONCATENATE($B254,"!O18"))),"",INDIRECT(CONCATENATE($B254,"!O18"))) ->  | P254: =IF(ISERROR(INDIRECT(CONCATENATE($B254,"!O19"))),"",INDIRECT(CONCATENATE($B254,"!O19"))) ->  | Q254: =IF(ISERROR(INDIRECT(CONCATENATE($B254,"!O20"))),"",INDIRECT(CONCATENATE($B254,"!O20"))) ->  | R254: =IF(ISERROR(INDIRECT(CONCATENATE($B254,"!O21"))),"",INDIRECT(CONCATENATE($B254,"!O21"))) ->  | T254: =IF(ISERROR(INDIRECT(CONCATENATE($B254,"!P18"))),"",INDIRECT(CONCATENATE($B254,"!P18"))) ->  | U254: =IF(ISERROR(INDIRECT(CONCATENATE($B254,"!P19"))),"",INDIRECT(CONCATENATE($B254,"!P19"))) ->  | V254: =IF(ISERROR(INDIRECT(CONCATENATE($B254,"!P20"))),"",INDIRECT(CONCATENATE($B254,"!P20"))) ->  | W254: =IF(ISERROR(INDIRECT(CONCATENATE($B254,"!P21"))),"",INDIRECT(CONCATENATE($B254,"!P21"))) ->  | Y254: =IF(ISERROR(INDIRECT(CONCATENATE($B254,"!Q18"))),"",INDIRECT(CONCATENATE($B254,"!Q18"))) ->  | Z254: =IF(ISERROR(INDIRECT(CONCATENATE($B254,"!Q19"))),"",INDIRECT(CONCATENATE($B254,"!Q19"))) ->  | AA254: =IF(ISERROR(INDIRECT(CONCATENATE($B254,"!Q20"))),"",INDIRECT(CONCATENATE($B254,"!Q20"))) ->  | AB254: =IF(ISERROR(INDIRECT(CONCATENATE($B254,"!Q21"))),"",INDIRECT(CONCATENATE($B254,"!Q1"))) -> 
E255: =IF(ISERROR(INDIRECT(CONCATENATE($B255,"!M18"))),"",INDIRECT(CONCATENATE($B255,"!M18"))) ->  | F255: =IF(ISERROR(INDIRECT(CONCATENATE($B255,"!M19"))),"",INDIRECT(CONCATENATE($B255,"!M19"))) ->  | G255: =IF(ISERROR(INDIRECT(CONCATENATE($B255,"!M20"))),"",INDIRECT(CONCATENATE($B255,"!M20"))) ->  | H255: =IF(ISERROR(INDIRECT(CONCATENATE($B255,"!M21"))),"",INDIRECT(CONCATENATE($B255,"!M21"))) ->  | J255: =IF(ISERROR(INDIRECT(CONCATENATE($B255,"!N18"))),"",INDIRECT(CONCATENATE($B255,"!N18"))) ->  | K255: =IF(ISERROR(INDIRECT(CONCATENATE($B255,"!N19"))),"",INDIRECT(CONCATENATE($B255,"!N19"))) ->  | L255: =IF(ISERROR(INDIRECT(CONCATENATE($B255,"!N20"))),"",INDIRECT(CONCATENATE($B255,"!N20"))) ->  | M255: =IF(ISERROR(INDIRECT(CONCATENATE($B255,"!N21"))),"",INDIRECT(CONCATENATE($B255,"!N21"))) ->  | O255: =IF(ISERROR(INDIRECT(CONCATENATE($B255,"!O18"))),"",INDIRECT(CONCATENATE($B255,"!O18"))) ->  | P255: =IF(ISERROR(INDIRECT(CONCATENATE($B255,"!O19"))),"",INDIRECT(CONCATENATE($B255,"!O19"))) ->  | Q255: =IF(ISERROR(INDIRECT(CONCATENATE($B255,"!O20"))),"",INDIRECT(CONCATENATE($B255,"!O20"))) ->  | R255: =IF(ISERROR(INDIRECT(CONCATENATE($B255,"!O21"))),"",INDIRECT(CONCATENATE($B255,"!O21"))) ->  | T255: =IF(ISERROR(INDIRECT(CONCATENATE($B255,"!P18"))),"",INDIRECT(CONCATENATE($B255,"!P18"))) ->  | U255: =IF(ISERROR(INDIRECT(CONCATENATE($B255,"!P19"))),"",INDIRECT(CONCATENATE($B255,"!P19"))) ->  | V255: =IF(ISERROR(INDIRECT(CONCATENATE($B255,"!P20"))),"",INDIRECT(CONCATENATE($B255,"!P20"))) ->  | W255: =IF(ISERROR(INDIRECT(CONCATENATE($B255,"!P21"))),"",INDIRECT(CONCATENATE($B255,"!P21"))) ->  | Y255: =IF(ISERROR(INDIRECT(CONCATENATE($B255,"!Q18"))),"",INDIRECT(CONCATENATE($B255,"!Q18"))) ->  | Z255: =IF(ISERROR(INDIRECT(CONCATENATE($B255,"!Q19"))),"",INDIRECT(CONCATENATE($B255,"!Q19"))) ->  | AA255: =IF(ISERROR(INDIRECT(CONCATENATE($B255,"!Q20"))),"",INDIRECT(CONCATENATE($B255,"!Q20"))) ->  | AB255: =IF(ISERROR(INDIRECT(CONCATENATE($B255,"!Q21"))),"",INDIRECT(CONCATENATE($B255,"!Q1"))) -> 
E256: =IF(ISERROR(INDIRECT(CONCATENATE($B256,"!M18"))),"",INDIRECT(CONCATENATE($B256,"!M18"))) ->  | F256: =IF(ISERROR(INDIRECT(CONCATENATE($B256,"!M19"))),"",INDIRECT(CONCATENATE($B256,"!M19"))) ->  | G256: =IF(ISERROR(INDIRECT(CONCATENATE($B256,"!M20"))),"",INDIRECT(CONCATENATE($B256,"!M20"))) ->  | H256: =IF(ISERROR(INDIRECT(CONCATENATE($B256,"!M21"))),"",INDIRECT(CONCATENATE($B256,"!M21"))) ->  | J256: =IF(ISERROR(INDIRECT(CONCATENATE($B256,"!N18"))),"",INDIRECT(CONCATENATE($B256,"!N18"))) ->  | K256: =IF(ISERROR(INDIRECT(CONCATENATE($B256,"!N19"))),"",INDIRECT(CONCATENATE($B256,"!N19"))) ->  | L256: =IF(ISERROR(INDIRECT(CONCATENATE($B256,"!N20"))),"",INDIRECT(CONCATENATE($B256,"!N20"))) ->  | M256: =IF(ISERROR(INDIRECT(CONCATENATE($B256,"!N21"))),"",INDIRECT(CONCATENATE($B256,"!N21"))) ->  | O256: =IF(ISERROR(INDIRECT(CONCATENATE($B256,"!O18"))),"",INDIRECT(CONCATENATE($B256,"!O18"))) ->  | P256: =IF(ISERROR(INDIRECT(CONCATENATE($B256,"!O19"))),"",INDIRECT(CONCATENATE($B256,"!O19"))) ->  | Q256: =IF(ISERROR(INDIRECT(CONCATENATE($B256,"!O20"))),"",INDIRECT(CONCATENATE($B256,"!O20"))) ->  | R256: =IF(ISERROR(INDIRECT(CONCATENATE($B256,"!O21"))),"",INDIRECT(CONCATENATE($B256,"!O21"))) ->  | T256: =IF(ISERROR(INDIRECT(CONCATENATE($B256,"!P18"))),"",INDIRECT(CONCATENATE($B256,"!P18"))) ->  | U256: =IF(ISERROR(INDIRECT(CONCATENATE($B256,"!P19"))),"",INDIRECT(CONCATENATE($B256,"!P19"))) ->  | V256: =IF(ISERROR(INDIRECT(CONCATENATE($B256,"!P20"))),"",INDIRECT(CONCATENATE($B256,"!P20"))) ->  | W256: =IF(ISERROR(INDIRECT(CONCATENATE($B256,"!P21"))),"",INDIRECT(CONCATENATE($B256,"!P21"))) ->  | Y256: =IF(ISERROR(INDIRECT(CONCATENATE($B256,"!Q18"))),"",INDIRECT(CONCATENATE($B256,"!Q18"))) ->  | Z256: =IF(ISERROR(INDIRECT(CONCATENATE($B256,"!Q19"))),"",INDIRECT(CONCATENATE($B256,"!Q19"))) ->  | AA256: =IF(ISERROR(INDIRECT(CONCATENATE($B256,"!Q20"))),"",INDIRECT(CONCATENATE($B256,"!Q20"))) ->  | AB256: =IF(ISERROR(INDIRECT(CONCATENATE($B256,"!Q21"))),"",INDIRECT(CONCATENATE($B256,"!Q1"))) -> 
E257: =IF(ISERROR(INDIRECT(CONCATENATE($B257,"!M18"))),"",INDIRECT(CONCATENATE($B257,"!M18"))) ->  | F257: =IF(ISERROR(INDIRECT(CONCATENATE($B257,"!M19"))),"",INDIRECT(CONCATENATE($B257,"!M19"))) ->  | G257: =IF(ISERROR(INDIRECT(CONCATENATE($B257,"!M20"))),"",INDIRECT(CONCATENATE($B257,"!M20"))) ->  | H257: =IF(ISERROR(INDIRECT(CONCATENATE($B257,"!M21"))),"",INDIRECT(CONCATENATE($B257,"!M21"))) ->  | J257: =IF(ISERROR(INDIRECT(CONCATENATE($B257,"!N18"))),"",INDIRECT(CONCATENATE($B257,"!N18"))) ->  | K257: =IF(ISERROR(INDIRECT(CONCATENATE($B257,"!N19"))),"",INDIRECT(CONCATENATE($B257,"!N19"))) ->  | L257: =IF(ISERROR(INDIRECT(CONCATENATE($B257,"!N20"))),"",INDIRECT(CONCATENATE($B257,"!N20"))) ->  | M257: =IF(ISERROR(INDIRECT(CONCATENATE($B257,"!N21"))),"",INDIRECT(CONCATENATE($B257,"!N21"))) ->  | O257: =IF(ISERROR(INDIRECT(CONCATENATE($B257,"!O18"))),"",INDIRECT(CONCATENATE($B257,"!O18"))) ->  | P257: =IF(ISERROR(INDIRECT(CONCATENATE($B257,"!O19"))),"",INDIRECT(CONCATENATE($B257,"!O19"))) ->  | Q257: =IF(ISERROR(INDIRECT(CONCATENATE($B257,"!O20"))),"",INDIRECT(CONCATENATE($B257,"!O20"))) ->  | R257: =IF(ISERROR(INDIRECT(CONCATENATE($B257,"!O21"))),"",INDIRECT(CONCATENATE($B257,"!O21"))) ->  | T257: =IF(ISERROR(INDIRECT(CONCATENATE($B257,"!P18"))),"",INDIRECT(CONCATENATE($B257,"!P18"))) ->  | U257: =IF(ISERROR(INDIRECT(CONCATENATE($B257,"!P19"))),"",INDIRECT(CONCATENATE($B257,"!P19"))) ->  | V257: =IF(ISERROR(INDIRECT(CONCATENATE($B257,"!P20"))),"",INDIRECT(CONCATENATE($B257,"!P20"))) ->  | W257: =IF(ISERROR(INDIRECT(CONCATENATE($B257,"!P21"))),"",INDIRECT(CONCATENATE($B257,"!P21"))) ->  | Y257: =IF(ISERROR(INDIRECT(CONCATENATE($B257,"!Q18"))),"",INDIRECT(CONCATENATE($B257,"!Q18"))) ->  | Z257: =IF(ISERROR(INDIRECT(CONCATENATE($B257,"!Q19"))),"",INDIRECT(CONCATENATE($B257,"!Q19"))) ->  | AA257: =IF(ISERROR(INDIRECT(CONCATENATE($B257,"!Q20"))),"",INDIRECT(CONCATENATE($B257,"!Q20"))) ->  | AB257: =IF(ISERROR(INDIRECT(CONCATENATE($B257,"!Q21"))),"",INDIRECT(CONCATENATE($B257,"!Q1"))) -> 
A297: RURAL | D297: Poorest | I297: Poor | N297: Middle | S297: Rich | X297: Richest
D298: Improved | E298: Basic | F298: Limited | G298: Unimproved | H298: Surface water | I298: Improved | J298: Basic | K298: Limited | L298: Unimproved | M298: Surface water | N298: Improved | O298: Basic | P298: Limited | Q298: Unimproved | R298: Surface water | S298: Improved | T298: Basic | U298: Limited | V298: Unimproved | W298: Surface water | X298: Improved | Y298: Basic | Z298: Limited | AA298: Unimproved | AB298: Surface water
A299: Forecast period: | C299: 2000 | D299: =IF((D301+H301)>100,D301*100/(D301+H301),D301) -> 56.02077937 | E299: =D299*AVERAGEIF(E305:E316,">0")/100 -> 47.18774328 | F299: =D299*(100-AVERAGEIF(E305:E316,">0"))/100 -> 8.833036095 | G299: =100-(E299+F299+H299) -> 23.08817159 | H299: =IF((D301+H301)>100,H301*100/(D301+H301),H301) -> 20.89104903 | I299: =IF((I301+M301)>100,I301*100/(I301+M301),I301) -> 53.44318939 | J299: =I299*AVERAGEIF(J305:J316,">0")/100 -> 45.51937272 | K299: =I299*(100-AVERAGEIF(J305:J316,">0"))/100 -> 7.923816673 | L299: =100-(J299+K299+M299) -> 31.58744798 | M299: =IF((I301+M301)>100,M301*100/(I301+M301),M301) -> 14.96936263 | N299: =IF((N301+R301)>100,N301*100/(N301+R301),N301) -> 63.49845439 | O299: =N299*AVERAGEIF(O305:O316,">0")/100 -> 55.54145874 | P299: =N299*(100-AVERAGEIF(O305:O316,">0"))/100 -> 7.956995645 | Q299: =100-(O299+P299+R299) -> 24.01633439 | R299: =IF((N301+R301)>100,R301*100/(N301+R301),R301) -> 12.48521122 | S299: =IF((S301+W301)>100,S301*100/(S301+W301),S301) -> 73.52583609 | T299: =S299*AVERAGEIF(T305:T316,">0")/100 -> 64.15132643 | U299: =S299*(100-AVERAGEIF(T305:T316,">0"))/100 -> 9.374509662 | V299: =100-(T299+U299+W299) -> 14.90966077 | W299: =IF((S301+W301)>100,W301*100/(S301+W301),W301) -> 11.56450314 | X299: =IF((X301+AB301)>100,X301*100/(X301+AB301),X301) -> 76.84865417 | Y299: =X299*AVERAGEIF(Y305:Y316,">0")/100 -> 70.39327519 | Z299: =X299*(100-AVERAGEIF(Y305:Y316,">0"))/100 -> 6.45537897 | AA299: =100-(Y299+Z299+AB299) -> 15.46568322 | AB299: =IF((X301+AB301)>100,AB301*100/(X301+AB301),AB301) -> 7.68566261
C300: 2020 | D300: =IF((D302+H302)>100,D302*100/(D302+H302),D302) -> 59.04307354 | E300: =D300*AVERAGEIF(E305:E316,">0")/100 -> 49.73349939 | F300: =D300*(100-AVERAGEIF(E305:E316,">0"))/100 -> 9.309574154 | G300: =100-(E300+F300+H300) -> 28.83727614 | H300: =IF((D302+H302)>100,H302*100/(D302+H302),H302) -> 12.11965032 | I300: =IF((I302+M302)>100,I302*100/(I302+M302),I302) -> 66.58560354 | J300: =I300*AVERAGEIF(J305:J316,">0")/100 -> 56.71321153 | K300: =I300*(100-AVERAGEIF(J305:J316,">0"))/100 -> 9.872392001 | L300: =100-(J300+K300+M300) -> 23.93751734 | M300: =IF((I302+M302)>100,M302*100/(I302+M302),M302) -> 9.476879125 | N300: =IF((N302+R302)>100,N302*100/(N302+R302),N302) -> 67.68384854 | O300: =N300*AVERAGEIF(O305:O316,">0")/100 -> 59.20238087 | P300: =N300*(100-AVERAGEIF(O305:O316,">0"))/100 -> 8.481467671 | Q300: =100-(O300+P300+R300) -> 19.5945552 | R300: =IF((N302+R302)>100,R302*100/(N302+R302),R302) -> 12.72159626 | S300: =IF((S302+W302)>100,S302*100/(S302+W302),S302) -> 73.45805464 | T300: =S300*AVERAGEIF(T305:T316,">0")/100 -> 64.09218708 | U300: =S300*(100-AVERAGEIF(T305:T316,">0"))/100 -> 9.365867558 | V300: =100-(T300+U300+W300) -> 19.56344641 | W300: =IF((S302+W302)>100,W302*100/(S302+W302),W302) -> 6.978498952 | X300: =IF((X302+AB302)>100,X302*100/(X302+AB302),X302) -> 79.15044861 | Y300: =X300*AVERAGEIF(Y305:Y316,">0")/100 -> 72.50171615 | Z300: =X300*(100-AVERAGEIF(Y305:Y316,">0"))/100 -> 6.64873246 | AA300: =100-(Y300+Z300+AB300) -> 14.69477226 | AB300: =IF((X302+AB302)>100,AB302*100/(X302+AB302),AB302) -> 6.15477913
A301: Regression period: | C301: =MinRegYear(C299,C305:C316) -> 2004 | D301: =IF(MAX(C305:C316)-MIN(C305:C316)<5,AVERAGEIF(C305:C316,">0",D305:D316), IF(FORECAST($C301,D$305:D$316,$C$305:$C$316)<0,0, IF(FORECAST($C301,D$305:D$316,$C$305:$C$316)>100,100, FORECAST($C301,D$305:D$316,$C$305:$C$316)))) -> 56.02077937 | H301: =IF(MAX(C305:C316)-MIN(C305:C316)<5,AVERAGEIF(C305:C316,">0",H305:H316), IF(FORECAST($C301,H$305:H$316,$C$305:$C$316)<0,0, IF(FORECAST($C301,H$305:H$316,$C$305:$C$316)>100,100, FORECAST($C301,H$305:H$316,$C$305:$C$316)))) -> 20.89104903 | I301: =IF(MAX(C305:C316)-MIN(C305:C316)<5,AVERAGEIF(C305:C316,">0",I305:I316), IF(FORECAST($C301,I$305:I$316,$C$305:$C$316)<0,0, IF(FORECAST($C301,I$305:I$316,$C$305:$C$316)>100,100, FORECAST($C301,I$305:I$316,$C$305:$C$316)))) -> 53.44318939 | M301: =IF(MAX(C305:C316)-MIN(C305:C316)<5,AVERAGEIF(C305:C316,">0",M305:M316), IF(FORECAST($C301,M$305:M$316,$C$305:$C$316)<0,0, IF(FORECAST($C301,M$305:M$316,$C$305:$C$316)>100,100, FORECAST($C301,M$305:M$316,$C$305:$C$316)))) -> 14.96936263 | N301: =IF(MAX(C305:C316)-MIN(C305:C316)<5,AVERAGEIF(C305:C316,">0",N305:N316), IF(FORECAST($C301,N$305:N$316,$C$305:$C$316)<0,0, IF(FORECAST($C301,N$305:N$316,$C$305:$C$316)>100,100, FORECAST($C301,N$305:N$316,$C$305:$C$316)))) -> 63.49845439 | R301: =IF(MAX(C305:C316)-MIN(C305:C316)<5,AVERAGEIF(C305:C316,">0",R305:R316), IF(FORECAST($C301,R$305:R$316,$C$305:$C$316)<0,0, IF(FORECAST($C301,R$305:R$316,$C$305:$C$316)>100,100, FORECAST($C301,R$305:R$316,$C$305:$C$316)))) -> 12.48521122 | S301: =IF(MAX(C305:C316)-MIN(C305:C316)<5,AVERAGEIF(C305:C316,">0",S305:S316), IF(FORECAST($C301,S$305:S$316,$C$305:$C$316)<0,0, IF(FORECAST($C301,S$305:S$316,$C$305:$C$316)>100,100, FORECAST($C301,S$305:S$316,$C$305:$C$316)))) -> 73.52583609 | W301: =IF(MAX(C305:C316)-MIN(C305:C316)<5,AVERAGEIF(C305:C316,">0",W305:W316), IF(FORECAST($C301,W$305:W$316,$C$305:$C$316)<0,0, IF(FORECAST($C301,W$305:W$316,$C$305:$C$316)>100,100, FORECAST($C301,W$305:W$316,$C$305:$C$316)))) -> 11.56450314 | X301: =IF(MAX(C305:C316)-MIN(C305:C316)<5,AVERAGEIF(C305:C316,">0",X305:X316), IF(FORECAST($C301,X$305:X$316,$C$305:$C$316)<0,0, IF(FORECAST($C301,X$305:X$316,$C$305:$C$316)>100,100, FORECAST($C301,X$305:X$316,$C$305:$C$316)))) -> 76.84865417 | AB301: =IF(MAX(C305:C316)-MIN(C305:C316)<5,AVERAGEIF(C305:C316,">0",AB305:AB316), IF(FORECAST($C301,AB$305:AB$316,$C$305:$C$316)<0,0, IF(FORECAST($C301,AB$305:AB$316,$C$305:$C$316)>100,100, FORECAST($C301,AB$305:AB$316,$C$305:$C$316)))) -> 7.68566261
C302: =MaxRegYear(C300,C305:C316) -> 2018 | D302: =IF(MAX(C305:C316)-MIN(C305:C316)<5,AVERAGEIF(C305:C316,">0",D305:D316), IF(FORECAST($C302,D$305:D$316,$C$305:$C$316)<0,0, IF(FORECAST($C302,D$305:D$316,$C$305:$C$316)>100,100, FORECAST($C302,D$305:D$316,$C$305:$C$316)))) -> 59.04307354 | H302: =IF(MAX(C305:C316)-MIN(C305:C316)<5,AVERAGEIF(C305:C316,">0",H305:H316), IF(FORECAST($C302,H$305:H$316,$C$305:$C$316)<0,0, IF(FORECAST($C302,H$305:H$316,$C$305:$C$316)>100,100, FORECAST($C302,H$305:H$316,$C$305:$C$316)))) -> 12.11965032 | I302: =IF(MAX(C305:C316)-MIN(C305:C316)<5,AVERAGEIF(C305:C316,">0",I305:I316), IF(FORECAST($C302,I$305:I$316,$C$305:$C$316)<0,0, IF(FORECAST($C302,I$305:I$316,$C$305:$C$316)>100,100, FORECAST($C302,I$305:I$316,$C$305:$C$316)))) -> 66.58560354 | M302: =IF(MAX(C305:C316)-MIN(C305:C316)<5,AVERAGEIF(C305:C316,">0",M305:M316), IF(FORECAST($C302,M$305:M$316,$C$305:$C$316)<0,0, IF(FORECAST($C302,M$305:M$316,$C$305:$C$316)>100,100, FORECAST($C302,M$305:M$316,$C$305:$C$316)))) -> 9.476879125 | N302: =IF(MAX(C305:C316)-MIN(C305:C316)<5,AVERAGEIF(C305:C316,">0",N305:N316), IF(FORECAST($C302,N$305:N$316,$C$305:$C$316)<0,0, IF(FORECAST($C302,N$305:N$316,$C$305:$C$316)>100,100, FORECAST($C302,N$305:N$316,$C$305:$C$316)))) -> 67.68384854 | R302: =IF(MAX(C305:C316)-MIN(C305:C316)<5,AVERAGEIF(C305:C316,">0",R305:R316), IF(FORECAST($C302,R$305:R$316,$C$305:$C$316)<0,0, IF(FORECAST($C302,R$305:R$316,$C$305:$C$316)>100,100, FORECAST($C302,R$305:R$316,$C$305:$C$316)))) -> 12.72159626 | S302: =IF(MAX(C305:C316)-MIN(C305:C316)<5,AVERAGEIF(C305:C316,">0",S305:S316), IF(FORECAST($C302,S$305:S$316,$C$305:$C$316)<0,0, IF(FORECAST($C302,S$305:S$316,$C$305:$C$316)>100,100, FORECAST($C302,S$305:S$316,$C$305:$C$316)))) -> 73.45805464 | W302: =IF(MAX(C305:C316)-MIN(C305:C316)<5,AVERAGEIF(C305:C316,">0",W305:W316), IF(FORECAST($C302,W$305:W$316,$C$305:$C$316)<0,0, IF(FORECAST($C302,W$305:W$316,$C$305:$C$316)>100,100, FORECAST($C302,W$305:W$316,$C$305:$C$316)))) -> 6.978498952 | X302: =IF(MAX(C305:C316)-MIN(C305:C316)<5,AVERAGEIF(C305:C316,">0",X305:X316), IF(FORECAST($C302,X$305:X$316,$C$305:$C$316)<0,0, IF(FORECAST($C302,X$305:X$316,$C$305:$C$316)>100,100, FORECAST($C302,X$305:X$316,$C$305:$C$316)))) -> 79.15044861 | AB302: =IF(MAX(C305:C316)-MIN(C305:C316)<5,AVERAGEIF(C305:C316,">0",AB305:AB316), IF(FORECAST($C302,AB$305:AB$316,$C$305:$C$316)<0,0, IF(FORECAST($C302,AB$305:AB$316,$C$305:$C$316)>100,100, FORECAST($C302,AB$305:AB$316,$C$305:$C$316)))) -> 6.15477913
B304: Survey | C304: Year | D304: Improved | E304: % Improved < = 30min | H304: Surface water | I304: Improved | J304: % Improved < = 30min | M304: Surface water | N304: Improved | O304: % Improved < = 30min | R304: Surface water | S304: Improved | T304: % Improved < = 30min | W304: Surface water | X304: Improved | Y304: % Improved < = 30min | AB304: Surface water
B305: WHS03 | D305: =IF(ISERROR(INDIRECT(CONCATENATE($B305,"!M16"))),"",INDIRECT(CONCATENATE($B305,"!M16"))) -> 87.23592007 | E305: =IF(ISERROR(INDIRECT(CONCATENATE($B305,"!M23"))),"",INDIRECT(CONCATENATE($B305,"!M23"))) -> 89.04429978 | H305: =IF(ISERROR(INDIRECT(CONCATENATE($B305,"!M21"))),"",INDIRECT(CONCATENATE($B305,"!M21"))) -> 0 | I305: =IF(ISERROR(INDIRECT(CONCATENATE($B305,"!N16"))),"",INDIRECT(CONCATENATE($B305,"!N16"))) -> 89.28841835 | J305: =IF(ISERROR(INDIRECT(CONCATENATE($B305,"!N23"))),"",INDIRECT(CONCATENATE($B305,"!N23"))) -> 90.91054228 | M305: =IF(ISERROR(INDIRECT(CONCATENATE($B305,"!N21"))),"",INDIRECT(CONCATENATE($B305,"!N21"))) -> 0 | N305: =IF(ISERROR(INDIRECT(CONCATENATE($B305,"!O16"))),"",INDIRECT(CONCATENATE($B305,"!O16"))) -> 85.60042655 | O305: =IF(ISERROR(INDIRECT(CONCATENATE($B305,"!O23"))),"",INDIRECT(CONCATENATE($B305,"!O23"))) -> 95.97276402 | R305: =IF(ISERROR(INDIRECT(CONCATENATE($B305,"!O21"))),"",INDIRECT(CONCATENATE($B305,"!O21"))) -> 0 | S305: =IF(ISERROR(INDIRECT(CONCATENATE($B305,"!P16"))),"",INDIRECT(CONCATENATE($B305,"!P16"))) -> 90.61138046 | T305: =IF(ISERROR(INDIRECT(CONCATENATE($B305,"!P23"))),"",INDIRECT(CONCATENATE($B305,"!P23"))) -> 95.23622479 | W305: =IF(ISERROR(INDIRECT(CONCATENATE($B305,"!P21"))),"",INDIRECT(CONCATENATE($B305,"!P21"))) -> 0 | X305: =IF(ISERROR(INDIRECT(CONCATENATE($B305,"!Q16"))),"",INDIRECT(CONCATENATE($B305,"!Q16"))) -> 94.38892387 | Y305: =IF(ISERROR(INDIRECT(CONCATENATE($B305,"!Q23"))),"",INDIRECT(CONCATENATE($B305,"!Q23"))) -> 96.05240243 | AB305: =IF(ISERROR(INDIRECT(CONCATENATE($B305,"!Q221"))),"",INDIRECT(CONCATENATE($B305,"!Q21"))) -> 0
B306: AIS05 | D306: 46.5 | E306: N/A | H306: 10.79660615 | I306: 47.8 | J306: N/A | M306: 8.432146946 | N306: 51.6 | O306: N/A | R306: 3.581831471 | S306: 68.7 | T306: N/A | W306: 0.1502332793 | X306: 80.9 | Y306: N/A | AB306: 0
B307: MICS06 | C307: 2006 | D307: 55.91165753 | E307: 81.78598792 | H307: 21.38952055 | I307: 57.38193326 | J307: 79.5829922 | M307: 14.47704238 | N307: 64.37241111 | O307: 83.50320873 | R307: 13.32709587 | S307: 73.07099456 | T307: 84.66396257 | W307: 11.08693141 | X307: 75.96306805 | Y307: 90.5471186 | AB307: 8.75131379
B308: DHS12 | C308: 2012 | D308: 59.1 | E308: 84.7 | H308: 11.5 | I308: 55.8 | J308: 87.9 | M308: 11.1 | N308: 65.2 | O308: 86.6 | R308: 10.6 | S308: 74.6 | T308: 86.6 | W308: 8.5 | X308: 81.2 | Y308: 92.1 | AB308: 3.6
B309: MICS16 | C309: 2016 | D309: 57.8 | E309: 81.4 | H309: 16 | I309: 67.8 | J309: 82.3 | M309: 10.7 | N309: 67.5 | O309: 83.8 | R309: 13.9 | S309: 72.8 | T309: 82.5 | W309: 7.9 | X309: 77 | Y309: 87.7 | AB309: 8.3
B318: =CONCATENATE("Rural use of drinking water sources, ",C299,"–",C300) -> Rural use of drinking water sources, 2000–2020 | S318: Data points used for regression

Sheet Sanitation
B4: Summary of trends in use of sanitation facilities by wealth quintile (%)
B5: =IF(ISERROR(INDIRECT(CONCATENATE($B105,"!A2"))),"",INDIRECT(CONCATENATE($B105,"!A2"))) -> Côte d'Ivoire
B7: =B118 -> National use of sanitation facilities, 2000–2020 | J7: =B218 -> Urban use of sanitation facilities, 2000–2020 | R7: =B318 -> Rural use of sanitation facilities, 2000–2020
B31: =IF(ISERROR(INDIRECT(CONCATENATE($B105,"!A2"))),"",INDIRECT(CONCATENATE($B105,"!A2"))) -> Côte d'Ivoire | F31: Poorest | J31: Poor | N31: Middle | R31: Rich | V31: Richest
F32: Basic | G32: Limited | H32: Unimproved | I32: Open defecation | J32: Basic | K32: Limited | L32: Unimproved | M32: Open defecation | N32: Basic | O32: Limited | P32: Unimproved | Q32: Open defecation | R32: Basic | S32: Limited | T32: Unimproved | U32: Open defecation | V32: Basic | W32: Limited | X32: Unimproved | Y32: Open defecation
B33: NATIONAL | D33: Estimate | E33: =C99 -> 2000 | F33: =E99 -> 5.424667111 | G33: =F99 -> 10.0771738 | H33: 18.80487183 | I33: 65.69328726 | J33: =J99 -> 11.97403706 | K33: =K99 -> 16.04942758 | L33: 23.69340588 | M33: 48.28312947 | N33: =O99 -> 21.82381927 | O33: =P99 -> 27.62350966 | P33: 24.36247395 | Q33: 26.19019713 | R33: =T99 -> 30.61956074 | S33: =U99 -> 38.42489491 | T33: 22.48119451 | U33: 8.474349837 | V33: =Y99 -> 66.53017435 | W33: =Z99 -> 20.20558351 | X33: 12.1766905 | Y33: 1.087551648
E34: =C100 -> 2020 | F34: =E100 -> 5.488143182 | G34: 10.1950906 | H34: 26.37593081 | I34: 57.9408354 | J34: =J100 -> 11.76540502 | K34: 15.76978716 | L34: 27.33782743 | M34: 45.12698039 | N34: =O100 -> 17.0607465 | O34: 21.59464803 | P34: 33.13428952 | Q34: 28.21031595 | R34: =T100 -> 31.03541466 | S34: 38.94675555 | T34: 27.94754072 | U34: 2.070289068 | V34: =Y100 -> 71.14391825 | W34: 21.60680316 | X34: 6.692456031 | Y34: 0.5568225534
B36: URBAN | D36: Estimate | E36: =C199 -> 2000 | F36: =E199 -> 12.9168299 | G36: =F199 -> 24.01692219 | H36: 22.93189821 | I36: 40.1343497 | J36: =J199 -> 22.51982454 | K36: =K199 -> 39.23322164 | L36: 26.24466289 | M36: 12.00229093 | N36: =O199 -> 32.35570042 | O36: =P199 -> 40.22875409 | P36: 21.80526627 | Q36: 5.61027922 | R36: =T199 -> 52.00772554 | S36: =U199 -> 31.32152504 | T36: 15.82513064 | U36: 0.845618787 | V36: =Y199 -> 83.47091534 | W36: =Z199 -> 9.919172853 | X36: 6.521941648 | Y36: 0.08797016181
E37: =C200 -> 2020 | F37: =E200 -> 18.70015551 | G37: 34.77015516 | H37: 42.0219094 | I37: 4.507779941 | J37: =J200 -> 25.58864646 | K37: 44.5796119 | L37: 29.83174164 | M37: 0 | N37: =O200 -> 35.8823641 | O37: 44.61355443 | P37: 19.50408147 | Q37: 0 | R37: =T200 -> 57.00487488 | S37: 34.33104596 | T37: 8.300648499 | U37: 0.3634306616 | V37: =Y200 -> 86.69787225 | W37: 10.30264467 | X37: 2.455285269 | Y37: 0.5441978079
B39: RURAL | D39: Estimate | E39: =C299 -> 2000 | F39: =E299 -> 3.892374442 | G39: =F299 -> 7.663168228 | H39: 12.93048077 | I39: 75.51397656 | J39: =J299 -> 6.570224061 | K39: =K299 -> 11.15209528 | L39: 23.21720242 | M39: 59.06047823 | N39: =O299 -> 10.06133841 | O39: =P299 -> 13.25632067 | P39: 21.76357256 | Q39: 54.91876835 | R39: =T299 -> 17.78796306 | S39: =U299 -> 18.50375298 | T39: 27.68684769 | U39: 36.02143628 | V39: =Y299 -> 36.73666887 | W39: =Z299 -> 20.13660911 | X39: 26.11403695 | Y39: 17.01268506
E40: =C300 -> 2020 | F40: =E300 -> 4.99897163 | G40: 9.841797375 | H40: 26.09426098 | I40: 59.06497002 | J40: =J300 -> 6.506642916 | K40: 11.04417461 | L40: 28.62989641 | M40: 53.81928606 | N40: =O300 -> 11.9223929 | O40: 15.7083538 | P40: 26.23806847 | Q40: 46.13118483 | R40: =T300 -> 15.35071589 | S40: 15.96843067 | T40: 26.40804862 | U40: 42.27280482 | V40: =Y300 -> 24.86703799 | W40: 13.63046349 | X40: 28.56667474 | Y40: 32.93582379
A97: NATIONAL | D97: Poorest | I97: Poor | N97: Middle | S97: Rich | X97: Richest
D98: Improved | E98: Basic | F98: Limited | G98: Unimproved | H98: Open defecation | I98: Improved | J98: Basic | K98: Limited | L98: Unimproved | M98: Open defecation | N98: Improved | O98: Basic | P98: Limited | Q98: Unimproved | R98: Open defecation | S98: Improved | T98: Basic | U98: Limited | V98: Unimproved | W98: Open defecation | X98: Improved | Y98: Basic | Z98: Limited | AA98: Unimproved | AB98: Open defecation
A99: Forecast period: | C99: 2000 | D99: =IF((D101+H101)>100,D101*100/(D101+H101),D101) -> 15.50184091 | E99: =D99*AVERAGEIF(E105:E116,">0")/100 -> 5.424667111 | F99: =D99*(100-AVERAGEIF(E105:E116,">0"))/100 -> 10.0771738 | G99: =100-(E99+F99+H99) -> 18.80487183 | H99: =IF((D101+H101)>100,H101*100/(D101+H101),H101) -> 65.69328726 | I99: =IF((I101+M101)>100,I101*100/(I101+M101),I101) -> 28.02346465 | J99: =I99*AVERAGEIF(J105:J116,">0")/100 -> 11.97403706 | K99: =I99*(100-AVERAGEIF(J105:J116,">0"))/100 -> 16.04942758 | L99: =100-(J99+K99+M99) -> 23.69340588 | M99: =IF((I101+M101)>100,M101*100/(I101+M101),M101) -> 48.28312947 | N99: =IF((N101+R101)>100,N101*100/(N101+R101),N101) -> 49.44732892 | O99: =N99*AVERAGEIF(O105:O116,">0")/100 -> 21.82381927 | P99: =N99*(100-AVERAGEIF(O105:O116,">0"))/100 -> 27.62350966 | Q99: =100-(O99+P99+R99) -> 24.36247395 | R99: =IF((N101+R101)>100,R101*100/(N101+R101),R101) -> 26.19019713 | S99: =IF((S101+W101)>100,S101*100/(S101+W101),S101) -> 69.04445565 | T99: =S99*AVERAGEIF(T105:T116,">0")/100 -> 30.61956074 | U99: =S99*(100-AVERAGEIF(T105:T116,">0"))/100 -> 38.42489491 | V99: =100-(T99+U99+W99) -> 22.48119451 | W99: =IF((S101+W101)>100,W101*100/(S101+W101),W101) -> 8.474349837 | X99: =IF((X101+AB101)>100,X101*100/(X101+AB101),X101) -> 86.73575786 | Y99: =X99*AVERAGEIF(Y105:Y116,">0")/100 -> 66.53017435 | Z99: =X99*(100-AVERAGEIF(Y105:Y116,">0"))/100 -> 20.20558351 | AA99: =100-(Y99+Z99+AB99) -> 12.1766905 | AB99: =IF((X101+AB101)>100,AB101*100/(X101+AB101),AB101) -> 1.087551648
C100: 2020 | D100: =IF((D102+H102)>100,D102*100/(D102+H102),D102) -> 15.68323379 | E100: =D100*AVERAGEIF(E105:E116,">0")/100 -> 5.488143182 | F100: =D100*(100-AVERAGEIF(E105:E116,">0"))/100 -> 10.1950906 | G100: =100-(E100+F100+H100) -> 26.37593081 | H100: =IF((D102+H102)>100,H102*100/(D102+H102),H102) -> 57.9408354 | I100: =IF((I102+M102)>100,I102*100/(I102+M102),I102) -> 27.53519218 | J100: =I100*AVERAGEIF(J105:J116,">0")/100 -> 11.76540502 | K100: =I100*(100-AVERAGEIF(J105:J116,">0"))/100 -> 15.76978716 | L100: =100-(J100+K100+M100) -> 27.33782743 | M100: =IF((I102+M102)>100,M102*100/(I102+M102),M102) -> 45.12698039 | N100: =IF((N102+R102)>100,N102*100/(N102+R102),N102) -> 38.65539453 | O100: =N100*AVERAGEIF(O105:O116,">0")/100 -> 17.0607465 | P100: =N100*(100-AVERAGEIF(O105:O116,">0"))/100 -> 21.59464803 | Q100: =100-(O100+P100+R100) -> 33.13428952 | R100: =IF((N102+R102)>100,R102*100/(N102+R102),R102) -> 28.21031595 | S100: =IF((S102+W102)>100,S102*100/(S102+W102),S102) -> 69.98217021 | T100: =S100*AVERAGEIF(T105:T116,">0")/100 -> 31.03541466 | U100: =S100*(100-AVERAGEIF(T105:T116,">0"))/100 -> 38.94675555 | V100: =100-(T100+U100+W100) -> 27.94754072 | W100: =IF((S102+W102)>100,W102*100/(S102+W102),W102) -> 2.070289068 | X100: =IF((X102+AB102)>100,X102*100/(X102+AB102),X102) -> 92.75072142 | Y100: =X100*AVERAGEIF(Y105:Y116,">0")/100 -> 71.14391825 | Z100: =X100*(100-AVERAGEIF(Y105:Y116,">0"))/100 -> 21.60680316 | AA100: =100-(Y100+Z100+AB100) -> 6.692456031 | AB100: =IF((X102+AB102)>100,AB102*100/(X102+AB102),AB102) -> 0.5568225534
A101: Regression period: | C101: =MinRegYear(C99,C105:C116) -> 2001 | D101: =IF(MAX(C105:C116)-MIN(C105:C116)<5,AVERAGEIF(C105:C116,">0",D105:D116), IF(FORECAST($C101,D$105:D$116,$C$105:$C$116)<0,0, IF(FORECAST($C101,D$105:D$116,$C$105:$C$116)>100,100, FORECAST($C101,D$105:D$116,$C$105:$C$116)))) -> 15.50184091 | H101: =IF(MAX(C105:C116)-MIN(C105:C116)<5,AVERAGEIF(C105:C116,">0",H105:H116), IF(FORECAST($C101,H$105:H$116,$C$105:$C$116)<0,0, IF(FORECAST($C101,H$105:H$116,$C$105:$C$116)>100,100, FORECAST($C101,H$105:H$116,$C$105:$C$116)))) -> 65.69328726 | I101: =IF(MAX(C105:C116)-MIN(C105:C116)<5,AVERAGEIF(C105:C116,">0",I105:I116), IF(FORECAST($C101,I$105:I$116,$C$105:$C$116)<0,0, IF(FORECAST($C101,I$105:I$116,$C$105:$C$116)>100,100, FORECAST($C101,I$105:I$116,$C$105:$C$116)))) -> 28.02346465 | M101: =IF(MAX(C105:C116)-MIN(C105:C116)<5,AVERAGEIF(C105:C116,">0",M105:M116), IF(FORECAST($C101,M$105:M$116,$C$105:$C$116)<0,0, IF(FORECAST($C101,M$105:M$116,$C$105:$C$116)>100,100, FORECAST($C101,M$105:M$116,$C$105:$C$116)))) -> 48.28312947 | N101: =IF(MAX(C105:C116)-MIN(C105:C116)<5,AVERAGEIF(C105:C116,">0",N105:N116), IF(FORECAST($C101,N$105:N$116,$C$105:$C$116)<0,0, IF(FORECAST($C101,N$105:N$116,$C$105:$C$116)>100,100, FORECAST($C101,N$105:N$116,$C$105:$C$116)))) -> 49.44732892 | R101: =IF(MAX(C105:C116)-MIN(C105:C116)<5,AVERAGEIF(C105:C116,">0",R105:R116), IF(FORECAST($C101,R$105:R$116,$C$105:$C$116)<0,0, IF(FORECAST($C101,R$105:R$116,$C$105:$C$116)>100,100, FORECAST($C101,R$105:R$116,$C$105:$C$116)))) -> 26.19019713 | S101: =IF(MAX(C105:C116)-MIN(C105:C116)<5,AVERAGEIF(C105:C116,">0",S105:S116), IF(FORECAST($C101,S$105:S$116,$C$105:$C$116)<0,0, IF(FORECAST($C101,S$105:S$116,$C$105:$C$116)>100,100, FORECAST($C101,S$105:S$116,$C$105:$C$116)))) -> 69.04445565 | W101: =IF(MAX(C105:C116)-MIN(C105:C116)<5,AVERAGEIF(C105:C116,">0",W105:W116), IF(FORECAST($C101,W$105:W$116,$C$105:$C$116)<0,0, IF(FORECAST($C101,W$105:W$116,$C$105:$C$116)>100,100, FORECAST($C101,W$105:W$116,$C$105:$C$116)))) -> 8.474349837 | X101: =IF(MAX(C105:C116)-MIN(C105:C116)<5,AVERAGEIF(C105:C116,">0",X105:X116), IF(FORECAST($C101,X$105:X$116,$C$105:$C$116)<0,0, IF(FORECAST($C101,X$105:X$116,$C$105:$C$116)>100,100, FORECAST($C101,X$105:X$116,$C$105:$C$116)))) -> 86.73575786 | AB101: =IF(MAX(C105:C116)-MIN(C105:C116)<5,AVERAGEIF(C105:C116,">0",AB105:AB116), IF(FORECAST($C101,AB$105:AB$116,$C$105:$C$116)<0,0, IF(FORECAST($C101,AB$105:AB$116,$C$105:$C$116)>100,100, FORECAST($C101,AB$105:AB$116,$C$105:$C$116)))) -> 1.087551648
C102: =MaxRegYear(C100,C105:C116) -> 2018 | D102: =IF(MAX(C105:C116)-MIN(C105:C116)<5,AVERAGEIF(C105:C116,">0",D105:D116), IF(FORECAST($C102,D$105:D$116,$C$105:$C$116)<0,0, IF(FORECAST($C102,D$105:D$116,$C$105:$C$116)>100,100, FORECAST($C102,D$105:D$116,$C$105:$C$116)))) -> 15.68323379 | H102: =IF(MAX(C105:C116)-MIN(C105:C116)<5,AVERAGEIF(C105:C116,">0",H105:H116), IF(FORECAST($C102,H$105:H$116,$C$105:$C$116)<0,0, IF(FORECAST($C102,H$105:H$116,$C$105:$C$116)>100,100, FORECAST($C102,H$105:H$116,$C$105:$C$116)))) -> 57.9408354 | I102: =IF(MAX(C105:C116)-MIN(C105:C116)<5,AVERAGEIF(C105:C116,">0",I105:I116), IF(FORECAST($C102,I$105:I$116,$C$105:$C$116)<0,0, IF(FORECAST($C102,I$105:I$116,$C$105:$C$116)>100,100, FORECAST($C102,I$105:I$116,$C$105:$C$116)))) -> 27.53519218 | M102: =IF(MAX(C105:C116)-MIN(C105:C116)<5,AVERAGEIF(C105:C116,">0",M105:M116), IF(FORECAST($C102,M$105:M$116,$C$105:$C$116)<0,0, IF(FORECAST($C102,M$105:M$116,$C$105:$C$116)>100,100, FORECAST($C102,M$105:M$116,$C$105:$C$116)))) -> 45.12698039 | N102: =IF(MAX(C105:C116)-MIN(C105:C116)<5,AVERAGEIF(C105:C116,">0",N105:N116), IF(FORECAST($C102,N$105:N$116,$C$105:$C$116)<0,0, IF(FORECAST($C102,N$105:N$116,$C$105:$C$116)>100,100, FORECAST($C102,N$105:N$116,$C$105:$C$116)))) -> 38.65539453 | R102: =IF(MAX(C105:C116)-MIN(C105:C116)<5,AVERAGEIF(C105:C116,">0",R105:R116), IF(FORECAST($C102,R$105:R$116,$C$105:$C$116)<0,0, IF(FORECAST($C102,R$105:R$116,$C$105:$C$116)>100,100, FORECAST($C102,R$105:R$116,$C$105:$C$116)))) -> 28.21031595 | S102: =IF(MAX(C105:C116)-MIN(C105:C116)<5,AVERAGEIF(C105:C116,">0",S105:S116), IF(FORECAST($C102,S$105:S$116,$C$105:$C$116)<0,0, IF(FORECAST($C102,S$105:S$116,$C$105:$C$116)>100,100, FORECAST($C102,S$105:S$116,$C$105:$C$116)))) -> 69.98217021 | W102: =IF(MAX(C105:C116)-MIN(C105:C116)<5,AVERAGEIF(C105:C116,">0",W105:W116), IF(FORECAST($C102,W$105:W$116,$C$105:$C$116)<0,0, IF(FORECAST($C102,W$105:W$116,$C$105:$C$116)>100,100, FORECAST($C102,W$105:W$116,$C$105:$C$116)))) -> 2.070289068 | X102: =IF(MAX(C105:C116)-MIN(C105:C116)<5,AVERAGEIF(C105:C116,">0",X105:X116), IF(FORECAST($C102,X$105:X$116,$C$105:$C$116)<0,0, IF(FORECAST($C102,X$105:X$116,$C$105:$C$116)>100,100, FORECAST($C102,X$105:X$116,$C$105:$C$116)))) -> 92.75072142 | AB102: =IF(MAX(C105:C116)-MIN(C105:C116)<5,AVERAGEIF(C105:C116,">0",AB105:AB116), IF(FORECAST($C102,AB$105:AB$116,$C$105:$C$116)<0,0, IF(FORECAST($C102,AB$105:AB$116,$C$105:$C$116)>100,100, FORECAST($C102,AB$105:AB$116,$C$105:$C$116)))) -> 0.5568225534
B104: Survey | C104: Year | D104: Improved | E104: Not shared | H104: Open defecation | I104: Improved | J104: Not shared | M104: Open defecation | N104: Improved | O104: Not shared | R104: Open defecation | S104: Improved | T104: Not shared | W104: Open defecation | X104: Improved | Y104: Not shared | AB104: Open defecation
B105: WHS03 | C105: 2003 | D105: =IF(ISERROR(INDIRECT(CONCATENATE($B105,"!C122"))),"",INDIRECT(CONCATENATE($B105,"!C122"))) -> 18.92147272 | E105: =IF(ISERROR(INDIRECT(CONCATENATE($B105,"!C129"))),"",INDIRECT(CONCATENATE($B105,"!C129"))) -> 52.89252005 | H105: =IF(ISERROR(INDIRECT(CONCATENATE($B105,"!C127"))),"",INDIRECT(CONCATENATE($B105,"!C127"))) -> 55.16210937 | I105: =IF(ISERROR(INDIRECT(CONCATENATE($B105,"!D122"))),"",INDIRECT(CONCATENATE($B105,"!D122"))) -> 35.86140437 | J105: =IF(ISERROR(INDIRECT(CONCATENATE($B105,"!D129"))),"",INDIRECT(CONCATENATE($B105,"!D129"))) -> 51.48100249 | M105: =IF(ISERROR(INDIRECT(CONCATENATE($B105,"!D127"))),"",INDIRECT(CONCATENATE($B105,"!D127"))) -> 37.84103147 | N105: =IF(ISERROR(INDIRECT(CONCATENATE($B105,"!E122"))),"",INDIRECT(CONCATENATE($B105,"!E122"))) -> 58.96848609 | O105: =IF(ISERROR(INDIRECT(CONCATENATE($B105,"!E129"))),"",INDIRECT(CONCATENATE($B105,"!E129"))) -> 52.8021119 | R105: =IF(ISERROR(INDIRECT(CONCATENATE($B105,"!E127"))),"",INDIRECT(CONCATENATE($B105,"!E127"))) -> 16.95656427 | S105: =IF(ISERROR(INDIRECT(CONCATENATE($B105,"!F122"))),"",INDIRECT(CONCATENATE($B105,"!F122"))) -> 79.99030659 | T105: =IF(ISERROR(INDIRECT(CONCATENATE($B105,"!F129"))),"",INDIRECT(CONCATENATE($B105,"!F129"))) -> 54.51249342 | W105: =IF(ISERROR(INDIRECT(CONCATENATE($B105,"!F127"))),"",INDIRECT(CONCATENATE($B105,"!F127"))) -> 4.117660345 | X105: =IF(ISERROR(INDIRECT(CONCATENATE($B105,"!G122"))),"",INDIRECT(CONCATENATE($B105,"!G122"))) -> 93.60491486 | Y105: =IF(ISERROR(INDIRECT(CONCATENATE($B105,"!G129"))),"",INDIRECT(CONCATENATE($B105,"!G129"))) -> 77.64002877 | AB105: =IF(ISERROR(INDIRECT(CONCATENATE($B105,"!G2127"))),"",INDIRECT(CONCATENATE($B105,"!G127"))) -> 0.6464421423
B106: AIS05 | C106: 2005 | D106: 16.66622443 | E106: N/A | H106: 62.62046964 | I106: 27.888771 | J106: N/A | M106: 48.80808392 | N106: 46.6172333 | O106: N/A | R106: 27.51763088 | S106: 69.66944753 | T106: N/A | W106: 11.01273781 | X106: 89.89930706 | Y106: N/A | AB106: 1.747260055
B107: MICS06 | C107: 2006 | D107: 12.36509496 | E107: 24.92857262 | H107: 72.43250805 | I107: 20.71293391 | J107: 40.44680172 | M107: 53.7448803 | N107: 32.35496827 | O107: 44.67250735 | R107: 37.007116 | S107: 54.4539773 | T107: 45.31283254 | W107: 6.355029129 | X107: 77.66685013 | Y107: 73.62475072 | AB107: 0.6118086311
B108: DHS12 | C108: 2012 | D108: 9.465324684 | E108: 24.78800033 | H108: 72.82472211 | I108: 20.01929663 | J108: 28.33339546 | M108: 59.5100572 | N108: 42.98962623 | O108: 29.06321285 | R108: 30.3788152 | S108: 70.48945518 | T108: 31.28582997 | W108: 5.50623779 | X108: 92.8901834 | Y108: 72.95138713 | AB108: 0.6163232631
B109: MICS16 | C109: 2016 | D109: 20.48588402 | E109: 37.36569173 | H109: 48.55364368 | I109: 34.57220666 | J109: 50.65324242 | M109: 34.64232882 | N109: 42.81800293 | O109: 50.00411458 | R109: 23.48758849 | S109: 72.65999981 | T109: 46.27925406 | W109: 1.441834201 | X109: 92.7089251 | Y109: 82.60157955 | AB109: 0.6608078827
B118: =CONCATENATE("National use of sanitation facilities, ",C99,"–",C100) -> National use of sanitation facilities, 2000–2020 | S118: Data points used for regression
A197: URBAN | D197: Poorest | I197: Poor | N197: Middle | S197: Rich | X197: Richest
D198: Improved | E198: Basic | F198: Limited | G198: Unimproved | H198: Open defecation | I198: Improved | J198: Basic | K198: Limited | L198: Unimproved | M198: Open defecation | N198: Improved | O198: Basic | P198: Limited | Q198: Unimproved | R198: Open defecation | S198: Improved | T198: Basic | U198: Limited | V198: Unimproved | W198: Open defecation | X198: Improved | Y198: Basic | Z198: Limited | AA198: Unimproved | AB198: Open defecation
A199: Forecast period: | C199: 2000 | D199: =IF((D201+H201)>100,D201*100/(D201+H201),D201) -> 36.9337521 | E199: =D199*AVERAGEIF(E205:E216,">0")/100 -> 12.9168299 | F199: =D199*(100-AVERAGEIF(E205:E216,">0"))/100 -> 24.01692219 | G199: =100-(E199+F199+H199) -> 22.93189821 | H199: =IF((D201+H201)>100,H201*100/(D201+H201),H201) -> 40.1343497 | I199: =IF((I201+M201)>100,I201*100/(I201+M201),I201) -> 61.75304617 | J199: =I199*AVERAGEIF(J205:J216,">0")/100 -> 22.51982454 | K199: =I199*(100-AVERAGEIF(J205:J216,">0"))/100 -> 39.23322164 | L199: =100-(J199+K199+M199) -> 26.24466289 | M199: =IF((I201+M201)>100,M201*100/(I201+M201),M201) -> 12.00229093 | N199: =IF((N201+R201)>100,N201*100/(N201+R201),N201) -> 72.58445451 | O199: =N199*AVERAGEIF(O205:O216,">0")/100 -> 32.35570042 | P199: =N199*(100-AVERAGEIF(O205:O216,">0"))/100 -> 40.22875409 | Q199: =100-(O199+P199+R199) -> 21.80526627 | R199: =IF((N201+R201)>100,R201*100/(N201+R201),R201) -> 5.61027922 | S199: =IF((S201+W201)>100,S201*100/(S201+W201),S201) -> 83.32925058 | T199: =S199*AVERAGEIF(T205:T216,">0")/100 -> 52.00772554 | U199: =S199*(100-AVERAGEIF(T205:T216,">0"))/100 -> 31.32152504 | V199: =100-(T199+U199+W199) -> 15.82513064 | W199: =IF((S201+W201)>100,W201*100/(S201+W201),W201) -> 0.845618787 | X199: =IF((X201+AB201)>100,X201*100/(X201+AB201),X201) -> 93.39008819 | Y199: =X199*AVERAGEIF(Y205:Y216,">0")/100 -> 83.47091534 | Z199: =X199*(100-AVERAGEIF(Y205:Y216,">0"))/100 -> 9.919172853 | AA199: =100-(Y199+Z199+AB199) -> 6.521941648 | AB199: =IF((X201+AB201)>100,AB201*100/(X201+AB201),AB201) -> 0.08797016181
C200: 2020 | D200: =IF((D202+H202)>100,D202*100/(D202+H202),D202) -> 53.47031066 | E200: =D200*AVERAGEIF(E205:E216,">0")/100 -> 18.70015551 | F200: =D200*(100-AVERAGEIF(E205:E216,">0"))/100 -> 34.77015516 | G200: =100-(E200+F200+H200) -> 42.0219094 | H200: =IF((D202+H202)>100,H202*100/(D202+H202),H202) -> 4.507779941 | I200: =IF((I202+M202)>100,I202*100/(I202+M202),I202) -> 70.16825836 | J200: =I200*AVERAGEIF(J205:J216,">0")/100 -> 25.58864646 | K200: =I200*(100-AVERAGEIF(J205:J216,">0"))/100 -> 44.5796119 | L200: =100-(J200+K200+M200) -> 29.83174164 | M200: =IF((I202+M202)>100,M202*100/(I202+M202),M202) -> 0 | N200: =IF((N202+R202)>100,N202*100/(N202+R202),N202) -> 80.49591853 | O200: =N200*AVERAGEIF(O205:O216,">0")/100 -> 35.8823641 | P200: =N200*(100-AVERAGEIF(O205:O216,">0"))/100 -> 44.61355443 | Q200: =100-(O200+P200+R200) -> 19.50408147 | R200: =IF((N202+R202)>100,R202*100/(N202+R202),R202) -> 0 | S200: =IF((S202+W202)>100,S202*100/(S202+W202),S202) -> 91.33592084 | T200: =S200*AVERAGEIF(T205:T216,">0")/100 -> 57.00487488 | U200: =S200*(100-AVERAGEIF(T205:T216,">0"))/100 -> 34.33104596 | V200: =100-(T200+U200+W200) -> 8.300648499 | W200: =IF((S202+W202)>100,W202*100/(S202+W202),W202) -> 0.3634306616 | X200: =IF((X202+AB202)>100,X202*100/(X202+AB202),X202) -> 97.00051692 | Y200: =X200*AVERAGEIF(Y205:Y216,">0")/100 -> 86.69787225 | Z200: =X200*(100-AVERAGEIF(Y205:Y216,">0"))/100 -> 10.30264467 | AA200: =100-(Y200+Z200+AB200) -> 2.455285269 | AB200: =IF((X202+AB202)>100,AB202*100/(X202+AB202),AB202) -> 0.5441978079
A201: Regression period: | C201: =MinRegYear(C199,C205:C216) -> 2001 | D201: =IF(MAX(C205:C216)-MIN(C205:C216)<5,AVERAGEIF(C205:C216,">0",D205:D216), IF(FORECAST($C201,D$205:D$216,$C$205:$C$216)<0,0, IF(FORECAST($C201,D$205:D$216,$C$205:$C$216)>100,100, FORECAST($C201,D$205:D$216,$C$205:$C$216)))) -> 36.9337521 | H201: =IF(MAX(C205:C216)-MIN(C205:C216)<5,AVERAGEIF(C205:C216,">0",H205:H216), IF(FORECAST($C201,H$205:H$216,$C$205:$C$216)<0,0, IF(FORECAST($C201,H$205:H$216,$C$205:$C$216)>100,100, FORECAST($C201,H$205:H$216,$C$205:$C$216)))) -> 40.1343497 | I201: =IF(MAX(C205:C216)-MIN(C205:C216)<5,AVERAGEIF(C205:C216,">0",I205:I216), IF(FORECAST($C201,I$205:I$216,$C$205:$C$216)<0,0, IF(FORECAST($C201,I$205:I$216,$C$205:$C$216)>100,100, FORECAST($C201,I$205:I$216,$C$205:$C$216)))) -> 61.75304617 | M201: =IF(MAX(C205:C216)-MIN(C205:C216)<5,AVERAGEIF(C205:C216,">0",M205:M216), IF(FORECAST($C201,M$205:M$216,$C$205:$C$216)<0,0, IF(FORECAST($C201,M$205:M$216,$C$205:$C$216)>100,100, FORECAST($C201,M$205:M$216,$C$205:$C$216)))) -> 12.00229093 | N201: =IF(MAX(C205:C216)-MIN(C205:C216)<5,AVERAGEIF(C205:C216,">0",N205:N216), IF(FORECAST($C201,N$205:N$216,$C$205:$C$216)<0,0, IF(FORECAST($C201,N$205:N$216,$C$205:$C$216)>100,100, FORECAST($C201,N$205:N$216,$C$205:$C$216)))) -> 72.58445451 | R201: =IF(MAX(C205:C216)-MIN(C205:C216)<5,AVERAGEIF(C205:C216,">0",R205:R216), IF(FORECAST($C201,R$205:R$216,$C$205:$C$216)<0,0, IF(FORECAST($C201,R$205:R$216,$C$205:$C$216)>100,100, FORECAST($C201,R$205:R$216,$C$205:$C$216)))) -> 5.61027922 | S201: =IF(MAX(C205:C216)-MIN(C205:C216)<5,AVERAGEIF(C205:C216,">0",S205:S216), IF(FORECAST($C201,S$205:S$216,$C$205:$C$216)<0,0, IF(FORECAST($C201,S$205:S$216,$C$205:$C$216)>100,100, FORECAST($C201,S$205:S$216,$C$205:$C$216)))) -> 83.32925058 | W201: =IF(MAX(C205:C216)-MIN(C205:C216)<5,AVERAGEIF(C205:C216,">0",W205:W216), IF(FORECAST($C201,W$205:W$216,$C$205:$C$216)<0,0, IF(FORECAST($C201,W$205:W$216,$C$205:$C$216)>100,100, FORECAST($C201,W$205:W$216,$C$205:$C$216)))) -> 0.845618787 | X201: =IF(MAX(C205:C216)-MIN(C205:C216)<5,AVERAGEIF(C205:C216,">0",X205:X216), IF(FORECAST($C201,X$205:X$216,$C$205:$C$216)<0,0, IF(FORECAST($C201,X$205:X$216,$C$205:$C$216)>100,100, FORECAST($C201,X$205:X$216,$C$205:$C$216)))) -> 93.39008819 | AB201: =IF(MAX(C205:C216)-MIN(C205:C216)<5,AVERAGEIF(C205:C216,">0",AB205:AB216), IF(FORECAST($C201,AB$205:AB$216,$C$205:$C$216)<0,0, IF(FORECAST($C201,AB$205:AB$216,$C$205:$C$216)>100,100, FORECAST($C201,AB$205:AB$216,$C$205:$C$216)))) -> 0.08797016181
C202: =MaxRegYear(C200,C205:C216) -> 2018 | D202: =IF(MAX(C205:C216)-MIN(C205:C216)<5,AVERAGEIF(C205:C216,">0",D205:D216), IF(FORECAST($C202,D$205:D$216,$C$205:$C$216)<0,0, IF(FORECAST($C202,D$205:D$216,$C$205:$C$216)>100,100, FORECAST($C202,D$205:D$216,$C$205:$C$216)))) -> 53.47031066 | H202: =IF(MAX(C205:C216)-MIN(C205:C216)<5,AVERAGEIF(C205:C216,">0",H205:H216), IF(FORECAST($C202,H$205:H$216,$C$205:$C$216)<0,0, IF(FORECAST($C202,H$205:H$216,$C$205:$C$216)>100,100, FORECAST($C202,H$205:H$216,$C$205:$C$216)))) -> 4.507779941 | I202: =IF(MAX(C205:C216)-MIN(C205:C216)<5,AVERAGEIF(C205:C216,">0",I205:I216), IF(FORECAST($C202,I$205:I$216,$C$205:$C$216)<0,0, IF(FORECAST($C202,I$205:I$216,$C$205:$C$216)>100,100, FORECAST($C202,I$205:I$216,$C$205:$C$216)))) -> 70.16825836 | M202: =IF(MAX(C205:C216)-MIN(C205:C216)<5,AVERAGEIF(C205:C216,">0",M205:M216), IF(FORECAST($C202,M$205:M$216,$C$205:$C$216)<0,0, IF(FORECAST($C202,M$205:M$216,$C$205:$C$216)>100,100, FORECAST($C202,M$205:M$216,$C$205:$C$216)))) -> 0 | N202: =IF(MAX(C205:C216)-MIN(C205:C216)<5,AVERAGEIF(C205:C216,">0",N205:N216), IF(FORECAST($C202,N$205:N$216,$C$205:$C$216)<0,0, IF(FORECAST($C202,N$205:N$216,$C$205:$C$216)>100,100, FORECAST($C202,N$205:N$216,$C$205:$C$216)))) -> 80.49591853 | R202: =IF(MAX(C205:C216)-MIN(C205:C216)<5,AVERAGEIF(C205:C216,">0",R205:R216), IF(FORECAST($C202,R$205:R$216,$C$205:$C$216)<0,0, IF(FORECAST($C202,R$205:R$216,$C$205:$C$216)>100,100, FORECAST($C202,R$205:R$216,$C$205:$C$216)))) -> 0 | S202: =IF(MAX(C205:C216)-MIN(C205:C216)<5,AVERAGEIF(C205:C216,">0",S205:S216), IF(FORECAST($C202,S$205:S$216,$C$205:$C$216)<0,0, IF(FORECAST($C202,S$205:S$216,$C$205:$C$216)>100,100, FORECAST($C202,S$205:S$216,$C$205:$C$216)))) -> 91.33592084 | W202: =IF(MAX(C205:C216)-MIN(C205:C216)<5,AVERAGEIF(C205:C216,">0",W205:W216), IF(FORECAST($C202,W$205:W$216,$C$205:$C$216)<0,0, IF(FORECAST($C202,W$205:W$216,$C$205:$C$216)>100,100, FORECAST($C202,W$205:W$216,$C$205:$C$216)))) -> 0.3634306616 | X202: =IF(MAX(C205:C216)-MIN(C205:C216)<5,AVERAGEIF(C205:C216,">0",X205:X216), IF(FORECAST($C202,X$205:X$216,$C$205:$C$216)<0,0, IF(FORECAST($C202,X$205:X$216,$C$205:$C$216)>100,100, FORECAST($C202,X$205:X$216,$C$205:$C$216)))) -> 97.00051692 | AB202: =IF(MAX(C205:C216)-MIN(C205:C216)<5,AVERAGEIF(C205:C216,">0",AB205:AB216), IF(FORECAST($C202,AB$205:AB$216,$C$205:$C$216)<0,0, IF(FORECAST($C202,AB$205:AB$216,$C$205:$C$216)>100,100, FORECAST($C202,AB$205:AB$216,$C$205:$C$216)))) -> 0.5441978079
B204: Survey | C204: Year | D204: Improved | E204: Not shared | H204: Open defecation | I204: Improved | J204: Not shared | M204: Open defecation | N204: Improved | O204: Not shared | R204: Open defecation | S204: Improved | T204: Not shared | W204: Open defecation | X204: Improved | Y204: Not shared | AB204: Open defecation
B205: WHS03 | C205: 2003 | D205: =IF(ISERROR(INDIRECT(CONCATENATE($B205,"!H122"))),"",INDIRECT(CONCATENATE($B205,"!H122"))) -> 30.8889017 | E205: =IF(ISERROR(INDIRECT(CONCATENATE($B205,"!H129"))),"",INDIRECT(CONCATENATE($B205,"!H129"))) -> 46.65902879 | H205: =IF(ISERROR(INDIRECT(CONCATENATE($B205,"!H127"))),"",INDIRECT(CONCATENATE($B205,"!H127"))) -> 48.73237541 | I205: =IF(ISERROR(INDIRECT(CONCATENATE($B205,"!I122"))),"",INDIRECT(CONCATENATE($B205,"!I122"))) -> 61.87432698 | J205: =IF(ISERROR(INDIRECT(CONCATENATE($B205,"!I129"))),"",INDIRECT(CONCATENATE($B205,"!I129"))) -> 47.32380369 | M205: =IF(ISERROR(INDIRECT(CONCATENATE($B205,"!I127"))),"",INDIRECT(CONCATENATE($B205,"!I127"))) -> 19.29871413 | N205: =IF(ISERROR(INDIRECT(CONCATENATE($B205,"!J122"))),"",INDIRECT(CONCATENATE($B205,"!J122"))) -> 80.07348699 | O205: =IF(ISERROR(INDIRECT(CONCATENATE($B205,"!J129"))),"",INDIRECT(CONCATENATE($B205,"!J129"))) -> 46.8464731 | R205: =IF(ISERROR(INDIRECT(CONCATENATE($B205,"!J127"))),"",INDIRECT(CONCATENATE($B205,"!J127"))) -> 7.141995586 | S205: =IF(ISERROR(INDIRECT(CONCATENATE($B205,"!K122"))),"",INDIRECT(CONCATENATE($B205,"!K122"))) -> 89.79023685 | T205: =IF(ISERROR(INDIRECT(CONCATENATE($B205,"!K129"))),"",INDIRECT(CONCATENATE($B205,"!K129"))) -> 58.38355693 | W205: =IF(ISERROR(INDIRECT(CONCATENATE($B205,"!K127"))),"",INDIRECT(CONCATENATE($B205,"!K127"))) -> 1.322168978 | X205: =IF(ISERROR(INDIRECT(CONCATENATE($B205,"!L122"))),"",INDIRECT(CONCATENATE($B205,"!L122"))) -> 95.70545835 | Y205: =IF(ISERROR(INDIRECT(CONCATENATE($B205,"!L129"))),"",INDIRECT(CONCATENATE($B205,"!L129"))) -> 83.20787791 | AB205: =IF(ISERROR(INDIRECT(CONCATENATE($B205,"!L2127"))),"",INDIRECT(CONCATENATE($B205,"!L127"))) -> 0.511224323
B206: AIS05 | C206: 2005 | D206: 50.5175894 | E206: N/A | H206: 23.57584096 | I206: 72.55319113 | J206: N/A | M206: 2.523848804 | N206: 79.17004696 | O206: N/A | R206: 3.443989599 | S206: 89.31642787 | T206: N/A | W206: 0.02856589996 | X206: 97.48067009 | Y206: N/A | AB206: 0
B207: MICS06 | C207: 2006 | D207: 40.84513222 | E207: 35.75448085 | H207: 20.25964786 | I207: 55.05186367 | J207: 38.18172017 | M207: 3.459789908 | N207: 60.34573421 | O207: 42.53925677 | R207: 1.574759391 | S207: 72.76814531 | T207: 61.77679762 | W207: 0.7357024901 | X207: 87.38969 | Y207: 90.14822703 | AB207: 0.1098204889
B208: DHS12 | C208: 2012 | D208: 49.32780129 | E208: 26.1735384 | H208: 21.49051625 | I208: 68.70695292 | J208: 20.14396832 | M208: 4.874637805 | N208: 79.81211017 | O208: 34.43825946 | R208: 1.970435678 | S208: 91.57927555 | T208: 55.4389139 | W208: 0.6555925447 | X208: 98.32453502 | Y208: 92.01954315 | AB208: 0
B209: MICS16 | C209: 2016 | D209: 49.08066922 | E209: 31.30483045 | H209: 9.073186783 | I209: 68.89435798 | J209: 40.22071784 | M209: 2.026632117 | N209: 80.73996298 | O209: 54.48251244 | R209: 0.6472677682 | S209: 90.61844964 | T209: 74.05004521 | W209: 0.4365957492 | X209: 95.90807944 | Y209: 92.13944566 | AB209: 0.8117720505
B218: =CONCATENATE("Urban use of sanitation facilities, ",C199,"–",C200) -> Urban use of sanitation facilities, 2000–2020 | S218: Data points used for regression
A297: RURAL | D297: Poorest | I297: Poor | N297: Middle | S297: Rich | X297: Richest
D298: Improved | E298: Basic | F298: Limited | G298: Unimproved | H298: Open defecation | I298: Improved | J298: Basic | K298: Limited | L298: Unimproved | M298: Open defecation | N298: Improved | O298: Basic | P298: Limited | Q298: Unimproved | R298: Open defecation | S298: Improved | T298: Basic | U298: Limited | V298: Unimproved | W298: Open defecation | X298: Improved | Y298: Basic | Z298: Limited | AA298: Unimproved | AB298: Open defecation
A299: Forecast period: | C299: 2000 | D299: =IF((D301+H301)>100,D301*100/(D301+H301),D301) -> 11.55554267 | E299: =D299*AVERAGEIF(E305:E316,">0")/100 -> 3.892374442 | F299: =D299*(100-AVERAGEIF(E305:E316,">0"))/100 -> 7.663168228 | G299: =100-(E299+F299+H299) -> 12.93048077 | H299: =IF((D301+H301)>100,H301*100/(D301+H301),H301) -> 75.51397656 | I299: =IF((I301+M301)>100,I301*100/(I301+M301),I301) -> 17.72231934 | J299: =I299*AVERAGEIF(J305:J316,">0")/100 -> 6.570224061 | K299: =I299*(100-AVERAGEIF(J305:J316,">0"))/100 -> 11.15209528 | L299: =100-(J299+K299+M299) -> 23.21720242 | M299: =IF((I301+M301)>100,M301*100/(I301+M301),M301) -> 59.06047823 | N299: =IF((N301+R301)>100,N301*100/(N301+R301),N301) -> 23.31765909 | O299: =N299*AVERAGEIF(O305:O316,">0")/100 -> 10.06133841 | P299: =N299*(100-AVERAGEIF(O305:O316,">0"))/100 -> 13.25632067 | Q299: =100-(O299+P299+R299) -> 21.76357256 | R299: =IF((N301+R301)>100,R301*100/(N301+R301),R301) -> 54.91876835 | S299: =IF((S301+W301)>100,S301*100/(S301+W301),S301) -> 36.29171603 | T299: =S299*AVERAGEIF(T305:T316,">0")/100 -> 17.78796306 | U299: =S299*(100-AVERAGEIF(T305:T316,">0"))/100 -> 18.50375298 | V299: =100-(T299+U299+W299) -> 27.68684769 | W299: =IF((S301+W301)>100,W301*100/(S301+W301),W301) -> 36.02143628 | X299: =IF((X301+AB301)>100,X301*100/(X301+AB301),X301) -> 56.87327799 | Y299: =X299*AVERAGEIF(Y305:Y316,">0")/100 -> 36.73666887 | Z299: =X299*(100-AVERAGEIF(Y305:Y316,">0"))/100 -> 20.13660911 | AA299: =100-(Y299+Z299+AB299) -> 26.11403695 | AB299: =IF((X301+AB301)>100,AB301*100/(X301+AB301),AB301) -> 17.01268506
C300: 2020 | D300: =IF((D302+H302)>100,D302*100/(D302+H302),D302) -> 14.84076901 | E300: =D300*AVERAGEIF(E305:E316,">0")/100 -> 4.99897163 | F300: =D300*(100-AVERAGEIF(E305:E316,">0"))/100 -> 9.841797375 | G300: =100-(E300+F300+H300) -> 26.09426098 | H300: =IF((D302+H302)>100,H302*100/(D302+H302),H302) -> 59.06497002 | I300: =IF((I302+M302)>100,I302*100/(I302+M302),I302) -> 17.55081753 | J300: =I300*AVERAGEIF(J305:J316,">0")/100 -> 6.506642916 | K300: =I300*(100-AVERAGEIF(J305:J316,">0"))/100 -> 11.04417461 | L300: =100-(J300+K300+M300) -> 28.62989641 | M300: =IF((I302+M302)>100,M302*100/(I302+M302),M302) -> 53.81928606 | N300: =IF((N302+R302)>100,N302*100/(N302+R302),N302) -> 27.6307467 | O300: =N300*AVERAGEIF(O305:O316,">0")/100 -> 11.9223929 | P300: =N300*(100-AVERAGEIF(O305:O316,">0"))/100 -> 15.7083538 | Q300: =100-(O300+P300+R300) -> 26.23806847 | R300: =IF((N302+R302)>100,R302*100/(N302+R302),R302) -> 46.13118483 | S300: =IF((S302+W302)>100,S302*100/(S302+W302),S302) -> 31.31914656 | T300: =S300*AVERAGEIF(T305:T316,">0")/100 -> 15.35071589 | U300: =S300*(100-AVERAGEIF(T305:T316,">0"))/100 -> 15.96843067 | V300: =100-(T300+U300+W300) -> 26.40804862 | W300: =IF((S302+W302)>100,W302*100/(S302+W302),W302) -> 42.27280482 | X300: =IF((X302+AB302)>100,X302*100/(X302+AB302),X302) -> 38.49750148 | Y300: =X300*AVERAGEIF(Y305:Y316,">0")/100 -> 24.86703799 | Z300: =X300*(100-AVERAGEIF(Y305:Y316,">0"))/100 -> 13.63046349 | AA300: =100-(Y300+Z300+AB300) -> 28.56667474 | AB300: =IF((X302+AB302)>100,AB302*100/(X302+AB302),AB302) -> 32.93582379
A301: Regression period: | C301: =MinRegYear(C299,C305:C316) -> 2001 | D301: =IF(MAX(C305:C316)-MIN(C305:C316)<5,AVERAGEIF(C305:C316,">0",D305:D316), IF(FORECAST($C301,D$305:D$316,$C$305:$C$316)<0,0, IF(FORECAST($C301,D$305:D$316,$C$305:$C$316)>100,100, FORECAST($C301,D$305:D$316,$C$305:$C$316)))) -> 11.55554267 | H301: =IF(MAX(C305:C316)-MIN(C305:C316)<5,AVERAGEIF(C305:C316,">0",H305:H316), IF(FORECAST($C301,H$305:H$316,$C$305:$C$316)<0,0, IF(FORECAST($C301,H$305:H$316,$C$305:$C$316)>100,100, FORECAST($C301,H$305:H$316,$C$305:$C$316)))) -> 75.51397656 | I301: =IF(MAX(C305:C316)-MIN(C305:C316)<5,AVERAGEIF(C305:C316,">0",I305:I316), IF(FORECAST($C301,I$305:I$316,$C$305:$C$316)<0,0, IF(FORECAST($C301,I$305:I$316,$C$305:$C$316)>100,100, FORECAST($C301,I$305:I$316,$C$305:$C$316)))) -> 17.72231934 | M301: =IF(MAX(C305:C316)-MIN(C305:C316)<5,AVERAGEIF(C305:C316,">0",M305:M316), IF(FORECAST($C301,M$305:M$316,$C$305:$C$316)<0,0, IF(FORECAST($C301,M$305:M$316,$C$305:$C$316)>100,100, FORECAST($C301,M$305:M$316,$C$305:$C$316)))) -> 59.06047823 | N301: =IF(MAX(C305:C316)-MIN(C305:C316)<5,AVERAGEIF(C305:C316,">0",N305:N316), IF(FORECAST($C301,N$305:N$316,$C$305:$C$316)<0,0, IF(FORECAST($C301,N$305:N$316,$C$305:$C$316)>100,100, FORECAST($C301,N$305:N$316,$C$305:$C$316)))) -> 23.31765909 | R301: =IF(MAX(C305:C316)-MIN(C305:C316)<5,AVERAGEIF(C305:C316,">0",R305:R316), IF(FORECAST($C301,R$305:R$316,$C$305:$C$316)<0,0, IF(FORECAST($C301,R$305:R$316,$C$305:$C$316)>100,100, FORECAST($C301,R$305:R$316,$C$305:$C$316)))) -> 54.91876835 | S301: =IF(MAX(C305:C316)-MIN(C305:C316)<5,AVERAGEIF(C305:C316,">0",S305:S316), IF(FORECAST($C301,S$305:S$316,$C$305:$C$316)<0,0, IF(FORECAST($C301,S$305:S$316,$C$305:$C$316)>100,100, FORECAST($C301,S$305:S$316,$C$305:$C$316)))) -> 36.29171603 | W301: =IF(MAX(C305:C316)-MIN(C305:C316)<5,AVERAGEIF(C305:C316,">0",W305:W316), IF(FORECAST($C301,W$305:W$316,$C$305:$C$316)<0,0, IF(FORECAST($C301,W$305:W$316,$C$305:$C$316)>100,100, FORECAST($C301,W$305:W$316,$C$305:$C$316)))) -> 36.02143628 | X301: =IF(MAX(C305:C316)-MIN(C305:C316)<5,AVERAGEIF(C305:C316,">0",X305:X316), IF(FORECAST($C301,X$305:X$316,$C$305:$C$316)<0,0, IF(FORECAST($C301,X$305:X$316,$C$305:$C$316)>100,100, FORECAST($C301,X$305:X$316,$C$305:$C$316)))) -> 56.87327799 | AB301: =IF(MAX(C305:C316)-MIN(C305:C316)<5,AVERAGEIF(C305:C316,">0",AB305:AB316), IF(FORECAST($C301,AB$305:AB$316,$C$305:$C$316)<0,0, IF(FORECAST($C301,AB$305:AB$316,$C$305:$C$316)>100,100, FORECAST($C301,AB$305:AB$316,$C$305:$C$316)))) -> 17.01268506
C302: =MaxRegYear(C300,C305:C316) -> 2018 | D302: =IF(MAX(C305:C316)-MIN(C305:C316)<5,AVERAGEIF(C305:C316,">0",D305:D316), IF(FORECAST($C302,D$305:D$316,$C$305:$C$316)<0,0, IF(FORECAST($C302,D$305:D$316,$C$305:$C$316)>100,100, FORECAST($C302,D$305:D$316,$C$305:$C$316)))) -> 14.84076901 | H302: =IF(MAX(C305:C316)-MIN(C305:C316)<5,AVERAGEIF(C305:C316,">0",H305:H316), IF(FORECAST($C302,H$305:H$316,$C$305:$C$316)<0,0, IF(FORECAST($C302,H$305:H$316,$C$305:$C$316)>100,100, FORECAST($C302,H$305:H$316,$C$305:$C$316)))) -> 59.06497002 | I302: =IF(MAX(C305:C316)-MIN(C305:C316)<5,AVERAGEIF(C305:C316,">0",I305:I316), IF(FORECAST($C302,I$305:I$316,$C$305:$C$316)<0,0, IF(FORECAST($C302,I$305:I$316,$C$305:$C$316)>100,100, FORECAST($C302,I$305:I$316,$C$305:$C$316)))) -> 17.55081753 | M302: =IF(MAX(C305:C316)-MIN(C305:C316)<5,AVERAGEIF(C305:C316,">0",M305:M316), IF(FORECAST($C302,M$305:M$316,$C$305:$C$316)<0,0, IF(FORECAST($C302,M$305:M$316,$C$305:$C$316)>100,100, FORECAST($C302,M$305:M$316,$C$305:$C$316)))) -> 53.81928606 | N302: =IF(MAX(C305:C316)-MIN(C305:C316)<5,AVERAGEIF(C305:C316,">0",N305:N316), IF(FORECAST($C302,N$305:N$316,$C$305:$C$316)<0,0, IF(FORECAST($C302,N$305:N$316,$C$305:$C$316)>100,100, FORECAST($C302,N$305:N$316,$C$305:$C$316)))) -> 27.6307467 | R302: =IF(MAX(C305:C316)-MIN(C305:C316)<5,AVERAGEIF(C305:C316,">0",R305:R316), IF(FORECAST($C302,R$305:R$316,$C$305:$C$316)<0,0, IF(FORECAST($C302,R$305:R$316,$C$305:$C$316)>100,100, FORECAST($C302,R$305:R$316,$C$305:$C$316)))) -> 46.13118483 | S302: =IF(MAX(C305:C316)-MIN(C305:C316)<5,AVERAGEIF(C305:C316,">0",S305:S316), IF(FORECAST($C302,S$305:S$316,$C$305:$C$316)<0,0, IF(FORECAST($C302,S$305:S$316,$C$305:$C$316)>100,100, FORECAST($C302,S$305:S$316,$C$305:$C$316)))) -> 31.31914656 | W302: =IF(MAX(C305:C316)-MIN(C305:C316)<5,AVERAGEIF(C305:C316,">0",W305:W316), IF(FORECAST($C302,W$305:W$316,$C$305:$C$316)<0,0, IF(FORECAST($C302,W$305:W$316,$C$305:$C$316)>100,100, FORECAST($C302,W$305:W$316,$C$305:$C$316)))) -> 42.27280482 | X302: =IF(MAX(C305:C316)-MIN(C305:C316)<5,AVERAGEIF(C305:C316,">0",X305:X316), IF(FORECAST($C302,X$305:X$316,$C$305:$C$316)<0,0, IF(FORECAST($C302,X$305:X$316,$C$305:$C$316)>100,100, FORECAST($C302,X$305:X$316,$C$305:$C$316)))) -> 38.49750148 | AB302: =IF(MAX(C305:C316)-MIN(C305:C316)<5,AVERAGEIF(C305:C316,">0",AB305:AB316), IF(FORECAST($C302,AB$305:AB$316,$C$305:$C$316)<0,0, IF(FORECAST($C302,AB$305:AB$316,$C$305:$C$316)>100,100, FORECAST($C302,AB$305:AB$316,$C$305:$C$316)))) -> 32.93582379
B304: Survey | C304: Year | D304: Improved | E304: Not shared | H304: Open defecation | I304: Improved | J304: Not shared | M304: Open defecation | N304: Improved | O304: Not shared | R304: Open defecation | S304: Improved | T304: Not shared | W304: Open defecation | X304: Improved | Y304: Not shared | AB304: Open defecation
B305: WHS03 | C305: 2003 | D305: =IF(ISERROR(INDIRECT(CONCATENATE($B305,"!M122"))),"",INDIRECT(CONCATENATE($B305,"!M122"))) -> 15.38299719 | E305: =IF(ISERROR(INDIRECT(CONCATENATE($B305,"!M129"))),"",INDIRECT(CONCATENATE($B305,"!M129"))) -> 56.04515813 | H305: =IF(ISERROR(INDIRECT(CONCATENATE($B305,"!M127"))),"",INDIRECT(CONCATENATE($B305,"!M127"))) -> 63.26796951 | I305: =IF(ISERROR(INDIRECT(CONCATENATE($B305,"!N122"))),"",INDIRECT(CONCATENATE($B305,"!N122"))) -> 21.06908563 | J305: =IF(ISERROR(INDIRECT(CONCATENATE($B305,"!N129"))),"",INDIRECT(CONCATENATE($B305,"!N129"))) -> 54.11805834 | M305: =IF(ISERROR(INDIRECT(CONCATENATE($B305,"!N127"))),"",INDIRECT(CONCATENATE($B305,"!N127"))) -> 50.21793746 | N305: =IF(ISERROR(INDIRECT(CONCATENATE($B305,"!O122"))),"",INDIRECT(CONCATENATE($B305,"!O122"))) -> 30.54378572 | O305: =IF(ISERROR(INDIRECT(CONCATENATE($B305,"!O129"))),"",INDIRECT(CONCATENATE($B305,"!O129"))) -> 53.63188698 | R305: =IF(ISERROR(INDIRECT(CONCATENATE($B305,"!O127"))),"",INDIRECT(CONCATENATE($B305,"!O127"))) -> 45.49501602 | S305: =IF(ISERROR(INDIRECT(CONCATENATE($B305,"!P122"))),"",INDIRECT(CONCATENATE($B305,"!P122"))) -> 43.65004655 | T305: =IF(ISERROR(INDIRECT(CONCATENATE($B305,"!P129"))),"",INDIRECT(CONCATENATE($B305,"!P129"))) -> 63.23872766 | W305: =IF(ISERROR(INDIRECT(CONCATENATE($B305,"!P127"))),"",INDIRECT(CONCATENATE($B305,"!P127"))) -> 23.40585171 | X305: =IF(ISERROR(INDIRECT(CONCATENATE($B305,"!Q122"))),"",INDIRECT(CONCATENATE($B305,"!Q122"))) -> 59.01936745 | Y305: =IF(ISERROR(INDIRECT(CONCATENATE($B305,"!Q129"))),"",INDIRECT(CONCATENATE($B305,"!Q129"))) -> 79.22449686 | AB305: =IF(ISERROR(INDIRECT(CONCATENATE($B305,"!Q2127"))),"",INDIRECT(CONCATENATE($B305,"!Q127"))) -> 12.59964106
B306: AIS05 | C306: 2005 | D306: 12.30428314 | E306: N/A | H306: 72.81843963 | I306: 17.94998373 | J306: N/A | M306: 57.66968489 | N306: 23.12217224 | O306: N/A | R306: 55.67979432 | S306: 38.75853753 | T306: N/A | W306: 36.79104031 | X306: 57.54993751 | Y306: N/A | AB306: 21.47883396
B307: MICS06 | C307: 2006 | D307: 10.09293573 | E307: 25.42996851 | H307: 78.65855133 | I307: 15.70818011 | J307: 25.76981944 | M307: 62.80204582 | N307: 19.7709607 | O307: 40.08960041 | R307: 55.61832019 | S307: 23.45421457 | T307: 48.65402756 | W307: 50.76494065 | X307: 39.10924207 | Y307: 64.52924887 | AB307: 30.62164609
B308: DHS12 | C308: 2012 | D308: 8.636989475 | E308: 19.77875926 | H308: 75.1936557 | I308: 10.84097788 | J308: 27.17861742 | M308: 69.62897617 | N308: 19.63923478 | O308: 30.93997729 | R308: 60.51067868 | S308: 25.69446884 | T308: 29.33801687 | W308: 53.1237441 | X308: 48.12971409 | Y308: 48.04434673 | AB308: 23.45362997
B309: MICS16 | C309: 2016 | D309: 18.51070631 | E309: 33.48230273 | H309: 51.8304877 | I309: 22.6701007 | J309: 41.22615058 | M309: 43.57644621 | N309: 32.89945032 | O309: 47.93456441 | R309: 38.16411549 | S309: 39.07866147 | T309: 54.82458161 | W309: 29.62752438 | X309: 40.5637917 | Y309: 66.57751152 | AB309: 31.56591732
B318: =CONCATENATE("Rural use of sanitation facilities, ",C299,"–",C300) -> Rural use of sanitation facilities, 2000–2020 | S318: Data points used for regression

Sheet Hygiene
B4: Access to hygiene facilities by wealth quintile (%)
B5: =IF(ISERROR(INDIRECT(CONCATENATE($E$32,"!A2"))),"",INDIRECT(CONCATENATE($E$32,"!A2"))) -> 
B7: =CONCATENATE("National ",IF(ISERROR(INDIRECT(CONCATENATE($E$32,"!A2"))),"",INDIRECT(CONCATENATE($E$32,"!A210")))) -> National | K7: =CONCATENATE("Urban ",IF(ISERROR(INDIRECT(CONCATENATE($E$32,"!A2"))),"",INDIRECT(CONCATENATE($E$32,"!A210")))) -> Urban | S7: =CONCATENATE("Rural ",IF(ISERROR(INDIRECT(CONCATENATE($E$32,"!A2"))),"",INDIRECT(CONCATENATE($E$32,"!A210")))) -> Rural
E32: =INDEX(B88:B100,A88) -> 0 | G32: =IF(ISERROR(INDIRECT(CONCATENATE($E$32,"!A2"))),"",INDIRECT(CONCATENATE($E$32,"!A2"))) ->  | K32: Poorest | N32: Poor | Q32: Middle | T32: Rich | W32: Richest
K33: Basic | L33: Limited | M33: No facility | N33: Basic | O33: Limited | P33: No facility | Q33: Basic | R33: Limited | S33: No facility | T33: Basic | U33: Limited | V33: No facility | W33: Basic | X33: Limited | Y33: No facility
B34: >>> Select Survey : | G34: NATIONAL | J34: =IF(ISERROR(INDIRECT(CONCATENATE(#REF!,"!A2"))),"",INDIRECT(CONCATENATE(#REF!,"!A210"))) ->  | K34: =IF(ISERROR(INDIRECT(CONCATENATE($E$32,"!C222"))),"",INDIRECT(CONCATENATE($E$32,"!C222"))) ->  | L34: =IF(ISERROR(INDIRECT(CONCATENATE($E$32,"!C223"))),"",INDIRECT(CONCATENATE($E$32,"!C223"))) ->  | M34: =IF(ISERROR(INDIRECT(CONCATENATE($E$32,"!C224"))),"",INDIRECT(CONCATENATE($E$32,"!C224"))) ->  | N34: =IF(ISERROR(INDIRECT(CONCATENATE($E$32,"!D222"))),"",INDIRECT(CONCATENATE($E$32,"!D222"))) ->  | O34: =IF(ISERROR(INDIRECT(CONCATENATE($E$32,"!D223"))),"",INDIRECT(CONCATENATE($E$32,"!D223"))) ->  | P34: =IF(ISERROR(INDIRECT(CONCATENATE($E$32,"!D224"))),"",INDIRECT(CONCATENATE($E$32,"!D224"))) ->  | Q34: =IF(ISERROR(INDIRECT(CONCATENATE($E$32,"!E222"))),"",INDIRECT(CONCATENATE($E$32,"!E222"))) ->  | R34: =IF(ISERROR(INDIRECT(CONCATENATE($E$32,"!E223"))),"",INDIRECT(CONCATENATE($E$32,"!E223"))) ->  | S34: =IF(ISERROR(INDIRECT(CONCATENATE($E$32,"!E224"))),"",INDIRECT(CONCATENATE($E$32,"!E224"))) ->  | T34: =IF(ISERROR(INDIRECT(CONCATENATE($E$32,"!F222"))),"",INDIRECT(CONCATENATE($E$32,"!F222"))) ->  | U34: =IF(ISERROR(INDIRECT(CONCATENATE($E$32,"!F223"))),"",INDIRECT(CONCATENATE($E$32,"!F223"))) ->  | V34: =IF(ISERROR(INDIRECT(CONCATENATE($E$32,"!F224"))),"",INDIRECT(CONCATENATE($E$32,"!F224"))) ->  | W34: =IF(ISERROR(INDIRECT(CONCATENATE($E$32,"!G222"))),"",INDIRECT(CONCATENATE($E$32,"!G222"))) ->  | X34: =IF(ISERROR(INDIRECT(CONCATENATE($E$32,"!G223"))),"",INDIRECT(CONCATENATE($E$32,"!G223"))) ->  | Y34: =IF(ISERROR(INDIRECT(CONCATENATE($E$32,"!G224"))),"",INDIRECT(CONCATENATE($E$32,"!G224"))) -> 
G37: URBAN | J37: =IF(ISERROR(INDIRECT(CONCATENATE(#REF!,"!A2"))),"",INDIRECT(CONCATENATE(#REF!,"!A210"))) ->  | K37: =IF(ISERROR(INDIRECT(CONCATENATE($E$32,"!H222"))),"",INDIRECT(CONCATENATE($E$32,"!H222"))) ->  | L37: =IF(ISERROR(INDIRECT(CONCATENATE($E$32,"!H223"))),"",INDIRECT(CONCATENATE($E$32,"!H223"))) ->  | M37: =IF(ISERROR(INDIRECT(CONCATENATE($E$32,"!H224"))),"",INDIRECT(CONCATENATE($E$32,"!H224"))) ->  | N37: =IF(ISERROR(INDIRECT(CONCATENATE($E$32,"!I222"))),"",INDIRECT(CONCATENATE($E$32,"!I222"))) ->  | O37: =IF(ISERROR(INDIRECT(CONCATENATE($E$32,"!I223"))),"",INDIRECT(CONCATENATE($E$32,"!I223"))) ->  | P37: =IF(ISERROR(INDIRECT(CONCATENATE($E$32,"!I224"))),"",INDIRECT(CONCATENATE($E$32,"!I224"))) ->  | Q37: =IF(ISERROR(INDIRECT(CONCATENATE($E$32,"!J222"))),"",INDIRECT(CONCATENATE($E$32,"!J222"))) ->  | R37: =IF(ISERROR(INDIRECT(CONCATENATE($E$32,"!J223"))),"",INDIRECT(CONCATENATE($E$32,"!J223"))) ->  | S37: =IF(ISERROR(INDIRECT(CONCATENATE($E$32,"!J224"))),"",INDIRECT(CONCATENATE($E$32,"!J224"))) ->  | T37: =IF(ISERROR(INDIRECT(CONCATENATE($E$32,"!K222"))),"",INDIRECT(CONCATENATE($E$32,"!K222"))) ->  | U37: =IF(ISERROR(INDIRECT(CONCATENATE($E$32,"!K223"))),"",INDIRECT(CONCATENATE($E$32,"!K223"))) ->  | V37: =IF(ISERROR(INDIRECT(CONCATENATE($E$32,"!K224"))),"",INDIRECT(CONCATENATE($E$32,"!K224"))) ->  | W37: =IF(ISERROR(INDIRECT(CONCATENATE($E$32,"!L222"))),"",INDIRECT(CONCATENATE($E$32,"!L222"))) ->  | X37: =IF(ISERROR(INDIRECT(CONCATENATE($E$32,"!L223"))),"",INDIRECT(CONCATENATE($E$32,"!L223"))) ->  | Y37: =IF(ISERROR(INDIRECT(CONCATENATE($E$32,"!L224"))),"",INDIRECT(CONCATENATE($E$32,"!L224"))) -> 
G40: RURAL | J40: =IF(ISERROR(INDIRECT(CONCATENATE(#REF!,"!A2"))),"",INDIRECT(CONCATENATE(#REF!,"!A210"))) ->  | K40: =IF(ISERROR(INDIRECT(CONCATENATE($E$32,"!M222"))),"",INDIRECT(CONCATENATE($E$32,"!M222"))) ->  | L40: =IF(ISERROR(INDIRECT(CONCATENATE($E$32,"!M223"))),"",INDIRECT(CONCATENATE($E$32,"!M223"))) ->  | M40: =IF(ISERROR(INDIRECT(CONCATENATE($E$32,"!M224"))),"",INDIRECT(CONCATENATE($E$32,"!M224"))) ->  | N40: =IF(ISERROR(INDIRECT(CONCATENATE($E$32,"!N222"))),"",INDIRECT(CONCATENATE($E$32,"!N222"))) ->  | O40: =IF(ISERROR(INDIRECT(CONCATENATE($E$32,"!N223"))),"",INDIRECT(CONCATENATE($E$32,"!N223"))) ->  | P40: =IF(ISERROR(INDIRECT(CONCATENATE($E$32,"!N224"))),"",INDIRECT(CONCATENATE($E$32,"!N224"))) ->  | Q40: =IF(ISERROR(INDIRECT(CONCATENATE($E$32,"!O222"))),"",INDIRECT(CONCATENATE($E$32,"!O222"))) ->  | R40: =IF(ISERROR(INDIRECT(CONCATENATE($E$32,"!O223"))),"",INDIRECT(CONCATENATE($E$32,"!O223"))) ->  | S40: =IF(ISERROR(INDIRECT(CONCATENATE($E$32,"!O224"))),"",INDIRECT(CONCATENATE($E$32,"!O224"))) ->  | T40: =IF(ISERROR(INDIRECT(CONCATENATE($E$32,"!P222"))),"",INDIRECT(CONCATENATE($E$32,"!P222"))) ->  | U40: =IF(ISERROR(INDIRECT(CONCATENATE($E$32,"!P223"))),"",INDIRECT(CONCATENATE($E$32,"!P223"))) ->  | V40: =IF(ISERROR(INDIRECT(CONCATENATE($E$32,"!P224"))),"",INDIRECT(CONCATENATE($E$32,"!P224"))) ->  | W40: =IF(ISERROR(INDIRECT(CONCATENATE($E$32,"!Q222"))),"",INDIRECT(CONCATENATE($E$32,"!Q222"))) ->  | X40: =IF(ISERROR(INDIRECT(CONCATENATE($E$32,"!Q223"))),"",INDIRECT(CONCATENATE($E$32,"!Q223"))) ->  | Y40: =IF(ISERROR(INDIRECT(CONCATENATE($E$32,"!Q224"))),"",INDIRECT(CONCATENATE($E$32,"!Q224"))) -> 
A88: 2 | B88: Template

Sheet WHS03
A2: =A1026 -> Côte d'Ivoire
A3: =A1034 -> 2003
A4: Use of drinking water sources
A5: by wealth quintile and sub-national region
A6: Notes:
A7: WHO/UNICEF JMP customised wealth index excludes water,
A8: sanitation and hygiene assets.
A9: Survey used for analysis: | B9: =A1025 -> WHS03
A10: =B1028 -> 
A11: =B1027 -> 
A14: Use of drinking water sources | C14: NATIONAL wealth index quintile | H14: URBAN wealth index quintile | M14: RURAL wealth index quintile | BA14: Raw numbers of respondents: | BB14: Use of drinking water sources | BC14: NATIONAL wealth index quintile | BH14: URBAN wealth index quintile | BM14: RURAL wealth index quintile
A15: Weighted percentage (used in graphs) | C15: Poorest | D15: Poor | E15: Middle | F15: Rich | G15: Richest | H15: Poorest | I15: Poor | J15: Middle | K15: Rich | L15: Richest | M15: Poorest | N15: Poor | O15: Middle | P15: Rich | Q15: Richest | BA15: Water data, raw numbers (weighted) | BC15: Poorest | BD15: Poor | BE15: Middle | BF15: Rich | BG15: Richest | BH15: Poorest | BI15: Poor | BJ15: Middle | BK15: Rich | BL15: Richest | BM15: Poorest | BN15: Poor | BO15: Middle | BP15: Rich | BQ15: Richest
A16: Water | B16: Improved | C16: =C58+C59+C60+C61+C63+C65 -> 88.59646629 | D16: 89.22346138 | E16: 93.3597246 | F16: 96.56099349 | G16: 99.79605842 | H16: 90.52390723 | I16: 91.92777245 | J16: 96.30256094 | K16: 98.80339532 | L16: 99.70061498 | M16: 87.23592007 | N16: 89.28841835 | O16: 85.60042655 | P16: 90.61138046 | Q16: 94.38892387 | BA16: Water | BB16: Improved | BC16: N/A | BD16: N/A | BE16: N/A | BF16: N/A | BG16: N/A | BH16: N/A | BI16: N/A | BJ16: N/A | BK16: N/A | BL16: N/A | BM16: N/A | BN16: N/A | BO16: N/A | BP16: N/A | BQ16: N/A
B17: Not Improved | C17: =100-C16 -> 11.40353371 | D17: =100-D16 -> 10.77653862 | E17: 6.640275404 | F17: 3.439006512 | G17: 0.2039415774 | H17: 9.476092768 | I17: 8.072227547 | J17: 3.697439061 | K17: 1.196604678 | L17: 0.2993850218 | M17: 12.76407993 | N17: 10.71158165 | O17: 14.39957345 | P17: 9.388619536 | Q17: 5.611076132 | BB17: Not Improved | BC17: N/A | BD17: N/A | BE17: N/A | BF17: N/A | BG17: N/A | BH17: N/A | BI17: N/A | BJ17: N/A | BK17: N/A | BL17: N/A | BM17: N/A | BN17: N/A | BO17: N/A | BP17: N/A | BQ17: N/A
A18: Water ladder | B18: Basic | C18: =C16*C23/100 -> 80.33868151 | D18: =D16*D23/100 -> 85.01703019 | E18: =E16*E23/100 -> 91.84557958 | F18: 94.64927744 | G18: 99.79605842 | H18: 85.07943847 | I18: 90.05556815 | J18: 94.30001129 | K18: 98.80339532 | L18: 99.70061498 | M18: 77.67861418 | N18: 81.17258532 | O18: 82.15309537 | P18: 86.29485798 | Q18: 90.662829 | BA18: Water ladder | BB18: Basic | BC18: N/A | BD18: N/A | BE18: N/A | BF18: N/A | BG18: N/A | BH18: N/A | BI18: N/A | BJ18: N/A | BK18: N/A | BL18: N/A | BM18: N/A | BN18: N/A | BO18: N/A | BP18: N/A | BQ18: N/A
B19: Limited | C19: =C16*C22/100 -> 8.257784784 | D19: =D16*D22/100 -> 4.206431189 | E19: =E16*E22/100 -> 1.514145018 | F19: 1.911716043 | G19: 0 | H19: 5.444468761 | I19: 1.872204306 | J19: 2.002549651 | K19: 0 | L19: 0 | M19: 9.55730589 | N19: 8.115833035 | O19: 3.447331178 | P19: 4.316522481 | Q19: 3.726094863 | BB19: Limited | BC19: N/A | BD19: N/A | BE19: N/A | BF19: N/A | BG19: N/A | BH19: N/A | BI19: N/A | BJ19: N/A | BK19: N/A | BL19: N/A | BM19: N/A | BN19: N/A | BO19: N/A | BP19: N/A | BQ19: N/A
B20: Unimproved | C20: =100-C18-C19-C21 -> 11.40353371 | D20: =100-D18-D19-D21 -> 10.58676843 | E20: =100-E18-E19-E21 -> 6.444159802 | F20: 3.268748152 | G20: 0.2039415774 | H20: 9.476092768 | I20: 7.497180603 | J20: 3.45530775 | K20: 1.196604678 | L20: 0.2993850218 | M20: 12.76407993 | N20: 10.71158165 | O20: 14.39957345 | P20: 9.388619536 | Q20: 5.611076132 | BB20: Unimproved | BC20: N/A | BD20: N/A | BE20: N/A | BF20: N/A | BG20: N/A | BH20: N/A | BI20: N/A | BJ20: N/A | BK20: N/A | BL20: N/A | BM20: N/A | BN20: N/A | BO20: N/A | BP20: N/A | BQ20: N/A
B21: Surface water | C21: =C64 -> 0 | D21: 0.1897701949 | E21: 0.1961156019 | F21: 0.1702583599 | G21: 0 | H21: 0 | I21: 0.5750469434 | J21: 0.2421313112 | K21: 0 | L21: 0 | M21: 0 | N21: 0 | O21: 0 | P21: 0 | Q21: 0 | BB21: Surface water | BC21: N/A | BD21: N/A | BE21: N/A | BF21: N/A | BG21: N/A | BH21: N/A | BI21: N/A | BJ21: N/A | BK21: N/A | BL21: N/A | BM21: N/A | BN21: N/A | BO21: N/A | BP21: N/A | BQ21: N/A
A22: Improved water point at more than 30 minutes | B22: Yes | C22: 9.320670598 | D22: 4.714490028 | E22: 1.621839637 | F22: 1.979801547 | G22: 0 | H22: 6.014398767 | I22: 2.036603581 | J22: 2.079435512 | K22: 0 | L22: 0 | M22: 10.95570022 | N22: 9.089457719 | O22: 4.027235981 | P22: 4.763775211 | Q22: 3.947597568 | BA22: Improved water point at more than 30 minutes | BB22: Yes | BC22: N/A | BD22: N/A | BE22: N/A | BF22: N/A | BG22: N/A | BH22: N/A | BI22: N/A | BJ22: N/A | BK22: N/A | BL22: N/A | BM22: N/A | BN22: N/A | BO22: N/A | BP22: N/A | BQ22: N/A
B23: No | C23: 90.6793294 | D23: 95.28550997 | E23: 98.37816036 | F23: 98.02019845 | G23: 100 | H23: 93.98560123 | I23: 97.96339642 | J23: 97.92056449 | K23: 100 | L23: 100 | M23: 89.04429978 | N23: 90.91054228 | O23: 95.97276402 | P23: 95.23622479 | Q23: 96.05240243 | BB23: No | BC23: N/A | BD23: N/A | BE23: N/A | BF23: N/A | BG23: N/A | BH23: N/A | BI23: N/A | BJ23: N/A | BK23: N/A | BL23: N/A | BM23: N/A | BN23: N/A | BO23: N/A | BP23: N/A | BQ23: N/A
A24: Manually calculated ratios | B24: Improved wells
B25: Improved springs
B26: Other
C27: NATIONAL wealth index quintile | H27: URBAN wealth index quintile | M27: RURAL wealth index quintile | BA27: Raw numbers of respondents: | BB27: Use of drinking water sources | BC27: NATIONAL wealth index quintile | BH27: URBAN wealth index quintile | BM27: RURAL wealth index quintile
A28: Percentage based on weighted population | C28: Poorest | D28: Poor | E28: Middle | F28: Rich | G28: Richest | H28: Poorest | I28: Poor | J28: Middle | K28: Rich | L28: Richest | M28: Poorest | N28: Poor | O28: Middle | P28: Rich | Q28: Richest | BA28: Water data, raw numbers (weighted) | BC28: Poorest | BD28: Poor | BE28: Middle | BF28: Rich | BG28: Richest | BH28: Poorest | BI28: Poor | BJ28: Middle | BK28: Rich | BL28: Richest | BM28: Poorest | BN28: Poor | BO28: Middle | BP28: Rich | BQ28: Richest
A29: Piped water | B29: Yes | C29: =C58+C59 -> 45.49302605 | D29: 54.14281659 | E29: 66.81168187 | F29: 77.62195415 | G29: 86.45100739 | H29: 51.611925 | I29: 64.13900417 | J29: 76.24271931 | K29: 80.33068414 | L29: 87.50014975 | M29: 32.1758042 | N29: 47.55784019 | O29: 52.70587291 | P29: 60.78042939 | Q29: 70.12322768 | BA29: Piped water | BB29: Yes | BC29: N/A | BD29: N/A | BE29: N/A | BF29: N/A | BG29: N/A | BH29: N/A | BI29: N/A | BJ29: N/A | BK29: N/A | BL29: N/A | BM29: N/A | BN29: N/A | BO29: N/A | BP29: N/A | BQ29: N/A
B30: No | C30: =100-C29 -> 54.50697395 | D30: 45.85718341 | E30: 33.18831813 | F30: 22.37804585 | G30: 13.54899261 | H30: 48.388075 | I30: 35.86099583 | J30: 23.75728069 | K30: 19.66931586 | L30: 12.49985025 | M30: 67.8241958 | N30: 52.44215981 | O30: 47.29412709 | P30: 39.21957061 | Q30: 29.87677232 | BB30: No | BC30: N/A | BD30: N/A | BE30: N/A | BF30: N/A | BG30: N/A | BH30: N/A | BI30: N/A | BJ30: N/A | BK30: N/A | BL30: N/A | BM30: N/A | BN30: N/A | BO30: N/A | BP30: N/A | BQ30: N/A
A31: Piped water on premises | B31: Yes | C31: =C58 -> 7.024585361 | D31: 14.94751323 | E31: 24.44602567 | F31: 41.89602662 | G31: 65.79258025 | H31: 10.16262854 | I31: 23.8170497 | J31: 37.12733823 | K31: 51.90339056 | L31: 70.31542484 | M31: 2.906684396 | N31: 12.20251183 | O31: 13.16668713 | P31: 12.05798016 | Q31: 29.63572065 | BA31: Piped water on premises | BB31: Yes | BC31: N/A | BD31: N/A | BE31: N/A | BF31: N/A | BG31: N/A | BH31: N/A | BI31: N/A | BJ31: N/A | BK31: N/A | BL31: N/A | BM31: N/A | BN31: N/A | BO31: N/A | BP31: N/A | BQ31: N/A
B32: No | C32: =100-C31 -> 92.97541464 | D32: 85.05248677 | E32: 75.55397433 | F32: 58.10397338 | G32: 34.20741975 | H32: 89.83737146 | I32: 76.1829503 | J32: 62.87266177 | K32: 48.09660944 | L32: 29.68457516 | M32: 97.0933156 | N32: 87.79748817 | O32: 86.83331287 | P32: 87.94201984 | Q32: 70.36427935 | BB32: No | BC32: N/A | BD32: N/A | BE32: N/A | BF32: N/A | BG32: N/A | BH32: N/A | BI32: N/A | BJ32: N/A | BK32: N/A | BL32: N/A | BM32: N/A | BN32: N/A | BO32: N/A | BP32: N/A | BQ32: N/A
A33: Piped water into dwelling | B33: Yes | C33: N/A | D33: N/A | E33: N/A | F33: N/A | G33: N/A | H33: N/A | I33: N/A | J33: N/A | K33: N/A | L33: N/A | M33: N/A | N33: N/A | O33: N/A | P33: N/A | Q33: N/A | BA33: Piped water into dwelling | BB33: Yes | BC33: N/A | BD33: N/A | BE33: N/A | BF33: N/A | BG33: N/A | BH33: N/A | BI33: N/A | BJ33: N/A | BK33: N/A | BL33: N/A | BM33: N/A | BN33: N/A | BO33: N/A | BP33: N/A | BQ33: N/A
B34: No | C34: N/A | D34: N/A | E34: N/A | F34: N/A | G34: N/A | H34: N/A | I34: N/A | J34: N/A | K34: N/A | L34: N/A | M34: N/A | N34: N/A | O34: N/A | P34: N/A | Q34: N/A | BB34: No | BC34: N/A | BD34: N/A | BE34: N/A | BF34: N/A | BG34: N/A | BH34: N/A | BI34: N/A | BJ34: N/A | BK34: N/A | BL34: N/A | BM34: N/A | BN34: N/A | BO34: N/A | BP34: N/A | BQ34: N/A
A35: Water source on premises | B35: Yes | C35: N/A | D35: N/A | E35: N/A | F35: N/A | G35: N/A | H35: N/A | I35: N/A | J35: N/A | K35: N/A | L35: N/A | M35: N/A | N35: N/A | O35: N/A | P35: N/A | Q35: N/A | BA35: Water source on premises | BB35: Yes | BC35: N/A | BD35: N/A | BE35: N/A | BF35: N/A | BG35: N/A | BH35: N/A | BI35: N/A | BJ35: N/A | BK35: N/A | BL35: N/A | BM35: N/A | BN35: N/A | BO35: N/A | BP35: N/A | BQ35: N/A
B36: No | C36: N/A | D36: N/A | E36: N/A | F36: N/A | G36: N/A | H36: N/A | I36: N/A | J36: N/A | K36: N/A | L36: N/A | M36: N/A | N36: N/A | O36: N/A | P36: N/A | Q36: N/A | BB36: No | BC36: N/A | BD36: N/A | BE36: N/A | BF36: N/A | BG36: N/A | BH36: N/A | BI36: N/A | BJ36: N/A | BK36: N/A | BL36: N/A | BM36: N/A | BN36: N/A | BO36: N/A | BP36: N/A | BQ36: N/A
A37: Improved Water source on premises | B37: Yes | C37: N/A | D37: N/A | E37: N/A | F37: N/A | G37: N/A | H37: N/A | I37: N/A | J37: N/A | K37: N/A | L37: N/A | M37: N/A | N37: N/A | O37: N/A | P37: N/A | Q37: N/A | BA37: Improved water source on premises | BB37: Yes | BC37: N/A | BD37: N/A | BE37: N/A | BF37: N/A | BG37: N/A | BH37: N/A | BI37: N/A | BJ37: N/A | BK37: N/A | BL37: N/A | BM37: N/A | BN37: N/A | BO37: N/A | BP37: N/A | BQ37: N/A
B38: No | C38: N/A | D38: N/A | E38: N/A | F38: N/A | G38: N/A | H38: N/A | I38: N/A | J38: N/A | K38: N/A | L38: N/A | M38: N/A | N38: N/A | O38: N/A | P38: N/A | Q38: N/A | BB38: No | BC38: N/A | BD38: N/A | BE38: N/A | BF38: N/A | BG38: N/A | BH38: N/A | BI38: N/A | BJ38: N/A | BK38: N/A | BL38: N/A | BM38: N/A | BN38: N/A | BO38: N/A | BP38: N/A | BQ38: N/A
A39: Piped water on premises available when needed | B39: Yes | C39: N/A | D39: N/A | E39: N/A | F39: N/A | G39: N/A | H39: N/A | I39: N/A | J39: N/A | K39: N/A | L39: N/A | M39: N/A | N39: N/A | O39: N/A | P39: N/A | Q39: N/A | BA39: Piped water on premises available when needed | BB39: Yes | BC39: N/A | BD39: N/A | BE39: N/A | BF39: N/A | BG39: N/A | BH39: N/A | BI39: N/A | BJ39: N/A | BK39: N/A | BL39: N/A | BM39: N/A | BN39: N/A | BO39: N/A | BP39: N/A | BQ39: N/A
B40: No | C40: N/A | D40: N/A | E40: N/A | F40: N/A | G40: N/A | H40: N/A | I40: N/A | J40: N/A | K40: N/A | L40: N/A | M40: N/A | N40: N/A | O40: N/A | P40: N/A | Q40: N/A | BB40: No | BC40: N/A | BD40: N/A | BE40: N/A | BF40: N/A | BG40: N/A | BH40: N/A | BI40: N/A | BJ40: N/A | BK40: N/A | BL40: N/A | BM40: N/A | BN40: N/A | BO40: N/A | BP40: N/A | BQ40: N/A
A41: Water point at more than 30 minutes | B41: Yes | C41: 9.707584873 | D41: 5.197642067 | E41: 1.476431141 | F41: 2.489815217 | G41: 0 | H41: 6.236979375 | I41: 1.824603262 | J41: 2.432220099 | K41: 0 | L41: 0 | M41: 11.84816312 | N41: 9.266163168 | O41: 5.056820457 | P41: 5.155609099 | Q41: 4.210730662 | BA41: Water point at more than 30 minutes | BB41: Yes | BC41: N/A | BD41: N/A | BE41: N/A | BF41: N/A | BG41: N/A | BH41: N/A | BI41: N/A | BJ41: N/A | BK41: N/A | BL41: N/A | BM41: N/A | BN41: N/A | BO41: N/A | BP41: N/A | BQ41: N/A
B42: No | C42: 90.29241513 | D42: 94.80235793 | E42: 98.52356886 | F42: 97.51018478 | G42: 100 | H42: 93.76302063 | I42: 98.17539674 | J42: 97.5677799 | K42: 100 | L42: 100 | M42: 88.15183688 | N42: 90.73383683 | O42: 94.94317954 | P42: 94.8443909 | Q42: 95.78926934 | BB42: No | BC42: N/A | BD42: N/A | BE42: N/A | BF42: N/A | BG42: N/A | BH42: N/A | BI42: N/A | BJ42: N/A | BK42: N/A | BL42: N/A | BM42: N/A | BN42: N/A | BO42: N/A | BP42: N/A | BQ42: N/A
A43: Water source available when needed | B43: Yes | C43: N/A | D43: N/A | E43: N/A | F43: N/A | G43: N/A | H43: N/A | I43: N/A | J43: N/A | K43: N/A | L43: N/A | M43: N/A | N43: N/A | O43: N/A | P43: N/A | Q43: N/A | BA43: Water source available when needed | BB43: Yes | BC43: N/A | BD43: N/A | BE43: N/A | BF43: N/A | BG43: N/A | BH43: N/A | BI43: N/A | BJ43: N/A | BK43: N/A | BL43: N/A | BM43: N/A | BN43: N/A | BO43: N/A | BP43: N/A | BQ43: N/A
B44: No | C44: N/A | D44: N/A | E44: N/A | F44: N/A | G44: N/A | H44: N/A | I44: N/A | J44: N/A | K44: N/A | L44: N/A | M44: N/A | N44: N/A | O44: N/A | P44: N/A | Q44: N/A | BB44: No | BC44: N/A | BD44: N/A | BE44: N/A | BF44: N/A | BG44: N/A | BH44: N/A | BI44: N/A | BJ44: N/A | BK44: N/A | BL44: N/A | BM44: N/A | BN44: N/A | BO44: N/A | BP44: N/A | BQ44: N/A
A45: Improved water source available when needed | B45: Yes | C45: N/A | D45: N/A | E45: N/A | F45: N/A | G45: N/A | H45: N/A | I45: N/A | J45: N/A | K45: N/A | L45: N/A | M45: N/A | N45: N/A | O45: N/A | P45: N/A | Q45: N/A | BA45: Improved water source available when needed | BB45: Yes | BC45: N/A | BD45: N/A | BE45: N/A | BF45: N/A | BG45: N/A | BH45: N/A | BI45: N/A | BJ45: N/A | BK45: N/A | BL45: N/A | BM45: N/A | BN45: N/A | BO45: N/A | BP45: N/A | BQ45: N/A
B46: No | C46: N/A | D46: N/A | E46: N/A | F46: N/A | G46: N/A | H46: N/A | I46: N/A | J46: N/A | K46: N/A | L46: N/A | M46: N/A | N46: N/A | O46: N/A | P46: N/A | Q46: N/A | BB46: No | BC46: N/A | BD46: N/A | BE46: N/A | BF46: N/A | BG46: N/A | BH46: N/A | BI46: N/A | BJ46: N/A | BK46: N/A | BL46: N/A | BM46: N/A | BN46: N/A | BO46: N/A | BP46: N/A | BQ46: N/A
A47: Microbiological quality at point of collection | B47: Not contaminated (No E. coli in 100 mL) | C47: N/A | D47: N/A | E47: N/A | F47: N/A | G47: N/A | H47: N/A | I47: N/A | J47: N/A | K47: N/A | L47: N/A | M47: N/A | N47: N/A | O47: N/A | P47: N/A | Q47: N/A | BA47: Microbiological quality at point of collection | BB47: Not contaminated (No E. coli in 100 mL) | BC47: N/A | BD47: N/A | BE47: N/A | BF47: N/A | BG47: N/A | BH47: N/A | BI47: N/A | BJ47: N/A | BK47: N/A | BL47: N/A | BM47: N/A | BN47: N/A | BO47: N/A | BP47: N/A | BQ47: N/A
B48: Contaminated (E. coli detected in 100 mL) | C48: N/A | D48: N/A | E48: N/A | F48: N/A | G48: N/A | H48: N/A | I48: N/A | J48: N/A | K48: N/A | L48: N/A | M48: N/A | N48: N/A | O48: N/A | P48: N/A | Q48: N/A | BB48: Contaminated (E. coli detected in 100 mL) | BC48: N/A | BD48: N/A | BE48: N/A | BF48: N/A | BG48: N/A | BH48: N/A | BI48: N/A | BJ48: N/A | BK48: N/A | BL48: N/A | BM48: N/A | BN48: N/A | BO48: N/A | BP48: N/A | BQ48: N/A
B49: Highly contaminated (>100 CFU/100 mL) | C49: N/A | D49: N/A | E49: N/A | F49: N/A | G49: N/A | H49: N/A | I49: N/A | J49: N/A | K49: N/A | L49: N/A | M49: N/A | N49: N/A | O49: N/A | P49: N/A | Q49: N/A | BB49: Highly contaminated (>100 CFU/100 mL) | BC49: N/A | BD49: N/A | BE49: N/A | BF49: N/A | BG49: N/A | BH49: N/A | BI49: N/A | BJ49: N/A | BK49: N/A | BL49: N/A | BM49: N/A | BN49: N/A | BO49: N/A | BP49: N/A | BQ49: N/A
A50: Microbiological quality of improved water sources at point of collection | B50: Not contaminated (No E. coli in 100 mL) | C50: N/A | D50: N/A | E50: N/A | F50: N/A | G50: N/A | H50: N/A | I50: N/A | J50: N/A | K50: N/A | L50: N/A | M50: N/A | N50: N/A | O50: N/A | P50: N/A | Q50: N/A | BA50: Microbiological quality of improved water sources at point of collection | BB50: Not contaminated (No E. coli in 100 mL) | BC50: N/A | BD50: N/A | BE50: N/A | BF50: N/A | BG50: N/A | BH50: N/A | BI50: N/A | BJ50: N/A | BK50: N/A | BL50: N/A | BM50: N/A | BN50: N/A | BO50: N/A | BP50: N/A | BQ50: N/A
B51: Contaminated (E. coli detected in 100 mL) | C51: N/A | D51: N/A | E51: N/A | F51: N/A | G51: N/A | H51: N/A | I51: N/A | J51: N/A | K51: N/A | L51: N/A | M51: N/A | N51: N/A | O51: N/A | P51: N/A | Q51: N/A | BB51: Contaminated (E. coli detected in 100 mL) | BC51: N/A | BD51: N/A | BE51: N/A | BF51: N/A | BG51: N/A | BH51: N/A | BI51: N/A | BJ51: N/A | BK51: N/A | BL51: N/A | BM51: N/A | BN51: N/A | BO51: N/A | BP51: N/A | BQ51: N/A
B52: Highly contaminated (>100 CFU/100 mL) | C52: N/A | D52: N/A | E52: N/A | F52: N/A | G52: N/A | H52: N/A | I52: N/A | J52: N/A | K52: N/A | L52: N/A | M52: N/A | N52: N/A | O52: N/A | P52: N/A | Q52: N/A | BB52: Highly contaminated (>100 CFU/100 mL) | BC52: N/A | BD52: N/A | BE52: N/A | BF52: N/A | BG52: N/A | BH52: N/A | BI52: N/A | BJ52: N/A | BK52: N/A | BL52: N/A | BM52: N/A | BN52: N/A | BO52: N/A | BP52: N/A | BQ52: N/A
A53: Microbiological quality of piped on premises at point of collection | B53: Not contaminated (No E. coli in 100 mL) | C53: N/A | D53: N/A | E53: N/A | F53: N/A | G53: N/A | H53: N/A | I53: N/A | J53: N/A | K53: N/A | L53: N/A | M53: N/A | N53: N/A | O53: N/A | P53: N/A | Q53: N/A | BA53: Microbiological quality of piped on premises at point of collection | BB53: Not contaminated (No E. coli in 100 mL) | BC53: N/A | BD53: N/A | BE53: N/A | BF53: N/A | BG53: N/A | BH53: N/A | BI53: N/A | BJ53: N/A | BK53: N/A | BL53: N/A | BM53: N/A | BN53: N/A | BO53: N/A | BP53: N/A | BQ53: N/A
B54: Contaminated (E. coli detected in 100 mL) | C54: N/A | D54: N/A | E54: N/A | F54: N/A | G54: N/A | H54: N/A | I54: N/A | J54: N/A | K54: N/A | L54: N/A | M54: N/A | N54: N/A | O54: N/A | P54: N/A | Q54: N/A | BB54: Contaminated (E. coli detected in 100 mL) | BC54: N/A | BD54: N/A | BE54: N/A | BF54: N/A | BG54: N/A | BH54: N/A | BI54: N/A | BJ54: N/A | BK54: N/A | BL54: N/A | BM54: N/A | BN54: N/A | BO54: N/A | BP54: N/A | BQ54: N/A
B55: Highly contaminated (>100 CFU/100 mL) | C55: N/A | D55: N/A | E55: N/A | F55: N/A | G55: N/A | H55: N/A | I55: N/A | J55: N/A | K55: N/A | L55: N/A | M55: N/A | N55: N/A | O55: N/A | P55: N/A | Q55: N/A | BB55: Highly contaminated (>100 CFU/100 mL) | BC55: N/A | BD55: N/A | BE55: N/A | BF55: N/A | BG55: N/A | BH55: N/A | BI55: N/A | BJ55: N/A | BK55: N/A | BL55: N/A | BM55: N/A | BN55: N/A | BO55: N/A | BP55: N/A | BQ55: N/A
C56: NATIONAL wealth index quintile | H56: URBAN wealth index quintile | M56: RURAL wealth index quintile | BA56: Raw numbers of respondents: | BB56: Use of drinking water sources | BC56: NATIONAL wealth index quintile | BH56: URBAN wealth index quintile | BM56: RURAL wealth index quintile
A57: Percentage based on weighted population | C57: Poorest | D57: Poor | E57: Middle | F57: Rich | G57: Richest | H57: Poorest | I57: Poor | J57: Middle | K57: Rich | L57: Richest | M57: Poorest | N57: Poor | O57: Middle | P57: Rich | Q57: Richest | BA57: Water data, raw numbers (weighted) | BC57: Poorest | BD57: Poor | BE57: Middle | BF57: Rich | BG57: Richest | BH57: Poorest | BI57: Poor | BJ57: Middle | BK57: Rich | BL57: Richest | BM57: Poorest | BN57: Poor | BO57: Middle | BP57: Rich | BQ57: Richest
A58: main source of drinking water | B58: Piped water through house connection or yard | C58: 7.024585361 | D58: 15.44512533 | E58: 25.48932953 | F58: 46.99997538 | G58: 74.06420215 | H58: 10.46592582 | I58: 25.0871276 | J58: 40.21887005 | K58: 60.82915288 | L58: 78.97184508 | M58: 3.000108177 | N58: 12.69704805 | O58: 13.62903016 | P58: 12.38320511 | Q58: 30.11524654
B59: Public standpipe | C59: 38.46844069 | D59: 40.50013965 | E59: 44.17373141 | F59: 40.07820908 | G59: 23.25566071 | H59: 42.68632475 | I59: 42.47217979 | J59: 42.37245393 | K59: 33.31590035 | L59: 19.30030909 | M59: 30.20985896 | N59: 36.78818832 | O59: 40.92758868 | P59: 50.03657943 | Q59: 41.14262213
B60: Protected tube well or bore hole | C60: 21.20761507 | D60: 12.45610108 | E60: 9.108629574 | F60: 3.921991404 | G60: 0.9088643218 | H60: 12.03721859 | I60: 9.315662208 | J60: 5.395579045 | K60: 1.936001857 | L60: 0.2989641493 | M60: 32.21367314 | N60: 21.66129629 | O60: 11.99525031 | P60: 10.82317635 | Q60: 10.17588253
B61: Protected dug well or protected spring | C61: 20.98921103 | D61: 19.00849821 | E61: 13.88337726 | F61: 5.278682061 | G61: 1.567331233 | H61: 24.60419413 | I61: 14.8146654 | J61: 8.081290767 | K61: 2.722340242 | L61: 1.129496655 | M61: 20.5908399 | N61: 17.29364301 | O61: 15.79065497 | P61: 15.3616805 | Q61: 11.35729961
B62: Unprotected dug well or spring | C62: 11.40353371 | D62: 10.58676843 | E62: 6.444159802 | F62: 3.268748152 | G62: 0.2039415774 | H62: 9.476092768 | I62: 7.497180603 | J62: 3.45530775 | K62: 1.196604678 | L62: 0.2993850218 | M62: 12.76407993 | N62: 10.71158165 | O62: 14.39957345 | P62: 9.388619536 | Q62: 5.611076132
B63: Rainwater (into tank or cistern ) | C63: 0.3759642492 | D63: 0.1338514254 | E63: 0.3134878346 | F63: 0 | G63: 0 | H63: 0.3585801622 | I63: 0.2381374496 | J63: 0.2343671394 | K63: 0 | L63: 0 | M63: 0 | N63: 0.4119057651 | O63: 0.4189715073 | P63: 0 | Q63: 0
B64: Water taken directly from pond-water or stream | C64: 0 | D64: 0.1897701949 | E64: 0.1961156019 | F64: 0.1702583599 | G64: 0 | H64: 0 | I64: 0.5750469434 | J64: 0.2421313112 | K64: 0 | L64: 0 | M64: 0 | N64: 0 | O64: 0 | P64: 0 | Q64: 0
B65: Tanker-truck, vendor | C65: 0.5306498905 | D65: 1.679745676 | E65: 0.3911689914 | F65: 0.2821355687 | G65: 0 | H65: 0.3716637733 | I65: 0 | J65: 0 | K65: 0 | L65: 0 | M65: 1.221439894 | N65: 0.436336913 | O65: 2.838930922 | P65: 2.006739079 | Q65: 1.597873052
A108: =A1026 -> Côte d'Ivoire
A109: =A1034 -> 2003
A110: Use of sanitation facilities
A111: by wealth quintile and sub-national region
A112: Notes:
A113: WHO/UNICEF JMP customised wealth index excludes water,
A114: sanitation and hygiene assets.
A115: Survey used for analysis: | B115: =A1025 -> WHS03
A116: Ratio of Improved latrines based on: | B116: DHS12
A117: =B1029 -> 
A120: Use of sanitation facilities | C120: NATIONAL wealth index quintile | H120: URBAN wealth index quintile | M120: RURAL wealth index quintile | BA120: Raw numbers of respondents: | BB120: Use of sanitation facilities | BC120: NATIONAL wealth index quintile | BH120: URBAN wealth index quintile | BM120: RURAL wealth index quintile
A121: Weighted percentage (used in graphs) | C121: Poorest | D121: Poor | E121: Middle | F121: Rich | G121: Richest | H121: Poorest | I121: Poor | J121: Middle | K121: Rich | L121: Richest | M121: Poorest | N121: Poor | O121: Middle | P121: Rich | Q121: Richest | BA121: Sanitation data, raw numbers (weighted) | BC121: Poorest | BD121: Poor | BE121: Middle | BF121: Rich | BG121: Richest | BH121: Poorest | BI121: Poor | BJ121: Middle | BK121: Rich | BL121: Richest | BM121: Poorest | BN121: Poor | BO121: Middle | BP121: Rich | BQ121: Richest
A122: Sanitation | B122: Improved | C122: =C153+C154+C155+(C156+C157)*[1]DHS12!C130/100 -> 18.92147272 | D122: =D153+D154+D155+(D156+D157)*[1]DHS12!D130/100 -> 35.86140437 | E122: =E153+E154+E155+(E156+E157)*[1]DHS12!E130/100 -> 58.96848609 | F122: =F153+F154+F155+(F156+F157)*[1]DHS12!F130/100 -> 79.99030659 | G122: =G153+G154+G155+(G156+G157)*[1]DHS12!G130/100 -> 93.60491486 | H122: =H153+H154+H155+(H156+H157)*[1]DHS12!H130/100 -> 30.8889017 | I122: =I153+I154+I155+(I156+I157)*[1]DHS12!I130/100 -> 61.87432698 | J122: =J153+J154+J155+(J156+J157)*[1]DHS12!J130/100 -> 80.07348699 | K122: =K153+K154+K155+(K156+K157)*[1]DHS12!K130/100 -> 89.79023685 | L122: =L153+L154+L155+(L156+L157)*[1]DHS12!L130/100 -> 95.70545835 | M122: =M153+M154+M155+(M156+M157)*[1]DHS12!M130/100 -> 15.38299719 | N122: =N153+N154+N155+(N156+N157)*[1]DHS12!N130/100 -> 21.06908563 | O122: =O153+O154+O155+(O156+O157)*[1]DHS12!O130/100 -> 30.54378572 | P122: =P153+P154+P155+(P156+P157)*[1]DHS12!P130/100 -> 43.65004655 | Q122: =Q153+Q154+Q155+(Q156+Q157)*[1]DHS12!Q130/100 -> 59.01936745 | BA122: Sanitation | BB122: Improved | BC122: 91609.72858 | BD122: 149985.0405 | BE122: 234409.8858 | BF122: 284437.2333 | BG122: 334590.7361 | BH122: 74994.2818 | BI122: 149690.6654 | BJ122: 187216.0033 | BK122: 206108.3156 | BL122: 232039.8782 | BM122: 23991.56873 | BN122: 30943.24561 | BO122: 42339.4613 | BP122: 66531.5567 | BQ122: 81177.64764
B123: Not Improved | C123: =100-C122 -> 81.07852728 | D123: =100-D122 -> 64.13859563 | E123: 41.03151391 | F123: 20.00969341 | G123: 6.395085141 | H123: 69.1110983 | I123: 38.12567302 | J123: 19.92651301 | K123: 10.20976315 | L123: 4.294541654 | M123: 84.61700281 | N123: 78.93091437 | O123: 69.45621428 | P123: 56.34995345 | Q123: 40.98063255 | BB123: Not Improved | BC123: 293849.3999 | BD123: 235174.9089 | BE123: 150927.5998 | BF123: 100487.6654 | BG123: 50845.30017 | BH123: 186727.3434 | BI123: 112638.5692 | BJ123: 74147.38562 | BK123: 56349.17981 | BL123: 29910.04266 | BM123: 99227.65024 | BN123: 92420.0253 | BO123: 80927.18436 | BP123: 56984.0567 | BQ123: 41953.43698
A124: Sanitation ladder | B124: Basic | C124: =C122*C129/100 -> 10.00804375 | D124: =D122*D129/100 -> 18.46181048 | E124: =E122*E129/100 -> 31.13660601 | F124: 43.60471062 | G124: 72.67488283 | H124: 14.41246154 | I124: 29.28128503 | J124: 37.51160455 | K124: 52.42273406 | L124: 79.63448093 | M124: 8.621425099 | N124: 11.40218005 | O124: 16.38120864 | P124: 27.60373406 | Q124: 46.75779691 | BA124: Sanitation ladder | BB124: Basic | BC124: 53288.78671 | BD124: 84245.02347 | BE124: 132090.7596 | BF124: 155294.6546 | BG124: 251772.2373 | BH124: 39494.22418 | BI124: 72265.34485 | BJ124: 90425.31879 | BK124: 117998.7475 | BL124: 186662.2816 | BM124: 14144.36459 | BN124: 18770.62048 | BO124: 26614.89716 | BP124: 43859.03415 | BQ124: 66456.62848
B125: Limited | C125: =C122*C128/100 -> 8.913428966 | D125: =D122*D128/100 -> 17.39959389 | E125: =E122*E128/100 -> 27.83188008 | F125: 36.38559597 | G125: 20.93003203 | H125: 16.47644016 | I125: 32.59304195 | J125: 42.56188245 | K125: 37.3675028 | L125: 16.07097741 | M125: 6.76157209 | N125: 9.666905577 | O125: 14.16257708 | P125: 16.04631249 | Q125: 12.26157054 | BB125: Limited | BC125: 35550.18594 | BD125: 59973.94363 | BE125: 97192.85611 | BF125: 119771.4017 | BG125: 68875.4808 | BH125: 33886.26593 | BI125: 74713.97662 | BJ125: 91755.88843 | BK125: 79877.82178 | BL125: 36608.34113 | BM125: 8862.235809 | BN125: 10386.83752 | BO125: 14745.00146 | BP125: 19310.81137 | BQ125: 11216.68817
B126: Unimproved | C126: =100-C124-C125-C127 -> 25.91641791 | D126: =100-D124-D125-D127 -> 26.29756416 | E126: =100-E124-E125-E127 -> 24.07494964 | F126: 15.89203306 | G126: 5.748642999 | H126: 20.37872289 | I126: 18.82695889 | J126: 12.78451742 | K126: 8.887594168 | L126: 3.783317331 | M126: 21.3490333 | N126: 28.71297691 | O126: 23.96119826 | P126: 32.94410174 | Q126: 28.38099149 | BB126: Unimproved | BC126: 85394.85065 | BD126: 93628.2551 | BE126: 87339.57297 | BF126: 85914.48776 | BG126: 48496.77057 | BH126: 60262.60852 | BI126: 63643.20831 | BJ126: 56566.52698 | BK126: 53177.24207 | BL126: 28647.28442 | BM126: 22685.97809 | BN126: 32840.03226 | BO126: 27301.64139 | BP126: 28780.91727 | BQ126: 26868.49774
B127: Open defecation | C127: =C159 -> 55.16210937 | D127: =D159 -> 37.84103147 | E127: 16.95656427 | F127: 4.117660345 | G127: 0.6464421423 | H127: 48.73237541 | I127: 19.29871413 | J127: 7.141995586 | K127: 1.322168978 | L127: 0.511224323 | M127: 63.26796951 | N127: 50.21793746 | O127: 45.49501602 | P127: 23.40585171 | Q127: 12.59964106 | BB127: Open defecation | BC127: 208454.5493 | BD127: 141546.6538 | BE127: 63588.02682 | BF127: 14573.17764 | BG127: 2348.529602 | BH127: 126464.7349 | BI127: 48995.36084 | BJ127: 17580.85864 | BK127: 3171.937744 | BL127: 1262.75824 | BM127: 76541.67215 | BN127: 59579.99304 | BO127: 53625.54297 | BP127: 28203.13943 | BQ127: 15084.93924
A128: Shared among Improved Sanitation | B128: Yes | C128: 47.10747995 | D128: 48.51899751 | E128: 47.1978881 | F128: 45.48750658 | G128: 22.35997123 | H128: 53.34097121 | I128: 52.67619631 | J128: 53.1535269 | K128: 41.61644307 | L128: 16.79212209 | M128: 43.95484187 | N128: 45.88194166 | O128: 46.36811302 | P128: 36.76127234 | Q128: 20.77550314 | BA128: Shared among improved sanitation facilities | BB128: Yes | BC128: N/A | BD128: N/A | BE128: N/A | BF128: N/A | BG128: N/A | BH128: N/A | BI128: N/A | BJ128: N/A | BK128: N/A | BL128: N/A | BM128: N/A | BN128: N/A | BO128: N/A | BP128: N/A | BQ128: N/A
B129: No | C129: 52.89252005 | D129: 51.48100249 | E129: 52.8021119 | F129: 54.51249342 | G129: 77.64002877 | H129: 46.65902879 | I129: 47.32380369 | J129: 46.8464731 | K129: 58.38355693 | L129: 83.20787791 | M129: 56.04515813 | N129: 54.11805834 | O129: 53.63188698 | P129: 63.23872766 | Q129: 79.22449686 | BB129: No | BC129: N/A | BD129: N/A | BE129: N/A | BF129: N/A | BG129: N/A | BH129: N/A | BI129: N/A | BJ129: N/A | BK129: N/A | BL129: N/A | BM129: N/A | BN129: N/A | BO129: N/A | BP129: N/A | BQ129: N/A
A130: Manually calculated ratios | B130: Improved latrines
B131: Other
B132: Other
C133: NATIONAL wealth index quintile | H133: URBAN wealth index quintile | M133: RURAL wealth index quintile | BA133: Raw numbers of respondents: | BB133: Use of sanitation facilities | BC133: NATIONAL wealth index quintile | BH133: URBAN wealth index quintile | BM133: RURAL wealth index quintile
A134: Percentage based on weighted population | C134: Poorest | D134: Poor | E134: Middle | F134: Rich | G134: Richest | H134: Poorest | I134: Poor | J134: Middle | K134: Rich | L134: Richest | M134: Poorest | N134: Poor | O134: Middle | P134: Rich | Q134: Richest | BA134: Sanitation data, raw numbers (weighted) | BC134: Poorest | BD134: Poor | BE134: Middle | BF134: Rich | BG134: Richest | BH134: Poorest | BI134: Poor | BJ134: Middle | BK134: Rich | BL134: Richest | BM134: Poorest | BN134: Poor | BO134: Middle | BP134: Rich | BQ134: Richest
A135: Sanitation type | B135: Sewer connection | C135: 0.7446047164 | D135: 2.801996992 | E135: 4.615196137 | F135: 16.34662906 | G135: 45.39748034 | H135: 1.91608541 | I135: 4.422179168 | J135: 13.28736931 | K135: 27.14328915 | L135: 50.66334634 | M135: 1.989525303 | N135: 0.339379224 | O135: 1.548150194 | P135: 0.7566445504 | Q135: 6.771505565 | BA135: Sanitation type | BB135: Sewer connection | BC135: N/A | BD135: N/A | BE135: N/A | BF135: N/A | BG135: N/A | BH135: N/A | BI135: N/A | BJ135: N/A | BK135: N/A | BL135: N/A | BM135: N/A | BN135: N/A | BO135: N/A | BP135: N/A | BQ135: N/A
B136: Septic tank connection | C136: 1.865631135 | D136: 3.015175384 | E136: 10.21402992 | F136: 15.93833024 | G136: 19.27545618 | H136: 2.535709853 | I136: 11.05109726 | J136: 17.33622159 | K136: 16.41555181 | L136: 18.85626256 | M136: 1.311542519 | N136: 1.212376585 | O136: 0.9541929395 | P136: 2.747609094 | Q136: 10.32346997 | BB136: Septic tank connection | BC136: N/A | BD136: N/A | BE136: N/A | BF136: N/A | BG136: N/A | BH136: N/A | BI136: N/A | BJ136: N/A | BK136: N/A | BL136: N/A | BM136: N/A | BN136: N/A | BO136: N/A | BP136: N/A | BQ136: N/A
B137: Improved latrines | C137: 21.15615643 | D137: 33.12380286 | E137: 46.00313377 | F137: 41.60925597 | G137: 22.13543234 | H137: 24.2024215 | I137: 41.58885988 | J137: 41.00694774 | K137: 34.97132838 | L137: 19.06216178 | M137: 16.16957071 | N137: 23.53127367 | O137: 31.84552208 | P137: 50.36064235 | Q137: 48.83285081 | BB137: Improved latrines | BC137: N/A | BD137: N/A | BE137: N/A | BF137: N/A | BG137: N/A | BH137: N/A | BI137: N/A | BJ137: N/A | BK137: N/A | BL137: N/A | BM137: N/A | BN137: N/A | BO137: N/A | BP137: N/A | BQ137: N/A
B138: Unimproved facilities | C138: 22.15406105 | D138: 24.30892808 | E138: 22.6657349 | F138: 22.31980525 | G138: 12.58231354 | H138: 23.02546015 | I138: 24.26081425 | J138: 21.64286559 | K138: 20.26127773 | L138: 10.93616838 | M138: 18.41107116 | N138: 26.62059138 | O138: 22.14844189 | P138: 23.30144058 | Q138: 21.82105179 | BB138: Unimproved facilities | BC138: N/A | BD138: N/A | BE138: N/A | BF138: N/A | BG138: N/A | BH138: N/A | BI138: N/A | BJ138: N/A | BK138: N/A | BL138: N/A | BM138: N/A | BN138: N/A | BO138: N/A | BP138: N/A | BQ138: N/A
B139: Open defecation | C139: 54.07954667 | D139: 36.75009669 | E139: 16.50190527 | F139: 3.785979471 | G139: 0.6093175991 | H139: 48.32032308 | I139: 18.67704944 | J139: 6.726595762 | K139: 1.208552928 | L139: 0.4820609358 | M139: 62.11829031 | N139: 48.29637915 | O139: 43.50369289 | P139: 22.83366342 | Q139: 12.25112187 | BB139: Open defecation | BC139: N/A | BD139: N/A | BE139: N/A | BF139: N/A | BG139: N/A | BH139: N/A | BI139: N/A | BJ139: N/A | BK139: N/A | BL139: N/A | BM139: N/A | BN139: N/A | BO139: N/A | BP139: N/A | BQ139: N/A
A140: Septic tank emptying practices | B140: Not emptied/treated and disposed in situ | C140: N/A | D140: N/A | E140: N/A | F140: N/A | G140: N/A | H140: N/A | I140: N/A | J140: N/A | K140: N/A | L140: N/A | M140: N/A | N140: N/A | O140: N/A | P140: N/A | Q140: N/A | BA140: Septic tank emptying practices | BB140: Not emptied/treated and disposed in situ | BC140: N/A | BD140: N/A | BE140: N/A | BF140: N/A | BG140: N/A | BH140: N/A | BI140: N/A | BJ140: N/A | BK140: N/A | BL140: N/A | BM140: N/A | BN140: N/A | BO140: N/A | BP140: N/A | BQ140: N/A
B141: Emptied and buried on site | C141: N/A | D141: N/A | E141: N/A | F141: N/A | G141: N/A | H141: N/A | I141: N/A | J141: N/A | K141: N/A | L141: N/A | M141: N/A | N141: N/A | O141: N/A | P141: N/A | Q141: N/A | BB141: Emptied and buried on site | BC141: N/A | BD141: N/A | BE141: N/A | BF141: N/A | BG141: N/A | BH141: N/A | BI141: N/A | BJ141: N/A | BK141: N/A | BL141: N/A | BM141: N/A | BN141: N/A | BO141: N/A | BP141: N/A | BQ141: N/A
B142: Emptied and discharged locally | C142: N/A | D142: N/A | E142: N/A | F142: N/A | G142: N/A | H142: N/A | I142: N/A | J142: N/A | K142: N/A | L142: N/A | M142: N/A | N142: N/A | O142: N/A | P142: N/A | Q142: N/A | BB142: Emptied and discharged locally | BC142: N/A | BD142: N/A | BE142: N/A | BF142: N/A | BG142: N/A | BH142: N/A | BI142: N/A | BJ142: N/A | BK142: N/A | BL142: N/A | BM142: N/A | BN142: N/A | BO142: N/A | BP142: N/A | BQ142: N/A
B143: Emptied and removed offsite | C143: N/A | D143: N/A | E143: N/A | F143: N/A | G143: N/A | H143: N/A | I143: N/A | J143: N/A | K143: N/A | L143: N/A | M143: N/A | N143: N/A | O143: N/A | P143: N/A | Q143: N/A | BB143: Emptied and removed offsite | BC143: N/A | BD143: N/A | BE143: N/A | BF143: N/A | BG143: N/A | BH143: N/A | BI143: N/A | BJ143: N/A | BK143: N/A | BL143: N/A | BM143: N/A | BN143: N/A | BO143: N/A | BP143: N/A | BQ143: N/A
A144: Latrine emptying practices | B144: Not emptied/treated and disposed in situ | C144: N/A | D144: N/A | E144: N/A | F144: N/A | G144: N/A | H144: N/A | I144: N/A | J144: N/A | K144: N/A | L144: N/A | M144: N/A | N144: N/A | O144: N/A | P144: N/A | Q144: N/A | BA144: Latrine emptying practices | BB144: Not emptied/treated and disposed in situ | BC144: N/A | BD144: N/A | BE144: N/A | BF144: N/A | BG144: N/A | BH144: N/A | BI144: N/A | BJ144: N/A | BK144: N/A | BL144: N/A | BM144: N/A | BN144: N/A | BO144: N/A | BP144: N/A | BQ144: N/A
B145: Emptied and buried on site | C145: N/A | D145: N/A | E145: N/A | F145: N/A | G145: N/A | H145: N/A | I145: N/A | J145: N/A | K145: N/A | L145: N/A | M145: N/A | N145: N/A | O145: N/A | P145: N/A | Q145: N/A | BB145: Emptied and buried on site | BC145: N/A | BD145: N/A | BE145: N/A | BF145: N/A | BG145: N/A | BH145: N/A | BI145: N/A | BJ145: N/A | BK145: N/A | BL145: N/A | BM145: N/A | BN145: N/A | BO145: N/A | BP145: N/A | BQ145: N/A
B146: Emptied and discharged locally | C146: N/A | D146: N/A | E146: N/A | F146: N/A | G146: N/A | H146: N/A | I146: N/A | J146: N/A | K146: N/A | L146: N/A | M146: N/A | N146: N/A | O146: N/A | P146: N/A | Q146: N/A | BB146: Emptied and discharged locally | BC146: N/A | BD146: N/A | BE146: N/A | BF146: N/A | BG146: N/A | BH146: N/A | BI146: N/A | BJ146: N/A | BK146: N/A | BL146: N/A | BM146: N/A | BN146: N/A | BO146: N/A | BP146: N/A | BQ146: N/A
B147: Emptied and removed offsite | C147: N/A | D147: N/A | E147: N/A | F147: N/A | G147: N/A | H147: N/A | I147: N/A | J147: N/A | K147: N/A | L147: N/A | M147: N/A | N147: N/A | O147: N/A | P147: N/A | Q147: N/A | BB147: Emptied and removed offsite | BC147: N/A | BD147: N/A | BE147: N/A | BF147: N/A | BG147: N/A | BH147: N/A | BI147: N/A | BJ147: N/A | BK147: N/A | BL147: N/A | BM147: N/A | BN147: N/A | BO147: N/A | BP147: N/A | BQ147: N/A
A148: Shared among improved sanitation facilities | B148: Yes | C148: 14.08590127 | D148: 24.02060662 | E148: 34.42513518 | F148: 37.09463792 | G148: 19.93909744 | H148: 20.20090839 | I148: 37.48534344 | J148: 43.6272233 | K148: 34.91519338 | L148: 15.15476289 | M148: 9.002717324 | N148: 15.85853093 | O148: 20.99060739 | P148: 22.21917488 | Q148: 15.076318 | BA148: Shared among improved sanitation facilities | BB148: Yes | BC148: N/A | BD148: N/A | BE148: N/A | BF148: N/A | BG148: N/A | BH148: N/A | BI148: N/A | BJ148: N/A | BK148: N/A | BL148: N/A | BM148: N/A | BN148: N/A | BO148: N/A | BP148: N/A | BQ148: N/A
B149: No | C149: 15.81572218 | D149: 25.48702514 | E149: 38.51273676 | F149: 44.45443063 | G149: 69.23408278 | H149: 17.67037129 | I149: 33.67648309 | J149: 38.45053493 | K149: 48.98239808 | L149: 75.09447907 | M149: 11.47902471 | N149: 18.70524374 | O149: 24.27888067 | P149: 38.22262559 | Q149: 57.49144558 | BB149: No | BC149: N/A | BD149: N/A | BE149: N/A | BF149: N/A | BG149: N/A | BH149: N/A | BI149: N/A | BJ149: N/A | BK149: N/A | BL149: N/A | BM149: N/A | BN149: N/A | BO149: N/A | BP149: N/A | BQ149: N/A
B150: DK/missing | C150: 70.09837656 | D150: 50.49236824 | E150: 27.06212807 | F150: 18.45093145 | G150: 10.82681978 | H150: 62.12872031 | I150: 28.83817347 | J150: 17.92224177 | K150: 16.10240854 | L150: 9.75075804 | M150: 79.51825796 | N150: 65.43622532 | O150: 54.73051194 | P150: 39.55819953 | Q150: 27.43223641 | BB150: DK/missing | BC150: N/A | BD150: N/A | BE150: N/A | BF150: N/A | BG150: N/A | BH150: N/A | BI150: N/A | BJ150: N/A | BK150: N/A | BL150: N/A | BM150: N/A | BN150: N/A | BO150: N/A | BP150: N/A | BQ150: N/A
A151: Shared among all sanitation facilities | B151: Yes | C151: 42.33152798 | D151: 48.03537097 | E151: 49.13163794 | F151: 53.67109182 | G151: 79.25565642 | H151: 38.29940514 | I151: 46.42907823 | J151: 46.00463653 | K151: 58.21358247 | L151: 84.79636758 | M151: 46.3883963 | N151: 44.97111643 | O151: 49.30743565 | P151: 57.20152734 | Q151: 78.05477542 | BA151: Shared among all sanitation facilities | BB151: Yes | BC151: N/A | BD151: N/A | BE151: N/A | BF151: N/A | BG151: N/A | BH151: N/A | BI151: N/A | BJ151: N/A | BK151: N/A | BL151: N/A | BM151: N/A | BN151: N/A | BO151: N/A | BP151: N/A | BQ151: N/A
B152: No | C152: 57.66847202 | D152: 51.96462903 | E152: 50.86836206 | F152: 46.32890818 | G152: 20.74434358 | H152: 61.70059486 | I152: 53.57092177 | J152: 53.99536347 | K152: 41.78641753 | L152: 15.20363242 | M152: 53.6116037 | N152: 55.02888357 | O152: 50.69256435 | P152: 42.79847266 | Q152: 21.94522458 | BB152: No | BC152: N/A | BD152: N/A | BE152: N/A | BF152: N/A | BG152: N/A | BH152: N/A | BI152: N/A | BJ152: N/A | BK152: N/A | BL152: N/A | BM152: N/A | BN152: N/A | BO152: N/A | BP152: N/A | BQ152: N/A
A153: What type of toilet facilities | B153: Flush to piped sewage system | C153: 0.7595101907 | D153: 2.885174895 | E153: 4.742353605 | F153: 17.77871929 | G153: 48.16346104 | H153: 1.932424859 | I153: 4.569371187 | J153: 14.10792863 | K153: 29.69502954 | L153: 53.72834223 | M153: 2.026347241 | N153: 0.3528820369 | O153: 1.61901469 | P153: 0.7756052903 | Q153: 6.964140954 | BA153: What type of toilet facilities | BB153: Flush to piped sewage system | BC153: 2870.146851 | BD153: 10792.1702 | BE153: 17784.08075 | BF153: 62922.24536 | BG153: 174978.2488 | BH153: 5014.809875 | BI153: 11600.66876 | BJ153: 34728.31873 | BK153: 71239.59686 | BL153: 132712.5956 | BM153: 2451.477539 | BN153: 418.6693115 | BO153: 1908.352814 | BP153: 934.5741577 | BQ153: 8337.828247
B154: Flush to septic tank | C154: 1.902977282 | D154: 3.104681535 | E154: 10.49544595 | F154: 17.33465036 | G154: 20.44987245 | H154: 2.557333159 | I154: 11.4189325 | J154: 18.40681712 | K154: 17.9587777 | L154: 19.99701561 | M154: 1.335816419 | N154: 1.260613168 | O154: 0.9978698399 | P154: 2.816461373 | Q154: 10.61715143 | BB154: Flush to septic tank | BC154: 7191.245514 | BD154: 11613.24799 | BE154: 39358.48608 | BF154: 61350.60153 | BG154: 74294.55426 | BH154: 6636.501038 | BI154: 28990.25885 | BJ154: 45310.53625 | BK154: 43083.84613 | BL154: 49393.96484 | BM154: 1616.072449 | BN154: 1495.627411 | BO154: 1176.20163 | BP154: 3393.726227 | BQ154: 12711.40054
B155: Pour flush latrine | C155: 4.230600537 | D155: 7.411828869 | E155: 15.58185949 | F155: 21.29780772 | G155: 14.60972379 | H155: 4.689411957 | I155: 17.87814282 | J155: 18.94765693 | K155: 22.96556766 | L155: 14.09109244 | M155: 2.354225093 | N155: 4.795443225 | O155: 6.418706955 | P155: 6.830351131 | Q155: 10.15950788 | BB155: Pour flush latrine | BC155: 15987.20459 | BD155: 27724.3916 | BE155: 58432.81006 | BF155: 75376.96393 | BG155: 53077.24631 | BH155: 12169.43018 | BI155: 45388.8302 | BJ155: 46641.87677 | BK155: 55095.34113 | BL155: 34805.93994 | BM155: 2848.144592 | BN155: 5689.450592 | BO155: 7565.809967 | BP155: 8230.307007 | BQ155: 12163.48611
B156: Covered dry latrine (with privacy) | C156: 17.34905919 | D156: 26.69526144 | E156: 31.68874846 | F156: 23.95673859 | G156: 8.874377638 | H156: 19.71939608 | I156: 25.09500025 | J156: 24.59166819 | K156: 15.293415 | L156: 6.124278745 | M156: 14.11461044 | N156: 19.67206449 | O156: 26.88450113 | P156: 44.7922775 | Q156: 40.06253697 | BB156: Covered dry latrine (with privacy) | BC156: 65561.13162 | BD156: 99855.23074 | BE156: 118834.5089 | BF156: 84787.42245 | BG156: 32240.68671 | BH156: 51173.54071 | BI156: 63710.90759 | BJ156: 60535.27155 | BK156: 36689.53143 | BL156: 15127.37775 | BM156: 17075.87415 | BN156: 23339.49829 | BO156: 31689.09689 | BP156: 53972.94931 | BQ156: 47964.93274
B157: Uncovered dry latrine (without privacy) | C157: 17.59256645 | D157: 20.2810053 | E157: 18.52915454 | F157: 12.63801709 | G157: 4.711238833 | H157: 18.63296516 | I157: 19.14681379 | J157: 15.49878793 | K157: 8.650911372 | L157: 3.597679777 | M157: 14.07145717 | N157: 22.04154595 | O157: 17.31708373 | P157: 19.79476659 | Q157: 17.94004396 | BB157: Uncovered dry latrine (without privacy) | BC157: 66481.33206 | BD157: 75862.31995 | BE157: 69485.3248 | BF157: 44728.32935 | BG157: 17115.9693 | BH157: 48354.15839 | BI157: 48609.71796 | BJ157: 38152.08179 | BK157: 20753.89209 | BL157: 8886.50946 | BM157: 17023.66727 | BN157: 26150.71866 | BO157: 20411.86264 | BP157: 23851.92255 | BQ157: 21478.74466
B158: Bucket latrine (where fresh excreta are manually removed) | C158: 0.9677540907 | D158: 0.7808905545 | E158: 0.3467810191 | F158: 0.4784393015 | G158: 0 | H158: 1.072573177 | I158: 0.512231426 | J158: 0.2634276969 | K158: 0 | L158: 0 | M158: 1.50409543 | N158: 0.4050808629 | O158: 1.267807635 | P158: 0 | Q158: 0.8726895835 | BB158: Bucket latrine (where fresh excreta are manually removed) | BC158: 3657.088989 | BD158: 2920.968079 | BE158: 1300.447449 | BF158: 1693.287048 | BG158: 0 | BH158: 2783.420288 | BI158: 1300.447449 | BJ158: 648.4581299 | BK158: 0 | BL158: 0 | BM158: 1819.656616 | BN158: 480.5994873 | BO158: 1494.380676 | BP158: 0 | BQ158: 1044.828918
B159: No facilities (open defecation) | C159: 55.16210937 | D159: 37.84103147 | E159: 16.95656427 | F159: 4.117660345 | G159: 0.6464421423 | H159: 48.73237541 | I159: 19.29871413 | J159: 7.141995586 | K159: 1.322168978 | L159: 0.511224323 | M159: 63.26796951 | N159: 50.21793746 | O159: 45.49501602 | P159: 23.40585171 | Q159: 12.59964106 | BB159: No facilities (open defecation) | BC159: 208454.5493 | BD159: 141546.6538 | BE159: 63588.02682 | BF159: 14573.17764 | BG159: 2348.529602 | BH159: 126464.7349 | BI159: 48995.36084 | BJ159: 17580.85864 | BK159: 3171.937744 | BL159: 1262.75824 | BM159: 76541.67215 | BN159: 59579.99304 | BO159: 53625.54297 | BP159: 28203.13943 | BQ159: 15084.93924
B160: Other | C160: 2.035422892 | D160: 1.000125939 | E160: 1.659092658 | F160: 2.397967307 | G160: 2.544884095 | H160: 2.663520203 | I160: 2.080793898 | J160: 1.041717919 | K160: 4.114129748 | L160: 1.95036687 | M160: 1.325478695 | N160: 1.254432813 | O160: 0 | P160: 1.584686407 | Q160: 0.7842881536 | BB160: Other | BC160: 7691.750122 | BD160: 3741.031219 | BE160: 6221.686584 | BF160: 8486.859192 | BG160: 9245.584778 | BH160: 6912.065613 | BI160: 5282.696411 | BJ160: 2564.310669 | BK160: 9869.966431 | BL160: 4817.536499 | BM160: 1603.565857 | BN160: 1488.294861 | BO160: 0 | BP160: 1909.485382 | BQ160: 938.9901733
BB161: Total | BC161: 377894.449 | BD161: 374056.0136 | BE161: 375005.3714 | BF161: 353918.8865 | BG161: 363300.8197 | BH161: 259508.6609 | BI161: 253878.8881 | BJ161: 246161.7125 | BK161: 239904.1118 | BL161: 247006.6824 | BM161: 120980.1306 | BN161: 118642.8517 | BO161: 117871.2476 | BP161: 120496.1041 | BQ161: 119725.1506
A208: =A1026 -> Côte d'Ivoire
A209: =A1034 -> 2003
A210: Access to hygiene facilities
A211: by wealth quintile and sub-national region
A212: Notes:
A213: WHO/UNICEF JMP customised wealth index excludes water,
A214: sanitation and hygiene assets.
A215: Survey used for analysis: | B215: =A1025 -> WHS03
A220: Access to handwashing | C220: NATIONAL wealth index quintile | H220: URBAN wealth index quintile | M220: RURAL wealth index quintile | BA220: Raw numbers of respondents: | BB220: Access to handwashing | BC220: NATIONAL wealth index quintile | BH220: URBAN wealth index quintile | BM220: RURAL wealth index quintile
A221: Weighted percentage (used in graphs) | C221: Poorest | D221: Poor | E221: Middle | F221: Rich | G221: Richest | H221: Poorest | I221: Poor | J221: Middle | K221: Rich | L221: Richest | M221: Poorest | N221: Poor | O221: Middle | P221: Rich | Q221: Richest | BA221: Hygiene data, raw numbers (weighted) | BC221: Poorest | BD221: Poor | BE221: Middle | BF221: Rich | BG221: Richest | BH221: Poorest | BI221: Poor | BJ221: Middle | BK221: Rich | BL221: Richest | BM221: Poorest | BN221: Poor | BO221: Middle | BP221: Rich | BQ221: Richest
A222: Hygiene ladder | B222: Basic | C222: N/A | D222: N/A | E222: N/A | F222: N/A | G222: N/A | H222: N/A | I222: N/A | J222: N/A | K222: N/A | L222: N/A | M222: N/A | N222: N/A | O222: N/A | P222: N/A | Q222: N/A | BA222: Hygiene ladder | BB222: Basic | BC222: N/A | BD222: N/A | BE222: N/A | BF222: N/A | BG222: N/A | BH222: N/A | BI222: N/A | BJ222: N/A | BK222: N/A | BL222: N/A | BM222: N/A | BN222: N/A | BO222: N/A | BP222: N/A | BQ222: N/A
B223: Limited | C223: N/A | D223: N/A | E223: N/A | F223: N/A | G223: N/A | H223: N/A | I223: N/A | J223: N/A | K223: N/A | L223: N/A | M223: N/A | N223: N/A | O223: N/A | P223: N/A | Q223: N/A | BB223: Limited | BC223: N/A | BD223: N/A | BE223: N/A | BF223: N/A | BG223: N/A | BH223: N/A | BI223: N/A | BJ223: N/A | BK223: N/A | BL223: N/A | BM223: N/A | BN223: N/A | BO223: N/A | BP223: N/A | BQ223: N/A
B224: No facility | C224: N/A | D224: N/A | E224: N/A | F224: N/A | G224: N/A | H224: N/A | I224: N/A | J224: N/A | K224: N/A | L224: N/A | M224: N/A | N224: N/A | O224: N/A | P224: N/A | Q224: N/A | BB224: No facility | BC224: N/A | BD224: N/A | BE224: N/A | BF224: N/A | BG224: N/A | BH224: N/A | BI224: N/A | BJ224: N/A | BK224: N/A | BL224: N/A | BM224: N/A | BN224: N/A | BO224: N/A | BP224: N/A | BQ224: N/A
BA225: Observed handwashing place | BB225: Fixed | BC225: N/A | BD225: N/A | BE225: N/A | BF225: N/A | BG225: N/A | BH225: N/A | BI225: N/A | BJ225: N/A | BK225: N/A | BL225: N/A | BM225: N/A | BN225: N/A | BO225: N/A | BP225: N/A | BQ225: N/A
BB226: Mobile | BC226: N/A | BD226: N/A | BE226: N/A | BF226: N/A | BG226: N/A | BH226: N/A | BI226: N/A | BJ226: N/A | BK226: N/A | BL226: N/A | BM226: N/A | BN226: N/A | BO226: N/A | BP226: N/A | BQ226: N/A
BA227: Water / Soap | BB227: Water and soap | BC227: N/A | BD227: N/A | BE227: N/A | BF227: N/A | BG227: N/A | BH227: N/A | BI227: N/A | BJ227: N/A | BK227: N/A | BL227: N/A | BM227: N/A | BN227: N/A | BO227: N/A | BP227: N/A | BQ227: N/A
BB228: Water only | BC228: N/A | BD228: N/A | BE228: N/A | BF228: N/A | BG228: N/A | BH228: N/A | BI228: N/A | BJ228: N/A | BK228: N/A | BL228: N/A | BM228: N/A | BN228: N/A | BO228: N/A | BP228: N/A | BQ228: N/A
BB229: Soap only | BC229: N/A | BD229: N/A | BE229: N/A | BF229: N/A | BG229: N/A | BH229: N/A | BI229: N/A | BJ229: N/A | BK229: N/A | BL229: N/A | BM229: N/A | BN229: N/A | BO229: N/A | BP229: N/A | BQ229: N/A
BB230: Neither | BC230: N/A | BD230: N/A | BE230: N/A | BF230: N/A | BG230: N/A | BH230: N/A | BI230: N/A | BJ230: N/A | BK230: N/A | BL230: N/A | BM230: N/A | BN230: N/A | BO230: N/A | BP230: N/A | BQ230: N/A
BA259: Raw numbers of respondents: | BB259: Menstrual health and hygiene | BC259: NATIONAL wealth index quintile | BH259: URBAN wealth index quintile | BM259: RURAL wealth index quintile
BA260: MHH data, raw numbers (weighted) | BC260: Poorest | BD260: Poor | BE260: Middle | BF260: Rich | BG260: Richest | BH260: Poorest | BI260: Poor | BJ260: Middle | BK260: Rich | BL260: Richest | BM260: Poorest | BN260: Poor | BO260: Middle | BP260: Rich | BQ260: Richest
BA261: Private place to wash and change | BB261: Yes | BC261: N/A | BD261: N/A | BE261: N/A | BF261: N/A | BG261: N/A | BH261: N/A | BI261: N/A | BJ261: N/A | BK261: N/A | BL261: N/A | BM261: N/A | BN261: N/A | BO261: N/A | BP261: N/A | BQ261: N/A
BB262: No | BC262: N/A | BD262: N/A | BE262: N/A | BF262: N/A | BG262: N/A | BH262: N/A | BI262: N/A | BJ262: N/A | BK262: N/A | BL262: N/A | BM262: N/A | BN262: N/A | BO262: N/A | BP262: N/A | BQ262: N/A
BB263: DK/not sure/missing | BC263: N/A | BD263: N/A | BE263: N/A | BF263: N/A | BG263: N/A | BH263: N/A | BI263: N/A | BJ263: N/A | BK263: N/A | BL263: N/A | BM263: N/A | BN263: N/A | BO263: N/A | BP263: N/A | BQ263: N/A
BA264: Use of menstrual materials | BB264: Materials reusable | BC264: N/A | BD264: N/A | BE264: N/A | BF264: N/A | BG264: N/A | BH264: N/A | BI264: N/A | BJ264: N/A | BK264: N/A | BL264: N/A | BM264: N/A | BN264: N/A | BO264: N/A | BP264: N/A | BQ264: N/A
BB265: Materials not reusable | BC265: N/A | BD265: N/A | BE265: N/A | BF265: N/A | BG265: N/A | BH265: N/A | BI265: N/A | BJ265: N/A | BK265: N/A | BL265: N/A | BM265: N/A | BN265: N/A | BO265: N/A | BP265: N/A | BQ265: N/A
BB266: No materials used | BC266: N/A | BD266: N/A | BE266: N/A | BF266: N/A | BG266: N/A | BH266: N/A | BI266: N/A | BJ266: N/A | BK266: N/A | BL266: N/A | BM266: N/A | BN266: N/A | BO266: N/A | BP266: N/A | BQ266: N/A
BB267: DK/not sure/missing | BC267: N/A | BD267: N/A | BE267: N/A | BF267: N/A | BG267: N/A | BH267: N/A | BI267: N/A | BJ267: N/A | BK267: N/A | BL267: N/A | BM267: N/A | BN267: N/A | BO267: N/A | BP267: N/A | BQ267: N/A
BA268: Use of menstrual materials with private place to wash and change | BB268: Materials reusable | BC268: N/A | BD268: N/A | BE268: N/A | BF268: N/A | BG268: N/A | BH268: N/A | BI268: N/A | BJ268: N/A | BK268: N/A | BL268: N/A | BM268: N/A | BN268: N/A | BO268: N/A | BP268: N/A | BQ268: N/A
BB269: Materials not reusable | BC269: N/A | BD269: N/A | BE269: N/A | BF269: N/A | BG269: N/A | BH269: N/A | BI269: N/A | BJ269: N/A | BK269: N/A | BL269: N/A | BM269: N/A | BN269: N/A | BO269: N/A | BP269: N/A | BQ269: N/A
BB270: No materials used | BC270: N/A | BD270: N/A | BE270: N/A | BF270: N/A | BG270: N/A | BH270: N/A | BI270: N/A | BJ270: N/A | BK270: N/A | BL270: N/A | BM270: N/A | BN270: N/A | BO270: N/A | BP270: N/A | BQ270: N/A
BA271: Awareness of menstruation before menarche | BB271: Yes | BC271: N/A | BD271: N/A | BE271: N/A | BF271: N/A | BG271: N/A | BH271: N/A | BI271: N/A | BJ271: N/A | BK271: N/A | BL271: N/A | BM271: N/A | BN271: N/A | BO271: N/A | BP271: N/A | BQ271: N/A
BB272: No | BC272: N/A | BD272: N/A | BE272: N/A | BF272: N/A | BG272: N/A | BH272: N/A | BI272: N/A | BJ272: N/A | BK272: N/A | BL272: N/A | BM272: N/A | BN272: N/A | BO272: N/A | BP272: N/A | BQ272: N/A
BB273: DK/not sure/missing | BC273: N/A | BD273: N/A | BE273: N/A | BF273: N/A | BG273: N/A | BH273: N/A | BI273: N/A | BJ273: N/A | BK273: N/A | BL273: N/A | BM273: N/A | BN273: N/A | BO273: N/A | BP273: N/A | BQ273: N/A
BA274: Participation in (all) activities during menstruation | BB274: Yes | BC274: N/A | BD274: N/A | BE274: N/A | BF274: N/A | BG274: N/A | BH274: N/A | BI274: N/A | BJ274: N/A | BK274: N/A | BL274: N/A | BM274: N/A | BN274: N/A | BO274: N/A | BP274: N/A | BQ274: N/A
BB275: No | BC275: N/A | BD275: N/A | BE275: N/A | BF275: N/A | BG275: N/A | BH275: N/A | BI275: N/A | BJ275: N/A | BK275: N/A | BL275: N/A | BM275: N/A | BN275: N/A | BO275: N/A | BP275: N/A | BQ275: N/A
BB276: DK/not sure/missing/no such activity | BC276: N/A | BD276: N/A | BE276: N/A | BF276: N/A | BG276: N/A | BH276: N/A | BI276: N/A | BJ276: N/A | BK276: N/A | BL276: N/A | BM276: N/A | BN276: N/A | BO276: N/A | BP276: N/A | BQ276: N/A
BA277: Participation in specific activities during menstruation | BB277: Did not go to school (amongst those usually attending school) | BC277: N/A | BD277: N/A | BE277: N/A | BF277: N/A | BG277: N/A | BH277: N/A | BI277: N/A | BJ277: N/A | BK277: N/A | BL277: N/A | BM277: N/A | BN277: N/A | BO277: N/A | BP277: N/A | BQ277: N/A
BB278: Did not go to work (amongst those who usually work) | BC278: N/A | BD278: N/A | BE278: N/A | BF278: N/A | BG278: N/A | BH278: N/A | BI278: N/A | BJ278: N/A | BK278: N/A | BL278: N/A | BM278: N/A | BN278: N/A | BO278: N/A | BP278: N/A | BQ278: N/A
BB279: Did not participate in social activities | BC279: N/A | BD279: N/A | BE279: N/A | BF279: N/A | BG279: N/A | BH279: N/A | BI279: N/A | BJ279: N/A | BK279: N/A | BL279: N/A | BM279: N/A | BN279: N/A | BO279: N/A | BP279: N/A | BQ279: N/A
BB280: Did not cook food | BC280: N/A | BD280: N/A | BE280: N/A | BF280: N/A | BG280: N/A | BH280: N/A | BI280: N/A | BJ280: N/A | BK280: N/A | BL280: N/A | BM280: N/A | BN280: N/A | BO280: N/A | BP280: N/A | BQ280: N/A
BB281: Did not eat with others | BC281: N/A | BD281: N/A | BE281: N/A | BF281: N/A | BG281: N/A | BH281: N/A | BI281: N/A | BJ281: N/A | BK281: N/A | BL281: N/A | BM281: N/A | BN281: N/A | BO281: N/A | BP281: N/A | BQ281: N/A
BB282: Did not bathe in regular place | BC282: N/A | BD282: N/A | BE282: N/A | BF282: N/A | BG282: N/A | BH282: N/A | BI282: N/A | BJ282: N/A | BK282: N/A | BL282: N/A | BM282: N/A | BN282: N/A | BO282: N/A | BP282: N/A | BQ282: N/A
BB283: Did not participate in other activities | BC283: N/A | BD283: N/A | BE283: N/A | BF283: N/A | BG283: N/A | BH283: N/A | BI283: N/A | BJ283: N/A | BK283: N/A | BL283: N/A | BM283: N/A | BN283: N/A | BO283: N/A | BP283: N/A | BQ283: N/A
BB284: DK/not sure/missing/no such activity | BC284: N/A | BD284: N/A | BE284: N/A | BF284: N/A | BG284: N/A | BH284: N/A | BI284: N/A | BJ284: N/A | BK284: N/A | BL284: N/A | BM284: N/A | BN284: N/A | BO284: N/A | BP284: N/A | BQ284: N/A
BA339: Raw numbers of respondents: | BB339: Basic water, sanitation and hygiene | BC339: NATIONAL wealth index quintile | BH339: URBAN wealth index quintile | BM339: RURAL wealth index quintile
BA340: WatSan data, raw numbers (weighted) | BC340: Poorest | BD340: Poor | BE340: Middle | BF340: Rich | BG340: Richest | BH340: Poorest | BI340: Poor | BJ340: Middle | BK340: Rich | BL340: Richest | BM340: Poorest | BN340: Poor | BO340: Middle | BP340: Rich | BQ340: Richest
BA341: Use of Basic Water Sanitation and Hygiene | BB341: Yes | BC341: N/A | BD341: N/A | BE341: N/A | BF341: N/A | BG341: N/A | BH341: N/A | BI341: N/A | BJ341: N/A | BK341: N/A | BL341: N/A | BM341: N/A | BN341: N/A | BO341: N/A | BP341: N/A | BQ341: N/A
BB342: No | BC342: N/A | BD342: N/A | BE342: N/A | BF342: N/A | BG342: N/A | BH342: N/A | BI342: N/A | BJ342: N/A | BK342: N/A | BL342: N/A | BM342: N/A | BN342: N/A | BO342: N/A | BP342: N/A | BQ342: N/A
BA343: Use of Basic Water and Sanitation | BB343: Yes | BC343: N/A | BD343: N/A | BE343: N/A | BF343: N/A | BG343: N/A | BH343: N/A | BI343: N/A | BJ343: N/A | BK343: N/A | BL343: N/A | BM343: N/A | BN343: N/A | BO343: N/A | BP343: N/A | BQ343: N/A
BB344: No | BC344: N/A | BD344: N/A | BE344: N/A | BF344: N/A | BG344: N/A | BH344: N/A | BI344: N/A | BJ344: N/A | BK344: N/A | BL344: N/A | BM344: N/A | BN344: N/A | BO344: N/A | BP344: N/A | BQ344: N/A
BA345: Use of Basic Water and Hygiene | BB345: Yes | BC345: N/A | BD345: N/A | BE345: N/A | BF345: N/A | BG345: N/A | BH345: N/A | BI345: N/A | BJ345: N/A | BK345: N/A | BL345: N/A | BM345: N/A | BN345: N/A | BO345: N/A | BP345: N/A | BQ345: N/A
BB346: No | BC346: N/A | BD346: N/A | BE346: N/A | BF346: N/A | BG346: N/A | BH346: N/A | BI346: N/A | BJ346: N/A | BK346: N/A | BL346: N/A | BM346: N/A | BN346: N/A | BO346: N/A | BP346: N/A | BQ346: N/A
BA347: Use of Basic Sanitation and Hygiene | BB347: Yes | BC347: N/A | BD347: N/A | BE347: N/A | BF347: N/A | BG347: N/A | BH347: N/A | BI347: N/A | BJ347: N/A | BK347: N/A | BL347: N/A | BM347: N/A | BN347: N/A | BO347: N/A | BP347: N/A | BQ347: N/A
BB348: No | BC348: N/A | BD348: N/A | BE348: N/A | BF348: N/A | BG348: N/A | BH348: N/A | BI348: N/A | BJ348: N/A | BK348: N/A | BL348: N/A | BM348: N/A | BN348: N/A | BO348: N/A | BP348: N/A | BQ348: N/A
BA349: Use of Basic Water | BB349: Yes | BC349: N/A | BD349: N/A | BE349: N/A | BF349: N/A | BG349: N/A | BH349: N/A | BI349: N/A | BJ349: N/A | BK349: N/A | BL349: N/A | BM349: N/A | BN349: N/A | BO349: N/A | BP349: N/A | BQ349: N/A
BB350: No | BC350: N/A | BD350: N/A | BE350: N/A | BF350: N/A | BG350: N/A | BH350: N/A | BI350: N/A | BJ350: N/A | BK350: N/A | BL350: N/A | BM350: N/A | BN350: N/A | BO350: N/A | BP350: N/A | BQ350: N/A
BA351: Use of Basic Sanitation | BB351: Yes | BC351: N/A | BD351: N/A | BE351: N/A | BF351: N/A | BG351: N/A | BH351: N/A | BI351: N/A | BJ351: N/A | BK351: N/A | BL351: N/A | BM351: N/A | BN351: N/A | BO351: N/A | BP351: N/A | BQ351: N/A
BB352: No | BC352: N/A | BD352: N/A | BE352: N/A | BF352: N/A | BG352: N/A | BH352: N/A | BI352: N/A | BJ352: N/A | BK352: N/A | BL352: N/A | BM352: N/A | BN352: N/A | BO352: N/A | BP352: N/A | BQ352: N/A
BA353: Access to Basic Hygiene | BB353: Yes | BC353: N/A | BD353: N/A | BE353: N/A | BF353: N/A | BG353: N/A | BH353: N/A | BI353: N/A | BJ353: N/A | BK353: N/A | BL353: N/A | BM353: N/A | BN353: N/A | BO353: N/A | BP353: N/A | BQ353: N/A
BB354: No | BC354: N/A | BD354: N/A | BE354: N/A | BF354: N/A | BG354: N/A | BH354: N/A | BI354: N/A | BJ354: N/A | BK354: N/A | BL354: N/A | BM354: N/A | BN354: N/A | BO354: N/A | BP354: N/A | BQ354: N/A
C399: INITIAL (national) Wealth Index | H399: URBAN Wealth Index | M399: RURAL Wealth Index
C400: Component Matrix | H400: Component Matrix | M400: Component Matrix
E401: Component | J401: Component | O401: Component
B402: Note: The INITIAL (national) Wealth Index is based on the first component of the Principal Component Analysis (PCA) which has been obtained at national level. The final national-level (NATIONAL) Wealth Index is based on the URBAN and RURAL specific wealth indexes. Regression procedures are used to establish the relationships between the two sets of scores (urban and rural) and the initial (national) wealth factors. This allows best use of the available information for each area and a better precision of the FINAL (NATIONAL) Wealth Index. For dependency reasons, all WASH variables (contained in the generic MICS and DHS scripts) have been excluded from the sets of asset variables used in the PCAs. The PCA can extracts as many components as there are asset variables in the input. Only the first of the components is used to represent the Wealth Index. The scores represent the weights of the asset variables on the Wealth Index (correlations between the variables and the component). The communalities are the proportion of each variable's variance that can be explained by the component. Proportion of explained variance is the part of the model's total variance that is explained by the component. For more information on the procedure used: The DHS Wealth Index, DHS Comparative Reports No. 6, Shea Oscar Rutstein, Kiersten Johnson, ORC Macro International Inc., 2004. The DHS Wealth Index: Approaches for Rural and Urban Areas, Shea O. Rutstein, ORC Macro International Inc., 2008. MICS Methodological Paper No. 4, Review of options for reporting water, sanitation and hygiene coverage by wealth quintile, UNICEF, 2016. | E402: 1 | J402: 1 | O402: 1
C403: Permanent Income question 20 | E403: 0.7648806711 | H403: Permanent Income question 20 | J403: 0.7547661629 | M403: Has Television | O403: 0.6244227042
C404: Uses gaz fuel | E404: -0.761973713 | H404: Uses gaz fuel | J404: -0.7395911764 | M404: Uses gaz fuel | O404: -0.5677352329
C405: Has Mobile telephone | E405: 0.7053464993 | H405: Has Television | J405: 0.6842058478 | M405: Permanent Income question 20 | O405: 0.5668053491
C406: Has Television | E406: 0.6879304645 | H406: Has Mobile telephone | J406: 0.6788428628 | M406: Has Refrigerator | O406: 0.545285629
C407: Has Refrigerator | E407: 0.6797140682 | H407: Has Refrigerator | J407: 0.6737688374 | M407: Has Electricity | O407: 0.5173360274
C408: Uses wood fuel | E408: 0.6770260296 | H408: Uses wood fuel | J408: 0.605031236 | M408: Permanent Income question 2 | O408: 0.5144591617
C409: Has Electricity | E409: 0.5842460725 | H409: Has Clock | J409: 0.5668120227 | M409: Has cement, brick, stone or wood wall | O409: -0.4955130274
C410: Has Clock | E410: 0.5519945346 | H410: Has Electricity | J410: 0.5521169603 | M410: Permanent Income question 3 | O410: 0.447704072
C411: Uses open fire without chimney | E411: 0.542999458 | H411: Uses open fire without chimney | J411: 0.529117917 | M411: Has hearth floor | O411: 0.4402776064
C412: Has mud brick wall | E412: 0.5055465416 | H412: Permanent Income question 16 | J412: 0.5241873255 | M412: Has Mobile telephone | O412: 0.4322802272
C413: Has Fix telephone | E413: 0.5036370821 | H413: Has Fix telephone | J413: 0.5072432655 | M413: Has Clock | O413: 0.4307382537
C414: Permanent Income question 16 | E414: 0.480615583 | H414: Has mud brick wall | J414: 0.4439344841 | M414: Has hard floor | O414: -0.4242841881
C415: Has hearth floor | E415: 0.4705331912 | H415: Permanent Income question 2 | J415: 0.4378943332 | M415: Has mud brick wall | O415: 0.4209276857
C416: Has cement, brick, stone or wood wall | E416: -0.4609267238 | H416: Has hearth floor | J416: 0.4170374955 | M416: Permanent Income question 16 | O416: 0.4188944097
C417: Has Car | E417: 0.404477267 | H417: Kooks outdoor | J417: 0.3994752784 | M417: Permanent Income question 18 | O417: 0.3858804212
C418: Has hard floor | E418: -0.4007524847 | H418: Permanent Income question 18 | J418: 0.3926134176 | M418: Has Fix telephone | O418: 0.3723007117
C419: Permanent Income question 18 | E419: 0.35532933 | H419: Permanent Income question 4 | J419: 0.3827701763 | M419: Permanent Income question 1 | O419: 0.3666905221
C420: Kooks outdoor | E420: 0.334958837 | H420: Permanent Income question 3 | J420: 0.3475647026 | M420: Uses wood fuel | O420: 0.3648199171
C421: Has Computer | E421: 0.2597280423 | H421: Has hard floor | J421: -0.3316750951 | M421: Permanent Income question 17 | O421: 0.3465525911
C422: Permanent Income question 19 | E422: 0.2332855527 | H422: Has cement, brick, stone or wood wall | J422: -0.3208346656 | M422: Has Dish washing machine | O422: 0.2783324753
C423: Uses separate building as kitchen | E423: 0.226246333 | H423: Uses separate room as kitchen | J423: 0.261699229 | M423: Heats house | O423: 0.2533074832
... 201 more rows

Sheet AIS05
A2: =A1026 -> Côte d'Ivoire
A3: =A1034 -> 2005
A4: Use of drinking water sources
A5: by wealth quintile and sub-national region
A6: Notes:
A7: WHO/UNICEF JMP customised wealth index excludes water,
A8: sanitation and hygiene assets.
A9: Survey used for analysis: | B9: =A1025 -> AIS05
A11: =B1027 -> Time to improved source based on: | B11: MICS06
A14: Use of drinking water sources | C14: NATIONAL wealth index quintile | H14: URBAN wealth index quintile | M14: RURAL wealth index quintile | R14: SUB-REGIONS: | BA14: Raw numbers of respondents: | BB14: Use of drinking water sources | BC14: NATIONAL wealth index quintile | BH14: URBAN wealth index quintile | BM14: RURAL wealth index quintile | BR14: SUB-REGIONS:
A15: Weighted percentage (used in graphs) | C15: Poorest | D15: Poor | E15: Middle | F15: Rich | G15: Richest | H15: Poorest | I15: Poor | J15: Middle | K15: Rich | L15: Richest | M15: Poorest | N15: Poor | O15: Middle | P15: Rich | Q15: Richest | R15: Centre | S15: Centre Nord | T15: Centre-Est | U15: Centre-Ouest | V15: Nord | W15: Nord-Est | X15: Nou=rd-Ouest | Y15: Ouest | Z15: Sud | AA15: Sud-Ouest | AB15: Ville d'Abidjan | BA15: Water data, raw numbers (weighted) | BC15: Poorest | BD15: Poor | BE15: Middle | BF15: Rich | BG15: Richest | BH15: Poorest | BI15: Poor | BJ15: Middle | BK15: Rich | BL15: Richest | BM15: Poorest | BN15: Poor | BO15: Middle | BP15: Rich | BQ15: Richest | BR15: Centre | BS15: Centre Nord | BT15: Centre-Est | BU15: Centre-Ouest | BV15: Nord | BW15: Nord-Est | BX15: Nou=rd-Ouest | BY15: Ouest | BZ15: Sud | CA15: Sud-Ouest | CB15: Ville d'Abidjan
A16: Water | B16: Improved | C16: 48.6 | D16: 54.8 | E16: 69.5 | F16: 82.9 | G16: 95.8 | H16: 62.9 | I16: 85.3 | J16: 87.9 | K16: 92.5 | L16: 99 | M16: 46.5 | N16: 47.8 | O16: 51.6 | P16: 68.7 | Q16: 80.9 | R16: 82.1 | S16: 72.9 | T16: 65.3 | U16: 56.5 | V16: 59.1 | W16: 70.2 | X16: 60.3 | Y16: 38 | Z16: 71.8 | AA16: 34.7 | AB16: 99.5 | BA16: Water | BB16: Improved | BC16: N/A | BD16: N/A | BE16: N/A | BF16: N/A | BG16: N/A | BH16: N/A | BI16: N/A | BJ16: N/A | BK16: N/A | BL16: N/A | BM16: N/A | BN16: N/A | BO16: N/A | BP16: N/A | BQ16: N/A | BR16: N/A | BS16: N/A | BT16: N/A | BU16: N/A | BV16: N/A | BW16: N/A | BX16: N/A | BY16: N/A | BZ16: N/A | CA16: N/A | CB16: N/A
B17: Not Improved | C17: 51.4 | D17: 45.2 | E17: 30.5 | F17: 17.1 | G17: 4.2 | H17: 37.1 | I17: 14.7 | J17: 12.1 | K17: 7.5 | L17: 1 | M17: 53.5 | N17: 52.2 | O17: 48.4 | P17: 31.3 | Q17: 19.1 | R17: 17.9 | S17: 27.1 | T17: 34.7 | U17: 43.5 | V17: 40.9 | W17: 29.8 | X17: 39.7 | Y17: 62 | Z17: 28.2 | AA17: 65.3 | AB17: 0.5 | BB17: Not Improved | BC17: N/A | BD17: N/A | BE17: N/A | BF17: N/A | BG17: N/A | BH17: N/A | BI17: N/A | BJ17: N/A | BK17: N/A | BL17: N/A | BM17: N/A | BN17: N/A | BO17: N/A | BP17: N/A | BQ17: N/A | BR17: N/A | BS17: N/A | BT17: N/A | BU17: N/A | BV17: N/A | BW17: N/A | BX17: N/A | BY17: N/A | BZ17: N/A | CA17: N/A | CB17: N/A
A18: Water ladder | B18: Basic | C18: =C16*[1]MICS06!C23/100 -> 39.41532843 | D18: =D16*[1]MICS06!D23/100 -> 46.296008 | E18: =E16*[1]MICS06!E23/100 -> 62.13978723 | F18: =F16*[1]MICS06!F23/100 -> 80.90506115 | G18: =G16*[1]MICS06!G23/100 -> 95.33536124 | H18: =H16*[1]MICS06!H23/100 -> 60.52618513 | I18: =I16*[1]MICS06!I23/100 -> 84.02228875 | J18: =J16*[1]MICS06!J23/100 -> 87.72972634 | K18: =K16*[1]MICS06!K23/100 -> 91.74752607 | L18: =L16*[1]MICS06!L23/100 -> 99 | M18: =M16*[1]MICS06!M23/100 -> 38.03048438 | N18: =N16*[1]MICS06!N23/100 -> 38.04067027 | O18: =O16*[1]MICS06!O23/100 -> 43.08765571 | P18: =P16*[1]MICS06!P23/100 -> 58.16414229 | Q18: =Q16*[1]MICS06!Q23/100 -> 73.25261895 | R18: =R16*[1]MICS06!R23/100 -> 73.01000667 | S18: =S16*[1]MICS06!S23/100 -> 71.5420389 | T18: =T16*[1]MICS06!T23/100 -> 52.32166349 | U18: =U16*[1]MICS06!U23/100 -> 50.14914672 | V18: =V16*[1]MICS06!V23/100 -> 45.88918695 | W18: =W16*[1]MICS06!W23/100 -> 62.28686992 | X18: =X16*[1]MICS06!X23/100 -> 52.57054967 | Y18: =Y16*[1]MICS06!Y23/100 -> 33.80210997 | Z18: =Z16*[1]MICS06!Z23/100 -> 67.38308578 | AA18: =AA16*[1]MICS06!AA23/100 -> 34.22828595 | AB18: =AB16*[1]MICS06!AB23/100 -> 99.06953406 | BA18: Water ladder | BB18: Basic | BC18: N/A | BD18: N/A | BE18: N/A | BF18: N/A | BG18: N/A | BH18: N/A | BI18: N/A | BJ18: N/A | BK18: N/A | BL18: N/A | BM18: N/A | BN18: N/A | BO18: N/A | BP18: N/A | BQ18: N/A | BR18: N/A | BS18: N/A | BT18: N/A | BU18: N/A | BV18: N/A | BW18: N/A | BX18: N/A | BY18: N/A | BZ18: N/A | CA18: N/A | CB18: N/A
B19: Limited | C19: =C16*[1]MICS06!C22/100 -> 9.184671574 | D19: =D16*[1]MICS06!D22/100 -> 8.503992002 | E19: =E16*[1]MICS06!E22/100 -> 7.360212768 | F19: =F16*[1]MICS06!F22/100 -> 1.99493885 | G19: =G16*[1]MICS06!G22/100 -> 0.4646387605 | H19: =H16*[1]MICS06!H22/100 -> 2.373814874 | I19: =I16*[1]MICS06!I22/100 -> 1.277711255 | J19: =J16*[1]MICS06!J22/100 -> 0.1702736588 | K19: =K16*[1]MICS06!K22/100 -> 0.7524739265 | L19: =L16*[1]MICS06!L22/100 -> 0 | M19: =M16*[1]MICS06!M22/100 -> 8.469515616 | N19: =N16*[1]MICS06!N22/100 -> 9.759329729 | O19: =O16*[1]MICS06!O22/100 -> 8.512344294 | P19: =P16*[1]MICS06!P22/100 -> 10.53585771 | Q19: =Q16*[1]MICS06!Q22/100 -> 7.647381054 | R19: =R16*[1]MICS06!R22/100 -> 9.089993333 | S19: =S16*[1]MICS06!S22/100 -> 1.357961098 | T19: =T16*[1]MICS06!T22/100 -> 12.97833651 | U19: =U16*[1]MICS06!U22/100 -> 6.35085328 | V19: =V16*[1]MICS06!V22/100 -> 13.21081305 | W19: =W16*[1]MICS06!W22/100 -> 7.913130082 | X19: =X16*[1]MICS06!X22/100 -> 7.729450332 | Y19: =Y16*[1]MICS06!Y22/100 -> 4.197890034 | Z19: =Z16*[1]MICS06!Z22/100 -> 4.416914224 | AA19: =AA16*[1]MICS06!AA22/100 -> 0.4717140483 | AB19: =AB16*[1]MICS06!AB22/100 -> 0.4304659414 | BB19: Limited | BC19: N/A | BD19: N/A | BE19: N/A | BF19: N/A | BG19: N/A | BH19: N/A | BI19: N/A | BJ19: N/A | BK19: N/A | BL19: N/A | BM19: N/A | BN19: N/A | BO19: N/A | BP19: N/A | BQ19: N/A | BR19: N/A | BS19: N/A | BT19: N/A | BU19: N/A | BV19: N/A | BW19: N/A | BX19: N/A | BY19: N/A | BZ19: N/A | CA19: N/A | CB19: N/A
B20: Unimproved | C20: =100-(C18+C19+C21) -> 42.34465335 | D20: =100-(D18+D19+D21) -> 40.76841859 | E20: 29.87535534 | F20: 17.1 | G20: 4.2 | H20: 33.92968094 | I20: 14.38616032 | J20: 12.1 | K20: 7.5 | L20: 1 | M20: 42.70339385 | N20: 43.76785305 | O20: 44.81816853 | P20: 31.14976672 | Q20: 19.1 | R20: 14.59096812 | S20: 26.48628546 | T20: 31.8818884 | U20: 40.28275625 | V20: 38.10205072 | W20: 25.68470642 | X20: 36.17818284 | Y20: 57.03314733 | Z20: 28.14522227 | AA20: 46.1731049 | AB20: 0.5 | BB20: Unimproved | BC20: N/A | BD20: N/A | BE20: N/A | BF20: N/A | BG20: N/A | BH20: N/A | BI20: N/A | BJ20: N/A | BK20: N/A | BL20: N/A | BM20: N/A | BN20: N/A | BO20: N/A | BP20: N/A | BQ20: N/A | BR20: N/A | BS20: N/A | BT20: N/A | BU20: N/A | BV20: N/A | BW20: N/A | BX20: N/A | BY20: N/A | BZ20: N/A | CA20: N/A | CB20: N/A
B21: Surface water | C21: =C69+C70 -> 9.055346645 | D21: 4.431581408 | E21: 0.6246446563 | F21: 0 | G21: 0 | H21: 3.170319061 | I21: 0.313839676 | J21: 0 | K21: 0 | L21: 0 | M21: 10.79660615 | N21: 8.432146946 | O21: 3.581831471 | P21: 0.1502332793 | Q21: 0 | R21: 3.309031877 | S21: 0.6137145369 | T21: 2.818111599 | U21: 3.217243753 | V21: 2.797949275 | W21: 4.115293585 | X21: 3.521817164 | Y21: 4.966852666 | Z21: 0.05477772708 | AA21: 19.1268951 | AB21: 0 | BB21: Surface water | BC21: N/A | BD21: N/A | BE21: N/A | BF21: N/A | BG21: N/A | BH21: N/A | BI21: N/A | BJ21: N/A | BK21: N/A | BL21: N/A | BM21: N/A | BN21: N/A | BO21: N/A | BP21: N/A | BQ21: N/A | BR21: N/A | BS21: N/A | BT21: N/A | BU21: N/A | BV21: N/A | BW21: N/A | BX21: N/A | BY21: N/A | BZ21: N/A | CA21: N/A | CB21: N/A
A22: Improved water point at more than 30 minutes | B22: Yes | C22: N/A | D22: N/A | E22: N/A | F22: N/A | G22: N/A | H22: N/A | I22: N/A | J22: N/A | K22: N/A | L22: N/A | M22: N/A | N22: N/A | O22: N/A | P22: N/A | Q22: N/A | R22: N/A | S22: N/A | T22: N/A | U22: N/A | V22: N/A | W22: N/A | X22: N/A | Y22: N/A | Z22: N/A | AA22: N/A | AB22: N/A | BA22: Improved water point at more than 30 minutes | BB22: Yes | BC22: N/A | BD22: N/A | BE22: N/A | BF22: N/A | BG22: N/A | BH22: N/A | BI22: N/A | BJ22: N/A | BK22: N/A | BL22: N/A | BM22: N/A | BN22: N/A | BO22: N/A | BP22: N/A | BQ22: N/A | BR22: N/A | BS22: N/A | BT22: N/A | BU22: N/A | BV22: N/A | BW22: N/A | BX22: N/A | BY22: N/A | BZ22: N/A | CA22: N/A | CB22: N/A
B23: No | C23: N/A | D23: N/A | E23: N/A | F23: N/A | G23: N/A | H23: N/A | I23: N/A | J23: N/A | K23: N/A | L23: N/A | M23: N/A | N23: N/A | O23: N/A | P23: N/A | Q23: N/A | R23: N/A | S23: N/A | T23: N/A | U23: N/A | V23: N/A | W23: N/A | X23: N/A | Y23: N/A | Z23: N/A | AA23: N/A | AB23: N/A | BB23: No | BC23: N/A | BD23: N/A | BE23: N/A | BF23: N/A | BG23: N/A | BH23: N/A | BI23: N/A | BJ23: N/A | BK23: N/A | BL23: N/A | BM23: N/A | BN23: N/A | BO23: N/A | BP23: N/A | BQ23: N/A | BR23: N/A | BS23: N/A | BT23: N/A | BU23: N/A | BV23: N/A | BW23: N/A | BX23: N/A | BY23: N/A | BZ23: N/A | CA23: N/A | CB23: N/A
A24: Manually calculated ratios | B24: Improved wells
B25: Improved springs
B26: Other
C27: NATIONAL wealth index quintile | H27: URBAN wealth index quintile | M27: RURAL wealth index quintile | R27: SUB-REGIONS: | BA27: Raw numbers of respondents: | BB27: Use of drinking water sources | BC27: NATIONAL wealth index quintile | BH27: URBAN wealth index quintile | BM27: RURAL wealth index quintile | BR27: SUB-REGIONS:
A28: Percentage based on weighted population | C28: Poorest | D28: Poor | E28: Middle | F28: Rich | G28: Richest | H28: Poorest | I28: Poor | J28: Middle | K28: Rich | L28: Richest | M28: Poorest | N28: Poor | O28: Middle | P28: Rich | Q28: Richest | R28: Centre | S28: Centre Nord | T28: Centre-Est | U28: Centre-Ouest | V28: Nord | W28: Nord-Est | X28: Nou=rd-Ouest | Y28: Ouest | Z28: Sud | AA28: Sud-Ouest | AB28: Ville d'Abidjan | BA28: Water data, raw numbers (weighted) | BC28: Poorest | BD28: Poor | BE28: Middle | BF28: Rich | BG28: Richest | BH28: Poorest | BI28: Poor | BJ28: Middle | BK28: Rich | BL28: Richest | BM28: Poorest | BN28: Poor | BO28: Middle | BP28: Rich | BQ28: Richest | BR28: Centre | BS28: Centre Nord | BT28: Centre-Est | BU28: Centre-Ouest | BV28: Nord | BW28: Nord-Est | BX28: Nou=rd-Ouest | BY28: Ouest | BZ28: Sud | CA28: Sud-Ouest | CB28: Ville d'Abidjan
A29: Piped water | B29: Yes | C29: 26.1 | D29: 32.3 | E29: 53.5 | F29: 71.9 | G29: 91.8 | H29: 47.3 | I29: 76.8 | J29: 76.8 | K29: 85.4 | L29: 96.1 | M29: 22.2 | N29: 24.5 | O29: 28.4 | P29: 50.2 | Q29: 71.7 | R29: 54.9 | S29: 58.1 | T29: 43.4 | U29: 30.4 | V29: 36.3 | W29: 23.9 | X29: 48.2 | Y29: 23.3 | Z29: 60.9 | AA29: 27.9 | AB29: 99.3 | BA29: Piped water | BB29: Yes | BC29: N/A | BD29: N/A | BE29: N/A | BF29: N/A | BG29: N/A | BH29: N/A | BI29: N/A | BJ29: N/A | BK29: N/A | BL29: N/A | BM29: N/A | BN29: N/A | BO29: N/A | BP29: N/A | BQ29: N/A | BR29: N/A | BS29: N/A | BT29: N/A | BU29: N/A | BV29: N/A | BW29: N/A | BX29: N/A | BY29: N/A | BZ29: N/A | CA29: N/A | CB29: N/A
B30: No | C30: 73.9 | D30: 67.7 | E30: 46.5 | F30: 28.1 | G30: 8.2 | H30: 52.7 | I30: 23.2 | J30: 23.2 | K30: 14.6 | L30: 3.9 | M30: 77.8 | N30: 75.5 | O30: 71.6 | P30: 49.8 | Q30: 28.3 | R30: 45.1 | S30: 41.9 | T30: 56.6 | U30: 69.6 | V30: 63.7 | W30: 76.1 | X30: 51.8 | Y30: 76.7 | Z30: 39.1 | AA30: 72.1 | AB30: 0.7 | BB30: No | BC30: N/A | BD30: N/A | BE30: N/A | BF30: N/A | BG30: N/A | BH30: N/A | BI30: N/A | BJ30: N/A | BK30: N/A | BL30: N/A | BM30: N/A | BN30: N/A | BO30: N/A | BP30: N/A | BQ30: N/A | BR30: N/A | BS30: N/A | BT30: N/A | BU30: N/A | BV30: N/A | BW30: N/A | BX30: N/A | BY30: N/A | BZ30: N/A | CA30: N/A | CB30: N/A
A31: Piped water on premises | B31: Yes | C31: 7.2 | D31: 14.9 | E31: 38 | F31: 62.2 | G31: 86.6 | H31: 32.1 | I31: 66.3 | J31: 71 | K31: 79.2 | L31: 95.4 | M31: 2.3 | N31: 8.5 | O31: 9 | P31: 29.5 | Q31: 60.6 | R31: 45.8 | S31: 41.7 | T31: 37.3 | U31: 17.3 | V31: 16.6 | W31: 7.6 | X31: 14.7 | Y31: 6.3 | Z31: 49 | AA31: 15.3 | AB31: 88.9 | BA31: Piped water on premises | BB31: Yes | BC31: N/A | BD31: N/A | BE31: N/A | BF31: N/A | BG31: N/A | BH31: N/A | BI31: N/A | BJ31: N/A | BK31: N/A | BL31: N/A | BM31: N/A | BN31: N/A | BO31: N/A | BP31: N/A | BQ31: N/A | BR31: N/A | BS31: N/A | BT31: N/A | BU31: N/A | BV31: N/A | BW31: N/A | BX31: N/A | BY31: N/A | BZ31: N/A | CA31: N/A | CB31: N/A
B32: No | C32: 92.8 | D32: 85.1 | E32: 62 | F32: 37.8 | G32: 13.4 | H32: 67.9 | I32: 33.7 | J32: 29 | K32: 20.8 | L32: 4.6 | M32: 97.7 | N32: 91.5 | O32: 91 | P32: 70.5 | Q32: 39.4 | R32: 54.2 | S32: 58.3 | T32: 62.7 | U32: 82.7 | V32: 83.4 | W32: 92.4 | X32: 85.3 | Y32: 93.7 | Z32: 51 | AA32: 84.7 | AB32: 11.1 | BB32: No | BC32: N/A | BD32: N/A | BE32: N/A | BF32: N/A | BG32: N/A | BH32: N/A | BI32: N/A | BJ32: N/A | BK32: N/A | BL32: N/A | BM32: N/A | BN32: N/A | BO32: N/A | BP32: N/A | BQ32: N/A | BR32: N/A | BS32: N/A | BT32: N/A | BU32: N/A | BV32: N/A | BW32: N/A | BX32: N/A | BY32: N/A | BZ32: N/A | CA32: N/A | CB32: N/A
A33: Piped water into dwelling | B33: Yes | C33: N/A | D33: N/A | E33: N/A | F33: N/A | G33: N/A | H33: N/A | I33: N/A | J33: N/A | K33: N/A | L33: N/A | M33: N/A | N33: N/A | O33: N/A | P33: N/A | Q33: N/A | R33: N/A | S33: N/A | T33: N/A | U33: N/A | V33: N/A | W33: N/A | X33: N/A | Y33: N/A | Z33: N/A | AA33: N/A | AB33: N/A | BA33: Piped water into dwelling | BB33: Yes | BC33: N/A | BD33: N/A | BE33: N/A | BF33: N/A | BG33: N/A | BH33: N/A | BI33: N/A | BJ33: N/A | BK33: N/A | BL33: N/A | BM33: N/A | BN33: N/A | BO33: N/A | BP33: N/A | BQ33: N/A | BR33: N/A | BS33: N/A | BT33: N/A | BU33: N/A | BV33: N/A | BW33: N/A | BX33: N/A | BY33: N/A | BZ33: N/A | CA33: N/A | CB33: N/A
B34: No | C34: N/A | D34: N/A | E34: N/A | F34: N/A | G34: N/A | H34: N/A | I34: N/A | J34: N/A | K34: N/A | L34: N/A | M34: N/A | N34: N/A | O34: N/A | P34: N/A | Q34: N/A | R34: N/A | S34: N/A | T34: N/A | U34: N/A | V34: N/A | W34: N/A | X34: N/A | Y34: N/A | Z34: N/A | AA34: N/A | AB34: N/A | BB34: No | BC34: N/A | BD34: N/A | BE34: N/A | BF34: N/A | BG34: N/A | BH34: N/A | BI34: N/A | BJ34: N/A | BK34: N/A | BL34: N/A | BM34: N/A | BN34: N/A | BO34: N/A | BP34: N/A | BQ34: N/A | BR34: N/A | BS34: N/A | BT34: N/A | BU34: N/A | BV34: N/A | BW34: N/A | BX34: N/A | BY34: N/A | BZ34: N/A | CA34: N/A | CB34: N/A
A35: Water source on premises | B35: Yes | C35: N/A | D35: N/A | E35: N/A | F35: N/A | G35: N/A | H35: N/A | I35: N/A | J35: N/A | K35: N/A | L35: N/A | M35: N/A | N35: N/A | O35: N/A | P35: N/A | Q35: N/A | R35: N/A | S35: N/A | T35: N/A | U35: N/A | V35: N/A | W35: N/A | X35: N/A | Y35: N/A | Z35: N/A | AA35: N/A | AB35: N/A | BA35: Water source on premises | BB35: Yes | BC35: N/A | BD35: N/A | BE35: N/A | BF35: N/A | BG35: N/A | BH35: N/A | BI35: N/A | BJ35: N/A | BK35: N/A | BL35: N/A | BM35: N/A | BN35: N/A | BO35: N/A | BP35: N/A | BQ35: N/A | BR35: N/A | BS35: N/A | BT35: N/A | BU35: N/A | BV35: N/A | BW35: N/A | BX35: N/A | BY35: N/A | BZ35: N/A | CA35: N/A | CB35: N/A
B36: No | C36: N/A | D36: N/A | E36: N/A | F36: N/A | G36: N/A | H36: N/A | I36: N/A | J36: N/A | K36: N/A | L36: N/A | M36: N/A | N36: N/A | O36: N/A | P36: N/A | Q36: N/A | R36: N/A | S36: N/A | T36: N/A | U36: N/A | V36: N/A | W36: N/A | X36: N/A | Y36: N/A | Z36: N/A | AA36: N/A | AB36: N/A | BB36: No | BC36: N/A | BD36: N/A | BE36: N/A | BF36: N/A | BG36: N/A | BH36: N/A | BI36: N/A | BJ36: N/A | BK36: N/A | BL36: N/A | BM36: N/A | BN36: N/A | BO36: N/A | BP36: N/A | BQ36: N/A | BR36: N/A | BS36: N/A | BT36: N/A | BU36: N/A | BV36: N/A | BW36: N/A | BX36: N/A | BY36: N/A | BZ36: N/A | CA36: N/A | CB36: N/A
A37: Improved Water source on premises | B37: Yes | C37: N/A | D37: N/A | E37: N/A | F37: N/A | G37: N/A | H37: N/A | I37: N/A | J37: N/A | K37: N/A | L37: N/A | M37: N/A | N37: N/A | O37: N/A | P37: N/A | Q37: N/A | R37: N/A | S37: N/A | T37: N/A | U37: N/A | V37: N/A | W37: N/A | X37: N/A | Y37: N/A | Z37: N/A | AA37: N/A | AB37: N/A | BA37: Improved water source on premises | BB37: Yes | BC37: N/A | BD37: N/A | BE37: N/A | BF37: N/A | BG37: N/A | BH37: N/A | BI37: N/A | BJ37: N/A | BK37: N/A | BL37: N/A | BM37: N/A | BN37: N/A | BO37: N/A | BP37: N/A | BQ37: N/A | BR37: N/A | BS37: N/A | BT37: N/A | BU37: N/A | BV37: N/A | BW37: N/A | BX37: N/A | BY37: N/A | BZ37: N/A | CA37: N/A | CB37: N/A
B38: No | C38: N/A | D38: N/A | E38: N/A | F38: N/A | G38: N/A | H38: N/A | I38: N/A | J38: N/A | K38: N/A | L38: N/A | M38: N/A | N38: N/A | O38: N/A | P38: N/A | Q38: N/A | R38: N/A | S38: N/A | T38: N/A | U38: N/A | V38: N/A | W38: N/A | X38: N/A | Y38: N/A | Z38: N/A | AA38: N/A | AB38: N/A | BB38: No | BC38: N/A | BD38: N/A | BE38: N/A | BF38: N/A | BG38: N/A | BH38: N/A | BI38: N/A | BJ38: N/A | BK38: N/A | BL38: N/A | BM38: N/A | BN38: N/A | BO38: N/A | BP38: N/A | BQ38: N/A | BR38: N/A | BS38: N/A | BT38: N/A | BU38: N/A | BV38: N/A | BW38: N/A | BX38: N/A | BY38: N/A | BZ38: N/A | CA38: N/A | CB38: N/A
A39: Piped water on premises available when needed | B39: Yes | C39: N/A | D39: N/A | E39: N/A | F39: N/A | G39: N/A | H39: N/A | I39: N/A | J39: N/A | K39: N/A | L39: N/A | M39: N/A | N39: N/A | O39: N/A | P39: N/A | Q39: N/A | R39: N/A | S39: N/A | T39: N/A | U39: N/A | V39: N/A | W39: N/A | X39: N/A | Y39: N/A | Z39: N/A | AA39: N/A | AB39: N/A | BA39: Piped water on premises available when needed | BB39: Yes | BC39: N/A | BD39: N/A | BE39: N/A | BF39: N/A | BG39: N/A | BH39: N/A | BI39: N/A | BJ39: N/A | BK39: N/A | BL39: N/A | BM39: N/A | BN39: N/A | BO39: N/A | BP39: N/A | BQ39: N/A | BR39: N/A | BS39: N/A | BT39: N/A | BU39: N/A | BV39: N/A | BW39: N/A | BX39: N/A | BY39: N/A | BZ39: N/A | CA39: N/A | CB39: N/A
B40: No | C40: N/A | D40: N/A | E40: N/A | F40: N/A | G40: N/A | H40: N/A | I40: N/A | J40: N/A | K40: N/A | L40: N/A | M40: N/A | N40: N/A | O40: N/A | P40: N/A | Q40: N/A | R40: N/A | S40: N/A | T40: N/A | U40: N/A | V40: N/A | W40: N/A | X40: N/A | Y40: N/A | Z40: N/A | AA40: N/A | AB40: N/A | BB40: No | BC40: N/A | BD40: N/A | BE40: N/A | BF40: N/A | BG40: N/A | BH40: N/A | BI40: N/A | BJ40: N/A | BK40: N/A | BL40: N/A | BM40: N/A | BN40: N/A | BO40: N/A | BP40: N/A | BQ40: N/A | BR40: N/A | BS40: N/A | BT40: N/A | BU40: N/A | BV40: N/A | BW40: N/A | BX40: N/A | BY40: N/A | BZ40: N/A | CA40: N/A | CB40: N/A
A41: Water point at more than 30 minutes | B41: Yes | C41: N/A | D41: N/A | E41: N/A | F41: N/A | G41: N/A | H41: N/A | I41: N/A | J41: N/A | K41: N/A | L41: N/A | M41: N/A | N41: N/A | O41: N/A | P41: N/A | Q41: N/A | R41: N/A | S41: N/A | T41: N/A | U41: N/A | V41: N/A | W41: N/A | X41: N/A | Y41: N/A | Z41: N/A | AA41: N/A | AB41: N/A | BA41: Water point at more than 30 minutes | BB41: Yes | BC41: N/A | BD41: N/A | BE41: N/A | BF41: N/A | BG41: N/A | BH41: N/A | BI41: N/A | BJ41: N/A | BK41: N/A | BL41: N/A | BM41: N/A | BN41: N/A | BO41: N/A | BP41: N/A | BQ41: N/A | BR41: N/A | BS41: N/A | BT41: N/A | BU41: N/A | BV41: N/A | BW41: N/A | BX41: N/A | BY41: N/A | BZ41: N/A | CA41: N/A | CB41: N/A
B42: No | C42: N/A | D42: N/A | E42: N/A | F42: N/A | G42: N/A | H42: N/A | I42: N/A | J42: N/A | K42: N/A | L42: N/A | M42: N/A | N42: N/A | O42: N/A | P42: N/A | Q42: N/A | R42: N/A | S42: N/A | T42: N/A | U42: N/A | V42: N/A | W42: N/A | X42: N/A | Y42: N/A | Z42: N/A | AA42: N/A | AB42: N/A | BB42: No | BC42: N/A | BD42: N/A | BE42: N/A | BF42: N/A | BG42: N/A | BH42: N/A | BI42: N/A | BJ42: N/A | BK42: N/A | BL42: N/A | BM42: N/A | BN42: N/A | BO42: N/A | BP42: N/A | BQ42: N/A | BR42: N/A | BS42: N/A | BT42: N/A | BU42: N/A | BV42: N/A | BW42: N/A | BX42: N/A | BY42: N/A | BZ42: N/A | CA42: N/A | CB42: N/A
A43: Water source available when needed | B43: Yes | C43: N/A | D43: N/A | E43: N/A | F43: N/A | G43: N/A | H43: N/A | I43: N/A | J43: N/A | K43: N/A | L43: N/A | M43: N/A | N43: N/A | O43: N/A | P43: N/A | Q43: N/A | R43: N/A | S43: N/A | T43: N/A | U43: N/A | V43: N/A | W43: N/A | X43: N/A | Y43: N/A | Z43: N/A | AA43: N/A | AB43: N/A | BA43: Water source available when needed | BB43: Yes | BC43: N/A | BD43: N/A | BE43: N/A | BF43: N/A | BG43: N/A | BH43: N/A | BI43: N/A | BJ43: N/A | BK43: N/A | BL43: N/A | BM43: N/A | BN43: N/A | BO43: N/A | BP43: N/A | BQ43: N/A | BR43: N/A | BS43: N/A | BT43: N/A | BU43: N/A | BV43: N/A | BW43: N/A | BX43: N/A | BY43: N/A | BZ43: N/A | CA43: N/A | CB43: N/A
B44: No | C44: N/A | D44: N/A | E44: N/A | F44: N/A | G44: N/A | H44: N/A | I44: N/A | J44: N/A | K44: N/A | L44: N/A | M44: N/A | N44: N/A | O44: N/A | P44: N/A | Q44: N/A | R44: N/A | S44: N/A | T44: N/A | U44: N/A | V44: N/A | W44: N/A | X44: N/A | Y44: N/A | Z44: N/A | AA44: N/A | AB44: N/A | BB44: No | BC44: N/A | BD44: N/A | BE44: N/A | BF44: N/A | BG44: N/A | BH44: N/A | BI44: N/A | BJ44: N/A | BK44: N/A | BL44: N/A | BM44: N/A | BN44: N/A | BO44: N/A | BP44: N/A | BQ44: N/A | BR44: N/A | BS44: N/A | BT44: N/A | BU44: N/A | BV44: N/A | BW44: N/A | BX44: N/A | BY44: N/A | BZ44: N/A | CA44: N/A | CB44: N/A
A45: Improved water source available when needed | B45: Yes | C45: N/A | D45: N/A | E45: N/A | F45: N/A | G45: N/A | H45: N/A | I45: N/A | J45: N/A | K45: N/A | L45: N/A | M45: N/A | N45: N/A | O45: N/A | P45: N/A | Q45: N/A | R45: N/A | S45: N/A | T45: N/A | U45: N/A | V45: N/A | W45: N/A | X45: N/A | Y45: N/A | Z45: N/A | AA45: N/A | AB45: N/A | BA45: Improved water source available when needed | BB45: Yes | BC45: N/A | BD45: N/A | BE45: N/A | BF45: N/A | BG45: N/A | BH45: N/A | BI45: N/A | BJ45: N/A | BK45: N/A | BL45: N/A | BM45: N/A | BN45: N/A | BO45: N/A | BP45: N/A | BQ45: N/A | BR45: N/A | BS45: N/A | BT45: N/A | BU45: N/A | BV45: N/A | BW45: N/A | BX45: N/A | BY45: N/A | BZ45: N/A | CA45: N/A | CB45: N/A
B46: No | C46: N/A | D46: N/A | E46: N/A | F46: N/A | G46: N/A | H46: N/A | I46: N/A | J46: N/A | K46: N/A | L46: N/A | M46: N/A | N46: N/A | O46: N/A | P46: N/A | Q46: N/A | R46: N/A | S46: N/A | T46: N/A | U46: N/A | V46: N/A | W46: N/A | X46: N/A | Y46: N/A | Z46: N/A | AA46: N/A | AB46: N/A | BB46: No | BC46: N/A | BD46: N/A | BE46: N/A | BF46: N/A | BG46: N/A | BH46: N/A | BI46: N/A | BJ46: N/A | BK46: N/A | BL46: N/A | BM46: N/A | BN46: N/A | BO46: N/A | BP46: N/A | BQ46: N/A | BR46: N/A | BS46: N/A | BT46: N/A | BU46: N/A | BV46: N/A | BW46: N/A | BX46: N/A | BY46: N/A | BZ46: N/A | CA46: N/A | CB46: N/A
A47: Microbiological quality at point of collection | B47: Not contaminated (No E. coli in 100 mL) | C47: N/A | D47: N/A | E47: N/A | F47: N/A | G47: N/A | H47: N/A | I47: N/A | J47: N/A | K47: N/A | L47: N/A | M47: N/A | N47: N/A | O47: N/A | P47: N/A | Q47: N/A | R47: N/A | S47: N/A | T47: N/A | U47: N/A | V47: N/A | W47: N/A | X47: N/A | Y47: N/A | Z47: N/A | AA47: N/A | AB47: N/A | BA47: Microbiological quality at point of collection | BB47: Not contaminated (No E. coli in 100 mL) | BC47: N/A | BD47: N/A | BE47: N/A | BF47: N/A | BG47: N/A | BH47: N/A | BI47: N/A | BJ47: N/A | BK47: N/A | BL47: N/A | BM47: N/A | BN47: N/A | BO47: N/A | BP47: N/A | BQ47: N/A | BR47: N/A | BS47: N/A | BT47: N/A | BU47: N/A | BV47: N/A | BW47: N/A | BX47: N/A | BY47: N/A | BZ47: N/A | CA47: N/A | CB47: N/A
B48: Contaminated (E. coli detected in 100 mL) | C48: N/A | D48: N/A | E48: N/A | F48: N/A | G48: N/A | H48: N/A | I48: N/A | J48: N/A | K48: N/A | L48: N/A | M48: N/A | N48: N/A | O48: N/A | P48: N/A | Q48: N/A | R48: N/A | S48: N/A | T48: N/A | U48: N/A | V48: N/A | W48: N/A | X48: N/A | Y48: N/A | Z48: N/A | AA48: N/A | AB48: N/A | BB48: Contaminated (E. coli detected in 100 mL) | BC48: N/A | BD48: N/A | BE48: N/A | BF48: N/A | BG48: N/A | BH48: N/A | BI48: N/A | BJ48: N/A | BK48: N/A | BL48: N/A | BM48: N/A | BN48: N/A | BO48: N/A | BP48: N/A | BQ48: N/A | BR48: N/A | BS48: N/A | BT48: N/A | BU48: N/A | BV48: N/A | BW48: N/A | BX48: N/A | BY48: N/A | BZ48: N/A | CA48: N/A | CB48: N/A
B49: Highly contaminated (>100 CFU/100 mL) | C49: N/A | D49: N/A | E49: N/A | F49: N/A | G49: N/A | H49: N/A | I49: N/A | J49: N/A | K49: N/A | L49: N/A | M49: N/A | N49: N/A | O49: N/A | P49: N/A | Q49: N/A | R49: N/A | S49: N/A | T49: N/A | U49: N/A | V49: N/A | W49: N/A | X49: N/A | Y49: N/A | Z49: N/A | AA49: N/A | AB49: N/A | BB49: Highly contaminated (>100 CFU/100 mL) | BC49: N/A | BD49: N/A | BE49: N/A | BF49: N/A | BG49: N/A | BH49: N/A | BI49: N/A | BJ49: N/A | BK49: N/A | BL49: N/A | BM49: N/A | BN49: N/A | BO49: N/A | BP49: N/A | BQ49: N/A | BR49: N/A | BS49: N/A | BT49: N/A | BU49: N/A | BV49: N/A | BW49: N/A | BX49: N/A | BY49: N/A | BZ49: N/A | CA49: N/A | CB49: N/A
A50: Microbiological quality of improved water sources at point of collection | B50: Not contaminated (No E. coli in 100 mL) | C50: N/A | D50: N/A | E50: N/A | F50: N/A | G50: N/A | H50: N/A | I50: N/A | J50: N/A | K50: N/A | L50: N/A | M50: N/A | N50: N/A | O50: N/A | P50: N/A | Q50: N/A | R50: N/A | S50: N/A | T50: N/A | U50: N/A | V50: N/A | W50: N/A | X50: N/A | Y50: N/A | Z50: N/A | AA50: N/A | AB50: N/A | BA50: Microbiological quality of improved water sources at point of collection | BB50: Not contaminated (No E. coli in 100 mL) | BC50: N/A | BD50: N/A | BE50: N/A | BF50: N/A | BG50: N/A | BH50: N/A | BI50: N/A | BJ50: N/A | BK50: N/A | BL50: N/A | BM50: N/A | BN50: N/A | BO50: N/A | BP50: N/A | BQ50: N/A | BR50: N/A | BS50: N/A | BT50: N/A | BU50: N/A | BV50: N/A | BW50: N/A | BX50: N/A | BY50: N/A | BZ50: N/A | CA50: N/A | CB50: N/A
B51: Contaminated (E. coli detected in 100 mL) | C51: N/A | D51: N/A | E51: N/A | F51: N/A | G51: N/A | H51: N/A | I51: N/A | J51: N/A | K51: N/A | L51: N/A | M51: N/A | N51: N/A | O51: N/A | P51: N/A | Q51: N/A | R51: N/A | S51: N/A | T51: N/A | U51: N/A | V51: N/A | W51: N/A | X51: N/A | Y51: N/A | Z51: N/A | AA51: N/A | AB51: N/A | BB51: Contaminated (E. coli detected in 100 mL) | BC51: N/A | BD51: N/A | BE51: N/A | BF51: N/A | BG51: N/A | BH51: N/A | BI51: N/A | BJ51: N/A | BK51: N/A | BL51: N/A | BM51: N/A | BN51: N/A | BO51: N/A | BP51: N/A | BQ51: N/A | BR51: N/A | BS51: N/A | BT51: N/A | BU51: N/A | BV51: N/A | BW51: N/A | BX51: N/A | BY51: N/A | BZ51: N/A | CA51: N/A | CB51: N/A
B52: Highly contaminated (>100 CFU/100 mL) | C52: N/A | D52: N/A | E52: N/A | F52: N/A | G52: N/A | H52: N/A | I52: N/A | J52: N/A | K52: N/A | L52: N/A | M52: N/A | N52: N/A | O52: N/A | P52: N/A | Q52: N/A | R52: N/A | S52: N/A | T52: N/A | U52: N/A | V52: N/A | W52: N/A | X52: N/A | Y52: N/A | Z52: N/A | AA52: N/A | AB52: N/A | BB52: Highly contaminated (>100 CFU/100 mL) | BC52: N/A | BD52: N/A | BE52: N/A | BF52: N/A | BG52: N/A | BH52: N/A | BI52: N/A | BJ52: N/A | BK52: N/A | BL52: N/A | BM52: N/A | BN52: N/A | BO52: N/A | BP52: N/A | BQ52: N/A | BR52: N/A | BS52: N/A | BT52: N/A | BU52: N/A | BV52: N/A | BW52: N/A | BX52: N/A | BY52: N/A | BZ52: N/A | CA52: N/A | CB52: N/A
A53: Microbiological quality of piped on premises at point of collection | B53: Not contaminated (No E. coli in 100 mL) | C53: N/A | D53: N/A | E53: N/A | F53: N/A | G53: N/A | H53: N/A | I53: N/A | J53: N/A | K53: N/A | L53: N/A | M53: N/A | N53: N/A | O53: N/A | P53: N/A | Q53: N/A | R53: N/A | S53: N/A | T53: N/A | U53: N/A | V53: N/A | W53: N/A | X53: N/A | Y53: N/A | Z53: N/A | AA53: N/A | AB53: N/A | BA53: Microbiological quality of piped on premises at point of collection | BB53: Not contaminated (No E. coli in 100 mL) | BC53: N/A | BD53: N/A | BE53: N/A | BF53: N/A | BG53: N/A | BH53: N/A | BI53: N/A | BJ53: N/A | BK53: N/A | BL53: N/A | BM53: N/A | BN53: N/A | BO53: N/A | BP53: N/A | BQ53: N/A | BR53: N/A | BS53: N/A | BT53: N/A | BU53: N/A | BV53: N/A | BW53: N/A | BX53: N/A | BY53: N/A | BZ53: N/A | CA53: N/A | CB53: N/A
B54: Contaminated (E. coli detected in 100 mL) | C54: N/A | D54: N/A | E54: N/A | F54: N/A | G54: N/A | H54: N/A | I54: N/A | J54: N/A | K54: N/A | L54: N/A | M54: N/A | N54: N/A | O54: N/A | P54: N/A | Q54: N/A | R54: N/A | S54: N/A | T54: N/A | U54: N/A | V54: N/A | W54: N/A | X54: N/A | Y54: N/A | Z54: N/A | AA54: N/A | AB54: N/A | BB54: Contaminated (E. coli detected in 100 mL) | BC54: N/A | BD54: N/A | BE54: N/A | BF54: N/A | BG54: N/A | BH54: N/A | BI54: N/A | BJ54: N/A | BK54: N/A | BL54: N/A | BM54: N/A | BN54: N/A | BO54: N/A | BP54: N/A | BQ54: N/A | BR54: N/A | BS54: N/A | BT54: N/A | BU54: N/A | BV54: N/A | BW54: N/A | BX54: N/A | BY54: N/A | BZ54: N/A | CA54: N/A | CB54: N/A
B55: Highly contaminated (>100 CFU/100 mL) | C55: N/A | D55: N/A | E55: N/A | F55: N/A | G55: N/A | H55: N/A | I55: N/A | J55: N/A | K55: N/A | L55: N/A | M55: N/A | N55: N/A | O55: N/A | P55: N/A | Q55: N/A | R55: N/A | S55: N/A | T55: N/A | U55: N/A | V55: N/A | W55: N/A | X55: N/A | Y55: N/A | Z55: N/A | AA55: N/A | AB55: N/A | BB55: Highly contaminated (>100 CFU/100 mL) | BC55: N/A | BD55: N/A | BE55: N/A | BF55: N/A | BG55: N/A | BH55: N/A | BI55: N/A | BJ55: N/A | BK55: N/A | BL55: N/A | BM55: N/A | BN55: N/A | BO55: N/A | BP55: N/A | BQ55: N/A | BR55: N/A | BS55: N/A | BT55: N/A | BU55: N/A | BV55: N/A | BW55: N/A | BX55: N/A | BY55: N/A | BZ55: N/A | CA55: N/A | CB55: N/A
C56: NATIONAL wealth index quintile | H56: URBAN wealth index quintile | M56: RURAL wealth index quintile | R56: SUB-REGIONS: | BA56: Raw numbers of respondents: | BB56: Use of drinking water sources | BC56: NATIONAL wealth index quintile | BH56: URBAN wealth index quintile | BM56: RURAL wealth index quintile | BR56: SUB-REGIONS:
A57: Percentage based on weighted population | C57: Poorest | D57: Poor | E57: Middle | F57: Rich | G57: Richest | H57: Poorest | I57: Poor | J57: Middle | K57: Rich | L57: Richest | M57: Poorest | N57: Poor | O57: Middle | P57: Rich | Q57: Richest | R57: Centre | S57: Centre Nord | T57: Centre-Est | U57: Centre-Ouest | V57: Nord | W57: Nord-Est | X57: Nou=rd-Ouest | Y57: Ouest | Z57: Sud | AA57: Sud-Ouest | AB57: Ville d'Abidjan | BA57: Water data, raw numbers (weighted) | BC57: Poorest | BD57: Poor | BE57: Middle | BF57: Rich | BG57: Richest | BH57: Poorest | BI57: Poor | BJ57: Middle | BK57: Rich | BL57: Richest | BM57: Poorest | BN57: Poor | BO57: Middle | BP57: Rich | BQ57: Richest | BR57: Centre | BS57: Centre Nord | BT57: Centre-Est | BU57: Centre-Ouest | BV57: Nord | BW57: Nord-Est | BX57: Nou=rd-Ouest | BY57: Ouest | BZ57: Sud | CA57: Sud-Ouest | CB57: Ville d'Abidjan
A58: Source of drinking water | B58: Piped into dwelling | C58: 2.473809738 | D58: 4.209818038 | E58: 12.22686748 | F58: 26.00324921 | G58: 62.3216855 | H58: 8.761125777 | I58: 25.31513915 | J58: 25.22112991 | K58: 42.4361521 | L58: 81.66621483 | M58: 0.8453310911 | N58: 2.663875759 | O58: 2.827886646 | P58: 12.01635061 | Q58: 33.80001547 | R58: 13.99189165 | S58: 21.73386475 | T58: 18.22721333 | U58: 8.883914345 | V58: 10.82390927 | W58: 3.822138987 | X58: 8.647382556 | Y58: 4.218280809 | Z58: 21.66570961 | AA58: 9.871891046 | AB58: 52.39798885
B59: Piped into yard/plot | C59: 4.751992331 | D59: 10.72198478 | E59: 25.74601697 | F59: 36.14882228 | G59: 24.25456739 | H59: 23.50164774 | I59: 40.96709639 | J59: 45.79263042 | K59: 36.77850649 | L59: 13.73423669 | M59: 1.435133145 | N59: 5.900275923 | O59: 6.218991303 | P59: 17.45912329 | Q59: 26.78427582 | R59: 31.7606776 | S59: 19.94622148 | T59: 19.09202289 | U59: 8.471652536 | V59: 5.78501142 | W59: 3.777664107 | X59: 6.103990605 | Y59: 2.156047313 | Z59: 27.29140037 | AA59: 5.463271709 | AB59: 36.51410979
B60: Public tap | C60: 18.9443196 | D60: 17.41125591 | E60: 15.54812898 | F60: 9.768162301 | G60: 5.237268048 | H60: 15.34262686 | I60: 10.48127533 | J60: 5.791095044 | K60: 6.152794595 | L60: 0.7410702268 | M60: 19.90754864 | N60: 16.096641 | O60: 19.31058899 | P60: 20.75772706 | Q60: 11.14313819 | R60: 9.189052892 | S60: 16.44026814 | T60: 6.057954605 | U60: 13.19628677 | V60: 19.71082849 | W60: 16.25076498 | X60: 33.63228472 | Y60: 17.11343232 | Z60: 11.93217041 | AA60: 12.56226741 | AB60: 10.406203
B61: Open well in dwelling | C61: 9.253459382 | D61: 9.250665125 | E61: 7.371767079 | F61: 5.256332455 | G61: 1.233479245 | H61: 11.26371544 | I61: 4.129801144 | J61: 4.868715935 | K61: 1.811312209 | L61: 0.170823188 | M61: 6.78062217 | N61: 10.21758449 | O61: 9.499080358 | P61: 7.40701473 | Q61: 5.610445998 | R61: 0.7074801524 | S61: 7.833582662 | T61: 4.337068371 | U61: 3.31492642 | V61: 16.49510988 | W61: 0.8273663958 | X61: 12.38651773 | Y61: 12.83698152 | Z61: 7.973806255 | AA61: 20.38153334 | AB61: 0.2708144005
B62: Open well in yard/plot | C62: 8.692306348 | D62: 8.149580795 | E62: 6.380950124 | F62: 6.403818816 | G62: 1.493673683 | H62: 9.635923494 | I62: 5.418340631 | J62: 4.439663773 | K62: 2.89012823 | L62: 0.6236538488 | M62: 6.800660174 | N62: 10.76674433 | O62: 9.380817627 | P62: 3.158111384 | Q62: 6.922047854 | R62: 4.175086361 | S62: 4.991473354 | T62: 13.96967838 | U62: 10.0214358 | V62: 4.963085025 | W62: 4.890703346 | X62: 8.501252804 | Y62: 11.69016501 | Z62: 7.020874404 | AA62: 11.45594174 | AB62: 0.1290264099
B63: Open public well | C63: 14.68631902 | D63: 19.18143134 | E63: 14.59334549 | F63: 4.605149892 | G63: 1.429820816 | H63: 11.3244517 | I63: 4.742118957 | J63: 2.76505939 | K63: 2.778698543 | L63: 0.22529497 | M63: 13.93448296 | N63: 16.9020736 | O63: 22.0925731 | P63: 18.23802726 | Q63: 4.958138804 | R63: 8.738382731 | S63: 10.49942649 | T63: 12.62234455 | U63: 17.60720841 | V63: 10.65436383 | W63: 10.78255063 | X63: 10.07997535 | Y63: 24.20007768 | Z63: 12.41109331 | AA63: 12.53819934 | AB63: 0.1464503478
B64: Protected well in dwelling | C64: 2.58220959 | D64: 3.135993773 | E64: 2.22674624 | F64: 4.654629557 | G64: 1.451896916 | H64: 2.77577447 | I64: 3.096486678 | J64: 5.17432879 | K64: 3.323719741 | L64: 1.062372022 | M64: 2.007275457 | N64: 3.208611712 | O64: 2.805224663 | P64: 2.553057061 | Q64: 2.502229669 | R64: 0.9985651423 | S64: 5.609619672 | T64: 5.549713322 | U64: 2.082591231 | V64: 9.906157727 | W64: 4.873231813 | X64: 4.765862735 | Y64: 5.495200625 | Z64: 2.589501654 | AA64: 0.5804491875 | AB64: 0
B65: Protected well in yard/plot | C65: 2.039793603 | D65: 2.59260893 | E65: 6.023023672 | F65: 2.553215497 | G65: 1.258542652 | H65: 3.617075268 | I65: 3.441472624 | J65: 2.856921687 | K65: 2.392353862 | L65: 0.5389636767 | M65: 0.6924750342 | N65: 3.675184924 | O65: 1.979991853 | P65: 6.643500307 | Q65: 1.726737285 | R65: 6.141339336 | S65: 3.686791253 | T65: 5.729786123 | U65: 6.583117234 | V65: 1.040398853 | W65: 1.953132573 | X65: 2.517129971 | Y65: 2.79726319 | Z65: 2.600519496 | AA65: 1.174640102 | AB65: 0.1354072003
B66: Protected public well | C66: 15.38172623 | D66: 15.01870272 | E66: 6.653998864 | F66: 3.624935909 | G66: 0.9718490024 | H66: 8.816554212 | I66: 1.95513688 | J66: 3.090455048 | K66: 1.390517477 | L66: 1.232378823 | M66: 17.39986067 | N66: 14.93415112 | O66: 16.41419469 | P66: 7.628476545 | Q66: 4.077245294 | R66: 18.88963696 | S66: 5.037326979 | T66: 10.60685624 | U66: 11.06224236 | V66: 10.76009681 | W66: 38.41464185 | X66: 4.173790378 | Y66: 5.606850301 | Z66: 5.681663433 | AA66: 3.347013592 | AB66: 0
B67: Protected source | C67: 2.491186585 | D67: 1.522007874 | E67: 1.032191798 | F67: 0.1607212468 | G67: 0.3253916056 | H67: 0.1315848436 | I67: 0.01888927501 | J67: 0 | K67: 0 | L67: 0 | M67: 4.034233301 | N67: 1.637204694 | O67: 1.632369039 | P67: 1.623416433 | Q67: 0.9119358258 | R67: 0.9955262964 | S67: 0.4799972196 | T67: 0 | U67: 5.94166255 | V67: 1.136243397 | W67: 1.127274582 | X67: 0.7087067187 | Y67: 0.5146101889 | Z67: 0 | AA67: 1.674343632 | AB67: 0
B68: Spring | C68: 9.152801647 | D68: 3.854362956 | E68: 1.57231865 | F68: 0.8209628369 | G68: 0 | H68: 1.308066201 | I68: 0.120403272 | J68: 0 | K68: 0 | L68: 0 | M68: 14.90075234 | N68: 5.238342783 | O68: 3.526121194 | P68: 2.364962037 | Q68: 1.563789796 | R68: 0.9459899737 | S68: 3.120331383 | T68: 0.9529017509 | U68: 8.78678975 | V68: 5.926846021 | W68: 9.165237149 | X68: 4.961289262 | Y68: 7.295888507 | Z68: 0.7784833309 | AA68: 1.823553795 | AB68: 0
B69: River, stream | C69: 6.041084877 | D69: 3.270947266 | E69: 0.2915397093 | F69: 0 | G69: 0 | H69: 2.866105351 | I69: 0 | J69: 0 | K69: 0 | L69: 0 | M69: 7.440938688 | N69: 5.609207047 | O69: 2.085865142 | P69: 0.1502332793 | Q69: 0 | R69: 2.064706448 | S69: 0 | T69: 2.055445628 | U69: 2.955355756 | V69: 0.7924268901 | W69: 2.05395955 | X69: 2.221368505 | Y69: 1.502942949 | Z69: 0.05477772708 | AA69: 16.2443633 | AB69: 0
B70: Pond, lake | C70: 3.014261768 | D70: 1.160634142 | E70: 0.333104947 | F70: 0 | G70: 0 | H70: 0.3042137103 | I70: 0.313839676 | J70: 0 | K70: 0 | L70: 0 | M70: 3.355667466 | N70: 2.822939898 | O70: 1.495966329 | P70: 0 | Q70: 0 | R70: 1.244325428 | S70: 0.6137145369 | T70: 0.7626659712 | U70: 0.2618879963 | V70: 2.005522385 | W70: 2.061334035 | X70: 1.300448659 | Y70: 3.463909717 | Z70: 0 | AA70: 2.882531803 | AB70: 0
B71: Rainwater | C71: 0.06608586751 | D71: 0.004828380619 | E71: 0 | F71: 0 | G71: 0 | H71: 0.01093529188 | I71: 0 | J71: 0 | K71: 0 | L71: 0 | M71: 0.1420205604 | N71: 0 | O71: 0 | P71: 0 | Q71: 0 | R71: 0.1423256933 | S71: 0 | T71: 0.03634884157 | U71: 0 | V71: 0 | W71: 0 | X71: 0 | Y71: 0 | Z71: 0 | AA71: 0 | AB71: 0
B72: Tanker truck | C72: 0 | D72: 0.2852837038 | E72: 0 | F72: 0 | G72: 0 | H72: 0 | I72: 0 | J72: 0 | K72: 0 | L72: 0 | M72: 0 | N72: 0 | O72: 0.4479632928 | P72: 0 | Q72: 0 | R72: 0 | S72: 0 | T72: 0 | U72: 0.4413362636 | V72: 0 | W72: 0 | X72: 0 | Y72: 0 | Z72: 0 | AA72: 0 | AB72: 0
B73: Bottled water | C73: 0.08428685427 | D73: 0.05007070605 | E73: 0 | F73: 0 | G73: 0.02182514466 | H73: 0.3401996414 | I73: 0 | J73: 0 | K73: 0.04581675946 | L73: 0.004991724688 | M73: 0 | N73: 0 | O73: 0 | P73: 0 | Q73: 0 | R73: 0 | S73: 0.007382078095 | T73: 0 | U73: 0.03291492852 | V73: 0 | W73: 0 | X73: 0 | Y73: 0.3327591998 | Z73: 0 | AA73: 0 | AB73: 0
B74: Other | C74: 0.3443565585 | D74: 0.1798235645 | E74: 0 | F74: 0 | G74: 0 | H74: 0 | I74: 0 | J74: 0 | K74: 0 | L74: 0 | M74: 0.322998303 | N74: 0.3271627111 | O74: 0.2823657819 | P74: 0 | Q74: 0 | R74: 0.01501334321 | S74: 0 | T74: 0 | U74: 0.3566776518 | V74: 0 | W74: 0 | X74: 0 | Y74: 0.7755906642 | Z74: 0 | AA74: 0 | AB74: 0
A108: =A1026 -> Côte d'Ivoire
A109: =A1034 -> 2005
A110: Use of sanitation facilities
A111: by wealth quintile and sub-national region
A112: Notes:
A113: WHO/UNICEF JMP customised wealth index excludes water,
A114: sanitation and hygiene assets.
A115: Survey used for analysis: | B115: =A1025 -> AIS05
A116: =B1030 -> Ratio of Improved latrines based on: | B116: DHS12
A117: =B1029 -> Ratio of Shared improved based on: | B117: MICS06
A120: Use of sanitation facilities | C120: NATIONAL wealth index quintile | H120: URBAN wealth index quintile | M120: RURAL wealth index quintile | R120: SUB-REGIONS: | BA120: Raw numbers of respondents: | BB120: Use of sanitation facilities | BC120: NATIONAL wealth index quintile | BH120: URBAN wealth index quintile | BM120: RURAL wealth index quintile | BR120: SUB-REGIONS:
A121: Weighted percentage (used in graphs) | C121: Poorest | D121: Poor | E121: Middle | F121: Rich | G121: Richest | H121: Poorest | I121: Poor | J121: Middle | K121: Rich | L121: Richest | M121: Poorest | N121: Poor | O121: Middle | P121: Rich | Q121: Richest | R121: Centre | S121: Centre Nord | T121: Centre-Est | U121: Centre-Ouest | V121: Nord | W121: Nord-Est | X121: Nou=rd-Ouest | Y121: Ouest | Z121: Sud | AA121: Sud-Ouest | AB121: Ville d'Abidjan | BA121: Sanitation data, raw numbers (weighted) | BC121: Poorest | BD121: Poor | BE121: Middle | BF121: Rich | BG121: Richest | BH121: Poorest | BI121: Poor | BJ121: Middle | BK121: Rich | BL121: Richest | BM121: Poorest | BN121: Poor | BO121: Middle | BP121: Rich | BQ121: Richest | BR121: Centre | BS121: Centre Nord | BT121: Centre-Est | BU121: Centre-Ouest | BV121: Nord | BW121: Nord-Est | BX121: Nou=rd-Ouest | BY121: Ouest | BZ121: Sud | CA121: Sud-Ouest | CB121: Ville d'Abidjan
A122: Sanitation | B122: Improved | C122: =C153+C155+C154*[1]DHS12!C130/100 -> 16.66622443 | D122: =D153+D155+D154*[1]DHS12!D130/100 -> 27.888771 | E122: =E153+E155+E154*[1]DHS12!E130/100 -> 46.6172333 | F122: =F153+F155+F154*[1]DHS12!F130/100 -> 69.66944753 | G122: =G153+G155+G154*[1]DHS12!G130/100 -> 89.89930706 | H122: =H153+H155+H154*[1]DHS12!H130/100 -> 50.5175894 | I122: =I153+I155+I154*[1]DHS12!I130/100 -> 72.55319113 | J122: =J153+J155+J154*[1]DHS12!J130/100 -> 79.17004696 | K122: =K153+K155+K154*[1]DHS12!K130/100 -> 89.31642787 | L122: =L153+L155+L154*[1]DHS12!L130/100 -> 97.48067009 | M122: =M153+M155+M154*[1]DHS12!M130/100 -> 12.30428314 | N122: =N153+N155+N154*[1]DHS12!N130/100 -> 17.94998373 | O122: =O153+O155+O154*[1]DHS12!O130/100 -> 23.12217224 | P122: =P153+P155+P154*[1]DHS12!P130/100 -> 38.75853753 | Q122: =Q153+Q155+Q154*[1]DHS12!Q130/100 -> 57.54993751 | R122: =R153+R155+R154*[1]DHS12!R130/100 -> 52.22815423 | S122: =S153+S155+S154*[1]DHS12!S130/100 -> 56.5344759 | T122: =T153+T155+T154*[1]DHS12!T130/100 -> 67.04280999 | U122: =U153+U155+U154*[1]DHS12!U130/100 -> 24.74408237 | V122: =V153+V155+V154*[1]DHS12!V130/100 -> 50.29250757 | W122: =W153+W155+W154*[1]DHS12!W130/100 -> 13.29980266 | X122: =X153+X155+X154*[1]DHS12!X130/100 -> 43.06416303 | Y122: =Y153+Y155+Y154*[1]DHS12!Y130/100 -> 27.03321583 | Z122: =Z153+Z155+Z154*[1]DHS12!Z130/100 -> 54.36732425 | AA122: =AA153+AA155+AA154*[1]DHS12!AA130/100 -> 35.77979637 | AB122: =AB153+AB155+AB154*[1]DHS12!AB130/100 -> 88.64498753 | BA122: Sanitation | BB122: Improved | BC122: N/A | BD122: N/A | BE122: N/A | BF122: N/A | BG122: N/A | BH122: N/A | BI122: N/A | BJ122: N/A | BK122: N/A | BL122: N/A | BM122: N/A | BN122: N/A | BO122: N/A | BP122: N/A | BQ122: N/A | BR122: N/A | BS122: N/A | BT122: N/A | BU122: N/A | BV122: N/A | BW122: N/A | BX122: N/A | BY122: N/A | BZ122: N/A | CA122: N/A | CB122: N/A
B123: Not Improved | C123: =100-C122 -> 83.33377557 | D123: =100-D122 -> 72.111229 | E123: 53.3827667 | F123: 30.33055247 | G123: 10.10069294 | H123: 49.4824106 | I123: 27.44680887 | J123: 20.82995304 | K123: 10.68357213 | L123: 2.519329912 | M123: 87.69571686 | N123: 82.05001627 | O123: 76.87782776 | P123: 61.24146247 | Q123: 42.45006249 | R123: 47.77184577 | S123: 43.4655241 | T123: 32.95719001 | U123: 75.25591763 | V123: 49.70749243 | W123: 86.70019734 | X123: 56.93583697 | Y123: 72.96678417 | Z123: 45.63267575 | AA123: 64.22020363 | AB123: 11.35501247 | BB123: Not Improved | BC123: N/A | BD123: N/A | BE123: N/A | BF123: N/A | BG123: N/A | BH123: N/A | BI123: N/A | BJ123: N/A | BK123: N/A | BL123: N/A | BM123: N/A | BN123: N/A | BO123: N/A | BP123: N/A | BQ123: N/A | BR123: N/A | BS123: N/A | BT123: N/A | BU123: N/A | BV123: N/A | BW123: N/A | BX123: N/A | BY123: N/A | BZ123: N/A | CA123: N/A | CB123: N/A
A124: Sanitation ladder | B124: Basic | C124: =C122*[1]MICS06!C129/100 -> 4.154651859 | D124: =D122*[1]MICS06!D129/100 -> 11.28011591 | E124: =E122*[1]MICS06!E129/100 -> 20.82508697 | F124: =F122*[1]MICS06!F129/100 -> 31.56920009 | G124: =G122*[1]MICS06!G129/100 -> 66.18814073 | H124: =H122*[1]MICS06!H129/100 -> 18.06230183 | I124: =I122*[1]MICS06!I129/100 -> 27.70205641 | J124: =J122*[1]MICS06!J129/100 -> 33.67834956 | K124: =K122*[1]MICS06!K129/100 -> 55.17682889 | L124: =L122*[1]MICS06!L129/100 -> 87.87709578 | M124: =M122*[1]MICS06!M129/100 -> 3.128975329 | N124: =N122*[1]MICS06!N129/100 -> 4.625678397 | O124: =O122*[1]MICS06!O129/100 -> 9.269586458 | P124: =P122*[1]MICS06!P129/100 -> 18.85758953 | Q124: =Q122*[1]MICS06!Q129/100 -> 37.1365424 | R124: =R122*[1]MICS06!R129/100 -> 36.22979197 | S124: =S122*[1]MICS06!S129/100 -> 37.45636511 | T124: =T122*[1]MICS06!T129/100 -> 31.99763063 | U124: =U122*[1]MICS06!U129/100 -> 15.15320586 | V124: =V122*[1]MICS06!V129/100 -> 23.94279258 | W124: =W122*[1]MICS06!W129/100 -> 3.927423971 | X124: =X122*[1]MICS06!X129/100 -> 18.99733018 | Y124: =Y122*[1]MICS06!Y129/100 -> 11.31677397 | Z124: =Z122*[1]MICS06!Z129/100 -> 27.33307311 | AA124: =AA122*[1]MICS06!AA129/100 -> 13.60803373 | AB124: =AB122*[1]MICS06!AB129/100 -> 48.82127579 | BA124: Sanitation ladder | BB124: Basic | BC124: N/A | BD124: N/A | BE124: N/A | BF124: N/A | BG124: N/A | BH124: N/A | BI124: N/A | BJ124: N/A | BK124: N/A | BL124: N/A | BM124: N/A | BN124: N/A | BO124: N/A | BP124: N/A | BQ124: N/A | BR124: N/A | BS124: N/A | BT124: N/A | BU124: N/A | BV124: N/A | BW124: N/A | BX124: N/A | BY124: N/A | BZ124: N/A | CA124: N/A | CB124: N/A
B125: Limited | C125: =C122*[1]MICS06!C128/100 -> 12.51157257 | D125: =D122*[1]MICS06!D128/100 -> 16.60865509 | E125: =E122*[1]MICS06!E128/100 -> 25.79214633 | F125: =F122*[1]MICS06!F128/100 -> 38.10024744 | G125: =G122*[1]MICS06!G128/100 -> 23.71116634 | H125: =H122*[1]MICS06!H128/100 -> 32.45528757 | I125: =I122*[1]MICS06!I128/100 -> 44.85113472 | J125: =J122*[1]MICS06!J128/100 -> 45.49169739 | K125: =K122*[1]MICS06!K128/100 -> 34.13959898 | L125: =L122*[1]MICS06!L128/100 -> 9.603574307 | M125: =M122*[1]MICS06!M128/100 -> 9.175307814 | N125: =N122*[1]MICS06!N128/100 -> 13.32430534 | O125: =O122*[1]MICS06!O128/100 -> 13.85258579 | P125: =P122*[1]MICS06!P128/100 -> 19.900948 | Q125: =Q122*[1]MICS06!Q128/100 -> 20.41339511 | R125: =R122*[1]MICS06!R128/100 -> 15.99836226 | S125: =S122*[1]MICS06!S128/100 -> 19.07811079 | T125: =T122*[1]MICS06!T128/100 -> 35.04517936 | U125: =U122*[1]MICS06!U128/100 -> 9.590876517 | V125: =V122*[1]MICS06!V128/100 -> 26.34971499 | W125: =W122*[1]MICS06!W128/100 -> 9.372378685 | X125: =X122*[1]MICS06!X128/100 -> 24.06683286 | Y125: =Y122*[1]MICS06!Y128/100 -> 15.71644186 | Z125: =Z122*[1]MICS06!Z128/100 -> 27.03425113 | AA125: =AA122*[1]MICS06!AA128/100 -> 22.17176264 | AB125: =AB122*[1]MICS06!AB128/100 -> 39.82371174 | BB125: Limited | BC125: N/A | BD125: N/A | BE125: N/A | BF125: N/A | BG125: N/A | BH125: N/A | BI125: N/A | BJ125: N/A | BK125: N/A | BL125: N/A | BM125: N/A | BN125: N/A | BO125: N/A | BP125: N/A | BQ125: N/A | BR125: N/A | BS125: N/A | BT125: N/A | BU125: N/A | BV125: N/A | BW125: N/A | BX125: N/A | BY125: N/A | BZ125: N/A | CA125: N/A | CB125: N/A
B126: Unimproved | C126: =100-(C124+C125+C127) -> 20.71330593 | D126: =100-(D124+D125+D127) -> 23.30314508 | E126: 25.86513582 | F126: 19.31781466 | G126: 8.353432881 | H126: 25.90656964 | I126: 24.92296007 | J126: 17.38596344 | K126: 10.65500623 | L126: 2.519329912 | M126: 14.87727723 | N126: 24.38033137 | O126: 21.19803344 | P126: 24.45042216 | Q126: 20.97122852 | R126: 13.34980297 | S126: 29.49301582 | T126: 18.26268463 | U126: 29.34440796 | V126: 10.92278558 | W126: 13.85338514 | X126: 9.567123934 | Y126: 12.90207143 | Z126: 17.00587447 | AA126: 34.0950711 | AB126: 10.52898676 | BB126: Unimproved | BC126: N/A | BD126: N/A | BE126: N/A | BF126: N/A | BG126: N/A | BH126: N/A | BI126: N/A | BJ126: N/A | BK126: N/A | BL126: N/A | BM126: N/A | BN126: N/A | BO126: N/A | BP126: N/A | BQ126: N/A | BR126: N/A | BS126: N/A | BT126: N/A | BU126: N/A | BV126: N/A | BW126: N/A | BX126: N/A | BY126: N/A | BZ126: N/A | CA126: N/A | CB126: N/A
B127: Open defecation | C127: =C156 -> 62.62046964 | D127: =D156 -> 48.80808392 | E127: 27.51763088 | F127: 11.01273781 | G127: 1.747260055 | H127: 23.57584096 | I127: 2.523848804 | J127: 3.443989599 | K127: 0.02856589996 | L127: 0 | M127: 72.81843963 | N127: 57.66968489 | O127: 55.67979432 | P127: 36.79104031 | Q127: 21.47883396 | R127: 34.4220428 | S127: 13.97250828 | T127: 14.69450538 | U127: 45.91150966 | V127: 38.78470685 | W127: 72.84681221 | X127: 47.36871303 | Y127: 60.06471274 | Z127: 28.62680128 | AA127: 30.12513253 | AB127: 0.8260257083 | BB127: Open defecation | BC127: N/A | BD127: N/A | BE127: N/A | BF127: N/A | BG127: N/A | BH127: N/A | BI127: N/A | BJ127: N/A | BK127: N/A | BL127: N/A | BM127: N/A | BN127: N/A | BO127: N/A | BP127: N/A | BQ127: N/A | BR127: N/A | BS127: N/A | BT127: N/A | BU127: N/A | BV127: N/A | BW127: N/A | BX127: N/A | BY127: N/A | BZ127: N/A | CA127: N/A | CB127: N/A
A128: Shared among Improved Sanitation | B128: Yes | C128: N/A | D128: N/A | E128: N/A | F128: N/A | G128: N/A | H128: N/A | I128: N/A | J128: N/A | K128: N/A | L128: N/A | M128: N/A | N128: N/A | O128: N/A | P128: N/A | Q128: N/A | R128: N/A | S128: N/A | T128: N/A | U128: N/A | V128: N/A | W128: N/A | X128: N/A | Y128: N/A | Z128: N/A | AA128: N/A | AB128: N/A | BA128: Shared among improved sanitation facilities | BB128: Yes | BC128: N/A | BD128: N/A | BE128: N/A | BF128: N/A | BG128: N/A | BH128: N/A | BI128: N/A | BJ128: N/A | BK128: N/A | BL128: N/A | BM128: N/A | BN128: N/A | BO128: N/A | BP128: N/A | BQ128: N/A | BR128: N/A | BS128: N/A | BT128: N/A | BU128: N/A | BV128: N/A | BW128: N/A | BX128: N/A | BY128: N/A | BZ128: N/A | CA128: N/A | CB128: N/A
B129: No | C129: N/A | D129: N/A | E129: N/A | F129: N/A | G129: N/A | H129: N/A | I129: N/A | J129: N/A | K129: N/A | L129: N/A | M129: N/A | N129: N/A | O129: N/A | P129: N/A | Q129: N/A | R129: N/A | S129: N/A | T129: N/A | U129: N/A | V129: N/A | W129: N/A | X129: N/A | Y129: N/A | Z129: N/A | AA129: N/A | AB129: N/A | BB129: No | BC129: N/A | BD129: N/A | BE129: N/A | BF129: N/A | BG129: N/A | BH129: N/A | BI129: N/A | BJ129: N/A | BK129: N/A | BL129: N/A | BM129: N/A | BN129: N/A | BO129: N/A | BP129: N/A | BQ129: N/A | BR129: N/A | BS129: N/A | BT129: N/A | BU129: N/A | BV129: N/A | BW129: N/A | BX129: N/A | BY129: N/A | BZ129: N/A | CA129: N/A | CB129: N/A
A130: Manually calculated ratios | B130: Improved latrines
B131: Other
B132: Other
C133: NATIONAL wealth index quintile | H133: URBAN wealth index quintile | M133: RURAL wealth index quintile | R133: SUB-REGIONS: | BA133: Raw numbers of respondents: | BB133: Use of sanitation facilities | BC133: NATIONAL wealth index quintile | BH133: URBAN wealth index quintile | BM133: RURAL wealth index quintile | BR133: SUB-REGIONS:
A134: Percentage based on weighted population | C134: Poorest | D134: Poor | E134: Middle | F134: Rich | G134: Richest | H134: Poorest | I134: Poor | J134: Middle | K134: Rich | L134: Richest | M134: Poorest | N134: Poor | O134: Middle | P134: Rich | Q134: Richest | R134: Centre | S134: Centre Nord | T134: Centre-Est | U134: Centre-Ouest | V134: Nord | W134: Nord-Est | X134: Nou=rd-Ouest | Y134: Ouest | Z134: Sud | AA134: Sud-Ouest | AB134: Ville d'Abidjan | BA134: Sanitation data, raw numbers (weighted) | BC134: Poorest | BD134: Poor | BE134: Middle | BF134: Rich | BG134: Richest | BH134: Poorest | BI134: Poor | BJ134: Middle | BK134: Rich | BL134: Richest | BM134: Poorest | BN134: Poor | BO134: Middle | BP134: Rich | BQ134: Richest | BR134: Centre | BS134: Centre Nord | BT134: Centre-Est | BU134: Centre-Ouest | BV134: Nord | BW134: Nord-Est | BX134: Nou=rd-Ouest | BY134: Ouest | BZ134: Sud | CA134: Sud-Ouest | CB134: Ville d'Abidjan
A135: Sanitation type | B135: Sewer connection | C135: N/A | D135: N/A | E135: N/A | F135: N/A | G135: N/A | H135: N/A | I135: N/A | J135: N/A | K135: N/A | L135: N/A | M135: N/A | N135: N/A | O135: N/A | P135: N/A | Q135: N/A | R135: N/A | S135: N/A | T135: N/A | U135: N/A | V135: N/A | W135: N/A | X135: N/A | Y135: N/A | Z135: N/A | AA135: N/A | AB135: N/A | BA135: Sanitation type | BB135: Sewer connection | BC135: N/A | BD135: N/A | BE135: N/A | BF135: N/A | BG135: N/A | BH135: N/A | BI135: N/A | BJ135: N/A | BK135: N/A | BL135: N/A | BM135: N/A | BN135: N/A | BO135: N/A | BP135: N/A | BQ135: N/A | BR135: N/A | BS135: N/A | BT135: N/A | BU135: N/A | BV135: N/A | BW135: N/A | BX135: N/A | BY135: N/A | BZ135: N/A | CA135: N/A | CB135: N/A
B136: Septic tank connection | C136: N/A | D136: N/A | E136: N/A | F136: N/A | G136: N/A | H136: N/A | I136: N/A | J136: N/A | K136: N/A | L136: N/A | M136: N/A | N136: N/A | O136: N/A | P136: N/A | Q136: N/A | R136: N/A | S136: N/A | T136: N/A | U136: N/A | V136: N/A | W136: N/A | X136: N/A | Y136: N/A | Z136: N/A | AA136: N/A | AB136: N/A | BB136: Septic tank connection | BC136: N/A | BD136: N/A | BE136: N/A | BF136: N/A | BG136: N/A | BH136: N/A | BI136: N/A | BJ136: N/A | BK136: N/A | BL136: N/A | BM136: N/A | BN136: N/A | BO136: N/A | BP136: N/A | BQ136: N/A | BR136: N/A | BS136: N/A | BT136: N/A | BU136: N/A | BV136: N/A | BW136: N/A | BX136: N/A | BY136: N/A | BZ136: N/A | CA136: N/A | CB136: N/A
B137: Improved latrines | C137: N/A | D137: N/A | E137: N/A | F137: N/A | G137: N/A | H137: N/A | I137: N/A | J137: N/A | K137: N/A | L137: N/A | M137: N/A | N137: N/A | O137: N/A | P137: N/A | Q137: N/A | R137: N/A | S137: N/A | T137: N/A | U137: N/A | V137: N/A | W137: N/A | X137: N/A | Y137: N/A | Z137: N/A | AA137: N/A | AB137: N/A | BB137: Improved latrines | BC137: N/A | BD137: N/A | BE137: N/A | BF137: N/A | BG137: N/A | BH137: N/A | BI137: N/A | BJ137: N/A | BK137: N/A | BL137: N/A | BM137: N/A | BN137: N/A | BO137: N/A | BP137: N/A | BQ137: N/A | BR137: N/A | BS137: N/A | BT137: N/A | BU137: N/A | BV137: N/A | BW137: N/A | BX137: N/A | BY137: N/A | BZ137: N/A | CA137: N/A | CB137: N/A
B138: Unimproved facilities | C138: N/A | D138: N/A | E138: N/A | F138: N/A | G138: N/A | H138: N/A | I138: N/A | J138: N/A | K138: N/A | L138: N/A | M138: N/A | N138: N/A | O138: N/A | P138: N/A | Q138: N/A | R138: N/A | S138: N/A | T138: N/A | U138: N/A | V138: N/A | W138: N/A | X138: N/A | Y138: N/A | Z138: N/A | AA138: N/A | AB138: N/A | BB138: Unimproved facilities | BC138: N/A | BD138: N/A | BE138: N/A | BF138: N/A | BG138: N/A | BH138: N/A | BI138: N/A | BJ138: N/A | BK138: N/A | BL138: N/A | BM138: N/A | BN138: N/A | BO138: N/A | BP138: N/A | BQ138: N/A | BR138: N/A | BS138: N/A | BT138: N/A | BU138: N/A | BV138: N/A | BW138: N/A | BX138: N/A | BY138: N/A | BZ138: N/A | CA138: N/A | CB138: N/A
B139: Open defecation | C139: N/A | D139: N/A | E139: N/A | F139: N/A | G139: N/A | H139: N/A | I139: N/A | J139: N/A | K139: N/A | L139: N/A | M139: N/A | N139: N/A | O139: N/A | P139: N/A | Q139: N/A | R139: N/A | S139: N/A | T139: N/A | U139: N/A | V139: N/A | W139: N/A | X139: N/A | Y139: N/A | Z139: N/A | AA139: N/A | AB139: N/A | BB139: Open defecation | BC139: N/A | BD139: N/A | BE139: N/A | BF139: N/A | BG139: N/A | BH139: N/A | BI139: N/A | BJ139: N/A | BK139: N/A | BL139: N/A | BM139: N/A | BN139: N/A | BO139: N/A | BP139: N/A | BQ139: N/A | BR139: N/A | BS139: N/A | BT139: N/A | BU139: N/A | BV139: N/A | BW139: N/A | BX139: N/A | BY139: N/A | BZ139: N/A | CA139: N/A | CB139: N/A
A140: Septic tank emptying practices | B140: Not emptied/treated and disposed in situ | C140: N/A | D140: N/A | E140: N/A | F140: N/A | G140: N/A | H140: N/A | I140: N/A | J140: N/A | K140: N/A | L140: N/A | M140: N/A | N140: N/A | O140: N/A | P140: N/A | Q140: N/A | R140: N/A | S140: N/A | T140: N/A | U140: N/A | V140: N/A | W140: N/A | X140: N/A | Y140: N/A | Z140: N/A | AA140: N/A | AB140: N/A | BA140: Septic tank emptying practices | BB140: Not emptied/treated and disposed in situ | BC140: N/A | BD140: N/A | BE140: N/A | BF140: N/A | BG140: N/A | BH140: N/A | BI140: N/A | BJ140: N/A | BK140: N/A | BL140: N/A | BM140: N/A | BN140: N/A | BO140: N/A | BP140: N/A | BQ140: N/A | BR140: N/A | BS140: N/A | BT140: N/A | BU140: N/A | BV140: N/A | BW140: N/A | BX140: N/A | BY140: N/A | BZ140: N/A | CA140: N/A | CB140: N/A
B141: Emptied and buried on site | C141: N/A | D141: N/A | E141: N/A | F141: N/A | G141: N/A | H141: N/A | I141: N/A | J141: N/A | K141: N/A | L141: N/A | M141: N/A | N141: N/A | O141: N/A | P141: N/A | Q141: N/A | R141: N/A | S141: N/A | T141: N/A | U141: N/A | V141: N/A | W141: N/A | X141: N/A | Y141: N/A | Z141: N/A | AA141: N/A | AB141: N/A | BB141: Emptied and buried on site | BC141: N/A | BD141: N/A | BE141: N/A | BF141: N/A | BG141: N/A | BH141: N/A | BI141: N/A | BJ141: N/A | BK141: N/A | BL141: N/A | BM141: N/A | BN141: N/A | BO141: N/A | BP141: N/A | BQ141: N/A | BR141: N/A | BS141: N/A | BT141: N/A | BU141: N/A | BV141: N/A | BW141: N/A | BX141: N/A | BY141: N/A | BZ141: N/A | CA141: N/A | CB141: N/A
B142: Emptied and discharged locally | C142: N/A | D142: N/A | E142: N/A | F142: N/A | G142: N/A | H142: N/A | I142: N/A | J142: N/A | K142: N/A | L142: N/A | M142: N/A | N142: N/A | O142: N/A | P142: N/A | Q142: N/A | R142: N/A | S142: N/A | T142: N/A | U142: N/A | V142: N/A | W142: N/A | X142: N/A | Y142: N/A | Z142: N/A | AA142: N/A | AB142: N/A | BB142: Emptied and discharged locally | BC142: N/A | BD142: N/A | BE142: N/A | BF142: N/A | BG142: N/A | BH142: N/A | BI142: N/A | BJ142: N/A | BK142: N/A | BL142: N/A | BM142: N/A | BN142: N/A | BO142: N/A | BP142: N/A | BQ142: N/A | BR142: N/A | BS142: N/A | BT142: N/A | BU142: N/A | BV142: N/A | BW142: N/A | BX142: N/A | BY142: N/A | BZ142: N/A | CA142: N/A | CB142: N/A
B143: Emptied and removed offsite | C143: N/A | D143: N/A | E143: N/A | F143: N/A | G143: N/A | H143: N/A | I143: N/A | J143: N/A | K143: N/A | L143: N/A | M143: N/A | N143: N/A | O143: N/A | P143: N/A | Q143: N/A | R143: N/A | S143: N/A | T143: N/A | U143: N/A | V143: N/A | W143: N/A | X143: N/A | Y143: N/A | Z143: N/A | AA143: N/A | AB143: N/A | BB143: Emptied and removed offsite | BC143: N/A | BD143: N/A | BE143: N/A | BF143: N/A | BG143: N/A | BH143: N/A | BI143: N/A | BJ143: N/A | BK143: N/A | BL143: N/A | BM143: N/A | BN143: N/A | BO143: N/A | BP143: N/A | BQ143: N/A | BR143: N/A | BS143: N/A | BT143: N/A | BU143: N/A | BV143: N/A | BW143: N/A | BX143: N/A | BY143: N/A | BZ143: N/A | CA143: N/A | CB143: N/A
A144: Latrine emptying practices | B144: Not emptied/treated and disposed in situ | C144: N/A | D144: N/A | E144: N/A | F144: N/A | G144: N/A | H144: N/A | I144: N/A | J144: N/A | K144: N/A | L144: N/A | M144: N/A | N144: N/A | O144: N/A | P144: N/A | Q144: N/A | R144: N/A | S144: N/A | T144: N/A | U144: N/A | V144: N/A | W144: N/A | X144: N/A | Y144: N/A | Z144: N/A | AA144: N/A | AB144: N/A | BA144: Latrine emptying practices | BB144: Not emptied/treated and disposed in situ | BC144: N/A | BD144: N/A | BE144: N/A | BF144: N/A | BG144: N/A | BH144: N/A | BI144: N/A | BJ144: N/A | BK144: N/A | BL144: N/A | BM144: N/A | BN144: N/A | BO144: N/A | BP144: N/A | BQ144: N/A | BR144: N/A | BS144: N/A | BT144: N/A | BU144: N/A | BV144: N/A | BW144: N/A | BX144: N/A | BY144: N/A | BZ144: N/A | CA144: N/A | CB144: N/A
B145: Emptied and buried on site | C145: N/A | D145: N/A | E145: N/A | F145: N/A | G145: N/A | H145: N/A | I145: N/A | J145: N/A | K145: N/A | L145: N/A | M145: N/A | N145: N/A | O145: N/A | P145: N/A | Q145: N/A | R145: N/A | S145: N/A | T145: N/A | U145: N/A | V145: N/A | W145: N/A | X145: N/A | Y145: N/A | Z145: N/A | AA145: N/A | AB145: N/A | BB145: Emptied and buried on site | BC145: N/A | BD145: N/A | BE145: N/A | BF145: N/A | BG145: N/A | BH145: N/A | BI145: N/A | BJ145: N/A | BK145: N/A | BL145: N/A | BM145: N/A | BN145: N/A | BO145: N/A | BP145: N/A | BQ145: N/A | BR145: N/A | BS145: N/A | BT145: N/A | BU145: N/A | BV145: N/A | BW145: N/A | BX145: N/A | BY145: N/A | BZ145: N/A | CA145: N/A | CB145: N/A
B146: Emptied and discharged locally | C146: N/A | D146: N/A | E146: N/A | F146: N/A | G146: N/A | H146: N/A | I146: N/A | J146: N/A | K146: N/A | L146: N/A | M146: N/A | N146: N/A | O146: N/A | P146: N/A | Q146: N/A | R146: N/A | S146: N/A | T146: N/A | U146: N/A | V146: N/A | W146: N/A | X146: N/A | Y146: N/A | Z146: N/A | AA146: N/A | AB146: N/A | BB146: Emptied and discharged locally | BC146: N/A | BD146: N/A | BE146: N/A | BF146: N/A | BG146: N/A | BH146: N/A | BI146: N/A | BJ146: N/A | BK146: N/A | BL146: N/A | BM146: N/A | BN146: N/A | BO146: N/A | BP146: N/A | BQ146: N/A | BR146: N/A | BS146: N/A | BT146: N/A | BU146: N/A | BV146: N/A | BW146: N/A | BX146: N/A | BY146: N/A | BZ146: N/A | CA146: N/A | CB146: N/A
B147: Emptied and removed offsite | C147: N/A | D147: N/A | E147: N/A | F147: N/A | G147: N/A | H147: N/A | I147: N/A | J147: N/A | K147: N/A | L147: N/A | M147: N/A | N147: N/A | O147: N/A | P147: N/A | Q147: N/A | R147: N/A | S147: N/A | T147: N/A | U147: N/A | V147: N/A | W147: N/A | X147: N/A | Y147: N/A | Z147: N/A | AA147: N/A | AB147: N/A | BB147: Emptied and removed offsite | BC147: N/A | BD147: N/A | BE147: N/A | BF147: N/A | BG147: N/A | BH147: N/A | BI147: N/A | BJ147: N/A | BK147: N/A | BL147: N/A | BM147: N/A | BN147: N/A | BO147: N/A | BP147: N/A | BQ147: N/A | BR147: N/A | BS147: N/A | BT147: N/A | BU147: N/A | BV147: N/A | BW147: N/A | BX147: N/A | BY147: N/A | BZ147: N/A | CA147: N/A | CB147: N/A
A148: Shared among improved sanitation facilities | B148: Yes | C148: N/A | D148: N/A | E148: N/A | F148: N/A | G148: N/A | H148: N/A | I148: N/A | J148: N/A | K148: N/A | L148: N/A | M148: N/A | N148: N/A | O148: N/A | P148: N/A | Q148: N/A | R148: N/A | S148: N/A | T148: N/A | U148: N/A | V148: N/A | W148: N/A | X148: N/A | Y148: N/A | Z148: N/A | AA148: N/A | AB148: N/A | BA148: Shared among improved sanitation facilities | BB148: Yes | BC148: N/A | BD148: N/A | BE148: N/A | BF148: N/A | BG148: N/A | BH148: N/A | BI148: N/A | BJ148: N/A | BK148: N/A | BL148: N/A | BM148: N/A | BN148: N/A | BO148: N/A | BP148: N/A | BQ148: N/A | BR148: N/A | BS148: N/A | BT148: N/A | BU148: N/A | BV148: N/A | BW148: N/A | BX148: N/A | BY148: N/A | BZ148: N/A | CA148: N/A | CB148: N/A
B149: No | C149: N/A | D149: N/A | E149: N/A | F149: N/A | G149: N/A | H149: N/A | I149: N/A | J149: N/A | K149: N/A | L149: N/A | M149: N/A | N149: N/A | O149: N/A | P149: N/A | Q149: N/A | R149: N/A | S149: N/A | T149: N/A | U149: N/A | V149: N/A | W149: N/A | X149: N/A | Y149: N/A | Z149: N/A | AA149: N/A | AB149: N/A | BB149: No | BC149: N/A | BD149: N/A | BE149: N/A | BF149: N/A | BG149: N/A | BH149: N/A | BI149: N/A | BJ149: N/A | BK149: N/A | BL149: N/A | BM149: N/A | BN149: N/A | BO149: N/A | BP149: N/A | BQ149: N/A | BR149: N/A | BS149: N/A | BT149: N/A | BU149: N/A | BV149: N/A | BW149: N/A | BX149: N/A | BY149: N/A | BZ149: N/A | CA149: N/A | CB149: N/A
B150: DK/missing | C150: N/A | D150: N/A | E150: N/A | F150: N/A | G150: N/A | H150: N/A | I150: N/A | J150: N/A | K150: N/A | L150: N/A | M150: N/A | N150: N/A | O150: N/A | P150: N/A | Q150: N/A | R150: N/A | S150: N/A | T150: N/A | U150: N/A | V150: N/A | W150: N/A | X150: N/A | Y150: N/A | Z150: N/A | AA150: N/A | AB150: N/A | BB150: DK/missing | BC150: N/A | BD150: N/A | BE150: N/A | BF150: N/A | BG150: N/A | BH150: N/A | BI150: N/A | BJ150: N/A | BK150: N/A | BL150: N/A | BM150: N/A | BN150: N/A | BO150: N/A | BP150: N/A | BQ150: N/A | BR150: N/A | BS150: N/A | BT150: N/A | BU150: N/A | BV150: N/A | BW150: N/A | BX150: N/A | BY150: N/A | BZ150: N/A | CA150: N/A | CB150: N/A
A151: Shared among all sanitation facilities | B151: Yes | C151: N/A | D151: N/A | E151: N/A | F151: N/A | G151: N/A | H151: N/A | I151: N/A | J151: N/A | K151: N/A | L151: N/A | M151: N/A | N151: N/A | O151: N/A | P151: N/A | Q151: N/A | R151: N/A | S151: N/A | T151: N/A | U151: N/A | V151: N/A | W151: N/A | X151: N/A | Y151: N/A | Z151: N/A | AA151: N/A | AB151: N/A | BA151: Shared among all sanitation facilities | BB151: Yes | BC151: N/A | BD151: N/A | BE151: N/A | BF151: N/A | BG151: N/A | BH151: N/A | BI151: N/A | BJ151: N/A | BK151: N/A | BL151: N/A | BM151: N/A | BN151: N/A | BO151: N/A | BP151: N/A | BQ151: N/A | BR151: N/A | BS151: N/A | BT151: N/A | BU151: N/A | BV151: N/A | BW151: N/A | BX151: N/A | BY151: N/A | BZ151: N/A | CA151: N/A | CB151: N/A
B152: No | C152: N/A | D152: N/A | E152: N/A | F152: N/A | G152: N/A | H152: N/A | I152: N/A | J152: N/A | K152: N/A | L152: N/A | M152: N/A | N152: N/A | O152: N/A | P152: N/A | Q152: N/A | R152: N/A | S152: N/A | T152: N/A | U152: N/A | V152: N/A | W152: N/A | X152: N/A | Y152: N/A | Z152: N/A | AA152: N/A | AB152: N/A | BB152: No | BC152: N/A | BD152: N/A | BE152: N/A | BF152: N/A | BG152: N/A | BH152: N/A | BI152: N/A | BJ152: N/A | BK152: N/A | BL152: N/A | BM152: N/A | BN152: N/A | BO152: N/A | BP152: N/A | BQ152: N/A | BR152: N/A | BS152: N/A | BT152: N/A | BU152: N/A | BV152: N/A | BW152: N/A | BX152: N/A | BY152: N/A | BZ152: N/A | CA152: N/A | CB152: N/A
A153: Type of toilet facility | B153: Flush toilet | C153: 1.325602516 | D153: 3.55523357 | E153: 7.779454382 | F153: 25.26449969 | G153: 57.34500066 | H153: 6.330869609 | I153: 19.68275581 | J153: 24.11300921 | K153: 36.41990232 | L153: 83.58965867 | M153: 0.3060575529 | N153: 2.049807848 | O153: 1.133023714 | P153: 8.617870183 | Q153: 29.64199518 | R153: 23.62922981 | S153: 7.23841431 | T153: 8.351637801 | U153: 7.051019595 | V153: 0.6726395184 | W153: 4.440034517 | X153: 1.278800574 | Y153: 3.351984683 | Z153: 19.0091634 | AA153: 7.357576069 | AB153: 49.90901588 | BA153: Type of toilet facility | BB153: Flush toilet | BC153: 73.018208 | BD153: 164.918761 | BE153: 387.755409 | BF153: 1293.433297 | BG153: 2870.276271 | BH153: 129.669075 | BI153: 492.496248 | BJ153: 441.662436 | BK153: 784.542725 | BL153: 1765.711238 | BM153: 7.849035 | BN153: 66.947337 | BO153: 33.471522 | BP153: 270.123151 | BQ153: 796.929179 | BR153: 602.062063 | BS153: 103.172451 | BT153: 51.461744 | BU153: 211.427365 | BV153: 9.68304 | BW153: 56.871929 | BX153: 10.066557 | BY153: 70.190583 | BZ153: 1032.725888 | CA153: 115.70021 | CB153: 2526.040116
B154: Traditional pit toilet | C154: 31.58682718 | D154: 44.6512606 | E154: 58.85578916 | F154: 54.31399786 | G154: 35.42293248 | H154: 59.70078925 | I154: 67.9217369 | J154: 60.71858428 | K154: 53.44691492 | L154: 13.36251111 | M154: 22.64277471 | N154: 37.59192072 | O154: 41.28896776 | P154: 50.35745971 | Q154: 45.51656764 | R154: 38.91655931 | S154: 76.1043793 | T154: 73.31868038 | U154: 45.32288779 | V154: 59.80008553 | W154: 21.55637864 | X154: 39.52254693 | Y154: 31.09917697 | Z154: 49.04761696 | AA154: 47.71693678 | AB154: 37.47964721 | BB154: Traditional pit toilet | BC154: 1739.898265 | BD154: 2071.26492 | BE154: 2933.579847 | BF154: 2780.642173 | BG154: 1773.01598 | BH154: 1222.793486 | BI154: 1699.518142 | BJ154: 1112.143143 | BK154: 1151.331706 | BL154: 282.263816 | BM154: 580.687944 | BN154: 1227.763367 | BO154: 1219.749045 | BP154: 1578.43126 | BQ154: 1223.719276 | BR154: 991.576288 | BS154: 1084.750749 | BT154: 451.780507 | BU154: 1359.023133 | BV154: 860.857271 | BW154: 276.113357 | BX154: 311.11651 | BY154: 651.216986 | BZ154: 2664.648765 | CA154: 750.363918 | CB154: 1896.953701
B155: Ventilated improved pit latrine | C155: 4.46710066 | D155: 2.985421903 | E155: 5.84712558 | F155: 9.408764634 | G155: 5.484806803 | H155: 10.39250018 | I155: 9.871658486 | J155: 11.72441691 | K155: 10.10461685 | L155: 3.04783022 | M155: 4.232728111 | N155: 2.68858654 | O155: 1.898214211 | P155: 4.2336298 | Q155: 3.362603218 | R155: 3.032168079 | S155: 2.684698115 | T155: 3.635176439 | U155: 1.71458295 | V155: 0.7425681064 | W155: 1.156774632 | X155: 11.82993946 | Y155: 5.484125605 | Z155: 3.316418359 | AA155: 14.80035462 | AB155: 11.78531121 | BB155: Ventilated improved pit latrine | BC155: 246.061456 | BD155: 138.486564 | BE155: 291.441335 | BF155: 481.688124 | BG155: 274.529787 | BH155: 212.859523 | BI155: 247.005796 | BJ155: 214.748582 | BK155: 217.669547 | BL155: 64.381027 | BM155: 108.550927 | BN155: 87.81004 | BO155: 56.076601 | BP155: 132.701166 | BQ155: 90.404057 | BR155: 77.258268 | BS155: 38.266238 | BT155: 22.399501 | BU155: 51.412388 | BV155: 10.689703 | BW155: 14.817003 | BX155: 93.123793 | BY155: 114.837629 | BZ155: 180.173689 | CA155: 232.740256 | CB155: 596.488798
B156: No facility, bush, field | C156: 62.62046964 | D156: 48.80808392 | E156: 27.51763088 | F156: 11.01273781 | G156: 1.747260055 | H156: 23.57584096 | I156: 2.523848804 | J156: 3.443989599 | K156: 0.02856589996 | L156: 0 | M156: 72.81843963 | N156: 57.66968489 | O156: 55.67979432 | P156: 36.79104031 | Q156: 21.47883396 | R156: 34.4220428 | S156: 13.97250828 | T156: 14.69450538 | U156: 45.91150966 | V156: 38.78470685 | W156: 72.84681221 | X156: 47.36871303 | Y156: 60.06471274 | Z156: 28.62680128 | AA156: 30.12513253 | AB156: 0.8260257083 | BB156: No facility, bush, field | BC156: 3449.325437 | BD156: 2264.089987 | BE156: 1371.575652 | BF156: 563.804625 | BG156: 87.45521 | BH156: 482.881133 | BI156: 63.151018 | BJ156: 63.081336 | BK156: 0.615355 | BL156: 0 | BM156: 1867.473865 | BN156: 1883.509146 | BO156: 1644.879483 | BP156: 1153.198125 | BQ156: 577.46145 | BR156: 877.058045 | BS156: 199.156592 | BT156: 90.545698 | BU156: 1376.673172 | BV156: 558.328581 | BW156: 933.087055 | BX156: 372.880541 | BY156: 1257.75551 | BZ156: 1555.230925 | CA156: 473.727234 | CB156: 41.807558
BB157: Total | BC157: 5508.303366 | BD157: 4638.760232 | BE157: 4984.352243 | BF157: 5119.568219 | BG157: 5005.277248 | BH157: 2048.203217 | BI157: 2502.171204 | BJ157: 1831.635497 | BK157: 2154.159333 | BL157: 2112.356081 | BM157: 2564.561771 | BN157: 3266.02989 | BO157: 2954.176651 | BP157: 3134.453702 | BQ157: 2688.513962 | BR157: 2547.954664 | BS157: 1425.34603 | BT157: 616.18745 | BU157: 2998.536058 | BV157: 1439.558595 | BW157: 1280.889344 | BX157: 787.187401 | BY157: 2094.000708 | BZ157: 5432.779267 | CA157: 1572.531618 | CB157: 5061.290173
A208: =A1026 -> Côte d'Ivoire
A209: =A1034 -> 2005
A210: Access to hygiene facilities
A211: by wealth quintile and sub-national region
A212: Notes:
A213: WHO/UNICEF JMP customised wealth index excludes water,
A214: sanitation and hygiene assets.
A215: Survey used for analysis: | B215: =A1025 -> AIS05
A220: Access to handwashing | C220: NATIONAL wealth index quintile | H220: URBAN wealth index quintile | M220: RURAL wealth index quintile | R220: SUB-REGIONS: | BA220: Raw numbers of respondents: | BB220: Access to handwashing | BC220: NATIONAL wealth index quintile | BH220: URBAN wealth index quintile | BM220: RURAL wealth index quintile | BR220: SUB-REGIONS:
A221: Weighted percentage (used in graphs) | C221: Poorest | D221: Poor | E221: Middle | F221: Rich | G221: Richest | H221: Poorest | I221: Poor | J221: Middle | K221: Rich | L221: Richest | M221: Poorest | N221: Poor | O221: Middle | P221: Rich | Q221: Richest | R221: Centre | S221: Centre Nord | T221: Centre-Est | U221: Centre-Ouest | V221: Nord | W221: Nord-Est | X221: Nou=rd-Ouest | Y221: Ouest | Z221: Sud | AA221: Sud-Ouest | AB221: Ville d'Abidjan | BA221: Hygiene data, raw numbers (weighted) | BC221: Poorest | BD221: Poor | BE221: Middle | BF221: Rich | BG221: Richest | BH221: Poorest | BI221: Poor | BJ221: Middle | BK221: Rich | BL221: Richest | BM221: Poorest | BN221: Poor | BO221: Middle | BP221: Rich | BQ221: Richest | BR221: Centre | BS221: Centre Nord | BT221: Centre-Est | BU221: Centre-Ouest | BV221: Nord | BW221: Nord-Est | BX221: Nou=rd-Ouest | BY221: Ouest | BZ221: Sud | CA221: Sud-Ouest | CB221: Ville d'Abidjan
A222: Hygiene ladder | B222: Basic | C222: N/A | D222: N/A | E222: N/A | F222: N/A | G222: N/A | H222: N/A | I222: N/A | J222: N/A | K222: N/A | L222: N/A | M222: N/A | N222: N/A | O222: N/A | P222: N/A | Q222: N/A | R222: N/A | S222: N/A | T222: N/A | U222: N/A | V222: N/A | W222: N/A | X222: N/A | Y222: N/A | Z222: N/A | AA222: N/A | AB222: N/A | BA222: Hygiene ladder | BB222: Basic | BC222: N/A | BD222: N/A | BE222: N/A | BF222: N/A | BG222: N/A | BH222: N/A | BI222: N/A | BJ222: N/A | BK222: N/A | BL222: N/A | BM222: N/A | BN222: N/A | BO222: N/A | BP222: N/A | BQ222: N/A | BR222: N/A | BS222: N/A | BT222: N/A | BU222: N/A | BV222: N/A | BW222: N/A | BX222: N/A | BY222: N/A | BZ222: N/A | CA222: N/A | CB222: N/A
B223: Limited | C223: N/A | D223: N/A | E223: N/A | F223: N/A | G223: N/A | H223: N/A | I223: N/A | J223: N/A | K223: N/A | L223: N/A | M223: N/A | N223: N/A | O223: N/A | P223: N/A | Q223: N/A | R223: N/A | S223: N/A | T223: N/A | U223: N/A | V223: N/A | W223: N/A | X223: N/A | Y223: N/A | Z223: N/A | AA223: N/A | AB223: N/A | BB223: Limited | BC223: N/A | BD223: N/A | BE223: N/A | BF223: N/A | BG223: N/A | BH223: N/A | BI223: N/A | BJ223: N/A | BK223: N/A | BL223: N/A | BM223: N/A | BN223: N/A | BO223: N/A | BP223: N/A | BQ223: N/A | BR223: N/A | BS223: N/A | BT223: N/A | BU223: N/A | BV223: N/A | BW223: N/A | BX223: N/A | BY223: N/A | BZ223: N/A | CA223: N/A | CB223: N/A
B224: No facility | C224: N/A | D224: N/A | E224: N/A | F224: N/A | G224: N/A | H224: N/A | I224: N/A | J224: N/A | K224: N/A | L224: N/A | M224: N/A | N224: N/A | O224: N/A | P224: N/A | Q224: N/A | R224: N/A | S224: N/A | T224: N/A | U224: N/A | V224: N/A | W224: N/A | X224: N/A | Y224: N/A | Z224: N/A | AA224: N/A | AB224: N/A | BB224: No facility | BC224: N/A | BD224: N/A | BE224: N/A | BF224: N/A | BG224: N/A | BH224: N/A | BI224: N/A | BJ224: N/A | BK224: N/A | BL224: N/A | BM224: N/A | BN224: N/A | BO224: N/A | BP224: N/A | BQ224: N/A | BR224: N/A | BS224: N/A | BT224: N/A | BU224: N/A | BV224: N/A | BW224: N/A | BX224: N/A | BY224: N/A | BZ224: N/A | CA224: N/A | CB224: N/A
BA225: Observed handwashing place | BB225: Fixed | BC225: N/A | BD225: N/A | BE225: N/A | BF225: N/A | BG225: N/A | BH225: N/A | BI225: N/A | BJ225: N/A | BK225: N/A | BL225: N/A | BM225: N/A | BN225: N/A | BO225: N/A | BP225: N/A | BQ225: N/A | BR225: N/A | BS225: N/A | BT225: N/A | BU225: N/A | BV225: N/A | BW225: N/A | BX225: N/A | BY225: N/A | BZ225: N/A | CA225: N/A | CB225: N/A
BB226: Mobile | BC226: N/A | BD226: N/A | BE226: N/A | BF226: N/A | BG226: N/A | BH226: N/A | BI226: N/A | BJ226: N/A | BK226: N/A | BL226: N/A | BM226: N/A | BN226: N/A | BO226: N/A | BP226: N/A | BQ226: N/A | BR226: N/A | BS226: N/A | BT226: N/A | BU226: N/A | BV226: N/A | BW226: N/A | BX226: N/A | BY226: N/A | BZ226: N/A | CA226: N/A | CB226: N/A
BA227: Water / Soap | BB227: Water and soap | BC227: N/A | BD227: N/A | BE227: N/A | BF227: N/A | BG227: N/A | BH227: N/A | BI227: N/A | BJ227: N/A | BK227: N/A | BL227: N/A | BM227: N/A | BN227: N/A | BO227: N/A | BP227: N/A | BQ227: N/A | BR227: N/A | BS227: N/A | BT227: N/A | BU227: N/A | BV227: N/A | BW227: N/A | BX227: N/A | BY227: N/A | BZ227: N/A | CA227: N/A | CB227: N/A
BB228: Water only | BC228: N/A | BD228: N/A | BE228: N/A | BF228: N/A | BG228: N/A | BH228: N/A | BI228: N/A | BJ228: N/A | BK228: N/A | BL228: N/A | BM228: N/A | BN228: N/A | BO228: N/A | BP228: N/A | BQ228: N/A | BR228: N/A | BS228: N/A | BT228: N/A | BU228: N/A | BV228: N/A | BW228: N/A | BX228: N/A | BY228: N/A | BZ228: N/A | CA228: N/A | CB228: N/A
BB229: Soap only | BC229: N/A | BD229: N/A | BE229: N/A | BF229: N/A | BG229: N/A | BH229: N/A | BI229: N/A | BJ229: N/A | BK229: N/A | BL229: N/A | BM229: N/A | BN229: N/A | BO229: N/A | BP229: N/A | BQ229: N/A | BR229: N/A | BS229: N/A | BT229: N/A | BU229: N/A | BV229: N/A | BW229: N/A | BX229: N/A | BY229: N/A | BZ229: N/A | CA229: N/A | CB229: N/A
BB230: Neither | BC230: N/A | BD230: N/A | BE230: N/A | BF230: N/A | BG230: N/A | BH230: N/A | BI230: N/A | BJ230: N/A | BK230: N/A | BL230: N/A | BM230: N/A | BN230: N/A | BO230: N/A | BP230: N/A | BQ230: N/A | BR230: N/A | BS230: N/A | BT230: N/A | BU230: N/A | BV230: N/A | BW230: N/A | BX230: N/A | BY230: N/A | BZ230: N/A | CA230: N/A | CB230: N/A
BA259: Raw numbers of respondents: | BB259: Menstrual health and hygiene | BC259: NATIONAL wealth index quintile | BH259: URBAN wealth index quintile | BM259: RURAL wealth index quintile | BR259: SUB-REGIONS:
BA260: MHH data, raw numbers (weighted) | BC260: Poorest | BD260: Poor | BE260: Middle | BF260: Rich | BG260: Richest | BH260: Poorest | BI260: Poor | BJ260: Middle | BK260: Rich | BL260: Richest | BM260: Poorest | BN260: Poor | BO260: Middle | BP260: Rich | BQ260: Richest | BR260: Centre | BS260: Centre Nord | BT260: Centre-Est | BU260: Centre-Ouest | BV260: Nord | BW260: Nord-Est | BX260: Nou=rd-Ouest | BY260: Ouest | BZ260: Sud | CA260: Sud-Ouest | CB260: Ville d'Abidjan
BA261: Private place to wash and change | BB261: Yes | BC261: N/A | BD261: N/A | BE261: N/A | BF261: N/A | BG261: N/A | BH261: N/A | BI261: N/A | BJ261: N/A | BK261: N/A | BL261: N/A | BM261: N/A | BN261: N/A | BO261: N/A | BP261: N/A | BQ261: N/A | BR261: N/A | BS261: N/A | BT261: N/A | BU261: N/A | BV261: N/A | BW261: N/A | BX261: N/A | BY261: N/A | BZ261: N/A | CA261: N/A | CB261: N/A
BB262: No | BC262: N/A | BD262: N/A | BE262: N/A | BF262: N/A | BG262: N/A | BH262: N/A | BI262: N/A | BJ262: N/A | BK262: N/A | BL262: N/A | BM262: N/A | BN262: N/A | BO262: N/A | BP262: N/A | BQ262: N/A | BR262: N/A | BS262: N/A | BT262: N/A | BU262: N/A | BV262: N/A | BW262: N/A | BX262: N/A | BY262: N/A | BZ262: N/A | CA262: N/A | CB262: N/A
BB263: DK/not sure/missing | BC263: N/A | BD263: N/A | BE263: N/A | BF263: N/A | BG263: N/A | BH263: N/A | BI263: N/A | BJ263: N/A | BK263: N/A | BL263: N/A | BM263: N/A | BN263: N/A | BO263: N/A | BP263: N/A | BQ263: N/A | BR263: N/A | BS263: N/A | BT263: N/A | BU263: N/A | BV263: N/A | BW263: N/A | BX263: N/A | BY263: N/A | BZ263: N/A | CA263: N/A | CB263: N/A
BA264: Use of menstrual materials | BB264: Materials reusable | BC264: N/A | BD264: N/A | BE264: N/A | BF264: N/A | BG264: N/A | BH264: N/A | BI264: N/A | BJ264: N/A | BK264: N/A | BL264: N/A | BM264: N/A | BN264: N/A | BO264: N/A | BP264: N/A | BQ264: N/A | BR264: N/A | BS264: N/A | BT264: N/A | BU264: N/A | BV264: N/A | BW264: N/A | BX264: N/A | BY264: N/A | BZ264: N/A | CA264: N/A | CB264: N/A
BB265: Materials not reusable | BC265: N/A | BD265: N/A | BE265: N/A | BF265: N/A | BG265: N/A | BH265: N/A | BI265: N/A | BJ265: N/A | BK265: N/A | BL265: N/A | BM265: N/A | BN265: N/A | BO265: N/A | BP265: N/A | BQ265: N/A | BR265: N/A | BS265: N/A | BT265: N/A | BU265: N/A | BV265: N/A | BW265: N/A | BX265: N/A | BY265: N/A | BZ265: N/A | CA265: N/A | CB265: N/A
BB266: No materials used | BC266: N/A | BD266: N/A | BE266: N/A | BF266: N/A | BG266: N/A | BH266: N/A | BI266: N/A | BJ266: N/A | BK266: N/A | BL266: N/A | BM266: N/A | BN266: N/A | BO266: N/A | BP266: N/A | BQ266: N/A | BR266: N/A | BS266: N/A | BT266: N/A | BU266: N/A | BV266: N/A | BW266: N/A | BX266: N/A | BY266: N/A | BZ266: N/A | CA266: N/A | CB266: N/A
BB267: DK/not sure/missing | BC267: N/A | BD267: N/A | BE267: N/A | BF267: N/A | BG267: N/A | BH267: N/A | BI267: N/A | BJ267: N/A | BK267: N/A | BL267: N/A | BM267: N/A | BN267: N/A | BO267: N/A | BP267: N/A | BQ267: N/A | BR267: N/A | BS267: N/A | BT267: N/A | BU267: N/A | BV267: N/A | BW267: N/A | BX267: N/A | BY267: N/A | BZ267: N/A | CA267: N/A | CB267: N/A
BA268: Use of menstrual materials with private place to wash and change | BB268: Materials reusable | BC268: N/A | BD268: N/A | BE268: N/A | BF268: N/A | BG268: N/A | BH268: N/A | BI268: N/A | BJ268: N/A | BK268: N/A | BL268: N/A | BM268: N/A | BN268: N/A | BO268: N/A | BP268: N/A | BQ268: N/A | BR268: N/A | BS268: N/A | BT268: N/A | BU268: N/A | BV268: N/A | BW268: N/A | BX268: N/A | BY268: N/A | BZ268: N/A | CA268: N/A | CB268: N/A
BB269: Materials not reusable | BC269: N/A | BD269: N/A | BE269: N/A | BF269: N/A | BG269: N/A | BH269: N/A | BI269: N/A | BJ269: N/A | BK269: N/A | BL269: N/A | BM269: N/A | BN269: N/A | BO269: N/A | BP269: N/A | BQ269: N/A | BR269: N/A | BS269: N/A | BT269: N/A | BU269: N/A | BV269: N/A | BW269: N/A | BX269: N/A | BY269: N/A | BZ269: N/A | CA269: N/A | CB269: N/A
BB270: No materials used | BC270: N/A | BD270: N/A | BE270: N/A | BF270: N/A | BG270: N/A | BH270: N/A | BI270: N/A | BJ270: N/A | BK270: N/A | BL270: N/A | BM270: N/A | BN270: N/A | BO270: N/A | BP270: N/A | BQ270: N/A | BR270: N/A | BS270: N/A | BT270: N/A | BU270: N/A | BV270: N/A | BW270: N/A | BX270: N/A | BY270: N/A | BZ270: N/A | CA270: N/A | CB270: N/A
BA271: Awareness of menstruation before menarche | BB271: Yes | BC271: N/A | BD271: N/A | BE271: N/A | BF271: N/A | BG271: N/A | BH271: N/A | BI271: N/A | BJ271: N/A | BK271: N/A | BL271: N/A | BM271: N/A | BN271: N/A | BO271: N/A | BP271: N/A | BQ271: N/A | BR271: N/A | BS271: N/A | BT271: N/A | BU271: N/A | BV271: N/A | BW271: N/A | BX271: N/A | BY271: N/A | BZ271: N/A | CA271: N/A | CB271: N/A
BB272: No | BC272: N/A | BD272: N/A | BE272: N/A | BF272: N/A | BG272: N/A | BH272: N/A | BI272: N/A | BJ272: N/A | BK272: N/A | BL272: N/A | BM272: N/A | BN272: N/A | BO272: N/A | BP272: N/A | BQ272: N/A | BR272: N/A | BS272: N/A | BT272: N/A | BU272: N/A | BV272: N/A | BW272: N/A | BX272: N/A | BY272: N/A | BZ272: N/A | CA272: N/A | CB272: N/A
BB273: DK/not sure/missing | BC273: N/A | BD273: N/A | BE273: N/A | BF273: N/A | BG273: N/A | BH273: N/A | BI273: N/A | BJ273: N/A | BK273: N/A | BL273: N/A | BM273: N/A | BN273: N/A | BO273: N/A | BP273: N/A | BQ273: N/A | BR273: N/A | BS273: N/A | BT273: N/A | BU273: N/A | BV273: N/A | BW273: N/A | BX273: N/A | BY273: N/A | BZ273: N/A | CA273: N/A | CB273: N/A
BA274: Participation in (all) activities during menstruation | BB274: Yes | BC274: N/A | BD274: N/A | BE274: N/A | BF274: N/A | BG274: N/A | BH274: N/A | BI274: N/A | BJ274: N/A | BK274: N/A | BL274: N/A | BM274: N/A | BN274: N/A | BO274: N/A | BP274: N/A | BQ274: N/A | BR274: N/A | BS274: N/A | BT274: N/A | BU274: N/A | BV274: N/A | BW274: N/A | BX274: N/A | BY274: N/A | BZ274: N/A | CA274: N/A | CB274: N/A
BB275: No | BC275: N/A | BD275: N/A | BE275: N/A | BF275: N/A | BG275: N/A | BH275: N/A | BI275: N/A | BJ275: N/A | BK275: N/A | BL275: N/A | BM275: N/A | BN275: N/A | BO275: N/A | BP275: N/A | BQ275: N/A | BR275: N/A | BS275: N/A | BT275: N/A | BU275: N/A | BV275: N/A | BW275: N/A | BX275: N/A | BY275: N/A | BZ275: N/A | CA275: N/A | CB275: N/A
BB276: DK/not sure/missing/no such activity | BC276: N/A | BD276: N/A | BE276: N/A | BF276: N/A | BG276: N/A | BH276: N/A | BI276: N/A | BJ276: N/A | BK276: N/A | BL276: N/A | BM276: N/A | BN276: N/A | BO276: N/A | BP276: N/A | BQ276: N/A | BR276: N/A | BS276: N/A | BT276: N/A | BU276: N/A | BV276: N/A | BW276: N/A | BX276: N/A | BY276: N/A | BZ276: N/A | CA276: N/A | CB276: N/A
BA277: Participation in specific activities during menstruation | BB277: Did not go to school (amongst those usually attending school) | BC277: N/A | BD277: N/A | BE277: N/A | BF277: N/A | BG277: N/A | BH277: N/A | BI277: N/A | BJ277: N/A | BK277: N/A | BL277: N/A | BM277: N/A | BN277: N/A | BO277: N/A | BP277: N/A | BQ277: N/A | BR277: N/A | BS277: N/A | BT277: N/A | BU277: N/A | BV277: N/A | BW277: N/A | BX277: N/A | BY277: N/A | BZ277: N/A | CA277: N/A | CB277: N/A
BB278: Did not go to work (amongst those who usually work) | BC278: N/A | BD278: N/A | BE278: N/A | BF278: N/A | BG278: N/A | BH278: N/A | BI278: N/A | BJ278: N/A | BK278: N/A | BL278: N/A | BM278: N/A | BN278: N/A | BO278: N/A | BP278: N/A | BQ278: N/A | BR278: N/A | BS278: N/A | BT278: N/A | BU278: N/A | BV278: N/A | BW278: N/A | BX278: N/A | BY278: N/A | BZ278: N/A | CA278: N/A | CB278: N/A
BB279: Did not participate in social activities | BC279: N/A | BD279: N/A | BE279: N/A | BF279: N/A | BG279: N/A | BH279: N/A | BI279: N/A | BJ279: N/A | BK279: N/A | BL279: N/A | BM279: N/A | BN279: N/A | BO279: N/A | BP279: N/A | BQ279: N/A | BR279: N/A | BS279: N/A | BT279: N/A | BU279: N/A | BV279: N/A | BW279: N/A | BX279: N/A | BY279: N/A | BZ279: N/A | CA279: N/A | CB279: N/A
BB280: Did not cook food | BC280: N/A | BD280: N/A | BE280: N/A | BF280: N/A | BG280: N/A | BH280: N/A | BI280: N/A | BJ280: N/A | BK280: N/A | BL280: N/A | BM280: N/A | BN280: N/A | BO280: N/A | BP280: N/A | BQ280: N/A | BR280: N/A | BS280: N/A | BT280: N/A | BU280: N/A | BV280: N/A | BW280: N/A | BX280: N/A | BY280: N/A | BZ280: N/A | CA280: N/A | CB280: N/A
BB281: Did not eat with others | BC281: N/A | BD281: N/A | BE281: N/A | BF281: N/A | BG281: N/A | BH281: N/A | BI281: N/A | BJ281: N/A | BK281: N/A | BL281: N/A | BM281: N/A | BN281: N/A | BO281: N/A | BP281: N/A | BQ281: N/A | BR281: N/A | BS281: N/A | BT281: N/A | BU281: N/A | BV281: N/A | BW281: N/A | BX281: N/A | BY281: N/A | BZ281: N/A | CA281: N/A | CB281: N/A
BB282: Did not bathe in regular place | BC282: N/A | BD282: N/A | BE282: N/A | BF282: N/A | BG282: N/A | BH282: N/A | BI282: N/A | BJ282: N/A | BK282: N/A | BL282: N/A | BM282: N/A | BN282: N/A | BO282: N/A | BP282: N/A | BQ282: N/A | BR282: N/A | BS282: N/A | BT282: N/A | BU282: N/A | BV282: N/A | BW282: N/A | BX282: N/A | BY282: N/A | BZ282: N/A | CA282: N/A | CB282: N/A
BB283: Did not participate in other activities | BC283: N/A | BD283: N/A | BE283: N/A | BF283: N/A | BG283: N/A | BH283: N/A | BI283: N/A | BJ283: N/A | BK283: N/A | BL283: N/A | BM283: N/A | BN283: N/A | BO283: N/A | BP283: N/A | BQ283: N/A | BR283: N/A | BS283: N/A | BT283: N/A | BU283: N/A | BV283: N/A | BW283: N/A | BX283: N/A | BY283: N/A | BZ283: N/A | CA283: N/A | CB283: N/A
BB284: DK/not sure/missing/no such activity | BC284: N/A | BD284: N/A | BE284: N/A | BF284: N/A | BG284: N/A | BH284: N/A | BI284: N/A | BJ284: N/A | BK284: N/A | BL284: N/A | BM284: N/A | BN284: N/A | BO284: N/A | BP284: N/A | BQ284: N/A | BR284: N/A | BS284: N/A | BT284: N/A | BU284: N/A | BV284: N/A | BW284: N/A | BX284: N/A | BY284: N/A | BZ284: N/A | CA284: N/A | CB284: N/A
BA339: Raw numbers of respondents: | BB339: Basic water, sanitation and hygiene | BC339: NATIONAL wealth index quintile | BH339: URBAN wealth index quintile | BM339: RURAL wealth index quintile | BR339: SUB-REGIONS:
BA340: WatSan data, raw numbers (weighted) | BC340: Poorest | BD340: Poor | BE340: Middle | BF340: Rich | BG340: Richest | BH340: Poorest | BI340: Poor | BJ340: Middle | BK340: Rich | BL340: Richest | BM340: Poorest | BN340: Poor | BO340: Middle | BP340: Rich | BQ340: Richest | BR340: Centre | BS340: Centre Nord | BT340: Centre-Est | BU340: Centre-Ouest | BV340: Nord | BW340: Nord-Est | BX340: Nou=rd-Ouest | BY340: Ouest | BZ340: Sud | CA340: Sud-Ouest | CB340: Ville d'Abidjan
BA341: Use of Basic Water Sanitation and Hygiene | BB341: Yes | BC341: N/A | BD341: N/A | BE341: N/A | BF341: N/A | BG341: N/A | BH341: N/A | BI341: N/A | BJ341: N/A | BK341: N/A | BL341: N/A | BM341: N/A | BN341: N/A | BO341: N/A | BP341: N/A | BQ341: N/A | BR341: N/A | BS341: N/A | BT341: N/A | BU341: N/A | BV341: N/A | BW341: N/A | BX341: N/A | BY341: N/A | BZ341: N/A | CA341: N/A | CB341: N/A
BB342: No | BC342: N/A | BD342: N/A | BE342: N/A | BF342: N/A | BG342: N/A | BH342: N/A | BI342: N/A | BJ342: N/A | BK342: N/A | BL342: N/A | BM342: N/A | BN342: N/A | BO342: N/A | BP342: N/A | BQ342: N/A | BR342: N/A | BS342: N/A | BT342: N/A | BU342: N/A | BV342: N/A | BW342: N/A | BX342: N/A | BY342: N/A | BZ342: N/A | CA342: N/A | CB342: N/A
BA343: Use of Basic Water and Sanitation | BB343: Yes | BC343: N/A | BD343: N/A | BE343: N/A | BF343: N/A | BG343: N/A | BH343: N/A | BI343: N/A | BJ343: N/A | BK343: N/A | BL343: N/A | BM343: N/A | BN343: N/A | BO343: N/A | BP343: N/A | BQ343: N/A | BR343: N/A | BS343: N/A | BT343: N/A | BU343: N/A | BV343: N/A | BW343: N/A | BX343: N/A | BY343: N/A | BZ343: N/A | CA343: N/A | CB343: N/A
BB344: No | BC344: N/A | BD344: N/A | BE344: N/A | BF344: N/A | BG344: N/A | BH344: N/A | BI344: N/A | BJ344: N/A | BK344: N/A | BL344: N/A | BM344: N/A | BN344: N/A | BO344: N/A | BP344: N/A | BQ344: N/A | BR344: N/A | BS344: N/A | BT344: N/A | BU344: N/A | BV344: N/A | BW344: N/A | BX344: N/A | BY344: N/A | BZ344: N/A | CA344: N/A | CB344: N/A
BA345: Use of Basic Water and Hygiene | BB345: Yes | BC345: N/A | BD345: N/A | BE345: N/A | BF345: N/A | BG345: N/A | BH345: N/A | BI345: N/A | BJ345: N/A | BK345: N/A | BL345: N/A | BM345: N/A | BN345: N/A | BO345: N/A | BP345: N/A | BQ345: N/A | BR345: N/A | BS345: N/A | BT345: N/A | BU345: N/A | BV345: N/A | BW345: N/A | BX345: N/A | BY345: N/A | BZ345: N/A | CA345: N/A | CB345: N/A
BB346: No | BC346: N/A | BD346: N/A | BE346: N/A | BF346: N/A | BG346: N/A | BH346: N/A | BI346: N/A | BJ346: N/A | BK346: N/A | BL346: N/A | BM346: N/A | BN346: N/A | BO346: N/A | BP346: N/A | BQ346: N/A | BR346: N/A | BS346: N/A | BT346: N/A | BU346: N/A | BV346: N/A | BW346: N/A | BX346: N/A | BY346: N/A | BZ346: N/A | CA346: N/A | CB346: N/A
BA347: Use of Basic Sanitation and Hygiene | BB347: Yes | BC347: N/A | BD347: N/A | BE347: N/A | BF347: N/A | BG347: N/A | BH347: N/A | BI347: N/A | BJ347: N/A | BK347: N/A | BL347: N/A | BM347: N/A | BN347: N/A | BO347: N/A | BP347: N/A | BQ347: N/A | BR347: N/A | BS347: N/A | BT347: N/A | BU347: N/A | BV347: N/A | BW347: N/A | BX347: N/A | BY347: N/A | BZ347: N/A | CA347: N/A | CB347: N/A
BB348: No | BC348: N/A | BD348: N/A | BE348: N/A | BF348: N/A | BG348: N/A | BH348: N/A | BI348: N/A | BJ348: N/A | BK348: N/A | BL348: N/A | BM348: N/A | BN348: N/A | BO348: N/A | BP348: N/A | BQ348: N/A | BR348: N/A | BS348: N/A | BT348: N/A | BU348: N/A | BV348: N/A | BW348: N/A | BX348: N/A | BY348: N/A | BZ348: N/A | CA348: N/A | CB348: N/A
BA349: Use of Basic Water | BB349: Yes | BC349: N/A | BD349: N/A | BE349: N/A | BF349: N/A | BG349: N/A | BH349: N/A | BI349: N/A | BJ349: N/A | BK349: N/A | BL349: N/A | BM349: N/A | BN349: N/A | BO349: N/A | BP349: N/A | BQ349: N/A | BR349: N/A | BS349: N/A | BT349: N/A | BU349: N/A | BV349: N/A | BW349: N/A | BX349: N/A | BY349: N/A | BZ349: N/A | CA349: N/A | CB349: N/A
BB350: No | BC350: N/A | BD350: N/A | BE350: N/A | BF350: N/A | BG350: N/A | BH350: N/A | BI350: N/A | BJ350: N/A | BK350: N/A | BL350: N/A | BM350: N/A | BN350: N/A | BO350: N/A | BP350: N/A | BQ350: N/A | BR350: N/A | BS350: N/A | BT350: N/A | BU350: N/A | BV350: N/A | BW350: N/A | BX350: N/A | BY350: N/A | BZ350: N/A | CA350: N/A | CB350: N/A
BA351: Use of Basic Sanitation | BB351: Yes | BC351: N/A | BD351: N/A | BE351: N/A | BF351: N/A | BG351: N/A | BH351: N/A | BI351: N/A | BJ351: N/A | BK351: N/A | BL351: N/A | BM351: N/A | BN351: N/A | BO351: N/A | BP351: N/A | BQ351: N/A | BR351: N/A | BS351: N/A | BT351: N/A | BU351: N/A | BV351: N/A | BW351: N/A | BX351: N/A | BY351: N/A | BZ351: N/A | CA351: N/A | CB351: N/A
BB352: No | BC352: N/A | BD352: N/A | BE352: N/A | BF352: N/A | BG352: N/A | BH352: N/A | BI352: N/A | BJ352: N/A | BK352: N/A | BL352: N/A | BM352: N/A | BN352: N/A | BO352: N/A | BP352: N/A | BQ352: N/A | BR352: N/A | BS352: N/A | BT352: N/A | BU352: N/A | BV352: N/A | BW352: N/A | BX352: N/A | BY352: N/A | BZ352: N/A | CA352: N/A | CB352: N/A
BA353: Access to Basic Hygiene | BB353: Yes | BC353: N/A | BD353: N/A | BE353: N/A | BF353: N/A | BG353: N/A | BH353: N/A | BI353: N/A | BJ353: N/A | BK353: N/A | BL353: N/A | BM353: N/A | BN353: N/A | BO353: N/A | BP353: N/A | BQ353: N/A | BR353: N/A | BS353: N/A | BT353: N/A | BU353: N/A | BV353: N/A | BW353: N/A | BX353: N/A | BY353: N/A | BZ353: N/A | CA353: N/A | CB353: N/A
BB354: No | BC354: N/A | BD354: N/A | BE354: N/A | BF354: N/A | BG354: N/A | BH354: N/A | BI354: N/A | BJ354: N/A | BK354: N/A | BL354: N/A | BM354: N/A | BN354: N/A | BO354: N/A | BP354: N/A | BQ354: N/A | BR354: N/A | BS354: N/A | BT354: N/A | BU354: N/A | BV354: N/A | BW354: N/A | BX354: N/A | BY354: N/A | BZ354: N/A | CA354: N/A | CB354: N/A
C399: INITIAL (national) Wealth Index | H399: URBAN Wealth Index | M399: RURAL Wealth Index
C400: Component Matrix | H400: Component Matrix | M400: Component Matrix
E401: Component | J401: Component | O401: Component
B402: Note: The INITIAL (national) Wealth Index is based on the first component of the Principal Component Analysis (PCA) which has been obtained at national level. The final national-level (NATIONAL) Wealth Index is based on the URBAN and RURAL specific wealth indexes. Regression procedures are used to establish the relationships between the two sets of scores (urban and rural) and the initial (national) wealth factors. This allows best use of the available information for each area and a better precision of the FINAL (NATIONAL) Wealth Index. For dependency reasons, all WASH variables (contained in the generic MICS and DHS scripts) have been excluded from the sets of asset variables used in the PCAs. The PCA can extracts as many components as there are asset variables in the input. Only the first of the components is used to represent the Wealth Index. The scores represent the weights of the asset variables on the Wealth Index (correlations between the variables and the component). The communalities are the proportion of each variable's variance that can be explained by the component. Proportion of explained variance is the part of the model's total variance that is explained by the component. For more information on the procedure used: The DHS Wealth Index, DHS Comparative Reports No. 6, Shea Oscar Rutstein, Kiersten Johnson, ORC Macro International Inc., 2004. The DHS Wealth Index: Approaches for Rural and Urban Areas, Shea O. Rutstein, ORC Macro International Inc., 2008. MICS Methodological Paper No. 4, Review of options for reporting water, sanitation and hygiene coverage by wealth quintile, UNICEF, 2016. | E402: 1 | J402: 1 | O402: 1
C403: if household has tv | E403: 0.8066682395 | H403: if household has tv | J403: 0.7387269284 | M403: if household has tv | O403: 0.7529616605
C404: if household has electric | E404: 0.7313902659 | H404: if household has phone | J404: 0.689938276 | M404: if household has electric | O404: 0.6846545708
C405: if household has phone | E405: 0.7275531939 | H405: if household has fridge | J405: 0.6781888012 | M405: if household has fridge | O405: 0.6276213991
C406: if household has fridge | E406: 0.6713284024 | H406: if flooring is of ceramic tiles | J406: 0.6330772419 | M406: if household has phone | O406: 0.6030341607
C407: if floor is earth/mud/sand | E407: -0.5244416886 | H407: if household has electric | J407: 0.5401156617 | M407: if floor is earth/mud/sand | O407: -0.5650836433
C408: if household has radio | E408: 0.4949873571 | H408: if household has radio | J408: 0.535787387 | M408: if household has radio | O408: 0.4603537068
C409: if flooring is of ceramic tiles | E409: 0.4933124474 | H409: if household has car or truck | J409: 0.4979145837 | M409: if household has car or truck | O409: 0.4311279246
C410: if household has car or truck | E410: 0.4568947193 | H410: if floor is of cement | J410: -0.4830769128 | M410: if floor is of cement | O410: 0.4176422235
C411: if household has motorcycle or scooter | E411: 0.2583182544 | H411: if household has motorcycle or scooter | J411: 0.2423615042 | M411: if flooring is of ceramic tiles | O411: 0.3428479686
C412: if household has bicycle | E412: -0.1901920564 | H412: if floor is earth/mud/sand | J412: -0.2326239482 | M412: if household has motorcycle or scooter | O412: 0.3075372937
C413: if has linoleum flooring | E413: 0.1612855141 | H413: if has linoleum flooring | J413: 0.1451387379 | M413: if has linoleum flooring | O413: 0.1846381323
C414: if floor is of cement | E414: 0.1424135194 | H414: if has carpeted flooring parquet | J414: 0.1366993737 | M414: if floor is dung | O414: -0.1010130194
C415: if floor is dung | E415: -0.09803458026 | H415: if household has bicycle | J415: -0.04392335689 | M415: if household has bicycle | O415: 0.07979390325
C416: if has carpeted flooring parquet | E416: 0.09376560989 | H416: if floor is dung | J416: -0.04322093445 | M416: if has carpeted flooring parquet | O416: 0.06669523301
C417: if floor is of wood planks | E417: -0.04840499174 | H417: if has a cart | J417: 0.0414055612 | M417: if has a cart | O417: 0.06052058095
C418: if has a cart | E418: -0.02805595644 | H418: if floor is of wood planks | J418: 0.01225514214 | M418: if floor is of wood planks | O418: -0.0490315859
C422: Communalities | H422: Communalities | M422: Communalities
... 89 more rows

Sheet MICS06
A2: =A1026 -> Côte d'Ivoire
A3: =A1034 -> 2006
A4: Use of drinking water sources
A5: by wealth quintile and sub-national region
A6: Notes:
A7: WHO/UNICEF JMP customised wealth index excludes water,
A8: sanitation and hygiene assets.
A9: Survey used for analysis: | B9: =A1025 -> MICS06
A10: =B1028 -> 
A11: =B1027 -> 
A14: Use of drinking water sources | C14: NATIONAL wealth index quintile | H14: URBAN wealth index quintile | M14: RURAL wealth index quintile | R14: SUB-REGIONS: | BA14: Raw numbers of respondents: | BB14: Use of drinking water sources | BC14: NATIONAL wealth index quintile | BH14: URBAN wealth index quintile | BM14: RURAL wealth index quintile | BR14: SUB-REGIONS:
A15: Weighted percentage (used in graphs) | C15: Poorest | D15: Poor | E15: Middle | F15: Rich | G15: Richest | H15: Poorest | I15: Poor | J15: Middle | K15: Rich | L15: Richest | M15: Poorest | N15: Poor | O15: Middle | P15: Rich | Q15: Richest | R15: Centre | S15: Centre Est | T15: Centre Nord | U15: Centre Ouest | V15: Nord | W15: Nord Est | X15: Nord Ouest | Y15: Ouest | Z15: Sud (sans ville d' Abidjan) | AA15: Sud Ouest | AB15: Ville Abidjan | BA15: Water data, raw numbers (weighted) | BC15: Poorest | BD15: Poor | BE15: Middle | BF15: Rich | BG15: Richest | BH15: Poorest | BI15: Poor | BJ15: Middle | BK15: Rich | BL15: Richest | BM15: Poorest | BN15: Poor | BO15: Middle | BP15: Rich | BQ15: Richest | BR15: Centre | BS15: Centre Est | BT15: Centre Nord | BU15: Centre Ouest | BV15: Nord | BW15: Nord Est | BX15: Nord Ouest | BY15: Ouest | BZ15: Sud (sans ville d' Abidjan) | CA15: Sud Ouest | CB15: Ville Abidjan
A16: Water | B16: Improved | C16: 55.5552453 | D16: 66.47906453 | E16: 74.10411514 | F16: 89.89463195 | G16: 98.74079794 | H16: 77.95232572 | I16: 92.92886448 | J16: 92.29109944 | K16: 98.81435082 | L16: 99.96978496 | M16: 55.91165753 | N16: 57.38193326 | O16: 64.37241111 | P16: 73.07099456 | Q16: 75.96306805 | R16: 80.98619215 | S16: 71.89307045 | T16: 71.12896093 | U16: 80.45092323 | V16: 84.03858658 | W16: 69.85023399 | X16: 57.61408176 | Y16: 62.68066598 | Z16: 71.74237428 | AA16: 67.96968681 | AB16: 99.87348346 | BA16: Water | BB16: Improved | BC16: N/A | BD16: N/A | BE16: N/A | BF16: N/A | BG16: N/A | BH16: N/A | BI16: N/A | BJ16: N/A | BK16: N/A | BL16: N/A | BM16: N/A | BN16: N/A | BO16: N/A | BP16: N/A | BQ16: N/A | BR16: N/A | BS16: N/A | BT16: N/A | BU16: N/A | BV16: N/A | BW16: N/A | BX16: N/A | BY16: N/A | BZ16: N/A | CA16: N/A | CB16: N/A
B17: Not Improved | C17: 44.4447547 | D17: 33.52093547 | E17: 25.89588486 | F17: 10.10536805 | G17: 1.259202062 | H17: 22.04767428 | I17: 7.071135523 | J17: 7.70890056 | K17: 1.185649183 | L17: 0.03021503885 | M17: 44.08834247 | N17: 42.61806674 | O17: 35.62758889 | P17: 26.92900544 | Q17: 24.03693195 | R17: 19.01380785 | S17: 28.10692955 | T17: 28.87103907 | U17: 19.54907677 | V17: 15.96141342 | W17: 30.14976601 | X17: 42.38591824 | Y17: 37.31933402 | Z17: 28.25762572 | AA17: 32.03031319 | AB17: 0.1265165398 | BB17: Not Improved | BC17: N/A | BD17: N/A | BE17: N/A | BF17: N/A | BG17: N/A | BH17: N/A | BI17: N/A | BJ17: N/A | BK17: N/A | BL17: N/A | BM17: N/A | BN17: N/A | BO17: N/A | BP17: N/A | BQ17: N/A | BR17: N/A | BS17: N/A | BT17: N/A | BU17: N/A | BV17: N/A | BW17: N/A | BX17: N/A | BY17: N/A | BZ17: N/A | CA17: N/A | CB17: N/A
A18: Water ladder | B18: Basic | C18: =C16*C23/100 -> 45.05613661 | D18: =D16*D23/100 -> 56.16268802 | E18: =E16*E23/100 -> 66.2563158 | F18: 87.73137147 | G18: 98.26189604 | H18: 75.01044352 | I18: 91.53688023 | J18: 92.11231965 | K18: 98.01051057 | L18: 99.96978496 | M18: 45.72790147 | N18: 45.66625947 | O18: 53.75302882 | P18: 61.86479948 | Q18: 68.78236932 | R18: 72.01951801 | S18: 70.55386616 | T18: 56.99212187 | U18: 71.40787881 | V18: 65.25317107 | W18: 61.97653046 | X18: 50.22892117 | Y18: 55.75628327 | Z18: 67.32900501 | AA18: 67.04570249 | AB18: 99.44140172 | BA18: Water ladder | BB18: Basic | BC18: N/A | BD18: N/A | BE18: N/A | BF18: N/A | BG18: N/A | BH18: N/A | BI18: N/A | BJ18: N/A | BK18: N/A | BL18: N/A | BM18: N/A | BN18: N/A | BO18: N/A | BP18: N/A | BQ18: N/A | BR18: N/A | BS18: N/A | BT18: N/A | BU18: N/A | BV18: N/A | BW18: N/A | BX18: N/A | BY18: N/A | BZ18: N/A | CA18: N/A | CB18: N/A
B19: Limited | C19: =C16*C22/100 -> 10.49910869 | D19: =D16*D22/100 -> 10.31637652 | E19: =E16*E22/100 -> 7.847799344 | F19: 2.163260479 | G19: 0.4789018994 | H19: 2.941882199 | I19: 1.391984244 | J19: 0.1787797859 | K19: 0.8038402438 | L19: 0 | M19: 10.18375605 | N19: 11.71567379 | O19: 10.6193823 | P19: 11.20619507 | Q19: 7.180698732 | R19: 8.966674138 | S19: 1.339204292 | T19: 14.13683906 | U19: 9.043044419 | V19: 18.78541551 | W19: 7.873703531 | X19: 7.385160587 | Y19: 6.924382711 | Z19: 4.413369267 | AA19: 0.9239843264 | AB19: 0.4320817395 | BB19: Limited | BC19: N/A | BD19: N/A | BE19: N/A | BF19: N/A | BG19: N/A | BH19: N/A | BI19: N/A | BJ19: N/A | BK19: N/A | BL19: N/A | BM19: N/A | BN19: N/A | BO19: N/A | BP19: N/A | BQ19: N/A | BR19: N/A | BS19: N/A | BT19: N/A | BU19: N/A | BV19: N/A | BW19: N/A | BX19: N/A | BY19: N/A | BZ19: N/A | CA19: N/A | CB19: N/A
B20: Unimproved | C20: =100-C18-C19-C21 -> 25.14384204 | D20: =100-D18-D19-D21 -> 22.05634461 | E20: =100-E18-E19-E21 -> 15.79328135 | F20: 7.75729214 | G20: 1.190741237 | H20: 14.97194045 | I20: 6.213057592 | J20: 6.718928877 | K20: 1.026520506 | L20: 0.03021503885 | M20: 22.69882192 | N20: 28.14102436 | O20: 22.30049302 | P20: 15.84207403 | Q20: 15.28561816 | R20: 4.414652305 | S20: 22.22793999 | T20: 14.08718648 | U20: 10.81304587 | V20: 14.81800374 | W20: 7.253063724 | X20: 15.56796646 | Y20: 29.4438534 | Z20: 15.06951991 | AA20: 31.879361 | AB20: 0.1265165398 | BB20: Unimproved | BC20: N/A | BD20: N/A | BE20: N/A | BF20: N/A | BG20: N/A | BH20: N/A | BI20: N/A | BJ20: N/A | BK20: N/A | BL20: N/A | BM20: N/A | BN20: N/A | BO20: N/A | BP20: N/A | BQ20: N/A | BR20: N/A | BS20: N/A | BT20: N/A | BU20: N/A | BV20: N/A | BW20: N/A | BX20: N/A | BY20: N/A | BZ20: N/A | CA20: N/A | CB20: N/A
B21: Surface water | C21: 19.30091266 | D21: 11.46459086 | E21: 10.10260351 | F21: 2.348075907 | G21: 0.06846082519 | H21: 7.075733829 | I21: 0.8580779313 | J21: 0.9899716827 | K21: 0.1591286775 | L21: 0 | M21: 21.38952055 | N21: 14.47704238 | O21: 13.32709587 | P21: 11.08693141 | Q21: 8.75131379 | R21: 14.59915555 | S21: 5.878989556 | T21: 14.7838526 | U21: 8.736030899 | V21: 1.143409675 | W21: 22.89670228 | X21: 26.81795179 | Y21: 7.875480621 | Z21: 13.18810581 | AA21: 0.1509521891 | AB21: 0 | BB21: Surface water | BC21: N/A | BD21: N/A | BE21: N/A | BF21: N/A | BG21: N/A | BH21: N/A | BI21: N/A | BJ21: N/A | BK21: N/A | BL21: N/A | BM21: N/A | BN21: N/A | BO21: N/A | BP21: N/A | BQ21: N/A | BR21: N/A | BS21: N/A | BT21: N/A | BU21: N/A | BV21: N/A | BW21: N/A | BX21: N/A | BY21: N/A | BZ21: N/A | CA21: N/A | CB21: N/A
A22: Improved water point at more than 30 minutes | B22: Yes | C22: 18.89850118 | D22: 15.51823358 | E22: 10.5902342 | F22: 2.406440108 | G22: 0.4850091445 | H22: 3.773950516 | I22: 1.497902995 | J22: 0.1937129225 | K22: 0.8134853259 | L22: 0 | M22: 18.21401208 | N22: 20.4170078 | O22: 16.49679127 | P22: 15.33603743 | Q22: 9.452881401 | R22: 11.07185546 | S22: 1.862772425 | T22: 19.87494105 | U22: 11.24044828 | V22: 22.35332158 | W22: 11.27226507 | X22: 12.81832559 | Y22: 11.04707904 | Z22: 6.151691119 | AA22: 1.359406479 | AB22: 0.4326290868 | BA22: Improved water point at more than 30 minutes | BB22: Yes | BC22: N/A | BD22: N/A | BE22: N/A | BF22: N/A | BG22: N/A | BH22: N/A | BI22: N/A | BJ22: N/A | BK22: N/A | BL22: N/A | BM22: N/A | BN22: N/A | BO22: N/A | BP22: N/A | BQ22: N/A | BR22: N/A | BS22: N/A | BT22: N/A | BU22: N/A | BV22: N/A | BW22: N/A | BX22: N/A | BY22: N/A | BZ22: N/A | CA22: N/A | CB22: N/A
B23: No | C23: 81.10149882 | D23: 84.48176642 | E23: 89.4097658 | F23: 97.59355989 | G23: 99.51499086 | H23: 96.22604948 | I23: 98.502097 | J23: 99.80628708 | K23: 99.18651467 | L23: 100 | M23: 81.78598792 | N23: 79.5829922 | O23: 83.50320873 | P23: 84.66396257 | Q23: 90.5471186 | R23: 88.92814454 | S23: 98.13722757 | T23: 80.12505895 | U23: 88.75955172 | V23: 77.64667842 | W23: 88.72773493 | X23: 87.18167441 | Y23: 88.95292096 | Z23: 93.84830888 | AA23: 98.64059352 | AB23: 99.56737091 | BB23: No | BC23: N/A | BD23: N/A | BE23: N/A | BF23: N/A | BG23: N/A | BH23: N/A | BI23: N/A | BJ23: N/A | BK23: N/A | BL23: N/A | BM23: N/A | BN23: N/A | BO23: N/A | BP23: N/A | BQ23: N/A | BR23: N/A | BS23: N/A | BT23: N/A | BU23: N/A | BV23: N/A | BW23: N/A | BX23: N/A | BY23: N/A | BZ23: N/A | CA23: N/A | CB23: N/A
A24: Manually calculated ratios | B24: Improved wells
B25: Improved springs
B26: Other
C27: NATIONAL wealth index quintile | H27: URBAN wealth index quintile | M27: RURAL wealth index quintile | R27: SUB-REGIONS: | BA27: Raw numbers of respondents: | BB27: Use of drinking water sources | BC27: NATIONAL wealth index quintile | BH27: URBAN wealth index quintile | BM27: RURAL wealth index quintile | BR27: SUB-REGIONS:
A28: Percentage based on weighted population | C28: Poorest | D28: Poor | E28: Middle | F28: Rich | G28: Richest | H28: Poorest | I28: Poor | J28: Middle | K28: Rich | L28: Richest | M28: Poorest | N28: Poor | O28: Middle | P28: Rich | Q28: Richest | R28: Centre | S28: Centre Est | T28: Centre Nord | U28: Centre Ouest | V28: Nord | W28: Nord Est | X28: Nord Ouest | Y28: Ouest | Z28: Sud (sans ville d' Abidjan) | AA28: Sud Ouest | AB28: Ville Abidjan | BA28: Water data, raw numbers (weighted) | BC28: Poorest | BD28: Poor | BE28: Middle | BF28: Rich | BG28: Richest | BH28: Poorest | BI28: Poor | BJ28: Middle | BK28: Rich | BL28: Richest | BM28: Poorest | BN28: Poor | BO28: Middle | BP28: Rich | BQ28: Richest | BR28: Centre | BS28: Centre Est | BT28: Centre Nord | BU28: Centre Ouest | BV28: Nord | BW28: Nord Est | BX28: Nord Ouest | BY28: Ouest | BZ28: Sud (sans ville d' Abidjan) | CA28: Sud Ouest | CB28: Ville Abidjan
A29: Piped water | B29: Yes | C29: 4.957450041 | D29: 14.19175928 | E29: 24.59378253 | F29: 58.68020611 | G29: 90.26192753 | H29: 37.06239291 | I29: 63.82360537 | J29: 71.37625123 | K29: 90.60108557 | L29: 97.10256633 | M29: 4.177643103 | N29: 5.914718753 | O29: 14.02836908 | P29: 14.93513937 | Q29: 27.74670401 | R29: 39.22358614 | S29: 33.84309354 | T29: 30.38768969 | U29: 20.58490466 | V29: 22.76699306 | W29: 12.92348674 | X29: 14.20013999 | Y29: 16.01825676 | Z29: 37.85095245 | AA29: 23.05059538 | AB29: 98.43971504 | BA29: Piped water | BB29: Yes | BC29: N/A | BD29: N/A | BE29: N/A | BF29: N/A | BG29: N/A | BH29: N/A | BI29: N/A | BJ29: N/A | BK29: N/A | BL29: N/A | BM29: N/A | BN29: N/A | BO29: N/A | BP29: N/A | BQ29: N/A | BR29: N/A | BS29: N/A | BT29: N/A | BU29: N/A | BV29: N/A | BW29: N/A | BX29: N/A | BY29: N/A | BZ29: N/A | CA29: N/A | CB29: N/A
B30: No | C30: 95.04254996 | D30: 85.80824072 | E30: 75.40621747 | F30: 41.31979389 | G30: 9.738072467 | H30: 62.93760709 | I30: 36.17639463 | J30: 28.62374877 | K30: 9.398914431 | L30: 2.897433666 | M30: 95.8223569 | N30: 94.08528125 | O30: 85.97163092 | P30: 85.06486063 | Q30: 72.25329599 | R30: 60.77641386 | S30: 66.15690646 | T30: 69.61231031 | U30: 79.41509534 | V30: 77.23300694 | W30: 87.07651326 | X30: 85.79986001 | Y30: 83.98174324 | Z30: 62.14904755 | AA30: 76.94940462 | AB30: 1.560284956 | BB30: No | BC30: N/A | BD30: N/A | BE30: N/A | BF30: N/A | BG30: N/A | BH30: N/A | BI30: N/A | BJ30: N/A | BK30: N/A | BL30: N/A | BM30: N/A | BN30: N/A | BO30: N/A | BP30: N/A | BQ30: N/A | BR30: N/A | BS30: N/A | BT30: N/A | BU30: N/A | BV30: N/A | BW30: N/A | BX30: N/A | BY30: N/A | BZ30: N/A | CA30: N/A | CB30: N/A
A31: Piped water on premises | B31: Yes | C31: 1.385824962 | D31: 8.545356936 | E31: 20.2712757 | F31: 51.60903403 | G31: 84.83948892 | H31: 31.19799301 | I31: 54.76364507 | J31: 63.18856944 | K31: 81.16287342 | L31: 97.09761404 | M31: 0.6234328994 | N31: 2.422246696 | O31: 8.623044396 | P31: 9.628703775 | Q31: 24.38167773 | R31: 35.58858582 | S31: 30.9572429 | T31: 30.06663003 | U31: 18.67097302 | V31: 17.7689513 | W31: 7.692905934 | X31: 13.35036707 | Y31: 13.05472736 | Z31: 28.5904377 | AA31: 17.3542305 | AB31: 90.31258699 | BA31: Piped water on premises | BB31: Yes | BC31: N/A | BD31: N/A | BE31: N/A | BF31: N/A | BG31: N/A | BH31: N/A | BI31: N/A | BJ31: N/A | BK31: N/A | BL31: N/A | BM31: N/A | BN31: N/A | BO31: N/A | BP31: N/A | BQ31: N/A | BR31: N/A | BS31: N/A | BT31: N/A | BU31: N/A | BV31: N/A | BW31: N/A | BX31: N/A | BY31: N/A | BZ31: N/A | CA31: N/A | CB31: N/A
B32: No | C32: 98.61417504 | D32: 91.45464306 | E32: 79.7287243 | F32: 48.39096597 | G32: 15.16051108 | H32: 68.80200699 | I32: 45.23635493 | J32: 36.81143056 | K32: 18.83712658 | L32: 2.902385965 | M32: 99.3765671 | N32: 97.5777533 | O32: 91.3769556 | P32: 90.37129622 | Q32: 75.61832227 | R32: 64.41141418 | S32: 69.0427571 | T32: 69.93336997 | U32: 81.32902698 | V32: 82.2310487 | W32: 92.30709407 | X32: 86.64963293 | Y32: 86.94527264 | Z32: 71.4095623 | AA32: 82.6457695 | AB32: 9.687413012 | BB32: No | BC32: N/A | BD32: N/A | BE32: N/A | BF32: N/A | BG32: N/A | BH32: N/A | BI32: N/A | BJ32: N/A | BK32: N/A | BL32: N/A | BM32: N/A | BN32: N/A | BO32: N/A | BP32: N/A | BQ32: N/A | BR32: N/A | BS32: N/A | BT32: N/A | BU32: N/A | BV32: N/A | BW32: N/A | BX32: N/A | BY32: N/A | BZ32: N/A | CA32: N/A | CB32: N/A
A33: Piped water into dwelling | B33: Yes | C33: N/A | D33: N/A | E33: N/A | F33: N/A | G33: N/A | H33: N/A | I33: N/A | J33: N/A | K33: N/A | L33: N/A | M33: N/A | N33: N/A | O33: N/A | P33: N/A | Q33: N/A | R33: N/A | S33: N/A | T33: N/A | U33: N/A | V33: N/A | W33: N/A | X33: N/A | Y33: N/A | Z33: N/A | AA33: N/A | AB33: N/A | BA33: Piped water into dwelling | BB33: Yes | BC33: N/A | BD33: N/A | BE33: N/A | BF33: N/A | BG33: N/A | BH33: N/A | BI33: N/A | BJ33: N/A | BK33: N/A | BL33: N/A | BM33: N/A | BN33: N/A | BO33: N/A | BP33: N/A | BQ33: N/A | BR33: N/A | BS33: N/A | BT33: N/A | BU33: N/A | BV33: N/A | BW33: N/A | BX33: N/A | BY33: N/A | BZ33: N/A | CA33: N/A | CB33: N/A
B34: No | C34: N/A | D34: N/A | E34: N/A | F34: N/A | G34: N/A | H34: N/A | I34: N/A | J34: N/A | K34: N/A | L34: N/A | M34: N/A | N34: N/A | O34: N/A | P34: N/A | Q34: N/A | R34: N/A | S34: N/A | T34: N/A | U34: N/A | V34: N/A | W34: N/A | X34: N/A | Y34: N/A | Z34: N/A | AA34: N/A | AB34: N/A | BB34: No | BC34: N/A | BD34: N/A | BE34: N/A | BF34: N/A | BG34: N/A | BH34: N/A | BI34: N/A | BJ34: N/A | BK34: N/A | BL34: N/A | BM34: N/A | BN34: N/A | BO34: N/A | BP34: N/A | BQ34: N/A | BR34: N/A | BS34: N/A | BT34: N/A | BU34: N/A | BV34: N/A | BW34: N/A | BX34: N/A | BY34: N/A | BZ34: N/A | CA34: N/A | CB34: N/A
A35: Water source on premises | B35: Yes | C35: 24.36767798 | D35: 33.20759408 | E35: 48.74171314 | F35: 76.66777964 | G35: 91.49905059 | H35: 64.39366563 | I35: 82.02871179 | J35: 85.39200393 | K35: 88.48247543 | L35: 98.78997233 | M35: 21.42082507 | N35: 28.9330945 | O35: 30.99055323 | P35: 33.0186609 | Q35: 51.34113889 | R35: 46.14810736 | S35: 53.24219035 | T35: 45.70094424 | U35: 48.67606744 | V35: 54.48177911 | W35: 23.56639743 | X35: 38.73598836 | Y35: 46.85282941 | Z35: 47.76984265 | AA35: 56.53652626 | AB35: 91.93698786 | BA35: Water source on premises | BB35: Yes | BC35: N/A | BD35: N/A | BE35: N/A | BF35: N/A | BG35: N/A | BH35: N/A | BI35: N/A | BJ35: N/A | BK35: N/A | BL35: N/A | BM35: N/A | BN35: N/A | BO35: N/A | BP35: N/A | BQ35: N/A | BR35: N/A | BS35: N/A | BT35: N/A | BU35: N/A | BV35: N/A | BW35: N/A | BX35: N/A | BY35: N/A | BZ35: N/A | CA35: N/A | CB35: N/A
B36: No | C36: 75.63232202 | D36: 66.79240592 | E36: 51.25828686 | F36: 23.33222036 | G36: 8.500949407 | H36: 35.60633437 | I36: 17.97128821 | J36: 14.60799607 | K36: 11.51752457 | L36: 1.210027666 | M36: 78.57917493 | N36: 71.0669055 | O36: 69.00944677 | P36: 66.9813391 | Q36: 48.65886111 | R36: 53.85189264 | S36: 46.75780965 | T36: 54.29905576 | U36: 51.32393256 | V36: 45.51822089 | W36: 76.43360257 | X36: 61.26401164 | Y36: 53.14717059 | Z36: 52.23015735 | AA36: 43.46347374 | AB36: 8.063012135 | BB36: No | BC36: N/A | BD36: N/A | BE36: N/A | BF36: N/A | BG36: N/A | BH36: N/A | BI36: N/A | BJ36: N/A | BK36: N/A | BL36: N/A | BM36: N/A | BN36: N/A | BO36: N/A | BP36: N/A | BQ36: N/A | BR36: N/A | BS36: N/A | BT36: N/A | BU36: N/A | BV36: N/A | BW36: N/A | BX36: N/A | BY36: N/A | BZ36: N/A | CA36: N/A | CB36: N/A
A37: Improved Water source on premises | B37: Yes | C37: 23.16463953 | D37: 36.20051517 | E37: 55.50530632 | F37: 79.19029804 | G37: 92.05921045 | H37: 70.18406849 | I37: 82.93946791 | J37: 87.73053264 | K37: 88.864949 | L37: 98.81151859 | M37: 20.14561708 | N37: 27.17861123 | O37: 35.23363882 | P37: 38.09123645 | Q37: 56.62560369 | R37: 55.12579217 | S37: 63.23861956 | T37: 60.02377246 | U37: 54.76811833 | V37: 55.50045381 | W37: 28.76926752 | X37: 49.70000353 | Y37: 48.87815958 | Z37: 58.9805329 | AA37: 55.8771996 | AB37: 91.96793655 | BA37: Improved water source on premises | BB37: Yes | BC37: N/A | BD37: N/A | BE37: N/A | BF37: N/A | BG37: N/A | BH37: N/A | BI37: N/A | BJ37: N/A | BK37: N/A | BL37: N/A | BM37: N/A | BN37: N/A | BO37: N/A | BP37: N/A | BQ37: N/A | BR37: N/A | BS37: N/A | BT37: N/A | BU37: N/A | BV37: N/A | BW37: N/A | BX37: N/A | BY37: N/A | BZ37: N/A | CA37: N/A | CB37: N/A
B38: No | C38: 76.83536047 | D38: 63.79948483 | E38: 44.49469368 | F38: 20.80970196 | G38: 7.940789553 | H38: 29.81593151 | I38: 17.06053209 | J38: 12.26946736 | K38: 11.135051 | L38: 1.188481414 | M38: 79.85438292 | N38: 72.82138877 | O38: 64.76636118 | P38: 61.90876355 | Q38: 43.37439631 | R38: 44.87420783 | S38: 36.76138044 | T38: 39.97622754 | U38: 45.23188167 | V38: 44.49954619 | W38: 71.23073248 | X38: 50.29999647 | Y38: 51.12184042 | Z38: 41.0194671 | AA38: 44.1228004 | AB38: 8.032063445 | BB38: No | BC38: N/A | BD38: N/A | BE38: N/A | BF38: N/A | BG38: N/A | BH38: N/A | BI38: N/A | BJ38: N/A | BK38: N/A | BL38: N/A | BM38: N/A | BN38: N/A | BO38: N/A | BP38: N/A | BQ38: N/A | BR38: N/A | BS38: N/A | BT38: N/A | BU38: N/A | BV38: N/A | BW38: N/A | BX38: N/A | BY38: N/A | BZ38: N/A | CA38: N/A | CB38: N/A
A39: Piped water on premises available when needed | B39: Yes | C39: N/A | D39: N/A | E39: N/A | F39: N/A | G39: N/A | H39: N/A | I39: N/A | J39: N/A | K39: N/A | L39: N/A | M39: N/A | N39: N/A | O39: N/A | P39: N/A | Q39: N/A | R39: N/A | S39: N/A | T39: N/A | U39: N/A | V39: N/A | W39: N/A | X39: N/A | Y39: N/A | Z39: N/A | AA39: N/A | AB39: N/A | BA39: Piped water on premises available when needed | BB39: Yes | BC39: N/A | BD39: N/A | BE39: N/A | BF39: N/A | BG39: N/A | BH39: N/A | BI39: N/A | BJ39: N/A | BK39: N/A | BL39: N/A | BM39: N/A | BN39: N/A | BO39: N/A | BP39: N/A | BQ39: N/A | BR39: N/A | BS39: N/A | BT39: N/A | BU39: N/A | BV39: N/A | BW39: N/A | BX39: N/A | BY39: N/A | BZ39: N/A | CA39: N/A | CB39: N/A
B40: No | C40: N/A | D40: N/A | E40: N/A | F40: N/A | G40: N/A | H40: N/A | I40: N/A | J40: N/A | K40: N/A | L40: N/A | M40: N/A | N40: N/A | O40: N/A | P40: N/A | Q40: N/A | R40: N/A | S40: N/A | T40: N/A | U40: N/A | V40: N/A | W40: N/A | X40: N/A | Y40: N/A | Z40: N/A | AA40: N/A | AB40: N/A | BB40: No | BC40: N/A | BD40: N/A | BE40: N/A | BF40: N/A | BG40: N/A | BH40: N/A | BI40: N/A | BJ40: N/A | BK40: N/A | BL40: N/A | BM40: N/A | BN40: N/A | BO40: N/A | BP40: N/A | BQ40: N/A | BR40: N/A | BS40: N/A | BT40: N/A | BU40: N/A | BV40: N/A | BW40: N/A | BX40: N/A | BY40: N/A | BZ40: N/A | CA40: N/A | CB40: N/A
A41: Water point at more than 30 minutes | B41: Yes | C41: 18.27638668 | D41: 15.67601466 | E41: 13.12822698 | F41: 3.426474983 | G41: 0.604940755 | H41: 4.218267221 | I41: 1.841544083 | J41: 0.9746097666 | K41: 1.096801895 | L41: 0 | M41: 17.97606435 | N41: 19.11741369 | O41: 16.78106055 | P41: 16.37652795 | Q41: 13.23716098 | R41: 13.75721762 | S41: 3.815048725 | T41: 25.29163981 | U41: 13.00243654 | V41: 21.55979183 | W41: 13.38070429 | X41: 17.00750192 | Y41: 12.4433876 | Z41: 9.877826247 | AA41: 0.9676933963 | AB41: 0.4320817395 | BA41: Water point at more than 30 minutes | BB41: Yes | BC41: N/A | BD41: N/A | BE41: N/A | BF41: N/A | BG41: N/A | BH41: N/A | BI41: N/A | BJ41: N/A | BK41: N/A | BL41: N/A | BM41: N/A | BN41: N/A | BO41: N/A | BP41: N/A | BQ41: N/A | BR41: N/A | BS41: N/A | BT41: N/A | BU41: N/A | BV41: N/A | BW41: N/A | BX41: N/A | BY41: N/A | BZ41: N/A | CA41: N/A | CB41: N/A
B42: No | C42: 81.72361332 | D42: 84.32398534 | E42: 86.87177302 | F42: 96.57352502 | G42: 99.39505924 | H42: 95.78173278 | I42: 98.15845592 | J42: 99.02539023 | K42: 98.9031981 | L42: 100 | M42: 82.02393565 | N42: 80.88258631 | O42: 83.21893945 | P42: 83.62347205 | Q42: 86.76283902 | R42: 86.24278238 | S42: 96.18495128 | T42: 74.70836019 | U42: 86.99756346 | V42: 78.44020817 | W42: 86.61929571 | X42: 82.99249808 | Y42: 87.5566124 | Z42: 90.12217375 | AA42: 99.0323066 | AB42: 99.56791826 | BB42: No | BC42: N/A | BD42: N/A | BE42: N/A | BF42: N/A | BG42: N/A | BH42: N/A | BI42: N/A | BJ42: N/A | BK42: N/A | BL42: N/A | BM42: N/A | BN42: N/A | BO42: N/A | BP42: N/A | BQ42: N/A | BR42: N/A | BS42: N/A | BT42: N/A | BU42: N/A | BV42: N/A | BW42: N/A | BX42: N/A | BY42: N/A | BZ42: N/A | CA42: N/A | CB42: N/A
A43: Water source available when needed | B43: Yes | C43: N/A | D43: N/A | E43: N/A | F43: N/A | G43: N/A | H43: N/A | I43: N/A | J43: N/A | K43: N/A | L43: N/A | M43: N/A | N43: N/A | O43: N/A | P43: N/A | Q43: N/A | R43: N/A | S43: N/A | T43: N/A | U43: N/A | V43: N/A | W43: N/A | X43: N/A | Y43: N/A | Z43: N/A | AA43: N/A | AB43: N/A | BA43: Water source available when needed | BB43: Yes | BC43: N/A | BD43: N/A | BE43: N/A | BF43: N/A | BG43: N/A | BH43: N/A | BI43: N/A | BJ43: N/A | BK43: N/A | BL43: N/A | BM43: N/A | BN43: N/A | BO43: N/A | BP43: N/A | BQ43: N/A | BR43: N/A | BS43: N/A | BT43: N/A | BU43: N/A | BV43: N/A | BW43: N/A | BX43: N/A | BY43: N/A | BZ43: N/A | CA43: N/A | CB43: N/A
B44: No | C44: N/A | D44: N/A | E44: N/A | F44: N/A | G44: N/A | H44: N/A | I44: N/A | J44: N/A | K44: N/A | L44: N/A | M44: N/A | N44: N/A | O44: N/A | P44: N/A | Q44: N/A | R44: N/A | S44: N/A | T44: N/A | U44: N/A | V44: N/A | W44: N/A | X44: N/A | Y44: N/A | Z44: N/A | AA44: N/A | AB44: N/A | BB44: No | BC44: N/A | BD44: N/A | BE44: N/A | BF44: N/A | BG44: N/A | BH44: N/A | BI44: N/A | BJ44: N/A | BK44: N/A | BL44: N/A | BM44: N/A | BN44: N/A | BO44: N/A | BP44: N/A | BQ44: N/A | BR44: N/A | BS44: N/A | BT44: N/A | BU44: N/A | BV44: N/A | BW44: N/A | BX44: N/A | BY44: N/A | BZ44: N/A | CA44: N/A | CB44: N/A
A45: Improved water source available when needed | B45: Yes | C45: N/A | D45: N/A | E45: N/A | F45: N/A | G45: N/A | H45: N/A | I45: N/A | J45: N/A | K45: N/A | L45: N/A | M45: N/A | N45: N/A | O45: N/A | P45: N/A | Q45: N/A | R45: N/A | S45: N/A | T45: N/A | U45: N/A | V45: N/A | W45: N/A | X45: N/A | Y45: N/A | Z45: N/A | AA45: N/A | AB45: N/A | BA45: Improved water source available when needed | BB45: Yes | BC45: N/A | BD45: N/A | BE45: N/A | BF45: N/A | BG45: N/A | BH45: N/A | BI45: N/A | BJ45: N/A | BK45: N/A | BL45: N/A | BM45: N/A | BN45: N/A | BO45: N/A | BP45: N/A | BQ45: N/A | BR45: N/A | BS45: N/A | BT45: N/A | BU45: N/A | BV45: N/A | BW45: N/A | BX45: N/A | BY45: N/A | BZ45: N/A | CA45: N/A | CB45: N/A
B46: No | C46: N/A | D46: N/A | E46: N/A | F46: N/A | G46: N/A | H46: N/A | I46: N/A | J46: N/A | K46: N/A | L46: N/A | M46: N/A | N46: N/A | O46: N/A | P46: N/A | Q46: N/A | R46: N/A | S46: N/A | T46: N/A | U46: N/A | V46: N/A | W46: N/A | X46: N/A | Y46: N/A | Z46: N/A | AA46: N/A | AB46: N/A | BB46: No | BC46: N/A | BD46: N/A | BE46: N/A | BF46: N/A | BG46: N/A | BH46: N/A | BI46: N/A | BJ46: N/A | BK46: N/A | BL46: N/A | BM46: N/A | BN46: N/A | BO46: N/A | BP46: N/A | BQ46: N/A | BR46: N/A | BS46: N/A | BT46: N/A | BU46: N/A | BV46: N/A | BW46: N/A | BX46: N/A | BY46: N/A | BZ46: N/A | CA46: N/A | CB46: N/A
A47: Microbiological quality at point of collection | B47: Not contaminated (No E. coli in 100 mL) | C47: N/A | D47: N/A | E47: N/A | F47: N/A | G47: N/A | H47: N/A | I47: N/A | J47: N/A | K47: N/A | L47: N/A | M47: N/A | N47: N/A | O47: N/A | P47: N/A | Q47: N/A | R47: N/A | S47: N/A | T47: N/A | U47: N/A | V47: N/A | W47: N/A | X47: N/A | Y47: N/A | Z47: N/A | AA47: N/A | AB47: N/A | BA47: Microbiological quality at point of collection | BB47: Not contaminated (No E. coli in 100 mL) | BC47: N/A | BD47: N/A | BE47: N/A | BF47: N/A | BG47: N/A | BH47: N/A | BI47: N/A | BJ47: N/A | BK47: N/A | BL47: N/A | BM47: N/A | BN47: N/A | BO47: N/A | BP47: N/A | BQ47: N/A | BR47: N/A | BS47: N/A | BT47: N/A | BU47: N/A | BV47: N/A | BW47: N/A | BX47: N/A | BY47: N/A | BZ47: N/A | CA47: N/A | CB47: N/A
B48: Contaminated (E. coli detected in 100 mL) | C48: N/A | D48: N/A | E48: N/A | F48: N/A | G48: N/A | H48: N/A | I48: N/A | J48: N/A | K48: N/A | L48: N/A | M48: N/A | N48: N/A | O48: N/A | P48: N/A | Q48: N/A | R48: N/A | S48: N/A | T48: N/A | U48: N/A | V48: N/A | W48: N/A | X48: N/A | Y48: N/A | Z48: N/A | AA48: N/A | AB48: N/A | BB48: Contaminated (E. coli detected in 100 mL) | BC48: N/A | BD48: N/A | BE48: N/A | BF48: N/A | BG48: N/A | BH48: N/A | BI48: N/A | BJ48: N/A | BK48: N/A | BL48: N/A | BM48: N/A | BN48: N/A | BO48: N/A | BP48: N/A | BQ48: N/A | BR48: N/A | BS48: N/A | BT48: N/A | BU48: N/A | BV48: N/A | BW48: N/A | BX48: N/A | BY48: N/A | BZ48: N/A | CA48: N/A | CB48: N/A
B49: Highly contaminated (>100 CFU/100 mL) | C49: N/A | D49: N/A | E49: N/A | F49: N/A | G49: N/A | H49: N/A | I49: N/A | J49: N/A | K49: N/A | L49: N/A | M49: N/A | N49: N/A | O49: N/A | P49: N/A | Q49: N/A | R49: N/A | S49: N/A | T49: N/A | U49: N/A | V49: N/A | W49: N/A | X49: N/A | Y49: N/A | Z49: N/A | AA49: N/A | AB49: N/A | BB49: Highly contaminated (>100 CFU/100 mL) | BC49: N/A | BD49: N/A | BE49: N/A | BF49: N/A | BG49: N/A | BH49: N/A | BI49: N/A | BJ49: N/A | BK49: N/A | BL49: N/A | BM49: N/A | BN49: N/A | BO49: N/A | BP49: N/A | BQ49: N/A | BR49: N/A | BS49: N/A | BT49: N/A | BU49: N/A | BV49: N/A | BW49: N/A | BX49: N/A | BY49: N/A | BZ49: N/A | CA49: N/A | CB49: N/A
A50: Microbiological quality of improved water sources at point of collection | B50: Not contaminated (No E. coli in 100 mL) | C50: N/A | D50: N/A | E50: N/A | F50: N/A | G50: N/A | H50: N/A | I50: N/A | J50: N/A | K50: N/A | L50: N/A | M50: N/A | N50: N/A | O50: N/A | P50: N/A | Q50: N/A | R50: N/A | S50: N/A | T50: N/A | U50: N/A | V50: N/A | W50: N/A | X50: N/A | Y50: N/A | Z50: N/A | AA50: N/A | AB50: N/A | BA50: Microbiological quality of improved water sources at point of collection | BB50: Not contaminated (No E. coli in 100 mL) | BC50: N/A | BD50: N/A | BE50: N/A | BF50: N/A | BG50: N/A | BH50: N/A | BI50: N/A | BJ50: N/A | BK50: N/A | BL50: N/A | BM50: N/A | BN50: N/A | BO50: N/A | BP50: N/A | BQ50: N/A | BR50: N/A | BS50: N/A | BT50: N/A | BU50: N/A | BV50: N/A | BW50: N/A | BX50: N/A | BY50: N/A | BZ50: N/A | CA50: N/A | CB50: N/A
B51: Contaminated (E. coli detected in 100 mL) | C51: N/A | D51: N/A | E51: N/A | F51: N/A | G51: N/A | H51: N/A | I51: N/A | J51: N/A | K51: N/A | L51: N/A | M51: N/A | N51: N/A | O51: N/A | P51: N/A | Q51: N/A | R51: N/A | S51: N/A | T51: N/A | U51: N/A | V51: N/A | W51: N/A | X51: N/A | Y51: N/A | Z51: N/A | AA51: N/A | AB51: N/A | BB51: Contaminated (E. coli detected in 100 mL) | BC51: N/A | BD51: N/A | BE51: N/A | BF51: N/A | BG51: N/A | BH51: N/A | BI51: N/A | BJ51: N/A | BK51: N/A | BL51: N/A | BM51: N/A | BN51: N/A | BO51: N/A | BP51: N/A | BQ51: N/A | BR51: N/A | BS51: N/A | BT51: N/A | BU51: N/A | BV51: N/A | BW51: N/A | BX51: N/A | BY51: N/A | BZ51: N/A | CA51: N/A | CB51: N/A
B52: Highly contaminated (>100 CFU/100 mL) | C52: N/A | D52: N/A | E52: N/A | F52: N/A | G52: N/A | H52: N/A | I52: N/A | J52: N/A | K52: N/A | L52: N/A | M52: N/A | N52: N/A | O52: N/A | P52: N/A | Q52: N/A | R52: N/A | S52: N/A | T52: N/A | U52: N/A | V52: N/A | W52: N/A | X52: N/A | Y52: N/A | Z52: N/A | AA52: N/A | AB52: N/A | BB52: Highly contaminated (>100 CFU/100 mL) | BC52: N/A | BD52: N/A | BE52: N/A | BF52: N/A | BG52: N/A | BH52: N/A | BI52: N/A | BJ52: N/A | BK52: N/A | BL52: N/A | BM52: N/A | BN52: N/A | BO52: N/A | BP52: N/A | BQ52: N/A | BR52: N/A | BS52: N/A | BT52: N/A | BU52: N/A | BV52: N/A | BW52: N/A | BX52: N/A | BY52: N/A | BZ52: N/A | CA52: N/A | CB52: N/A
A53: Microbiological quality of piped on premises at point of collection | B53: Not contaminated (No E. coli in 100 mL) | C53: N/A | D53: N/A | E53: N/A | F53: N/A | G53: N/A | H53: N/A | I53: N/A | J53: N/A | K53: N/A | L53: N/A | M53: N/A | N53: N/A | O53: N/A | P53: N/A | Q53: N/A | R53: N/A | S53: N/A | T53: N/A | U53: N/A | V53: N/A | W53: N/A | X53: N/A | Y53: N/A | Z53: N/A | AA53: N/A | AB53: N/A | BA53: Microbiological quality of piped on premises at point of collection | BB53: Not contaminated (No E. coli in 100 mL) | BC53: N/A | BD53: N/A | BE53: N/A | BF53: N/A | BG53: N/A | BH53: N/A | BI53: N/A | BJ53: N/A | BK53: N/A | BL53: N/A | BM53: N/A | BN53: N/A | BO53: N/A | BP53: N/A | BQ53: N/A | BR53: N/A | BS53: N/A | BT53: N/A | BU53: N/A | BV53: N/A | BW53: N/A | BX53: N/A | BY53: N/A | BZ53: N/A | CA53: N/A | CB53: N/A
B54: Contaminated (E. coli detected in 100 mL) | C54: N/A | D54: N/A | E54: N/A | F54: N/A | G54: N/A | H54: N/A | I54: N/A | J54: N/A | K54: N/A | L54: N/A | M54: N/A | N54: N/A | O54: N/A | P54: N/A | Q54: N/A | R54: N/A | S54: N/A | T54: N/A | U54: N/A | V54: N/A | W54: N/A | X54: N/A | Y54: N/A | Z54: N/A | AA54: N/A | AB54: N/A | BB54: Contaminated (E. coli detected in 100 mL) | BC54: N/A | BD54: N/A | BE54: N/A | BF54: N/A | BG54: N/A | BH54: N/A | BI54: N/A | BJ54: N/A | BK54: N/A | BL54: N/A | BM54: N/A | BN54: N/A | BO54: N/A | BP54: N/A | BQ54: N/A | BR54: N/A | BS54: N/A | BT54: N/A | BU54: N/A | BV54: N/A | BW54: N/A | BX54: N/A | BY54: N/A | BZ54: N/A | CA54: N/A | CB54: N/A
B55: Highly contaminated (>100 CFU/100 mL) | C55: N/A | D55: N/A | E55: N/A | F55: N/A | G55: N/A | H55: N/A | I55: N/A | J55: N/A | K55: N/A | L55: N/A | M55: N/A | N55: N/A | O55: N/A | P55: N/A | Q55: N/A | R55: N/A | S55: N/A | T55: N/A | U55: N/A | V55: N/A | W55: N/A | X55: N/A | Y55: N/A | Z55: N/A | AA55: N/A | AB55: N/A | BB55: Highly contaminated (>100 CFU/100 mL) | BC55: N/A | BD55: N/A | BE55: N/A | BF55: N/A | BG55: N/A | BH55: N/A | BI55: N/A | BJ55: N/A | BK55: N/A | BL55: N/A | BM55: N/A | BN55: N/A | BO55: N/A | BP55: N/A | BQ55: N/A | BR55: N/A | BS55: N/A | BT55: N/A | BU55: N/A | BV55: N/A | BW55: N/A | BX55: N/A | BY55: N/A | BZ55: N/A | CA55: N/A | CB55: N/A
C56: NATIONAL wealth index quintile | H56: URBAN wealth index quintile | M56: RURAL wealth index quintile | R56: SUB-REGIONS: | BA56: Raw numbers of respondents: | BB56: Use of drinking water sources | BC56: NATIONAL wealth index quintile | BH56: URBAN wealth index quintile | BM56: RURAL wealth index quintile | BR56: SUB-REGIONS:
A57: Percentage based on weighted population | C57: Poorest | D57: Poor | E57: Middle | F57: Rich | G57: Richest | H57: Poorest | I57: Poor | J57: Middle | K57: Rich | L57: Richest | M57: Poorest | N57: Poor | O57: Middle | P57: Rich | Q57: Richest | R57: Centre | S57: Centre Est | T57: Centre Nord | U57: Centre Ouest | V57: Nord | W57: Nord Est | X57: Nord Ouest | Y57: Ouest | Z57: Sud (sans ville d' Abidjan) | AA57: Sud Ouest | AB57: Ville Abidjan | BA57: Water data, raw numbers (weighted) | BC57: Poorest | BD57: Poor | BE57: Middle | BF57: Rich | BG57: Richest | BH57: Poorest | BI57: Poor | BJ57: Middle | BK57: Rich | BL57: Richest | BM57: Poorest | BN57: Poor | BO57: Middle | BP57: Rich | BQ57: Richest | BR57: Centre | BS57: Centre Est | BT57: Centre Nord | BU57: Centre Ouest | BV57: Nord | BW57: Nord Est | BX57: Nord Ouest | BY57: Ouest | BZ57: Sud (sans ville d' Abidjan) | CA57: Sud Ouest | CB57: Ville Abidjan
A58: Principale source d'eau que boivent les membre du menage | B58: Eau de robinet dans le logement | C58: 0.7396157586 | D58: 3.241402831 | E58: 5.817654331 | F58: 20.66905554 | G58: 57.86308798 | H58: 8.735868614 | I58: 19.1750089 | J58: 25.21914735 | K58: 45.26102043 | L58: 81.87899741 | M58: 0.5305943003 | N58: 0.6780814238 | O58: 3.302788082 | P58: 3.842156907 | Q58: 10.78392789 | R58: 19.49067811 | S58: 21.55828027 | T58: 9.917678792 | U58: 6.091643339 | V58: 6.695338333 | W58: 5.665044487 | X58: 9.471286877 | Y58: 6.292553039 | Z58: 13.76881521 | AA58: 11.75776031 | AB58: 51.53755906
B59: Dans la cour/parcelle | C59: 0.6462092036 | D59: 5.303954105 | E59: 14.45362137 | F59: 30.93997849 | G59: 26.9098334 | H59: 22.46212439 | I59: 35.58863617 | J59: 37.81433011 | K59: 35.90185298 | L59: 15.21861663 | M59: 0.0928385991 | N59: 1.744165272 | O59: 5.320256313 | P59: 5.786546868 | Q59: 13.59774983 | R59: 16.09790771 | S59: 9.398962628 | T59: 20.14895124 | U59: 12.57932968 | V59: 11.07361296 | W59: 2.027861447 | X59: 3.87908019 | Y59: 6.762174317 | Z59: 14.74681694 | AA59: 5.596470193 | AB59: 38.77502793
B60: Robinet public/borne fontaine | C60: 3.571625079 | D60: 5.646402348 | E60: 4.322506834 | F60: 7.071172078 | G60: 5.422438618 | H60: 5.864399898 | I60: 9.059960295 | J60: 8.187681788 | K60: 9.438212151 | L60: 0.004952298247 | M60: 3.554210204 | N60: 3.492472056 | O60: 5.405324686 | P60: 5.306435598 | Q60: 3.365026283 | R60: 3.635000314 | S60: 2.885850643 | T60: 0.3210596559 | U60: 1.91393164 | V60: 4.99804176 | W60: 5.230580806 | X60: 0.8497729245 | Y60: 2.963529402 | Z60: 9.260514749 | AA60: 5.696364876 | AB60: 8.127128056
B61: Puits a pompe/forage | C61: 28.71688453 | D61: 29.45209036 | E61: 19.96183981 | F61: 5.698443154 | G61: 0.5099816828 | H61: 3.773524029 | I61: 0.4350525148 | J61: 0.3837850218 | K61: 0.02399749215 | L61: 0 | M61: 31.05492705 | N61: 26.53910434 | O61: 31.52188198 | P61: 32.38921442 | Q61: 22.80108301 | R61: 33.42393277 | S61: 13.45464752 | T61: 18.50794008 | U61: 16.58480016 | V61: 25.89461414 | W61: 45.04679239 | X61: 22.72318916 | Y61: 21.57645863 | Z61: 13.0086023 | AA61: 11.91109443 | AB61: 0
B62: Puits protégé | C62: 19.67741944 | D62: 22.19549143 | E62: 28.26256847 | F62: 22.96951993 | G62: 6.838144231 | H62: 34.04933273 | I62: 24.8701488 | J62: 18.99140032 | K62: 6.786491143 | L62: 1.956980203 | M62: 17.79819573 | N62: 23.89301405 | O62: 18.05583067 | P62: 25.24177008 | Q62: 24.98757692 | R62: 6.211575332 | S62: 24.59532939 | T62: 21.91784559 | U62: 43.02027105 | V62: 35.30064726 | W62: 11.72613557 | X62: 17.89636994 | Y62: 20.83459885 | Z62: 20.34397373 | AA62: 28.56561968 | AB62: 0.2805146136
B63: Puits non protégé | C63: 23.04570623 | D63: 19.49206435 | E63: 14.84446892 | F63: 7.2008765 | G63: 1.138552426 | H63: 14.93820749 | I63: 6.104260383 | J63: 5.676441149 | K63: 0.9052141039 | L63: 0.03021503885 | M63: 20.76765702 | N63: 25.86461582 | O63: 19.77820944 | P63: 13.6691956 | Q63: 14.29411704 | R63: 4.456214483 | S63: 22.23636932 | T63: 7.540943085 | U63: 8.65212214 | V63: 14.81800374 | W63: 5.239914848 | X63: 13.6259205 | Y63: 26.9777529 | Z63: 14.27639984 | AA63: 31.67297139 | AB63: 0.1265165398
B64: Source aménagée | C64: 2.055322482 | D64: 0.5275744733 | E64: 0.0128653984 | F64: 0.1841514317 | G64: 0.02454224899 | H64: 0.3195457097 | I64: 0 | J64: 0 | K64: 0 | L64: 0 | M64: 2.850920036 | N64: 0.7924777144 | O64: 0.62038441 | P64: 0.2602659831 | Q64: 0.1484960336 | R64: 0 | S64: 0 | T64: 0 | U64: 0.2609473586 | V64: 0.0763321275 | W64: 0 | X64: 2.315941832 | Y64: 4.213842093 | Z64: 0.2256361799 | AA64: 0.1505080066 | AB64: 0
B65: Source non aménagée | C65: 2.098577208 | D65: 2.486158266 | E65: 0.972581689 | F65: 0.3468744438 | G65: 0 | H65: 0 | I65: 0 | J65: 0.6427333012 | K65: 0 | L65: 0 | M65: 1.932021459 | N65: 2.302596038 | O65: 2.364054371 | P65: 2.250571004 | Q65: 1.012629997 | R65: 0 | S65: 0 | T65: 5.704286294 | U65: 2.160923732 | V65: 0 | W65: 2.013148876 | X65: 2.011810765 | Y65: 2.466100498 | Z65: 0.7654062481 | AA65: 0.2071952009 | AB65: 0
B66: Eau de pluie | C66: 0.01711621051 | D66: 0.03680531993 | E66: 0.08069190372 | F66: 0 | G66: 0 | H66: 0 | I66: 0 | J66: 0 | K66: 0 | L66: 0 | M66: 0.02997160792 | N66: 0.0131100149 | O66: 0.05143185495 | P66: 0 | Q66: 0.1414668664 | R66: 0 | S66: 0 | T66: 0.0857627948 | U66: 0 | V66: 0 | W66: 0 | X66: 0.4784408413 | Y66: 0.03750964903 | Z66: 0 | AA66: 0 | AB66: 0
B67: Camion citerne/vendeur d'eau | C67: 0.1310525945 | D67: 0.07534366711 | E67: 1.05260076 | F67: 2.362311328 | G67: 1.106202243 | H67: 2.747530348 | I67: 3.800057789 | J67: 1.539662875 | K67: 1.402776612 | L67: 0.9102384241 | M67: 0 | N67: 0.2295083932 | O67: 0.09451311268 | P67: 0 | Q67: 0.1377412119 | R67: 2.127097908 | S67: 0 | T67: 0.2297227672 | U67: 0 | V67: 0 | W67: 0.1538193013 | X67: 0 | Y67: 0 | Z67: 0.174910171 | AA67: 4.264609538 | AB67: 1.153253803
B68: Charrette avec petite citerne/tonneau | C68: 0 | D68: 0 | E68: 0.1397662619 | F68: 0 | G68: 0 | H68: 0 | I68: 0 | J68: 0 | K68: 0 | L68: 0 | M68: 0 | N68: 0 | O68: 0 | P68: 0.2446047025 | Q68: 0 | R68: 0 | S68: 0 | T68: 0 | U68: 0 | V68: 0 | W68: 0 | X68: 0 | Y68: 0 | Z68: 0.1382994476 | AA68: 0.02725978143 | AB68: 0
B69: Eau de surface | C69: 19.30047126 | D69: 11.43644386 | E69: 10.06437638 | F69: 2.336115155 | G69: 0.06846082519 | H69: 7.075733829 | I69: 0.8515608746 | J69: 0.9889188622 | K69: 0.1591286775 | L69: 0 | M69: 21.388664 | N69: 14.45085488 | O69: 13.29896774 | P69: 11.00923884 | Q69: 8.730184909 | R69: 14.55759337 | S69: 5.870560229 | T69: 14.7838526 | U69: 8.736030899 | V69: 1.143409675 | W69: 22.89670228 | X69: 26.74818697 | Y69: 7.875480621 | Z69: 13.09628655 | AA69: 0.1501465976 | AB69: 0
B70: Eau en bouteille/minerale | C70: 0 | D70: 0 | E70: 0 | F70: 0 | G70: 0.06656753464 | H70: 0 | I70: 0 | J70: 0.1550919707 | K70: 0 | L70: 0 | M70: 0 | N70: 0 | O70: 0 | P70: 0 | Q70: 0 | R70: 0 | S70: 0 | T70: 0 | U70: 0 | V70: 0 | W70: 0 | X70: 0 | Y70: 0 | Z70: 0.07480555417 | AA70: 0 | AB70: 0
B71: Autre | C71: 0 | D71: 0.1062689829 | E71: 0.0144578781 | F71: 0.2215019478 | G71: 0.05218881041 | H71: 0.03373295742 | I71: 0.1153142653 | J71: 0.4008072476 | K71: 0.121306402 | L71: 0 | M71: 0 | N71: 0 | O71: 0.186357332 | P71: 0 | Q71: 0 | R71: 0 | S71: 0 | T71: 0.8419570973 | U71: 0 | V71: 0 | W71: 0 | X71: 0 | Y71: 0 | Z71: 0.1195330866 | AA71: 0 | AB71: 0
A108: =A1026 -> Côte d'Ivoire
A109: =A1034 -> 2006
A110: Use of sanitation facilities
A111: by wealth quintile and sub-national region
A112: Notes:
A113: WHO/UNICEF JMP customised wealth index excludes water,
A114: sanitation and hygiene assets.
A115: Survey used for analysis: | B115: =A1025 -> MICS06
A116: Ratio of Improved latrines based on: | B116: DHS12
A117: =B1029 -> 
A120: Use of sanitation facilities | C120: NATIONAL wealth index quintile | H120: URBAN wealth index quintile | M120: RURAL wealth index quintile | R120: SUB-REGIONS: | BA120: Raw numbers of respondents: | BB120: Use of sanitation facilities | BC120: NATIONAL wealth index quintile | BH120: URBAN wealth index quintile | BM120: RURAL wealth index quintile | BR120: SUB-REGIONS:
